Workbook

Sheet 2020 Legal Max
F1: Col 1 | I1: Col 2 | L1: Col 3 | P1: Col 4 | Q1: Col 5 | R1: Col 6 | S1: Col 7 | T1: Col 8 | Y1: Col 9 | Z1: Col 10 | AA1: Col 11 | AD1: Col 13 | AE1: Col 14 | AF1: Col 15 | AG1: Col 16 | AH1: Col 17 | AI1: Col 18 | AJ1: Col 19 | AK1: Col 20 | AM1: Col 21 | AN1: Col 22 | AO1: Col 23 | AP1: Col 24 | AR1: Col 26 | AS1: Col 27 | AT1: Col 28 | AU1: Col 29 | AW1: Col 30 | AX1: Col 31 | AY1: Col 32 | AZ1: Col 33 | BA1: Col 34 | BG1: Col 36 | BH1: Col 37 | BI1: Col 38 | BM1: Col 39 | BN1: Col 40 | BO1: Col 41 | BP1: Col 42 | BQ1: Col 43 | BR1: Col 44 | BS1: Col 45
B2: 2020-06-23 | M2: (Info Only) | N2: (Info Only) | O2: (Info Only) | AC2: N/A | AQ2: N/A | AV2: (Info Only) | AW2: (Info Only) | BB2: N/A | BU2: Table I - Low & High Enrollment | CE2: Table II - Transportation | CN2: Table III - Tax Appeal Amounts | CT2: Table IV High Density At Risk | CX2: LOB Transfers
A3: USD # | B3: County | C3: District Name | D3: FTE Enroll (excl 4yr old at-risk & virtual) 9/20/2016 | E3: FTE Enroll (excl 4yr old at-risk & virtual) 2/20/2017 | F3: FTE Enroll (excl 4yr old at-risk & virtual) 9/20/2016 2/20/2017 | G3: FTE Enroll (exc 4yr old at-risk & virtual) 9/20/2017 | H3: FTE Enroll (excl 4yr old at-risk & virtual) 2/20/2018 | I3: FTE Enroll (exc. 4yr old at-risk & virtual ) 9/20/2017 2/20/2018 | J3: FTE Enroll (exc 4yr old at-risk & virtual) 9/20/2018 | K3: FTE Enroll (excl 4yr old at-risk & virtual) 2/20/2019 | L3: FTE Enroll (excl 4yr old at-risk & virtual) 9/20/2018 2/20/2019 | M3: FTE Enroll (excl 4yr old at-risk & virtual) 9/20/2019 | N3: FTE Enroll (excl 4yr old at-risk & virtual) 2/20/2020 | O3: FTE Enroll (excl 4yr old at-risk & virtual) 9/20/2019 2/20/2020 | P3: Adjusted Enrollment | Q3: 4yr Old At Risk (9/20 + 2/20) | R3: 2018-19 Kindergarten (9/20 + 2/20) | S3: Total Adjusted Enrollment (incl 4yr AR) | T3: Low and High Enrollment WTD FTE | U3: 2019-20 Bilingual Contact Hours (9/20 + 2/20) | V3: Bilingual Contact Hours WTD FTE | W3: 2019-20 Bilingual Headcount (9/20 + 2/20) | X3: Bilingual Headcount WTD FTE | Y3: Bilingual (max Hrs or Hdct) WTD FTE | Z3: 2019-20 Career /Tech Ed Contact Hours (9/20 + 2/20) | AA3: Career /Tech Ed WTD FTE | AB3: Funded Headcount (excl virtual, KAMS, JDC) (9/20 + 2/20) | AC3: Free Lunch 10% (Guaranteed) | AD3: Free Lunch (9/20 + 2/20) | AE3: At-Risk (Free Lunch) WTD FTE | AF3: High Density At-Risk (USD) | AG3: High Density At-Risk (School) | AH3: High Density At-Risk WTD FTE | AI3: School Facilities FTE (9/20 + 2/20) | AJ3: School Facilities WTD FTE | AK3: Transportation FTE > = 2.5 Miles (9/20 + 2/20) | AM3: 2019-20 Transportation Aid | AN3: 2016-17 Transportation Aid | AO3: Transportation WTD FTE | AP3: Ancillary WTD FTE | AQ3: Declining Enrollment WTD FTE | AR3: Cost of Living WTD FTE | AS3: Special Education State Aid | AT3: Special Education WTD FTE | AU3: KAMS FTE | AV3: WTD FTE (excl COLA; incl SPED) | AW3: WTD FTE (excl SPED) | AX3: Virtual Full-Time FTE | AY3: Virtual Part-Time FTE | AZ3: Virtual Credits (20yrs & Older) | BA3: Virtual State Aid | BB3: Extraordinary Need Aid | BC3: Sequence Number | BD3: Audit | BE3: Republished | BF3: Info Only General Fund (excl SPED) | BG3: Computed General Fund | BH3: Adopted General Fund | BI3: Legal Max General Fund (before reductions) | BJ3: Prior Year Budget Law Violation | BK3: Trans Audit Adjust | BL3: Prior Year Virtual Credits Audit Adj | BM3: Prior Year Total Reductions | BN3: 2019-20 Adjusted Legal General Fund Budget | BO3: 2019-20 LOB Base General Fund | BP3: 2019-20 LOB Authorized Percent | BQ3: Computed Local Option Budget | BR3: Adopted Local Option Budget | BS3: Legal Max Local Option Budget | BT3: LOB Percent Used | BU3: 0-99.9 | BY3: 100-299.9 | CC3: 300-1621.9 | CD3: 1622 and higher | CE3: Area in Square Miles | CF3: Density Figure Range | CG3: Order ID | CH3: Per Capita | CI3: Base Change (Factor A) | CJ3: Factor Per Capita Allowance (Factor B) | CK3: Factor per Capita times Constant (Factor C) | CL3: Factor per Capita Allowance times the Variable (Factor D) | CM3: Trans Weighted FTE | CN3: Board of Tax Appeals (Ancillary) | CO3: Board of Tax Appeals (Declining Enrollment) | CP3: Form 150-Board of Tax Appeals (Cost of Living) | CQ3: Cost of Living Authorized Percent | CR3: Max Computed Cost of Living | CS3: Cost of Living Authority | CT3: 2019-20 Percent of Free Lunch (Current Year) | CU3: Free Lunch >=50% | CV3: Free Lunch >=35% <50% | CW3: Total WTD FTE (inc. SPED) | CX3: At-Risk LOB Transfer | CY3: Bilingual LOB Transfer
A4: Total | C4: STATE TOTALS | D4: =SUM(D5:D290) -> 465185.1 | E4: 445.5 | F4: 465630.6 | G4: 465661.5 | H4: 566.5 | I4: 466228 | J4: 464895.7 | K4: 464.8 | L4: 465360.5 | M4: 464596.4 | N4: 562.4 | O4: 465158.8 | P4: 469166.4 | Q4: 4129 | R4: 0 | S4: 473295.4 | T4: 54662.2 | U4: 136104.4 | V4: 8960.3 | W4: 47575 | X4: 8802.1 | Y4: 9805.5 | Z4: 109786.9 | AA4: 9149.6 | AB4: 479864 | AC4: 0 | AD4: 177759 | AE4: 86035.1 | AF4: 10957 | AG4: 11332.6 | AH4: 11937 | AI4: 3666.6 | AJ4: 916.9 | AK4: 131377.6 | AM4: =SUM(AM5:AM290) -> 98989569 | AN4: 101223247 | AO4: 24034.2 | AP4: 6640.3 | AQ4: 0 | AR4: 6694 | AS4: 486332870 | AT4: 109633.8 | AU4: 46 | AV4: 786156 | AW4: 683216.2 | AX4: 5658 | AY4: 1051 | AZ4: 2743.25 | BA4: 32021674 | BB4: 0 | BF4: =SUM(BF5:BF290) -> 3062768727 | BG4: 3549104272 | BH4: 3626383775 | BI4: 3549104272 | BJ4: -166 | BK4: -3336621 | BL4: -264468 | BM4: -3601255 | BN4: 3545503017 | BO4: 3613808052 | BP4: 88.78 | BQ4: 1145364522 | BR4: 1150026737 | BS4: 1132125381 | BT4: =SUM(BT5:BT290)/296 -> 0.2979 | BU4: =SUM(BU5:BU290) -> 364.2 | BY4: =SUM(BY5:BY290) -> 9494.3 | CC4: =SUM(CC5:CC290) -> 32345.9 | CD4: 12457.8 | CE4: 82019.7 | CF4: 1358.38 | CG4: 7735 | CH4: =SUM(CH5:CH290) -> 299880 | CI4: =SUM(CI5:CI290) -> 304.6186 | CJ4: =SUM(CJ5:CJ290) -> 92939229 | CK4: =SUM(CK5:CK290) -> 92939229 | CL4: =SUM(CL5:CL290) -> 98989569 | CM4: 22315.8 | CN4: 29456254 | CO4: 0 | CP4: 30033124 | CQ4: 0.4861 | CR4: =SUM(CR5:CR290) -> 35710518 | CS4: =SUM(CS5:CS290) -> 29694510 | CT4: =AD4/AB4 -> 0.3704 | CU4: =SUM(CU5:CU290) -> 9098.8 | CV4: =SUM(CV5:CV290) -> 1858.2 | CW4: =SUM(CW5:CW290) -> 792850 | CX4: =SUM(CX5:CX290) -> 122305269 | CY4: 13902917
A5: 101 | B5: Neosho | C5: Erie-Galesburg | D5: 506 | E5: 0 | F5: =SUM(D5:E5) -> 506 | G5: 514.5 | H5: 0 | I5: =SUM(G5:H5) -> 514.5 | J5: 491.5 | K5: 0 | L5: =SUM(J5+K5) -> 491.5 | M5: =IF(ISNA(VLOOKUP($CZ5,'Audit Values'!$A$2:$BW$496,2,FALSE)),'Preliminary SO66'!C4,VLOOKUP($CZ5,'Audit Values'!$A$2:$BW$496,73,FALSE)) -> 467 | N5: =IF(ISNA(VLOOKUP($CZ5,'Audit Values'!$A$2:$BW$496,2,FALSE)),'Preliminary SO66'!F4,VLOOKUP($CZ5,'Audit Values'!$A$2:$BW$496,4,FALSE)) -> 0 | O5: =M5+N5 -> 467 | P5: =IF('Military Provision'!J6="YES", MAX('2020 Legal Max'!L5,'2020 Legal Max'!I5,AVERAGE('2020 Legal Max'!F5,'2020 Legal Max'!I5,'2020 Legal Max'!L5)), MAX(L5, I5)) -> 514.5 | Q5: =IF(ISNA(VLOOKUP($CZ5,'Audit Values'!$A$2:$BU$393,2,FALSE)),'Preliminary SO66'!AL4,VLOOKUP($CZ5,'Audit Values'!$A$2:$BU$393,58,FALSE)) -> 4 | R5: 0 | S5: =P5+Q5+R5 -> 518.5 | T5: =MAX(BU5, BY5, CC5, CD5) -> 212.6 | U5: =IF(ISNA(VLOOKUP($CZ5,'Audit Values'!$A$2:$BW$447,2,FALSE)),'Preliminary SO66'!AM4,VLOOKUP($CZ5,'Audit Values'!$A$2:$BW$447,62,FALSE)) -> 4 | V5: =(U5/6)*'Weighting Factors'!$Q$7 -> 0.3 | W5: =IF(ISNA(VLOOKUP($CZ5,'Audit Values'!$A$2:$BW$447,2,FALSE)),'Preliminary SO66'!AN4,VLOOKUP($CZ5,'Audit Values'!$A$2:$BW$447,61,FALSE)) -> 8 | X5: =W5*'Weighting Factors'!$Q$8 -> 1.5 | Y5: =MAX(V5,X5) -> 1.5 | Z5: =IF(ISNA(VLOOKUP($CZ5,'Audit Values'!$A$2:$BW$447,2,FALSE)),'Preliminary SO66'!AO4,VLOOKUP($CZ5,'Audit Values'!$A$2:$BW$447,60,FALSE)) -> 96.1 | AA5: =Z5/6*'Weighting Factors'!$Q$6 -> 8 | AB5: =IF(ISNA(VLOOKUP($CZ5,'Audit Values'!$A$2:$BU$393,2,FALSE)),'Preliminary SO66'!AS4,VLOOKUP($CZ5,'Audit Values'!$A$2:$BU$393,63,FALSE)) -> 479 | AC5: =IF(ISNA(VLOOKUP($CZ5,'Audit Values'!$A$2:$BU$37,2,FALSE)),'Preliminary SO66'!AT4,VLOOKUP($CZ5,'Audit Values'!$A$2:$BU$37,63,FALSE)) -> 0 | AD5: =IF(ISNA(VLOOKUP($CZ5,'Audit Values'!$A$2:$BU$393,2,FALSE)),'Preliminary SO66'!AP4,VLOOKUP($CZ5,'Audit Values'!$A$2:$BU$393,64,FALSE)) -> 194 | AE5: =IF(A5=207, AD5,MAX(AC5,AD5))*'Weighting Factors'!$Q$9 -> 93.9 | AF5: =MAX(CU5,CV5) -> 7.5 | AG5: =IF(ISNA(VLOOKUP($CZ5,'Audit Values'!$A$2:$BW$393,2,FALSE)),'Preliminary SO66'!AG4,VLOOKUP($CZ5,'Audit Values'!$A$2:$BW$393,70,FALSE)) -> 8.5 | AH5: =MAX(AF5, AG5) -> 8.5 | AI5: =IF(ISNA(VLOOKUP($CZ5,'Audit Values'!$A$2:$BU$393,2,FALSE)),'Preliminary SO66'!AQ4,VLOOKUP($CZ5,'Audit Values'!$A$2:$BU$393,65,FALSE)) -> 0 | AJ5: =AI5*'Weighting Factors'!$Q$10 -> 0 | AK5: =IF(ISNA(VLOOKUP($CZ5,'Audit Values'!$A$2:$BU$393,2,FALSE)),'Preliminary SO66'!AR4,VLOOKUP($CZ5,'Audit Values'!$A$2:$BU$393,66,FALSE)) -> 233.5 | AM5: =CL5 -> 251188 | AN5: 303923 | AO5: =MAX(AN5, AM5)/'Weighting Factors'!$Q$5 -> 68.5 | AP5: =CN5/'Weighting Factors'!$Q$5 -> 0 | AQ5: 0 | AR5: =CS5/'Weighting Factors'!$Q$5 -> 0 | AS5: 659184 | AT5: =AS5/'Weighting Factors'!$Q$5 -> 148.6 | AU5: =IF(ISNA(VLOOKUP($CZ5,'Audit Values'!$A$2:$BU$393,2,FALSE)),'Preliminary SO66'!X4,VLOOKUP($CZ5,'Audit Values'!$A$2:$BU$393,47,FALSE)) -> 0 | AV5: =SUM(S5+T5+Y5+AA5+AE5+AH5+AJ5++AO5+AP5+AQ5+AT5+AU5) -> 1060.1 | AW5: =SUM(S5+T5+Y5+AA5+AE5+AH5+AJ5++AO5+AP5+AQ5+AR5+AU5) -> 911.5 | AX5: =IF(ISNA(VLOOKUP($CZ5,'Audit Values'!$A$2:$BU$393,2,FALSE)),'Preliminary SO66'!AA4,VLOOKUP($CZ5,'Audit Values'!$A$2:$BU$393,41,FALSE)) -> 0 | AY5: =IF(ISNA(VLOOKUP($CZ5,'Audit Values'!$A$2:$BU$393,2,FALSE)),'Preliminary SO66'!AB4,VLOOKUP($CZ5,'Audit Values'!$A$2:$BU$393,42,FALSE)) -> 0 | AZ5: 0 | BA5: =SUM(AX5*'Weighting Factors'!$T$10)+('2020 Legal Max'!AY5*'Weighting Factors'!$T$11)+('2020 Legal Max'!AZ5*'Weighting Factors'!$T$12) -> 0 | BB5: 0 | BC5: =IF(ISNA(VLOOKUP($CZ5,'Audit Values'!$A$2:$BU$274,2,FALSE)),"",IF(AND('Weighting Factors'!H5>0,VLOOKUP($CZ5,'Audit Values'!$A$2:$BU$274,51,FALSE)<'Weighting Factors'!H5),'Weighting Factors'!H5,VLOOKUP($CZ5,'Audit Values'!$A$2:$BU$274,50,FALSE))) -> 8 | BD5: =IF(ISNA(VLOOKUP($CZ5,'Audit Values'!$A$2:$BV$447,2,FALSE)),"",VLOOKUP($CZ5,'Audit Values'!$A$2:$BV$447,51,FALSE)) -> A | BE5: =IF('Weighting Factors'!H5="","",IF('Weighting Factors'!J5="Pending","PX","R")) ->  | BF5: =SUM((S5+T5+Y5+AA5+AE5+AH5+AJ5++AO5+AP5+AQ5+AU5+AR5)*'Weighting Factors'!$Q$5)+'2020 Legal Max'!BA5+'2020 Legal Max'!BB5 -> 4043414 | BG5: =SUM((AV5+AR5)*'Weighting Factors'!$Q$5)+BA5+'2020 Legal Max'!BB5 -> 4702604 | BH5: =IF('Weighting Factors'!H5>0,'Weighting Factors'!H5,'Preliminary SO66'!AV4) -> 4983846 | BI5: =MIN(BG5,BH5) -> 4702604 | BJ5: ='Weighting Factors'!G5 ->  | BK5: ='Weighting Factors'!F5 -> 0 | BL5: ='Weighting Factors'!E5 -> 0 | BM5: =SUM(BJ5:BL5) -> 0 | BN5: =BI5+BM5 -> 4702604 | BO5: =SUM((S5+T5+Y5+AA5+AE5+AH5+AJ5++AO5+AP5+AQ5+AR5)*'Weighting Factors'!Q$12)+(MAX(AS5,'Weighting Factors'!B5)) -> 4885784 | BP5: ='LOB%'!F3 -> 0.3 | BQ5: =BO5*BP5 -> 1465735 | BR5: 1529829 | BS5: =MIN(BQ5,BR5) -> 1465735 | BT5: =BS5/BO5 -> 0.3 | BU5: =ROUND(IF(S5<=99.9,(S5*1.014331),0),1) -> 0 | BV5: =AND(S5>99.9,S5<=299.9) -> FALSE | BW5: =IF(BV5=TRUE,ROUND((S5-100)*9.655,3),0) -> 0 | BX5: =IF(BV5=TRUE,ROUND(((7337-BW5)/3642.4)-1,6),0) -> 0 | BY5: =ROUND(BX5*S5,1) -> 0 | BZ5: =AND(S5>299.9,S5<=1621.9) -> TRUE | CA5: =IF(BZ5=TRUE,ROUND((S5-300)*1.2375,4),0) -> 270.3938 | CB5: =IF(BZ5=TRUE,ROUND(((5406-CA5)/3642.4)-1,6),0) -> 0.409951 | CC5: =ROUND(CB5*S5,1) -> 212.6 | CD5: =ROUND(IF(S5>=1622,(S5*0.03504),0),1) -> 0 | CE5: 325 | CF5: =AK5/CE5 -> 0.718 | CG5: =IF(CF5<0.06,1,IF(CF5>=18.29,52,MATCH(CF5-0.001,'Weighting Factors'!$Y$5:$Y$156)+1)) -> 29 | CH5: =VLOOKUP(CG5, 'Weighting Factors'!$W$5:$Z$56,4) -> 1010 | CI5: =('Weighting Factors'!$Q$5/'Weighting Factors'!$Q$14) -> 1.0651 | CJ5: =AK5*CH5 -> 235835 | CK5: =CJ5*'Weighting Factors'!$S$7 -> 235835 | CL5: =CK5*CI5 -> 251188 | CM5: =AM5/'Weighting Factors'!$Q$5 -> 56.6 | CN5: 0 | CO5: 0 | CP5: 0 | CQ5: 0 | CR5: =SUM((AV5*'Weighting Factors'!$Q$5)+'2020 Legal Max'!BA5)*CQ5 -> 0 | CS5: =IF(CP5>CR5,CR5,CP5) -> 0 | CT5: =AD5/AB5 -> 0.405 | CU5: =IF(CT5>=50%,AD5*10.5%,0) -> 0 | CV5: =IF(AND(CT5>35%,CT5<50%),AD5*(CT5-35%)*0.7,0) -> 7.5 | CW5: =AW5+AT5 -> 1060.1 | CX5: ='LOB Transfers'!G4 -> 130304 | CY5: ='LOB Transfers'!J4 -> 2052 | CZ5: D0101
A6: 102 | B6: Gray | C6: Cimmaron-Ensign | D6: 640.5 | E6: 0 | F6: =SUM(D6:E6) -> 640.5 | G6: 638.2 | H6: 0 | I6: =SUM(G6:H6) -> 638.2 | J6: 659.1 | K6: 0 | L6: =SUM(J6+K6) -> 659.1 | M6: =IF(ISNA(VLOOKUP($CZ6,'Audit Values'!$A$2:$BW$496,2,FALSE)),'Preliminary SO66'!C5,VLOOKUP($CZ6,'Audit Values'!$A$2:$BW$496,73,FALSE)) -> 654.4 | N6: =IF(ISNA(VLOOKUP($CZ6,'Audit Values'!$A$2:$BW$496,2,FALSE)),'Preliminary SO66'!F5,VLOOKUP($CZ6,'Audit Values'!$A$2:$BW$496,4,FALSE)) -> 0 | O6: 654.4 | P6: =IF('Military Provision'!J7="YES", MAX('2020 Legal Max'!L6,'2020 Legal Max'!I6,AVERAGE('2020 Legal Max'!F6,'2020 Legal Max'!I6,'2020 Legal Max'!L6)), MAX(L6, I6)) -> 659.1 | Q6: =IF(ISNA(VLOOKUP($CZ6,'Audit Values'!$A$2:$BU$393,2,FALSE)),'Preliminary SO66'!AL5,VLOOKUP($CZ6,'Audit Values'!$A$2:$BU$393,58,FALSE)) -> 7.5 | R6: 0 | S6: =P6+Q6+R6 -> 666.6 | T6: 239.7 | U6: =IF(ISNA(VLOOKUP($CZ6,'Audit Values'!$A$2:$BW$447,2,FALSE)),'Preliminary SO66'!AM5,VLOOKUP($CZ6,'Audit Values'!$A$2:$BW$447,62,FALSE)) -> 752.1 | V6: =(U6/6)*'Weighting Factors'!$Q$7 -> 49.5 | W6: =IF(ISNA(VLOOKUP($CZ6,'Audit Values'!$A$2:$BW$447,2,FALSE)),'Preliminary SO66'!AN5,VLOOKUP($CZ6,'Audit Values'!$A$2:$BW$447,61,FALSE)) -> 140 | X6: =W6*'Weighting Factors'!$Q$8 -> 25.9 | Y6: 49.5 | Z6: =IF(ISNA(VLOOKUP($CZ6,'Audit Values'!$A$2:$BW$447,2,FALSE)),'Preliminary SO66'!AO5,VLOOKUP($CZ6,'Audit Values'!$A$2:$BW$447,60,FALSE)) -> 160.7 | AA6: =Z6/6*'Weighting Factors'!$Q$6 -> 13.4 | AB6: =IF(ISNA(VLOOKUP($CZ6,'Audit Values'!$A$2:$BU$393,2,FALSE)),'Preliminary SO66'!AS5,VLOOKUP($CZ6,'Audit Values'!$A$2:$BU$393,63,FALSE)) -> 672 | AC6: 0 | AD6: =IF(ISNA(VLOOKUP($CZ6,'Audit Values'!$A$2:$BU$393,2,FALSE)),'Preliminary SO66'!AP5,VLOOKUP($CZ6,'Audit Values'!$A$2:$BU$393,64,FALSE)) -> 204 | AE6: =IF(A6=207, AD6,MAX(AC6,AD6))*'Weighting Factors'!$Q$9 -> 98.7 | AF6: 0 | AG6: =IF(ISNA(VLOOKUP($CZ6,'Audit Values'!$A$2:$BW$393,2,FALSE)),'Preliminary SO66'!AG5,VLOOKUP($CZ6,'Audit Values'!$A$2:$BW$393,70,FALSE)) -> 0 | AH6: 0 | AI6: =IF(ISNA(VLOOKUP($CZ6,'Audit Values'!$A$2:$BU$393,2,FALSE)),'Preliminary SO66'!AQ5,VLOOKUP($CZ6,'Audit Values'!$A$2:$BU$393,65,FALSE)) -> 0 | AJ6: =AI6*'Weighting Factors'!$Q$10 -> 0 | AK6: =IF(ISNA(VLOOKUP($CZ6,'Audit Values'!$A$2:$BU$393,2,FALSE)),'Preliminary SO66'!AR5,VLOOKUP($CZ6,'Audit Values'!$A$2:$BU$393,66,FALSE)) -> 97 | AM6: 134309 | AN6: 154850 | AO6: =MAX(AN6, AM6)/'Weighting Factors'!$Q$5 -> 34.9 | AP6: =CN6/'Weighting Factors'!$Q$5 -> 0 | AQ6: 0 | AR6: =CS6/'Weighting Factors'!$Q$5 -> 0 | AS6: 482471 | AT6: =AS6/'Weighting Factors'!$Q$5 -> 108.8 | AU6: =IF(ISNA(VLOOKUP($CZ6,'Audit Values'!$A$2:$BU$393,2,FALSE)),'Preliminary SO66'!X5,VLOOKUP($CZ6,'Audit Values'!$A$2:$BU$393,47,FALSE)) -> 0 | AV6: =SUM(S6+T6+Y6+AA6+AE6+AH6+AJ6++AO6+AP6+AQ6+AT6+AU6) -> 1211.6 | AW6: =SUM(S6+T6+Y6+AA6+AE6+AH6+AJ6++AO6+AP6+AQ6+AR6+AU6) -> 1102.8 | AX6: =IF(ISNA(VLOOKUP($CZ6,'Audit Values'!$A$2:$BU$393,2,FALSE)),'Preliminary SO66'!AA5,VLOOKUP($CZ6,'Audit Values'!$A$2:$BU$393,41,FALSE)) -> 0 | AY6: =IF(ISNA(VLOOKUP($CZ6,'Audit Values'!$A$2:$BU$393,2,FALSE)),'Preliminary SO66'!AB5,VLOOKUP($CZ6,'Audit Values'!$A$2:$BU$393,42,FALSE)) -> 0 | AZ6: 0 | BA6: =SUM(AX6*'Weighting Factors'!$T$10)+('2020 Legal Max'!AY6*'Weighting Factors'!$T$11)+('2020 Legal Max'!AZ6*'Weighting Factors'!$T$12) -> 0 | BB6: 0 | BC6: =IF(ISNA(VLOOKUP($CZ6,'Audit Values'!$A$2:$BU$274,2,FALSE)),"",IF(AND('Weighting Factors'!H6>0,VLOOKUP($CZ6,'Audit Values'!$A$2:$BU$274,51,FALSE)<'Weighting Factors'!H6),'Weighting Factors'!H6,VLOOKUP($CZ6,'Audit Values'!$A$2:$BU$274,50,FALSE))) -> 15 | BD6: =IF(ISNA(VLOOKUP($CZ6,'Audit Values'!$A$2:$BV$447,2,FALSE)),"",VLOOKUP($CZ6,'Audit Values'!$A$2:$BV$447,51,FALSE)) -> A | BE6: =IF('Weighting Factors'!H6="","",IF('Weighting Factors'!J6="Pending","PX","R")) ->  | BF6: =SUM((S6+T6+Y6+AA6+AE6+AH6+AJ6++AO6+AP6+AQ6+AU6+AR6)*'Weighting Factors'!$Q$5)+'2020 Legal Max'!BA6+'2020 Legal Max'!BB6 -> 4892021 | BG6: =SUM((AV6+AR6)*'Weighting Factors'!$Q$5)+BA6+'2020 Legal Max'!BB6 -> 5374658 | BH6: =IF('Weighting Factors'!H6>0,'Weighting Factors'!H6,'Preliminary SO66'!AV5) -> 5465152 | BI6: =MIN(BG6,BH6) -> 5374658 | BJ6: ='Weighting Factors'!G6 -> 0 | BK6: ='Weighting Factors'!F6 -> -2651 | BL6: ='Weighting Factors'!E6 -> 0 | BM6: -2651 | BN6: 5372007 | BO6: =SUM((S6+T6+Y6+AA6+AE6+AH6+AJ6++AO6+AP6+AQ6+AR6)*'Weighting Factors'!Q$12)+(MAX(AS6,'Weighting Factors'!B6)) -> 5564945 | BP6: ='LOB%'!F4 -> 0.3 | BQ6: 1669484 | BR6: 1685345 | BS6: 1669484 | BT6: 0.3 | BU6: 0 | BV6: FALSE | BW6: 0 | BX6: 0 | BY6: 0 | BZ6: TRUE | CA6: 453.6675 | CB6: 0.359634 | CC6: 239.7 | CD6: 0 | CE6: 538 | CF6: 0.18 | CG6: =IF(CF6<0.06,1,IF(CF6>=18.29,52,MATCH(CF6-0.001,'Weighting Factors'!$Y$5:$Y$156)+1)) -> 14 | CH6: =VLOOKUP(CG6, 'Weighting Factors'!$W$5:$Z$56,4) -> 1300 | CI6: =('Weighting Factors'!$Q$5/'Weighting Factors'!$Q$14) -> 1.0651 | CJ6: 126100 | CK6: =CJ6*'Weighting Factors'!$S$7 -> 126100 | CL6: 134309 | CM6: =AM6/'Weighting Factors'!$Q$5 -> 30.3 | CN6: 0 | CO6: 0 | CP6: 0 | CQ6: 0 | CR6: =SUM((AV6*'Weighting Factors'!$Q$5)+'2020 Legal Max'!BA6)*CQ6 -> 0 | CS6: 0 | CT6: 0.3036 | CU6: 0 | CV6: 0 | CW6: 1211.6 | CX6: ='LOB Transfers'!G5 -> 136898 | CY6: ='LOB Transfers'!J5 -> 68616 | CZ6: D0102
A7: 103 | B7: Cheyenne | C7: Cheylin | D7: 127 | E7: 0 | F7: 127 | G7: 128.5 | H7: 0 | I7: 128.5 | J7: 126.5 | K7: 0 | L7: 126.5 | M7: =IF(ISNA(VLOOKUP($CZ7,'Audit Values'!$A$2:$BW$496,2,FALSE)),'Preliminary SO66'!C6,VLOOKUP($CZ7,'Audit Values'!$A$2:$BW$496,73,FALSE)) -> 143 | N7: =IF(ISNA(VLOOKUP($CZ7,'Audit Values'!$A$2:$BW$496,2,FALSE)),'Preliminary SO66'!F6,VLOOKUP($CZ7,'Audit Values'!$A$2:$BW$496,4,FALSE)) -> 0 | O7: 143 | P7: =IF('Military Provision'!J8="YES", MAX('2020 Legal Max'!L7,'2020 Legal Max'!I7,AVERAGE('2020 Legal Max'!F7,'2020 Legal Max'!I7,'2020 Legal Max'!L7)), MAX(L7, I7)) -> 128.5 | Q7: =IF(ISNA(VLOOKUP($CZ7,'Audit Values'!$A$2:$BU$393,2,FALSE)),'Preliminary SO66'!AL6,VLOOKUP($CZ7,'Audit Values'!$A$2:$BU$393,58,FALSE)) -> 0 | R7: 0 | S7: 128.5 | T7: 120.6 | U7: =IF(ISNA(VLOOKUP($CZ7,'Audit Values'!$A$2:$BW$447,2,FALSE)),'Preliminary SO66'!AM6,VLOOKUP($CZ7,'Audit Values'!$A$2:$BW$447,62,FALSE)) -> 147.5 | V7: =(U7/6)*'Weighting Factors'!$Q$7 -> 9.7 | W7: =IF(ISNA(VLOOKUP($CZ7,'Audit Values'!$A$2:$BW$447,2,FALSE)),'Preliminary SO66'!AN6,VLOOKUP($CZ7,'Audit Values'!$A$2:$BW$447,61,FALSE)) -> 38 | X7: =W7*'Weighting Factors'!$Q$8 -> 7 | Y7: 9.7 | Z7: =IF(ISNA(VLOOKUP($CZ7,'Audit Values'!$A$2:$BW$447,2,FALSE)),'Preliminary SO66'!AO6,VLOOKUP($CZ7,'Audit Values'!$A$2:$BW$447,60,FALSE)) -> 90.2 | AA7: =Z7/6*'Weighting Factors'!$Q$6 -> 7.5 | AB7: =IF(ISNA(VLOOKUP($CZ7,'Audit Values'!$A$2:$BU$393,2,FALSE)),'Preliminary SO66'!AS6,VLOOKUP($CZ7,'Audit Values'!$A$2:$BU$393,63,FALSE)) -> 145 | AC7: 0 | AD7: =IF(ISNA(VLOOKUP($CZ7,'Audit Values'!$A$2:$BU$393,2,FALSE)),'Preliminary SO66'!AP6,VLOOKUP($CZ7,'Audit Values'!$A$2:$BU$393,64,FALSE)) -> 66 | AE7: =IF(A7=207, AD7,MAX(AC7,AD7))*'Weighting Factors'!$Q$9 -> 31.9 | AF7: 4.9 | AG7: =IF(ISNA(VLOOKUP($CZ7,'Audit Values'!$A$2:$BW$393,2,FALSE)),'Preliminary SO66'!AG6,VLOOKUP($CZ7,'Audit Values'!$A$2:$BW$393,70,FALSE)) -> 4.9 | AH7: 4.9 | AI7: =IF(ISNA(VLOOKUP($CZ7,'Audit Values'!$A$2:$BU$393,2,FALSE)),'Preliminary SO66'!AQ6,VLOOKUP($CZ7,'Audit Values'!$A$2:$BU$393,65,FALSE)) -> 0 | AJ7: =AI7*'Weighting Factors'!$Q$10 -> 0 | AK7: =IF(ISNA(VLOOKUP($CZ7,'Audit Values'!$A$2:$BU$393,2,FALSE)),'Preliminary SO66'!AR6,VLOOKUP($CZ7,'Audit Values'!$A$2:$BU$393,66,FALSE)) -> 58 | AM7: 92664 | AN7: 105545 | AO7: =MAX(AN7, AM7)/'Weighting Factors'!$Q$5 -> 23.8 | AP7: =CN7/'Weighting Factors'!$Q$5 -> 0 | AQ7: 0 | AR7: =CS7/'Weighting Factors'!$Q$5 -> 0 | AS7: 121898 | AT7: =AS7/'Weighting Factors'!$Q$5 -> 27.5 | AU7: =IF(ISNA(VLOOKUP($CZ7,'Audit Values'!$A$2:$BU$393,2,FALSE)),'Preliminary SO66'!X6,VLOOKUP($CZ7,'Audit Values'!$A$2:$BU$393,47,FALSE)) -> 0 | AV7: 354.4 | AW7: 326.9 | AX7: =IF(ISNA(VLOOKUP($CZ7,'Audit Values'!$A$2:$BU$393,2,FALSE)),'Preliminary SO66'!AA6,VLOOKUP($CZ7,'Audit Values'!$A$2:$BU$393,41,FALSE)) -> 0 | AY7: =IF(ISNA(VLOOKUP($CZ7,'Audit Values'!$A$2:$BU$393,2,FALSE)),'Preliminary SO66'!AB6,VLOOKUP($CZ7,'Audit Values'!$A$2:$BU$393,42,FALSE)) -> 0 | AZ7: 0 | BA7: =SUM(AX7*'Weighting Factors'!$T$10)+('2020 Legal Max'!AY7*'Weighting Factors'!$T$11)+('2020 Legal Max'!AZ7*'Weighting Factors'!$T$12) -> 0 | BB7: 0 | BC7: =IF(ISNA(VLOOKUP($CZ7,'Audit Values'!$A$2:$BU$274,2,FALSE)),"",IF(AND('Weighting Factors'!H7>0,VLOOKUP($CZ7,'Audit Values'!$A$2:$BU$274,51,FALSE)<'Weighting Factors'!H7),'Weighting Factors'!H7,VLOOKUP($CZ7,'Audit Values'!$A$2:$BU$274,50,FALSE))) -> 8 | BD7: =IF(ISNA(VLOOKUP($CZ7,'Audit Values'!$A$2:$BV$447,2,FALSE)),"",VLOOKUP($CZ7,'Audit Values'!$A$2:$BV$447,51,FALSE)) -> A | BE7: =IF('Weighting Factors'!H7="","",IF('Weighting Factors'!J7="Pending","PX","R")) ->  | BF7: =SUM((S7+T7+Y7+AA7+AE7+AH7+AJ7++AO7+AP7+AQ7+AU7+AR7)*'Weighting Factors'!$Q$5)+'2020 Legal Max'!BA7+'2020 Legal Max'!BB7 -> 1450128 | BG7: =SUM((AV7+AR7)*'Weighting Factors'!$Q$5)+BA7+'2020 Legal Max'!BB7 -> 1572118 | BH7: =IF('Weighting Factors'!H7>0,'Weighting Factors'!H7,'Preliminary SO66'!AV6) -> 1670154 | BI7: 1572118 | BJ7: ='Weighting Factors'!G7 -> 0 | BK7: ='Weighting Factors'!F7 -> 0 | BL7: ='Weighting Factors'!E7 -> 0 | BM7: 0 | BN7: 1572118 | BO7: =SUM((S7+T7+Y7+AA7+AE7+AH7+AJ7++AO7+AP7+AQ7+AR7)*'Weighting Factors'!Q$12)+(MAX(AS7,'Weighting Factors'!B7)) -> 1680265 | BP7: ='LOB%'!F5 -> 0.3 | BQ7: 504080 | BR7: 517343 | BS7: 504080 | BT7: 0.3 | BU7: 0 | BV7: TRUE | BW7: 275.168 | BX7: 0.938785 | BY7: 120.6 | BZ7: FALSE | CA7: 0 | CB7: 0 | CC7: 0 | CD7: 0 | CE7: 688 | CF7: 0.084 | CG7: =IF(CF7<0.06,1,IF(CF7>=18.29,52,MATCH(CF7-0.001,'Weighting Factors'!$Y$5:$Y$156)+1)) -> 4 | CH7: =VLOOKUP(CG7, 'Weighting Factors'!$W$5:$Z$56,4) -> 1500 | CI7: =('Weighting Factors'!$Q$5/'Weighting Factors'!$Q$14) -> 1.0651 | CJ7: 87000 | CK7: =CJ7*'Weighting Factors'!$S$7 -> 87000 | CL7: 92664 | CM7: =AM7/'Weighting Factors'!$Q$5 -> 20.9 | CN7: 0 | CO7: 0 | CP7: 0 | CQ7: 0 | CR7: =SUM((AV7*'Weighting Factors'!$Q$5)+'2020 Legal Max'!BA7)*CQ7 -> 0 | CS7: 0 | CT7: 0.4552 | CU7: 0 | CV7: 4.9 | CW7: 354.4 | CX7: ='LOB Transfers'!G6 -> 45367 | CY7: ='LOB Transfers'!J6 -> 13812 | CZ7: D0103
A8: 105 | B8: Rawlins | C8: Rawlins County | D8: 335 | E8: 0 | F8: 335 | G8: 329.5 | H8: 0 | I8: 329.5 | J8: 353.9 | K8: 0 | L8: 353.9 | M8: =IF(ISNA(VLOOKUP($CZ8,'Audit Values'!$A$2:$BW$496,2,FALSE)),'Preliminary SO66'!C7,VLOOKUP($CZ8,'Audit Values'!$A$2:$BW$496,73,FALSE)) -> 364 | N8: =IF(ISNA(VLOOKUP($CZ8,'Audit Values'!$A$2:$BW$496,2,FALSE)),'Preliminary SO66'!F7,VLOOKUP($CZ8,'Audit Values'!$A$2:$BW$496,4,FALSE)) -> 0 | O8: 364 | P8: =IF('Military Provision'!J9="YES", MAX('2020 Legal Max'!L8,'2020 Legal Max'!I8,AVERAGE('2020 Legal Max'!F8,'2020 Legal Max'!I8,'2020 Legal Max'!L8)), MAX(L8, I8)) -> 353.9 | Q8: =IF(ISNA(VLOOKUP($CZ8,'Audit Values'!$A$2:$BU$393,2,FALSE)),'Preliminary SO66'!AL7,VLOOKUP($CZ8,'Audit Values'!$A$2:$BU$393,58,FALSE)) -> 0 | R8: 0 | S8: 353.9 | T8: 164.9 | U8: =IF(ISNA(VLOOKUP($CZ8,'Audit Values'!$A$2:$BW$447,2,FALSE)),'Preliminary SO66'!AM7,VLOOKUP($CZ8,'Audit Values'!$A$2:$BW$447,62,FALSE)) -> 54.8 | V8: =(U8/6)*'Weighting Factors'!$Q$7 -> 3.6 | W8: =IF(ISNA(VLOOKUP($CZ8,'Audit Values'!$A$2:$BW$447,2,FALSE)),'Preliminary SO66'!AN7,VLOOKUP($CZ8,'Audit Values'!$A$2:$BW$447,61,FALSE)) -> 26 | X8: =W8*'Weighting Factors'!$Q$8 -> 4.8 | Y8: 4.8 | Z8: =IF(ISNA(VLOOKUP($CZ8,'Audit Values'!$A$2:$BW$447,2,FALSE)),'Preliminary SO66'!AO7,VLOOKUP($CZ8,'Audit Values'!$A$2:$BW$447,60,FALSE)) -> 143.9 | AA8: =Z8/6*'Weighting Factors'!$Q$6 -> 12 | AB8: =IF(ISNA(VLOOKUP($CZ8,'Audit Values'!$A$2:$BU$393,2,FALSE)),'Preliminary SO66'!AS7,VLOOKUP($CZ8,'Audit Values'!$A$2:$BU$393,63,FALSE)) -> 366 | AC8: 0 | AD8: =IF(ISNA(VLOOKUP($CZ8,'Audit Values'!$A$2:$BU$393,2,FALSE)),'Preliminary SO66'!AP7,VLOOKUP($CZ8,'Audit Values'!$A$2:$BU$393,64,FALSE)) -> 128 | AE8: =IF(A8=207, AD8,MAX(AC8,AD8))*'Weighting Factors'!$Q$9 -> 62 | AF8: 0 | AG8: =IF(ISNA(VLOOKUP($CZ8,'Audit Values'!$A$2:$BW$393,2,FALSE)),'Preliminary SO66'!AG7,VLOOKUP($CZ8,'Audit Values'!$A$2:$BW$393,70,FALSE)) -> 1.6 | AH8: 1.6 | AI8: =IF(ISNA(VLOOKUP($CZ8,'Audit Values'!$A$2:$BU$393,2,FALSE)),'Preliminary SO66'!AQ7,VLOOKUP($CZ8,'Audit Values'!$A$2:$BU$393,65,FALSE)) -> 0 | AJ8: =AI8*'Weighting Factors'!$Q$10 -> 0 | AK8: =IF(ISNA(VLOOKUP($CZ8,'Audit Values'!$A$2:$BU$393,2,FALSE)),'Preliminary SO66'!AR7,VLOOKUP($CZ8,'Audit Values'!$A$2:$BU$393,66,FALSE)) -> 119 | AM8: 169841 | AN8: 196837 | AO8: =MAX(AN8, AM8)/'Weighting Factors'!$Q$5 -> 44.4 | AP8: =CN8/'Weighting Factors'!$Q$5 -> 0 | AQ8: 0 | AR8: =CS8/'Weighting Factors'!$Q$5 -> 0 | AS8: 319337 | AT8: =AS8/'Weighting Factors'!$Q$5 -> 72 | AU8: =IF(ISNA(VLOOKUP($CZ8,'Audit Values'!$A$2:$BU$393,2,FALSE)),'Preliminary SO66'!X7,VLOOKUP($CZ8,'Audit Values'!$A$2:$BU$393,47,FALSE)) -> 0 | AV8: 715.6 | AW8: 643.6 | AX8: =IF(ISNA(VLOOKUP($CZ8,'Audit Values'!$A$2:$BU$393,2,FALSE)),'Preliminary SO66'!AA7,VLOOKUP($CZ8,'Audit Values'!$A$2:$BU$393,41,FALSE)) -> 0 | AY8: =IF(ISNA(VLOOKUP($CZ8,'Audit Values'!$A$2:$BU$393,2,FALSE)),'Preliminary SO66'!AB7,VLOOKUP($CZ8,'Audit Values'!$A$2:$BU$393,42,FALSE)) -> 0 | AZ8: 0 | BA8: =SUM(AX8*'Weighting Factors'!$T$10)+('2020 Legal Max'!AY8*'Weighting Factors'!$T$11)+('2020 Legal Max'!AZ8*'Weighting Factors'!$T$12) -> 0 | BB8: 0 | BC8: =IF(ISNA(VLOOKUP($CZ8,'Audit Values'!$A$2:$BU$274,2,FALSE)),"",IF(AND('Weighting Factors'!H8>0,VLOOKUP($CZ8,'Audit Values'!$A$2:$BU$274,51,FALSE)<'Weighting Factors'!H8),'Weighting Factors'!H8,VLOOKUP($CZ8,'Audit Values'!$A$2:$BU$274,50,FALSE))) -> 19 | BD8: =IF(ISNA(VLOOKUP($CZ8,'Audit Values'!$A$2:$BV$447,2,FALSE)),"",VLOOKUP($CZ8,'Audit Values'!$A$2:$BV$447,51,FALSE)) -> A | BE8: =IF('Weighting Factors'!H8="","",IF('Weighting Factors'!J8="Pending","PX","R")) ->  | BF8: =SUM((S8+T8+Y8+AA8+AE8+AH8+AJ8++AO8+AP8+AQ8+AU8+AR8)*'Weighting Factors'!$Q$5)+'2020 Legal Max'!BA8+'2020 Legal Max'!BB8 -> 2855010 | BG8: =SUM((AV8+AR8)*'Weighting Factors'!$Q$5)+BA8+'2020 Legal Max'!BB8 -> 3174402 | BH8: =IF('Weighting Factors'!H8>0,'Weighting Factors'!H8,'Preliminary SO66'!AV7) -> 3286632 | BI8: 3174402 | BJ8: ='Weighting Factors'!G8 -> 0 | BK8: ='Weighting Factors'!F8 -> 0 | BL8: ='Weighting Factors'!E8 -> 0 | BM8: 0 | BN8: 3174402 | BO8: =SUM((S8+T8+Y8+AA8+AE8+AH8+AJ8++AO8+AP8+AQ8+AR8)*'Weighting Factors'!Q$12)+(MAX(AS8,'Weighting Factors'!B8)) -> 3267132 | BP8: ='LOB%'!F6 -> 0.3 | BQ8: 980140 | BR8: 1010633 | BS8: 980140 | BT8: 0.3 | BU8: 0 | BV8: FALSE | BW8: 0 | BX8: 0 | BY8: 0 | BZ8: TRUE | CA8: 66.7013 | CB8: 0.465874 | CC8: 164.9 | CD8: 0 | CE8: 740.1 | CF8: 0.161 | CG8: =IF(CF8<0.06,1,IF(CF8>=18.29,52,MATCH(CF8-0.001,'Weighting Factors'!$Y$5:$Y$156)+1)) -> 12 | CH8: =VLOOKUP(CG8, 'Weighting Factors'!$W$5:$Z$56,4) -> 1340 | CI8: =('Weighting Factors'!$Q$5/'Weighting Factors'!$Q$14) -> 1.0651 | CJ8: 159460 | CK8: =CJ8*'Weighting Factors'!$S$7 -> 159460 | CL8: 169841 | CM8: =AM8/'Weighting Factors'!$Q$5 -> 38.3 | CN8: 0 | CO8: 0 | CP8: 0 | CQ8: 0 | CR8: =SUM((AV8*'Weighting Factors'!$Q$5)+'2020 Legal Max'!BA8)*CQ8 -> 0 | CS8: 0 | CT8: 0.3497 | CU8: 0 | CV8: 0 | CW8: 715.6 | CX8: ='LOB Transfers'!G7 -> 84880 | CY8: ='LOB Transfers'!J7 -> 6567 | CZ8: D0105
A9: 106 | B9: Ness | C9: Western Plains | D9: 105.8 | E9: 0 | F9: 105.8 | G9: 94.5 | H9: 0 | I9: 94.5 | J9: 99.5 | K9: 0 | L9: 99.5 | M9: =IF(ISNA(VLOOKUP($CZ9,'Audit Values'!$A$2:$BW$496,2,FALSE)),'Preliminary SO66'!C8,VLOOKUP($CZ9,'Audit Values'!$A$2:$BW$496,73,FALSE)) -> 109.5 | N9: =IF(ISNA(VLOOKUP($CZ9,'Audit Values'!$A$2:$BW$496,2,FALSE)),'Preliminary SO66'!F8,VLOOKUP($CZ9,'Audit Values'!$A$2:$BW$496,4,FALSE)) -> 0 | O9: 109.5 | P9: =IF('Military Provision'!J10="YES", MAX('2020 Legal Max'!L9,'2020 Legal Max'!I9,AVERAGE('2020 Legal Max'!F9,'2020 Legal Max'!I9,'2020 Legal Max'!L9)), MAX(L9, I9)) -> 99.5 | Q9: =IF(ISNA(VLOOKUP($CZ9,'Audit Values'!$A$2:$BU$393,2,FALSE)),'Preliminary SO66'!AL8,VLOOKUP($CZ9,'Audit Values'!$A$2:$BU$393,58,FALSE)) -> 1.5 | R9: 0 | S9: 101 | T9: 102.2 | U9: =IF(ISNA(VLOOKUP($CZ9,'Audit Values'!$A$2:$BW$447,2,FALSE)),'Preliminary SO66'!AM8,VLOOKUP($CZ9,'Audit Values'!$A$2:$BW$447,62,FALSE)) -> 118.1 | V9: =(U9/6)*'Weighting Factors'!$Q$7 -> 7.8 | W9: =IF(ISNA(VLOOKUP($CZ9,'Audit Values'!$A$2:$BW$447,2,FALSE)),'Preliminary SO66'!AN8,VLOOKUP($CZ9,'Audit Values'!$A$2:$BW$447,61,FALSE)) -> 23 | X9: =W9*'Weighting Factors'!$Q$8 -> 4.3 | Y9: 7.8 | Z9: =IF(ISNA(VLOOKUP($CZ9,'Audit Values'!$A$2:$BW$447,2,FALSE)),'Preliminary SO66'!AO8,VLOOKUP($CZ9,'Audit Values'!$A$2:$BW$447,60,FALSE)) -> 117.5 | AA9: =Z9/6*'Weighting Factors'!$Q$6 -> 9.8 | AB9: =IF(ISNA(VLOOKUP($CZ9,'Audit Values'!$A$2:$BU$393,2,FALSE)),'Preliminary SO66'!AS8,VLOOKUP($CZ9,'Audit Values'!$A$2:$BU$393,63,FALSE)) -> 113 | AC9: 0 | AD9: =IF(ISNA(VLOOKUP($CZ9,'Audit Values'!$A$2:$BU$393,2,FALSE)),'Preliminary SO66'!AP8,VLOOKUP($CZ9,'Audit Values'!$A$2:$BU$393,64,FALSE)) -> 67 | AE9: =IF(A9=207, AD9,MAX(AC9,AD9))*'Weighting Factors'!$Q$9 -> 32.4 | AF9: 7 | AG9: =IF(ISNA(VLOOKUP($CZ9,'Audit Values'!$A$2:$BW$393,2,FALSE)),'Preliminary SO66'!AG8,VLOOKUP($CZ9,'Audit Values'!$A$2:$BW$393,70,FALSE)) -> 6.4 | AH9: 7 | AI9: =IF(ISNA(VLOOKUP($CZ9,'Audit Values'!$A$2:$BU$393,2,FALSE)),'Preliminary SO66'!AQ8,VLOOKUP($CZ9,'Audit Values'!$A$2:$BU$393,65,FALSE)) -> 0 | AJ9: =AI9*'Weighting Factors'!$Q$10 -> 0 | AK9: =IF(ISNA(VLOOKUP($CZ9,'Audit Values'!$A$2:$BU$393,2,FALSE)),'Preliminary SO66'!AR8,VLOOKUP($CZ9,'Audit Values'!$A$2:$BU$393,66,FALSE)) -> 34.5 | AM9: 59528 | AN9: 98996 | AO9: =MAX(AN9, AM9)/'Weighting Factors'!$Q$5 -> 22.3 | AP9: =CN9/'Weighting Factors'!$Q$5 -> 0 | AQ9: 0 | AR9: =CS9/'Weighting Factors'!$Q$5 -> 0 | AS9: 72563 | AT9: =AS9/'Weighting Factors'!$Q$5 -> 16.4 | AU9: =IF(ISNA(VLOOKUP($CZ9,'Audit Values'!$A$2:$BU$393,2,FALSE)),'Preliminary SO66'!X8,VLOOKUP($CZ9,'Audit Values'!$A$2:$BU$393,47,FALSE)) -> 0 | AV9: 298.9 | AW9: 282.5 | AX9: =IF(ISNA(VLOOKUP($CZ9,'Audit Values'!$A$2:$BU$393,2,FALSE)),'Preliminary SO66'!AA8,VLOOKUP($CZ9,'Audit Values'!$A$2:$BU$393,41,FALSE)) -> 0 | AY9: =IF(ISNA(VLOOKUP($CZ9,'Audit Values'!$A$2:$BU$393,2,FALSE)),'Preliminary SO66'!AB8,VLOOKUP($CZ9,'Audit Values'!$A$2:$BU$393,42,FALSE)) -> 0 | AZ9: 0 | BA9: =SUM(AX9*'Weighting Factors'!$T$10)+('2020 Legal Max'!AY9*'Weighting Factors'!$T$11)+('2020 Legal Max'!AZ9*'Weighting Factors'!$T$12) -> 0 | BB9: 0 | BC9: =IF(ISNA(VLOOKUP($CZ9,'Audit Values'!$A$2:$BU$274,2,FALSE)),"",IF(AND('Weighting Factors'!H9>0,VLOOKUP($CZ9,'Audit Values'!$A$2:$BU$274,51,FALSE)<'Weighting Factors'!H9),'Weighting Factors'!H9,VLOOKUP($CZ9,'Audit Values'!$A$2:$BU$274,50,FALSE))) -> 1 | BD9: =IF(ISNA(VLOOKUP($CZ9,'Audit Values'!$A$2:$BV$447,2,FALSE)),"",VLOOKUP($CZ9,'Audit Values'!$A$2:$BV$447,51,FALSE)) -> A | BE9: =IF('Weighting Factors'!H9="","",IF('Weighting Factors'!J9="Pending","PX","R")) ->  | BF9: =SUM((S9+T9+Y9+AA9+AE9+AH9+AJ9++AO9+AP9+AQ9+AU9+AR9)*'Weighting Factors'!$Q$5)+'2020 Legal Max'!BA9+'2020 Legal Max'!BB9 -> 1253170 | BG9: =SUM((AV9+AR9)*'Weighting Factors'!$Q$5)+BA9+'2020 Legal Max'!BB9 -> 1325920 | BH9: =IF('Weighting Factors'!H9>0,'Weighting Factors'!H9,'Preliminary SO66'!AV8) -> 1371611 | BI9: 1325920 | BJ9: ='Weighting Factors'!G9 -> 0 | BK9: ='Weighting Factors'!F9 -> -36819 | BL9: ='Weighting Factors'!E9 -> 0 | BM9: -36819 | BN9: 1289101 | BO9: =SUM((S9+T9+Y9+AA9+AE9+AH9+AJ9++AO9+AP9+AQ9+AR9)*'Weighting Factors'!Q$12)+(MAX(AS9,'Weighting Factors'!B9)) -> 1438977 | BP9: ='LOB%'!F7 -> 0.33 | BQ9: 474862 | BR9: 480879 | BS9: 474862 | BT9: 0.33 | BU9: 0 | BV9: TRUE | BW9: 9.655 | BX9: 1.01168 | BY9: 102.2 | BZ9: FALSE | CA9: 0 | CB9: 0 | CC9: 0 | CD9: 0 | CE9: 601.2 | CF9: 0.057 | CG9: =IF(CF9<0.06,1,IF(CF9>=18.29,52,MATCH(CF9-0.001,'Weighting Factors'!$Y$5:$Y$156)+1)) -> 1 | CH9: =VLOOKUP(CG9, 'Weighting Factors'!$W$5:$Z$56,4) -> 1620 | CI9: =('Weighting Factors'!$Q$5/'Weighting Factors'!$Q$14) -> 1.0651 | CJ9: 55890 | CK9: =CJ9*'Weighting Factors'!$S$7 -> 55890 | CL9: 59528 | CM9: =AM9/'Weighting Factors'!$Q$5 -> 13.4 | CN9: 0 | CO9: 0 | CP9: 0 | CQ9: 0 | CR9: =SUM((AV9*'Weighting Factors'!$Q$5)+'2020 Legal Max'!BA9)*CQ9 -> 0 | CS9: 0 | CT9: 0.5929 | CU9: 7 | CV9: 0 | CW9: 298.9 | CX9: ='LOB Transfers'!G8 -> 51712 | CY9: ='LOB Transfers'!J8 -> 12441 | CZ9: D0106
A10: 107 | B10: Jewell | C10: Rock Hills | D10: 295 | E10: 0 | F10: 295 | G10: 302.5 | H10: 0 | I10: 302.5 | J10: 293.5 | K10: 0 | L10: 293.5 | M10: =IF(ISNA(VLOOKUP($CZ10,'Audit Values'!$A$2:$BW$496,2,FALSE)),'Preliminary SO66'!C9,VLOOKUP($CZ10,'Audit Values'!$A$2:$BW$496,73,FALSE)) -> 316 | N10: =IF(ISNA(VLOOKUP($CZ10,'Audit Values'!$A$2:$BW$496,2,FALSE)),'Preliminary SO66'!F9,VLOOKUP($CZ10,'Audit Values'!$A$2:$BW$496,4,FALSE)) -> 0 | O10: 316 | P10: =IF('Military Provision'!J11="YES", MAX('2020 Legal Max'!L10,'2020 Legal Max'!I10,AVERAGE('2020 Legal Max'!F10,'2020 Legal Max'!I10,'2020 Legal Max'!L10)), MAX(L10, I10)) -> 302.5 | Q10: =IF(ISNA(VLOOKUP($CZ10,'Audit Values'!$A$2:$BU$393,2,FALSE)),'Preliminary SO66'!AL9,VLOOKUP($CZ10,'Audit Values'!$A$2:$BU$393,58,FALSE)) -> 4 | R10: 0 | S10: 306.5 | T10: 147.7 | U10: =IF(ISNA(VLOOKUP($CZ10,'Audit Values'!$A$2:$BW$447,2,FALSE)),'Preliminary SO66'!AM9,VLOOKUP($CZ10,'Audit Values'!$A$2:$BW$447,62,FALSE)) -> 0 | V10: =(U10/6)*'Weighting Factors'!$Q$7 -> 0 | W10: =IF(ISNA(VLOOKUP($CZ10,'Audit Values'!$A$2:$BW$447,2,FALSE)),'Preliminary SO66'!AN9,VLOOKUP($CZ10,'Audit Values'!$A$2:$BW$447,61,FALSE)) -> 0 | X10: =W10*'Weighting Factors'!$Q$8 -> 0 | Y10: 0 | Z10: =IF(ISNA(VLOOKUP($CZ10,'Audit Values'!$A$2:$BW$447,2,FALSE)),'Preliminary SO66'!AO9,VLOOKUP($CZ10,'Audit Values'!$A$2:$BW$447,60,FALSE)) -> 89.3 | AA10: =Z10/6*'Weighting Factors'!$Q$6 -> 7.4 | AB10: =IF(ISNA(VLOOKUP($CZ10,'Audit Values'!$A$2:$BU$393,2,FALSE)),'Preliminary SO66'!AS9,VLOOKUP($CZ10,'Audit Values'!$A$2:$BU$393,63,FALSE)) -> 326 | AC10: 0 | AD10: =IF(ISNA(VLOOKUP($CZ10,'Audit Values'!$A$2:$BU$393,2,FALSE)),'Preliminary SO66'!AP9,VLOOKUP($CZ10,'Audit Values'!$A$2:$BU$393,64,FALSE)) -> 150 | AE10: =IF(A10=207, AD10,MAX(AC10,AD10))*'Weighting Factors'!$Q$9 -> 72.6 | AF10: 11.6 | AG10: =IF(ISNA(VLOOKUP($CZ10,'Audit Values'!$A$2:$BW$393,2,FALSE)),'Preliminary SO66'!AG9,VLOOKUP($CZ10,'Audit Values'!$A$2:$BW$393,70,FALSE)) -> 11 | AH10: 11.6 | AI10: =IF(ISNA(VLOOKUP($CZ10,'Audit Values'!$A$2:$BU$393,2,FALSE)),'Preliminary SO66'!AQ9,VLOOKUP($CZ10,'Audit Values'!$A$2:$BU$393,65,FALSE)) -> 0 | AJ10: =AI10*'Weighting Factors'!$Q$10 -> 0 | AK10: =IF(ISNA(VLOOKUP($CZ10,'Audit Values'!$A$2:$BU$393,2,FALSE)),'Preliminary SO66'!AR9,VLOOKUP($CZ10,'Audit Values'!$A$2:$BU$393,66,FALSE)) -> 147 | AM10: 203541 | AN10: 228038 | AO10: =MAX(AN10, AM10)/'Weighting Factors'!$Q$5 -> 51.4 | AP10: =CN10/'Weighting Factors'!$Q$5 -> 0 | AQ10: 0 | AR10: =CS10/'Weighting Factors'!$Q$5 -> 0 | AS10: 375064 | AT10: =AS10/'Weighting Factors'!$Q$5 -> 84.6 | AU10: =IF(ISNA(VLOOKUP($CZ10,'Audit Values'!$A$2:$BU$393,2,FALSE)),'Preliminary SO66'!X9,VLOOKUP($CZ10,'Audit Values'!$A$2:$BU$393,47,FALSE)) -> 0 | AV10: 681.8 | AW10: 597.2 | AX10: =IF(ISNA(VLOOKUP($CZ10,'Audit Values'!$A$2:$BU$393,2,FALSE)),'Preliminary SO66'!AA9,VLOOKUP($CZ10,'Audit Values'!$A$2:$BU$393,41,FALSE)) -> 1 | AY10: =IF(ISNA(VLOOKUP($CZ10,'Audit Values'!$A$2:$BU$393,2,FALSE)),'Preliminary SO66'!AB9,VLOOKUP($CZ10,'Audit Values'!$A$2:$BU$393,42,FALSE)) -> 0 | AZ10: 0 | BA10: =SUM(AX10*'Weighting Factors'!$T$10)+('2020 Legal Max'!AY10*'Weighting Factors'!$T$11)+('2020 Legal Max'!AZ10*'Weighting Factors'!$T$12) -> 5000 | BB10: 0 | BC10: =IF(ISNA(VLOOKUP($CZ10,'Audit Values'!$A$2:$BU$274,2,FALSE)),"",IF(AND('Weighting Factors'!H10>0,VLOOKUP($CZ10,'Audit Values'!$A$2:$BU$274,51,FALSE)<'Weighting Factors'!H10),'Weighting Factors'!H10,VLOOKUP($CZ10,'Audit Values'!$A$2:$BU$274,50,FALSE))) -> 18 | BD10: =IF(ISNA(VLOOKUP($CZ10,'Audit Values'!$A$2:$BV$447,2,FALSE)),"",VLOOKUP($CZ10,'Audit Values'!$A$2:$BV$447,51,FALSE)) -> A | BE10: =IF('Weighting Factors'!H10="","",IF('Weighting Factors'!J10="Pending","PX","R")) ->  | BF10: =SUM((S10+T10+Y10+AA10+AE10+AH10+AJ10++AO10+AP10+AQ10+AU10+AR10)*'Weighting Factors'!$Q$5)+'2020 Legal Max'!BA10+'2020 Legal Max'!BB10 -> 2654179 | BG10: =SUM((AV10+AR10)*'Weighting Factors'!$Q$5)+BA10+'2020 Legal Max'!BB10 -> 3029465 | BH10: =IF('Weighting Factors'!H10>0,'Weighting Factors'!H10,'Preliminary SO66'!AV9) -> 3084351 | BI10: 3029465 | BJ10: ='Weighting Factors'!G10 -> 0 | BK10: ='Weighting Factors'!F10 -> 0 | BL10: ='Weighting Factors'!E10 -> 0 | BM10: 0 | BN10: 3029465 | BO10: =SUM((S10+T10+Y10+AA10+AE10+AH10+AJ10++AO10+AP10+AQ10+AR10)*'Weighting Factors'!Q$12)+(MAX(AS10,'Weighting Factors'!B10)) -> 3097102 | BP10: ='LOB%'!F8 -> 0.3 | BQ10: 929131 | BR10: 850000 | BS10: 850000 | BT10: 0.2745 | BU10: 0 | BV10: FALSE | BW10: 0 | BX10: 0 | BY10: 0 | BZ10: TRUE | CA10: 8.0438 | CB10: 0.481978 | CC10: 147.7 | CD10: 0 | CE10: 762 | CF10: 0.193 | CG10: =IF(CF10<0.06,1,IF(CF10>=18.29,52,MATCH(CF10-0.001,'Weighting Factors'!$Y$5:$Y$156)+1)) -> 14 | CH10: =VLOOKUP(CG10, 'Weighting Factors'!$W$5:$Z$56,4) -> 1300 | CI10: =('Weighting Factors'!$Q$5/'Weighting Factors'!$Q$14) -> 1.0651 | CJ10: 191100 | CK10: =CJ10*'Weighting Factors'!$S$7 -> 191100 | CL10: 203541 | CM10: =AM10/'Weighting Factors'!$Q$5 -> 45.9 | CN10: 0 | CO10: 0 | CP10: 0 | CQ10: 0 | CR10: =SUM((AV10*'Weighting Factors'!$Q$5)+'2020 Legal Max'!BA10)*CQ10 -> 0 | CS10: 0 | CT10: 0.4601 | CU10: 0 | CV10: 11.6 | CW10: 681.8 | CX10: ='LOB Transfers'!G9 -> 91035 | CY10: ='LOB Transfers'!J9 -> 0 | CZ10: D0107
A11: 108 | B11: Washington | C11: Washington Co. Schools | D11: 334.5 | E11: 0 | F11: 334.5 | G11: 329.2 | H11: 0 | I11: 329.2 | J11: 327.3 | K11: 0 | L11: 327.3 | M11: =IF(ISNA(VLOOKUP($CZ11,'Audit Values'!$A$2:$BW$496,2,FALSE)),'Preliminary SO66'!C10,VLOOKUP($CZ11,'Audit Values'!$A$2:$BW$496,73,FALSE)) -> 350.7 | N11: =IF(ISNA(VLOOKUP($CZ11,'Audit Values'!$A$2:$BW$496,2,FALSE)),'Preliminary SO66'!F10,VLOOKUP($CZ11,'Audit Values'!$A$2:$BW$496,4,FALSE)) -> 0 | O11: 350.7 | P11: =IF('Military Provision'!J12="YES", MAX('2020 Legal Max'!L11,'2020 Legal Max'!I11,AVERAGE('2020 Legal Max'!F11,'2020 Legal Max'!I11,'2020 Legal Max'!L11)), MAX(L11, I11)) -> 329.2 | Q11: =IF(ISNA(VLOOKUP($CZ11,'Audit Values'!$A$2:$BU$393,2,FALSE)),'Preliminary SO66'!AL10,VLOOKUP($CZ11,'Audit Values'!$A$2:$BU$393,58,FALSE)) -> 0 | R11: 0 | S11: 329.2 | T11: 156.1 | U11: =IF(ISNA(VLOOKUP($CZ11,'Audit Values'!$A$2:$BW$447,2,FALSE)),'Preliminary SO66'!AM10,VLOOKUP($CZ11,'Audit Values'!$A$2:$BW$447,62,FALSE)) -> 10.9 | V11: =(U11/6)*'Weighting Factors'!$Q$7 -> 0.7 | W11: =IF(ISNA(VLOOKUP($CZ11,'Audit Values'!$A$2:$BW$447,2,FALSE)),'Preliminary SO66'!AN10,VLOOKUP($CZ11,'Audit Values'!$A$2:$BW$447,61,FALSE)) -> 17 | X11: =W11*'Weighting Factors'!$Q$8 -> 3.1 | Y11: 3.1 | Z11: =IF(ISNA(VLOOKUP($CZ11,'Audit Values'!$A$2:$BW$447,2,FALSE)),'Preliminary SO66'!AO10,VLOOKUP($CZ11,'Audit Values'!$A$2:$BW$447,60,FALSE)) -> 133.5 | AA11: =Z11/6*'Weighting Factors'!$Q$6 -> 11.1 | AB11: =IF(ISNA(VLOOKUP($CZ11,'Audit Values'!$A$2:$BU$393,2,FALSE)),'Preliminary SO66'!AS10,VLOOKUP($CZ11,'Audit Values'!$A$2:$BU$393,63,FALSE)) -> 357 | AC11: 0 | AD11: =IF(ISNA(VLOOKUP($CZ11,'Audit Values'!$A$2:$BU$393,2,FALSE)),'Preliminary SO66'!AP10,VLOOKUP($CZ11,'Audit Values'!$A$2:$BU$393,64,FALSE)) -> 138 | AE11: =IF(A11=207, AD11,MAX(AC11,AD11))*'Weighting Factors'!$Q$9 -> 66.8 | AF11: 3.5 | AG11: =IF(ISNA(VLOOKUP($CZ11,'Audit Values'!$A$2:$BW$393,2,FALSE)),'Preliminary SO66'!AG10,VLOOKUP($CZ11,'Audit Values'!$A$2:$BW$393,70,FALSE)) -> 4.8 | AH11: 4.8 | AI11: =IF(ISNA(VLOOKUP($CZ11,'Audit Values'!$A$2:$BU$393,2,FALSE)),'Preliminary SO66'!AQ10,VLOOKUP($CZ11,'Audit Values'!$A$2:$BU$393,65,FALSE)) -> 0 | AJ11: =AI11*'Weighting Factors'!$Q$10 -> 0 | AK11: =IF(ISNA(VLOOKUP($CZ11,'Audit Values'!$A$2:$BU$393,2,FALSE)),'Preliminary SO66'!AR10,VLOOKUP($CZ11,'Audit Values'!$A$2:$BU$393,66,FALSE)) -> 140 | AM11: 171481 | AN11: 208778 | AO11: =MAX(AN11, AM11)/'Weighting Factors'!$Q$5 -> 47.1 | AP11: =CN11/'Weighting Factors'!$Q$5 -> 0 | AQ11: 0 | AR11: =CS11/'Weighting Factors'!$Q$5 -> 0 | AS11: 310808 | AT11: =AS11/'Weighting Factors'!$Q$5 -> 70.1 | AU11: =IF(ISNA(VLOOKUP($CZ11,'Audit Values'!$A$2:$BU$393,2,FALSE)),'Preliminary SO66'!X10,VLOOKUP($CZ11,'Audit Values'!$A$2:$BU$393,47,FALSE)) -> 0 | AV11: 688.3 | AW11: 618.2 | AX11: =IF(ISNA(VLOOKUP($CZ11,'Audit Values'!$A$2:$BU$393,2,FALSE)),'Preliminary SO66'!AA10,VLOOKUP($CZ11,'Audit Values'!$A$2:$BU$393,41,FALSE)) -> 0 | AY11: =IF(ISNA(VLOOKUP($CZ11,'Audit Values'!$A$2:$BU$393,2,FALSE)),'Preliminary SO66'!AB10,VLOOKUP($CZ11,'Audit Values'!$A$2:$BU$393,42,FALSE)) -> 0 | AZ11: 0 | BA11: =SUM(AX11*'Weighting Factors'!$T$10)+('2020 Legal Max'!AY11*'Weighting Factors'!$T$11)+('2020 Legal Max'!AZ11*'Weighting Factors'!$T$12) -> 0 | BB11: 0 | BC11: =IF(ISNA(VLOOKUP($CZ11,'Audit Values'!$A$2:$BU$274,2,FALSE)),"",IF(AND('Weighting Factors'!H11>0,VLOOKUP($CZ11,'Audit Values'!$A$2:$BU$274,51,FALSE)<'Weighting Factors'!H11),'Weighting Factors'!H11,VLOOKUP($CZ11,'Audit Values'!$A$2:$BU$274,50,FALSE))) -> 2 | BD11: =IF(ISNA(VLOOKUP($CZ11,'Audit Values'!$A$2:$BV$447,2,FALSE)),"",VLOOKUP($CZ11,'Audit Values'!$A$2:$BV$447,51,FALSE)) -> A | BE11: =IF('Weighting Factors'!H11="","",IF('Weighting Factors'!J11="Pending","PX","R")) -> R | BF11: =SUM((S11+T11+Y11+AA11+AE11+AH11+AJ11++AO11+AP11+AQ11+AU11+AR11)*'Weighting Factors'!$Q$5)+'2020 Legal Max'!BA11+'2020 Legal Max'!BB11 -> 2742335 | BG11: =SUM((AV11+AR11)*'Weighting Factors'!$Q$5)+BA11+'2020 Legal Max'!BB11 -> 3053299 | BH11: =IF('Weighting Factors'!H11>0,'Weighting Factors'!H11,'Preliminary SO66'!AV10) -> 3149116 | BI11: 3053299 | BJ11: ='Weighting Factors'!G11 -> 0 | BK11: ='Weighting Factors'!F11 -> -26168 | BL11: ='Weighting Factors'!E11 -> 0 | BM11: -26168 | BN11: 3027131 | BO11: =SUM((S11+T11+Y11+AA11+AE11+AH11+AJ11++AO11+AP11+AQ11+AR11)*'Weighting Factors'!Q$12)+(MAX(AS11,'Weighting Factors'!B11)) -> 3366087 | BP11: ='LOB%'!F9 -> 0.3 | BQ11: 1009826 | BR11: 981521 | BS11: 981521 | BT11: 0.2916 | BU11: 0 | BV11: FALSE | BW11: 0 | BX11: 0 | BY11: 0 | BZ11: TRUE | CA11: 36.135 | CB11: 0.474266 | CC11: 156.1 | CD11: 0 | CE11: 389 | CF11: 0.36 | CG11: =IF(CF11<0.06,1,IF(CF11>=18.29,52,MATCH(CF11-0.001,'Weighting Factors'!$Y$5:$Y$156)+1)) -> 22 | CH11: =VLOOKUP(CG11, 'Weighting Factors'!$W$5:$Z$56,4) -> 1150 | CI11: =('Weighting Factors'!$Q$5/'Weighting Factors'!$Q$14) -> 1.0651 | CJ11: 161000 | CK11: =CJ11*'Weighting Factors'!$S$7 -> 161000 | CL11: 171481 | CM11: =AM11/'Weighting Factors'!$Q$5 -> 38.7 | CN11: 0 | CO11: 0 | CP11: 0 | CQ11: 0 | CR11: =SUM((AV11*'Weighting Factors'!$Q$5)+'2020 Legal Max'!BA11)*CQ11 -> 0 | CS11: 0 | CT11: 0.3866 | CU11: 0 | CV11: 3.5 | CW11: 688.3 | CX11: ='LOB Transfers'!G10 -> 95306 | CY11: ='LOB Transfers'!J10 -> 4417 | CZ11: D0108
A12: 109 | B12: Republic | C12: Republic County | D12: 507.6 | E12: 0 | F12: 507.6 | G12: 511 | H12: 0 | I12: 511 | J12: 515.4 | K12: 0 | L12: 515.4 | M12: =IF(ISNA(VLOOKUP($CZ12,'Audit Values'!$A$2:$BW$496,2,FALSE)),'Preliminary SO66'!C11,VLOOKUP($CZ12,'Audit Values'!$A$2:$BW$496,73,FALSE)) -> 514.7 | N12: =IF(ISNA(VLOOKUP($CZ12,'Audit Values'!$A$2:$BW$496,2,FALSE)),'Preliminary SO66'!F11,VLOOKUP($CZ12,'Audit Values'!$A$2:$BW$496,4,FALSE)) -> 0 | O12: 514.7 | P12: =IF('Military Provision'!J13="YES", MAX('2020 Legal Max'!L12,'2020 Legal Max'!I12,AVERAGE('2020 Legal Max'!F12,'2020 Legal Max'!I12,'2020 Legal Max'!L12)), MAX(L12, I12)) -> 515.4 | Q12: =IF(ISNA(VLOOKUP($CZ12,'Audit Values'!$A$2:$BU$393,2,FALSE)),'Preliminary SO66'!AL11,VLOOKUP($CZ12,'Audit Values'!$A$2:$BU$393,58,FALSE)) -> 2.5 | R12: 0 | S12: 517.9 | T12: 212.4 | U12: =IF(ISNA(VLOOKUP($CZ12,'Audit Values'!$A$2:$BW$447,2,FALSE)),'Preliminary SO66'!AM11,VLOOKUP($CZ12,'Audit Values'!$A$2:$BW$447,62,FALSE)) -> 0 | V12: =(U12/6)*'Weighting Factors'!$Q$7 -> 0 | W12: =IF(ISNA(VLOOKUP($CZ12,'Audit Values'!$A$2:$BW$447,2,FALSE)),'Preliminary SO66'!AN11,VLOOKUP($CZ12,'Audit Values'!$A$2:$BW$447,61,FALSE)) -> 3 | X12: =W12*'Weighting Factors'!$Q$8 -> 0.6 | Y12: 0.6 | Z12: =IF(ISNA(VLOOKUP($CZ12,'Audit Values'!$A$2:$BW$447,2,FALSE)),'Preliminary SO66'!AO11,VLOOKUP($CZ12,'Audit Values'!$A$2:$BW$447,60,FALSE)) -> 107.3 | AA12: =Z12/6*'Weighting Factors'!$Q$6 -> 8.9 | AB12: =IF(ISNA(VLOOKUP($CZ12,'Audit Values'!$A$2:$BU$393,2,FALSE)),'Preliminary SO66'!AS11,VLOOKUP($CZ12,'Audit Values'!$A$2:$BU$393,63,FALSE)) -> 528 | AC12: 0 | AD12: =IF(ISNA(VLOOKUP($CZ12,'Audit Values'!$A$2:$BU$393,2,FALSE)),'Preliminary SO66'!AP11,VLOOKUP($CZ12,'Audit Values'!$A$2:$BU$393,64,FALSE)) -> 180 | AE12: =IF(A12=207, AD12,MAX(AC12,AD12))*'Weighting Factors'!$Q$9 -> 87.1 | AF12: 0 | AG12: =IF(ISNA(VLOOKUP($CZ12,'Audit Values'!$A$2:$BW$393,2,FALSE)),'Preliminary SO66'!AG11,VLOOKUP($CZ12,'Audit Values'!$A$2:$BW$393,70,FALSE)) -> 2.1 | AH12: 2.1 | AI12: =IF(ISNA(VLOOKUP($CZ12,'Audit Values'!$A$2:$BU$393,2,FALSE)),'Preliminary SO66'!AQ11,VLOOKUP($CZ12,'Audit Values'!$A$2:$BU$393,65,FALSE)) -> 0 | AJ12: =AI12*'Weighting Factors'!$Q$10 -> 0 | AK12: =IF(ISNA(VLOOKUP($CZ12,'Audit Values'!$A$2:$BU$393,2,FALSE)),'Preliminary SO66'!AR11,VLOOKUP($CZ12,'Audit Values'!$A$2:$BU$393,66,FALSE)) -> 156 | AM12: 201048 | AN12: 251536 | AO12: =MAX(AN12, AM12)/'Weighting Factors'!$Q$5 -> 56.7 | AP12: =CN12/'Weighting Factors'!$Q$5 -> 0 | AQ12: 0 | AR12: =CS12/'Weighting Factors'!$Q$5 -> 0 | AS12: 486952 | AT12: =AS12/'Weighting Factors'!$Q$5 -> 109.8 | AU12: =IF(ISNA(VLOOKUP($CZ12,'Audit Values'!$A$2:$BU$393,2,FALSE)),'Preliminary SO66'!X11,VLOOKUP($CZ12,'Audit Values'!$A$2:$BU$393,47,FALSE)) -> 0 | AV12: 995.5 | AW12: 885.7 | AX12: =IF(ISNA(VLOOKUP($CZ12,'Audit Values'!$A$2:$BU$393,2,FALSE)),'Preliminary SO66'!AA11,VLOOKUP($CZ12,'Audit Values'!$A$2:$BU$393,41,FALSE)) -> 0 | AY12: =IF(ISNA(VLOOKUP($CZ12,'Audit Values'!$A$2:$BU$393,2,FALSE)),'Preliminary SO66'!AB11,VLOOKUP($CZ12,'Audit Values'!$A$2:$BU$393,42,FALSE)) -> 0 | AZ12: 0 | BA12: =SUM(AX12*'Weighting Factors'!$T$10)+('2020 Legal Max'!AY12*'Weighting Factors'!$T$11)+('2020 Legal Max'!AZ12*'Weighting Factors'!$T$12) -> 0 | BB12: 0 | BC12: =IF(ISNA(VLOOKUP($CZ12,'Audit Values'!$A$2:$BU$274,2,FALSE)),"",IF(AND('Weighting Factors'!H12>0,VLOOKUP($CZ12,'Audit Values'!$A$2:$BU$274,51,FALSE)<'Weighting Factors'!H12),'Weighting Factors'!H12,VLOOKUP($CZ12,'Audit Values'!$A$2:$BU$274,50,FALSE))) -> 1 | BD12: =IF(ISNA(VLOOKUP($CZ12,'Audit Values'!$A$2:$BV$447,2,FALSE)),"",VLOOKUP($CZ12,'Audit Values'!$A$2:$BV$447,51,FALSE)) -> A | BE12: =IF('Weighting Factors'!H12="","",IF('Weighting Factors'!J12="Pending","PX","R")) ->  | BF12: =SUM((S12+T12+Y12+AA12+AE12+AH12+AJ12++AO12+AP12+AQ12+AU12+AR12)*'Weighting Factors'!$Q$5)+'2020 Legal Max'!BA12+'2020 Legal Max'!BB12 -> 3928965 | BG12: =SUM((AV12+AR12)*'Weighting Factors'!$Q$5)+BA12+'2020 Legal Max'!BB12 -> 4416038 | BH12: =IF('Weighting Factors'!H12>0,'Weighting Factors'!H12,'Preliminary SO66'!AV11) -> 4549284 | BI12: 4416038 | BJ12: ='Weighting Factors'!G12 -> 0 | BK12: ='Weighting Factors'!F12 -> -7090 | BL12: ='Weighting Factors'!E12 -> 0 | BM12: -7090 | BN12: 4408948 | BO12: =SUM((S12+T12+Y12+AA12+AE12+AH12+AJ12++AO12+AP12+AQ12+AR12)*'Weighting Factors'!Q$12)+(MAX(AS12,'Weighting Factors'!B12)) -> 4652281 | BP12: ='LOB%'!F10 -> 0.3 | BQ12: 1395684 | BR12: 1417152 | BS12: 1395684 | BT12: 0.3 | BU12: 0 | BV12: FALSE | BW12: 0 | BX12: 0 | BY12: 0 | BZ12: TRUE | CA12: 269.6513 | CB12: 0.410155 | CC12: 212.4 | CD12: 0 | CE12: 560 | CF12: 0.279 | CG12: =IF(CF12<0.06,1,IF(CF12>=18.29,52,MATCH(CF12-0.001,'Weighting Factors'!$Y$5:$Y$156)+1)) -> 19 | CH12: =VLOOKUP(CG12, 'Weighting Factors'!$W$5:$Z$56,4) -> 1210 | CI12: =('Weighting Factors'!$Q$5/'Weighting Factors'!$Q$14) -> 1.0651 | CJ12: 188760 | CK12: =CJ12*'Weighting Factors'!$S$7 -> 188760 | CL12: 201048 | CM12: =AM12/'Weighting Factors'!$Q$5 -> 45.3 | CN12: 0 | CO12: 0 | CP12: 0 | CQ12: 0 | CR12: =SUM((AV12*'Weighting Factors'!$Q$5)+'2020 Legal Max'!BA12)*CQ12 -> 0 | CS12: 0 | CT12: 0.3409 | CU12: 0 | CV12: 0 | CW12: 995.5 | CX12: ='LOB Transfers'!G11 -> 122401 | CY12: ='LOB Transfers'!J11 -> 837 | CZ12: D0109
A13: 110 | B13: Phillips | C13: Thunder Ridge Schools | D13: 209.5 | E13: 0 | F13: 209.5 | G13: 197.5 | H13: 0 | I13: 197.5 | J13: 196 | K13: 0 | L13: 196 | M13: =IF(ISNA(VLOOKUP($CZ13,'Audit Values'!$A$2:$BW$496,2,FALSE)),'Preliminary SO66'!C12,VLOOKUP($CZ13,'Audit Values'!$A$2:$BW$496,73,FALSE)) -> 190.1 | N13: =IF(ISNA(VLOOKUP($CZ13,'Audit Values'!$A$2:$BW$496,2,FALSE)),'Preliminary SO66'!F12,VLOOKUP($CZ13,'Audit Values'!$A$2:$BW$496,4,FALSE)) -> 0 | O13: 190.1 | P13: =IF('Military Provision'!J14="YES", MAX('2020 Legal Max'!L13,'2020 Legal Max'!I13,AVERAGE('2020 Legal Max'!F13,'2020 Legal Max'!I13,'2020 Legal Max'!L13)), MAX(L13, I13)) -> 197.5 | Q13: =IF(ISNA(VLOOKUP($CZ13,'Audit Values'!$A$2:$BU$393,2,FALSE)),'Preliminary SO66'!AL12,VLOOKUP($CZ13,'Audit Values'!$A$2:$BU$393,58,FALSE)) -> 1 | R13: 0 | S13: 198.5 | T13: 149.5 | U13: =IF(ISNA(VLOOKUP($CZ13,'Audit Values'!$A$2:$BW$447,2,FALSE)),'Preliminary SO66'!AM12,VLOOKUP($CZ13,'Audit Values'!$A$2:$BW$447,62,FALSE)) -> 0 | V13: =(U13/6)*'Weighting Factors'!$Q$7 -> 0 | W13: =IF(ISNA(VLOOKUP($CZ13,'Audit Values'!$A$2:$BW$447,2,FALSE)),'Preliminary SO66'!AN12,VLOOKUP($CZ13,'Audit Values'!$A$2:$BW$447,61,FALSE)) -> 0 | X13: =W13*'Weighting Factors'!$Q$8 -> 0 | Y13: 0 | Z13: =IF(ISNA(VLOOKUP($CZ13,'Audit Values'!$A$2:$BW$447,2,FALSE)),'Preliminary SO66'!AO12,VLOOKUP($CZ13,'Audit Values'!$A$2:$BW$447,60,FALSE)) -> 52.3 | AA13: =Z13/6*'Weighting Factors'!$Q$6 -> 4.4 | AB13: =IF(ISNA(VLOOKUP($CZ13,'Audit Values'!$A$2:$BU$393,2,FALSE)),'Preliminary SO66'!AS12,VLOOKUP($CZ13,'Audit Values'!$A$2:$BU$393,63,FALSE)) -> 193 | AC13: 0 | AD13: =IF(ISNA(VLOOKUP($CZ13,'Audit Values'!$A$2:$BU$393,2,FALSE)),'Preliminary SO66'!AP12,VLOOKUP($CZ13,'Audit Values'!$A$2:$BU$393,64,FALSE)) -> 83 | AE13: =IF(A13=207, AD13,MAX(AC13,AD13))*'Weighting Factors'!$Q$9 -> 40.2 | AF13: 4.7 | AG13: =IF(ISNA(VLOOKUP($CZ13,'Audit Values'!$A$2:$BW$393,2,FALSE)),'Preliminary SO66'!AG12,VLOOKUP($CZ13,'Audit Values'!$A$2:$BW$393,70,FALSE)) -> 5.7 | AH13: 5.7 | AI13: =IF(ISNA(VLOOKUP($CZ13,'Audit Values'!$A$2:$BU$393,2,FALSE)),'Preliminary SO66'!AQ12,VLOOKUP($CZ13,'Audit Values'!$A$2:$BU$393,65,FALSE)) -> 0 | AJ13: =AI13*'Weighting Factors'!$Q$10 -> 0 | AK13: =IF(ISNA(VLOOKUP($CZ13,'Audit Values'!$A$2:$BU$393,2,FALSE)),'Preliminary SO66'!AR12,VLOOKUP($CZ13,'Audit Values'!$A$2:$BU$393,66,FALSE)) -> 129 | AM13: 168999 | AN13: 214171 | AO13: =MAX(AN13, AM13)/'Weighting Factors'!$Q$5 -> 48.3 | AP13: =CN13/'Weighting Factors'!$Q$5 -> 0 | AQ13: 0 | AR13: =CS13/'Weighting Factors'!$Q$5 -> 0 | AS13: 239286 | AT13: =AS13/'Weighting Factors'!$Q$5 -> 53.9 | AU13: =IF(ISNA(VLOOKUP($CZ13,'Audit Values'!$A$2:$BU$393,2,FALSE)),'Preliminary SO66'!X12,VLOOKUP($CZ13,'Audit Values'!$A$2:$BU$393,47,FALSE)) -> 0 | AV13: 500.5 | AW13: 446.6 | AX13: =IF(ISNA(VLOOKUP($CZ13,'Audit Values'!$A$2:$BU$393,2,FALSE)),'Preliminary SO66'!AA12,VLOOKUP($CZ13,'Audit Values'!$A$2:$BU$393,41,FALSE)) -> 0 | AY13: =IF(ISNA(VLOOKUP($CZ13,'Audit Values'!$A$2:$BU$393,2,FALSE)),'Preliminary SO66'!AB12,VLOOKUP($CZ13,'Audit Values'!$A$2:$BU$393,42,FALSE)) -> 0 | AZ13: 0 | BA13: =SUM(AX13*'Weighting Factors'!$T$10)+('2020 Legal Max'!AY13*'Weighting Factors'!$T$11)+('2020 Legal Max'!AZ13*'Weighting Factors'!$T$12) -> 0 | BB13: 0 | BC13: =IF(ISNA(VLOOKUP($CZ13,'Audit Values'!$A$2:$BU$274,2,FALSE)),"",IF(AND('Weighting Factors'!H13>0,VLOOKUP($CZ13,'Audit Values'!$A$2:$BU$274,51,FALSE)<'Weighting Factors'!H13),'Weighting Factors'!H13,VLOOKUP($CZ13,'Audit Values'!$A$2:$BU$274,50,FALSE))) -> 9 | BD13: =IF(ISNA(VLOOKUP($CZ13,'Audit Values'!$A$2:$BV$447,2,FALSE)),"",VLOOKUP($CZ13,'Audit Values'!$A$2:$BV$447,51,FALSE)) -> A | BE13: =IF('Weighting Factors'!H13="","",IF('Weighting Factors'!J13="Pending","PX","R")) ->  | BF13: =SUM((S13+T13+Y13+AA13+AE13+AH13+AJ13++AO13+AP13+AQ13+AU13+AR13)*'Weighting Factors'!$Q$5)+'2020 Legal Max'!BA13+'2020 Legal Max'!BB13 -> 1981118 | BG13: =SUM((AV13+AR13)*'Weighting Factors'!$Q$5)+BA13+'2020 Legal Max'!BB13 -> 2220218 | BH13: =IF('Weighting Factors'!H13>0,'Weighting Factors'!H13,'Preliminary SO66'!AV12) -> 2351967 | BI13: 2220218 | BJ13: ='Weighting Factors'!G13 -> 0 | BK13: ='Weighting Factors'!F13 -> 0 | BL13: ='Weighting Factors'!E13 -> 0 | BM13: 0 | BN13: 2220218 | BO13: =SUM((S13+T13+Y13+AA13+AE13+AH13+AJ13++AO13+AP13+AQ13+AR13)*'Weighting Factors'!Q$12)+(MAX(AS13,'Weighting Factors'!B13)) -> 2369534 | BP13: ='LOB%'!F11 -> 0.3 | BQ13: 710860 | BR13: 738892 | BS13: 710860 | BT13: 0.3 | BU13: 0 | BV13: TRUE | BW13: 951.018 | BX13: 0.753235 | BY13: 149.5 | BZ13: FALSE | CA13: 0 | CB13: 0 | CC13: 0 | CD13: 0 | CE13: 491 | CF13: 0.263 | CG13: =IF(CF13<0.06,1,IF(CF13>=18.29,52,MATCH(CF13-0.001,'Weighting Factors'!$Y$5:$Y$156)+1)) -> 18 | CH13: =VLOOKUP(CG13, 'Weighting Factors'!$W$5:$Z$56,4) -> 1230 | CI13: =('Weighting Factors'!$Q$5/'Weighting Factors'!$Q$14) -> 1.0651 | CJ13: 158670 | CK13: =CJ13*'Weighting Factors'!$S$7 -> 158670 | CL13: 168999 | CM13: =AM13/'Weighting Factors'!$Q$5 -> 38.1 | CN13: 0 | CO13: 0 | CP13: 0 | CQ13: 0 | CR13: =SUM((AV13*'Weighting Factors'!$Q$5)+'2020 Legal Max'!BA13)*CQ13 -> 0 | CS13: 0 | CT13: 0.4301 | CU13: 0 | CV13: 4.7 | CW13: 500.5 | CX13: ='LOB Transfers'!G12 -> 57224 | CY13: ='LOB Transfers'!J12 -> 0 | CZ13: D0110
A14: 111 | B14: Doniphan | C14: Doniphan West Schools | D14: 323.5 | E14: 0 | F14: 323.5 | G14: 310 | H14: 0 | I14: 310 | J14: 316 | K14: 0 | L14: 316 | M14: =IF(ISNA(VLOOKUP($CZ14,'Audit Values'!$A$2:$BW$496,2,FALSE)),'Preliminary SO66'!C13,VLOOKUP($CZ14,'Audit Values'!$A$2:$BW$496,73,FALSE)) -> 318.7 | N14: =IF(ISNA(VLOOKUP($CZ14,'Audit Values'!$A$2:$BW$496,2,FALSE)),'Preliminary SO66'!F13,VLOOKUP($CZ14,'Audit Values'!$A$2:$BW$496,4,FALSE)) -> 0 | O14: 318.7 | P14: =IF('Military Provision'!J15="YES", MAX('2020 Legal Max'!L14,'2020 Legal Max'!I14,AVERAGE('2020 Legal Max'!F14,'2020 Legal Max'!I14,'2020 Legal Max'!L14)), MAX(L14, I14)) -> 316 | Q14: =IF(ISNA(VLOOKUP($CZ14,'Audit Values'!$A$2:$BU$393,2,FALSE)),'Preliminary SO66'!AL13,VLOOKUP($CZ14,'Audit Values'!$A$2:$BU$393,58,FALSE)) -> 4 | R14: 0 | S14: =P14+Q14+R14 -> 320 | T14: 152.8 | U14: =IF(ISNA(VLOOKUP($CZ14,'Audit Values'!$A$2:$BW$447,2,FALSE)),'Preliminary SO66'!AM13,VLOOKUP($CZ14,'Audit Values'!$A$2:$BW$447,62,FALSE)) -> 0 | V14: =(U14/6)*'Weighting Factors'!$Q$7 -> 0 | W14: =IF(ISNA(VLOOKUP($CZ14,'Audit Values'!$A$2:$BW$447,2,FALSE)),'Preliminary SO66'!AN13,VLOOKUP($CZ14,'Audit Values'!$A$2:$BW$447,61,FALSE)) -> 0 | X14: =W14*'Weighting Factors'!$Q$8 -> 0 | Y14: 0 | Z14: =IF(ISNA(VLOOKUP($CZ14,'Audit Values'!$A$2:$BW$447,2,FALSE)),'Preliminary SO66'!AO13,VLOOKUP($CZ14,'Audit Values'!$A$2:$BW$447,60,FALSE)) -> 78.3 | AA14: =Z14/6*'Weighting Factors'!$Q$6 -> 6.5 | AB14: =IF(ISNA(VLOOKUP($CZ14,'Audit Values'!$A$2:$BU$393,2,FALSE)),'Preliminary SO66'!AS13,VLOOKUP($CZ14,'Audit Values'!$A$2:$BU$393,63,FALSE)) -> 329 | AC14: 0 | AD14: =IF(ISNA(VLOOKUP($CZ14,'Audit Values'!$A$2:$BU$393,2,FALSE)),'Preliminary SO66'!AP13,VLOOKUP($CZ14,'Audit Values'!$A$2:$BU$393,64,FALSE)) -> 96 | AE14: =IF(A14=207, AD14,MAX(AC14,AD14))*'Weighting Factors'!$Q$9 -> 46.5 | AF14: 0 | AG14: =IF(ISNA(VLOOKUP($CZ14,'Audit Values'!$A$2:$BW$393,2,FALSE)),'Preliminary SO66'!AG13,VLOOKUP($CZ14,'Audit Values'!$A$2:$BW$393,70,FALSE)) -> 0 | AH14: 0 | AI14: =IF(ISNA(VLOOKUP($CZ14,'Audit Values'!$A$2:$BU$393,2,FALSE)),'Preliminary SO66'!AQ13,VLOOKUP($CZ14,'Audit Values'!$A$2:$BU$393,65,FALSE)) -> 0 | AJ14: =AI14*'Weighting Factors'!$Q$10 -> 0 | AK14: =IF(ISNA(VLOOKUP($CZ14,'Audit Values'!$A$2:$BU$393,2,FALSE)),'Preliminary SO66'!AR13,VLOOKUP($CZ14,'Audit Values'!$A$2:$BU$393,66,FALSE)) -> 187 | AM14: 197182 | AN14: 261166 | AO14: =MAX(AN14, AM14)/'Weighting Factors'!$Q$5 -> 58.9 | AP14: =CN14/'Weighting Factors'!$Q$5 -> 0 | AQ14: 0 | AR14: =CS14/'Weighting Factors'!$Q$5 -> 0 | AS14: 287885 | AT14: =AS14/'Weighting Factors'!$Q$5 -> 64.9 | AU14: =IF(ISNA(VLOOKUP($CZ14,'Audit Values'!$A$2:$BU$393,2,FALSE)),'Preliminary SO66'!X13,VLOOKUP($CZ14,'Audit Values'!$A$2:$BU$393,47,FALSE)) -> 0 | AV14: 649.6 | AW14: =SUM(S14+T14+Y14+AA14+AE14+AH14+AJ14++AO14+AP14+AQ14+AR14+AU14) -> 584.7 | AX14: =IF(ISNA(VLOOKUP($CZ14,'Audit Values'!$A$2:$BU$393,2,FALSE)),'Preliminary SO66'!AA13,VLOOKUP($CZ14,'Audit Values'!$A$2:$BU$393,41,FALSE)) -> 0 | AY14: =IF(ISNA(VLOOKUP($CZ14,'Audit Values'!$A$2:$BU$393,2,FALSE)),'Preliminary SO66'!AB13,VLOOKUP($CZ14,'Audit Values'!$A$2:$BU$393,42,FALSE)) -> 0 | AZ14: 0 | BA14: =SUM(AX14*'Weighting Factors'!$T$10)+('2020 Legal Max'!AY14*'Weighting Factors'!$T$11)+('2020 Legal Max'!AZ14*'Weighting Factors'!$T$12) -> 0 | BB14: 0 | BC14: =IF(ISNA(VLOOKUP($CZ14,'Audit Values'!$A$2:$BU$274,2,FALSE)),"",IF(AND('Weighting Factors'!H14>0,VLOOKUP($CZ14,'Audit Values'!$A$2:$BU$274,51,FALSE)<'Weighting Factors'!H14),'Weighting Factors'!H14,VLOOKUP($CZ14,'Audit Values'!$A$2:$BU$274,50,FALSE))) -> 17 | BD14: =IF(ISNA(VLOOKUP($CZ14,'Audit Values'!$A$2:$BV$447,2,FALSE)),"",VLOOKUP($CZ14,'Audit Values'!$A$2:$BV$447,51,FALSE)) -> A | BE14: =IF('Weighting Factors'!H14="","",IF('Weighting Factors'!J14="Pending","PX","R")) ->  | BF14: =SUM((S14+T14+Y14+AA14+AE14+AH14+AJ14++AO14+AP14+AQ14+AU14+AR14)*'Weighting Factors'!$Q$5)+'2020 Legal Max'!BA14+'2020 Legal Max'!BB14 -> 2593729 | BG14: =SUM((AV14+AR14)*'Weighting Factors'!$Q$5)+BA14+'2020 Legal Max'!BB14 -> 2881626 | BH14: =IF('Weighting Factors'!H14>0,'Weighting Factors'!H14,'Preliminary SO66'!AV13) -> 3106974 | BI14: 2881626 | BJ14: ='Weighting Factors'!G14 -> -74 | BK14: ='Weighting Factors'!F14 -> -46561 | BL14: ='Weighting Factors'!E14 -> 0 | BM14: -46635 | BN14: 2834991 | BO14: =SUM((S14+T14+Y14+AA14+AE14+AH14+AJ14++AO14+AP14+AQ14+AR14)*'Weighting Factors'!Q$12)+(MAX(AS14,'Weighting Factors'!B14)) -> 3220284 | BP14: ='LOB%'!F12 -> 0.3 | BQ14: 966085 | BR14: 1005056 | BS14: 966085 | BT14: 0.3 | BU14: 0 | BV14: FALSE | BW14: 0 | BX14: 0 | BY14: 0 | BZ14: TRUE | CA14: 24.75 | CB14: 0.477391 | CC14: 152.8 | CD14: 0 | CE14: 229 | CF14: 0.817 | CG14: =IF(CF14<0.06,1,IF(CF14>=18.29,52,MATCH(CF14-0.001,'Weighting Factors'!$Y$5:$Y$156)+1)) -> 30 | CH14: =VLOOKUP(CG14, 'Weighting Factors'!$W$5:$Z$56,4) -> 990 | CI14: =('Weighting Factors'!$Q$5/'Weighting Factors'!$Q$14) -> 1.0651 | CJ14: 185130 | CK14: =CJ14*'Weighting Factors'!$S$7 -> 185130 | CL14: 197182 | CM14: =AM14/'Weighting Factors'!$Q$5 -> 44.5 | CN14: 0 | CO14: 0 | CP14: 0 | CQ14: 0 | CR14: =SUM((AV14*'Weighting Factors'!$Q$5)+'2020 Legal Max'!BA14)*CQ14 -> 0 | CS14: 0 | CT14: 0.2918 | CU14: 0 | CV14: 0 | CW14: 649.6 | CX14: ='LOB Transfers'!G13 -> 69558 | CY14: ='LOB Transfers'!J13 -> 0 | CZ14: D0111
A15: 112 | B15: Ellsworth | C15: Central Plains | D15: 481.9 | E15: 0 | F15: 481.9 | G15: 457.1 | H15: 0 | I15: 457.1 | J15: 456 | K15: 0 | L15: 456 | M15: =IF(ISNA(VLOOKUP($CZ15,'Audit Values'!$A$2:$BW$496,2,FALSE)),'Preliminary SO66'!C14,VLOOKUP($CZ15,'Audit Values'!$A$2:$BW$496,73,FALSE)) -> 428 | N15: =IF(ISNA(VLOOKUP($CZ15,'Audit Values'!$A$2:$BW$496,2,FALSE)),'Preliminary SO66'!F14,VLOOKUP($CZ15,'Audit Values'!$A$2:$BW$496,4,FALSE)) -> 0 | O15: 428 | P15: =IF('Military Provision'!J16="YES", MAX('2020 Legal Max'!L15,'2020 Legal Max'!I15,AVERAGE('2020 Legal Max'!F15,'2020 Legal Max'!I15,'2020 Legal Max'!L15)), MAX(L15, I15)) -> 457.1 | Q15: =IF(ISNA(VLOOKUP($CZ15,'Audit Values'!$A$2:$BU$393,2,FALSE)),'Preliminary SO66'!AL14,VLOOKUP($CZ15,'Audit Values'!$A$2:$BU$393,58,FALSE)) -> 7.5 | R15: 0 | S15: 464.6 | T15: 199 | U15: =IF(ISNA(VLOOKUP($CZ15,'Audit Values'!$A$2:$BW$447,2,FALSE)),'Preliminary SO66'!AM14,VLOOKUP($CZ15,'Audit Values'!$A$2:$BW$447,62,FALSE)) -> 0 | V15: =(U15/6)*'Weighting Factors'!$Q$7 -> 0 | W15: =IF(ISNA(VLOOKUP($CZ15,'Audit Values'!$A$2:$BW$447,2,FALSE)),'Preliminary SO66'!AN14,VLOOKUP($CZ15,'Audit Values'!$A$2:$BW$447,61,FALSE)) -> 0 | X15: =W15*'Weighting Factors'!$Q$8 -> 0 | Y15: 0 | Z15: =IF(ISNA(VLOOKUP($CZ15,'Audit Values'!$A$2:$BW$447,2,FALSE)),'Preliminary SO66'!AO14,VLOOKUP($CZ15,'Audit Values'!$A$2:$BW$447,60,FALSE)) -> 101.6 | AA15: =Z15/6*'Weighting Factors'!$Q$6 -> 8.5 | AB15: =IF(ISNA(VLOOKUP($CZ15,'Audit Values'!$A$2:$BU$393,2,FALSE)),'Preliminary SO66'!AS14,VLOOKUP($CZ15,'Audit Values'!$A$2:$BU$393,63,FALSE)) -> 449 | AC15: 0 | AD15: =IF(ISNA(VLOOKUP($CZ15,'Audit Values'!$A$2:$BU$393,2,FALSE)),'Preliminary SO66'!AP14,VLOOKUP($CZ15,'Audit Values'!$A$2:$BU$393,64,FALSE)) -> 153 | AE15: =IF(A15=207, AD15,MAX(AC15,AD15))*'Weighting Factors'!$Q$9 -> 74.1 | AF15: 0 | AG15: =IF(ISNA(VLOOKUP($CZ15,'Audit Values'!$A$2:$BW$393,2,FALSE)),'Preliminary SO66'!AG14,VLOOKUP($CZ15,'Audit Values'!$A$2:$BW$393,70,FALSE)) -> 1.9 | AH15: 1.9 | AI15: =IF(ISNA(VLOOKUP($CZ15,'Audit Values'!$A$2:$BU$393,2,FALSE)),'Preliminary SO66'!AQ14,VLOOKUP($CZ15,'Audit Values'!$A$2:$BU$393,65,FALSE)) -> 0 | AJ15: =AI15*'Weighting Factors'!$Q$10 -> 0 | AK15: =IF(ISNA(VLOOKUP($CZ15,'Audit Values'!$A$2:$BU$393,2,FALSE)),'Preliminary SO66'!AR14,VLOOKUP($CZ15,'Audit Values'!$A$2:$BU$393,66,FALSE)) -> 214 | AM15: 262121 | AN15: 303538 | AO15: =MAX(AN15, AM15)/'Weighting Factors'!$Q$5 -> 68.4 | AP15: =CN15/'Weighting Factors'!$Q$5 -> 0 | AQ15: 0 | AR15: =CS15/'Weighting Factors'!$Q$5 -> 0 | AS15: 532320 | AT15: =AS15/'Weighting Factors'!$Q$5 -> 120 | AU15: =IF(ISNA(VLOOKUP($CZ15,'Audit Values'!$A$2:$BU$393,2,FALSE)),'Preliminary SO66'!X14,VLOOKUP($CZ15,'Audit Values'!$A$2:$BU$393,47,FALSE)) -> 0 | AV15: 936.5 | AW15: 816.5 | AX15: =IF(ISNA(VLOOKUP($CZ15,'Audit Values'!$A$2:$BU$393,2,FALSE)),'Preliminary SO66'!AA14,VLOOKUP($CZ15,'Audit Values'!$A$2:$BU$393,41,FALSE)) -> 9 | AY15: =IF(ISNA(VLOOKUP($CZ15,'Audit Values'!$A$2:$BU$393,2,FALSE)),'Preliminary SO66'!AB14,VLOOKUP($CZ15,'Audit Values'!$A$2:$BU$393,42,FALSE)) -> 0.4 | AZ15: 26.5 | BA15: =SUM(AX15*'Weighting Factors'!$T$10)+('2020 Legal Max'!AY15*'Weighting Factors'!$T$11)+('2020 Legal Max'!AZ15*'Weighting Factors'!$T$12) -> 64469 | BB15: 0 | BC15: =IF(ISNA(VLOOKUP($CZ15,'Audit Values'!$A$2:$BU$274,2,FALSE)),"",IF(AND('Weighting Factors'!H15>0,VLOOKUP($CZ15,'Audit Values'!$A$2:$BU$274,51,FALSE)<'Weighting Factors'!H15),'Weighting Factors'!H15,VLOOKUP($CZ15,'Audit Values'!$A$2:$BU$274,50,FALSE))) -> 22 | BD15: =IF(ISNA(VLOOKUP($CZ15,'Audit Values'!$A$2:$BV$447,2,FALSE)),"",VLOOKUP($CZ15,'Audit Values'!$A$2:$BV$447,51,FALSE)) -> A | BE15: =IF('Weighting Factors'!H15="","",IF('Weighting Factors'!J15="Pending","PX","R")) ->  | BF15: =SUM((S15+T15+Y15+AA15+AE15+AH15+AJ15++AO15+AP15+AQ15+AU15+AR15)*'Weighting Factors'!$Q$5)+'2020 Legal Max'!BA15+'2020 Legal Max'!BB15 -> 3686463 | BG15: =SUM((AV15+AR15)*'Weighting Factors'!$Q$5)+BA15+'2020 Legal Max'!BB15 -> 4218783 | BH15: =IF('Weighting Factors'!H15>0,'Weighting Factors'!H15,'Preliminary SO66'!AV14) -> 4966188 | BI15: 4218783 | BJ15: ='Weighting Factors'!G15 -> 0 | BK15: ='Weighting Factors'!F15 -> -8091 | BL15: ='Weighting Factors'!E15 -> -10635 | BM15: -18726 | BN15: 4200057 | BO15: =SUM((S15+T15+Y15+AA15+AE15+AH15+AJ15++AO15+AP15+AQ15+AR15)*'Weighting Factors'!Q$12)+(MAX(AS15,'Weighting Factors'!B15)) -> 4407583 | BP15: ='LOB%'!F13 -> 0.33 | BQ15: 1454502 | BR15: 1442469 | BS15: 1442469 | BT15: 0.3273 | BU15: 0 | BV15: FALSE | BW15: 0 | BX15: 0 | BY15: 0 | BZ15: TRUE | CA15: 203.6925 | CB15: 0.428264 | CC15: 199 | CD15: 0 | CE15: 582.8 | CF15: 0.367 | CG15: =IF(CF15<0.06,1,IF(CF15>=18.29,52,MATCH(CF15-0.001,'Weighting Factors'!$Y$5:$Y$156)+1)) -> 22 | CH15: =VLOOKUP(CG15, 'Weighting Factors'!$W$5:$Z$56,4) -> 1150 | CI15: =('Weighting Factors'!$Q$5/'Weighting Factors'!$Q$14) -> 1.0651 | CJ15: 246100 | CK15: =CJ15*'Weighting Factors'!$S$7 -> 246100 | CL15: 262121 | CM15: =AM15/'Weighting Factors'!$Q$5 -> 59.1 | CN15: 0 | CO15: 0 | CP15: 0 | CQ15: 0 | CR15: =SUM((AV15*'Weighting Factors'!$Q$5)+'2020 Legal Max'!BA15)*CQ15 -> 0 | CS15: 0 | CT15: 0.3408 | CU15: 0 | CV15: 0 | CW15: 936.5 | CX15: ='LOB Transfers'!G14 -> 115109 | CY15: ='LOB Transfers'!J14 -> 0 | CZ15: D0112
A16: 113 | B16: Nemaha | C16: Prairie Hills | D16: 1086.8 | E16: 0 | F16: 1086.8 | G16: 1050.1 | H16: 0 | I16: 1050.1 | J16: 1072.3 | K16: 0 | L16: 1072.3 | M16: =IF(ISNA(VLOOKUP($CZ16,'Audit Values'!$A$2:$BW$496,2,FALSE)),'Preliminary SO66'!C15,VLOOKUP($CZ16,'Audit Values'!$A$2:$BW$496,73,FALSE)) -> 1053.5 | N16: =IF(ISNA(VLOOKUP($CZ16,'Audit Values'!$A$2:$BW$496,2,FALSE)),'Preliminary SO66'!F15,VLOOKUP($CZ16,'Audit Values'!$A$2:$BW$496,4,FALSE)) -> 0 | O16: 1053.5 | P16: =IF('Military Provision'!J17="YES", MAX('2020 Legal Max'!L16,'2020 Legal Max'!I16,AVERAGE('2020 Legal Max'!F16,'2020 Legal Max'!I16,'2020 Legal Max'!L16)), MAX(L16, I16)) -> 1072.3 | Q16: =IF(ISNA(VLOOKUP($CZ16,'Audit Values'!$A$2:$BU$393,2,FALSE)),'Preliminary SO66'!AL15,VLOOKUP($CZ16,'Audit Values'!$A$2:$BU$393,58,FALSE)) -> 15 | R16: 0 | S16: 1087.3 | T16: 235.6 | U16: =IF(ISNA(VLOOKUP($CZ16,'Audit Values'!$A$2:$BW$447,2,FALSE)),'Preliminary SO66'!AM15,VLOOKUP($CZ16,'Audit Values'!$A$2:$BW$447,62,FALSE)) -> 0 | V16: =(U16/6)*'Weighting Factors'!$Q$7 -> 0 | W16: =IF(ISNA(VLOOKUP($CZ16,'Audit Values'!$A$2:$BW$447,2,FALSE)),'Preliminary SO66'!AN15,VLOOKUP($CZ16,'Audit Values'!$A$2:$BW$447,61,FALSE)) -> 0 | X16: =W16*'Weighting Factors'!$Q$8 -> 0 | Y16: 0 | Z16: =IF(ISNA(VLOOKUP($CZ16,'Audit Values'!$A$2:$BW$447,2,FALSE)),'Preliminary SO66'!AO15,VLOOKUP($CZ16,'Audit Values'!$A$2:$BW$447,60,FALSE)) -> 275.4 | AA16: =Z16/6*'Weighting Factors'!$Q$6 -> 23 | AB16: =IF(ISNA(VLOOKUP($CZ16,'Audit Values'!$A$2:$BU$393,2,FALSE)),'Preliminary SO66'!AS15,VLOOKUP($CZ16,'Audit Values'!$A$2:$BU$393,63,FALSE)) -> 1100 | AC16: 0 | AD16: =IF(ISNA(VLOOKUP($CZ16,'Audit Values'!$A$2:$BU$393,2,FALSE)),'Preliminary SO66'!AP15,VLOOKUP($CZ16,'Audit Values'!$A$2:$BU$393,64,FALSE)) -> 279 | AE16: =IF(A16=207, AD16,MAX(AC16,AD16))*'Weighting Factors'!$Q$9 -> 135 | AF16: 0 | AG16: =IF(ISNA(VLOOKUP($CZ16,'Audit Values'!$A$2:$BW$393,2,FALSE)),'Preliminary SO66'!AG15,VLOOKUP($CZ16,'Audit Values'!$A$2:$BW$393,70,FALSE)) -> 1 | AH16: 1 | AI16: =IF(ISNA(VLOOKUP($CZ16,'Audit Values'!$A$2:$BU$393,2,FALSE)),'Preliminary SO66'!AQ15,VLOOKUP($CZ16,'Audit Values'!$A$2:$BU$393,65,FALSE)) -> 0 | AJ16: =AI16*'Weighting Factors'!$Q$10 -> 0 | AK16: =IF(ISNA(VLOOKUP($CZ16,'Audit Values'!$A$2:$BU$393,2,FALSE)),'Preliminary SO66'!AR15,VLOOKUP($CZ16,'Audit Values'!$A$2:$BU$393,66,FALSE)) -> 371.5 | AM16: 407555 | AN16: 458388 | AO16: =MAX(AN16, AM16)/'Weighting Factors'!$Q$5 -> 103.3 | AP16: =CN16/'Weighting Factors'!$Q$5 -> 0 | AQ16: 0 | AR16: =CS16/'Weighting Factors'!$Q$5 -> 0 | AS16: 772022 | AT16: =AS16/'Weighting Factors'!$Q$5 -> 174 | AU16: =IF(ISNA(VLOOKUP($CZ16,'Audit Values'!$A$2:$BU$393,2,FALSE)),'Preliminary SO66'!X15,VLOOKUP($CZ16,'Audit Values'!$A$2:$BU$393,47,FALSE)) -> 1 | AV16: 1760.2 | AW16: 1586.2 | AX16: =IF(ISNA(VLOOKUP($CZ16,'Audit Values'!$A$2:$BU$393,2,FALSE)),'Preliminary SO66'!AA15,VLOOKUP($CZ16,'Audit Values'!$A$2:$BU$393,41,FALSE)) -> 0 | AY16: =IF(ISNA(VLOOKUP($CZ16,'Audit Values'!$A$2:$BU$393,2,FALSE)),'Preliminary SO66'!AB15,VLOOKUP($CZ16,'Audit Values'!$A$2:$BU$393,42,FALSE)) -> 0 | AZ16: 0 | BA16: =SUM(AX16*'Weighting Factors'!$T$10)+('2020 Legal Max'!AY16*'Weighting Factors'!$T$11)+('2020 Legal Max'!AZ16*'Weighting Factors'!$T$12) -> 0 | BB16: 0 | BC16: =IF(ISNA(VLOOKUP($CZ16,'Audit Values'!$A$2:$BU$274,2,FALSE)),"",IF(AND('Weighting Factors'!H16>0,VLOOKUP($CZ16,'Audit Values'!$A$2:$BU$274,51,FALSE)<'Weighting Factors'!H16),'Weighting Factors'!H16,VLOOKUP($CZ16,'Audit Values'!$A$2:$BU$274,50,FALSE))) -> 3 | BD16: =IF(ISNA(VLOOKUP($CZ16,'Audit Values'!$A$2:$BV$447,2,FALSE)),"",VLOOKUP($CZ16,'Audit Values'!$A$2:$BV$447,51,FALSE)) -> A | BE16: =IF('Weighting Factors'!H16="","",IF('Weighting Factors'!J16="Pending","PX","R")) ->  | BF16: =SUM((S16+T16+Y16+AA16+AE16+AH16+AJ16++AO16+AP16+AQ16+AU16+AR16)*'Weighting Factors'!$Q$5)+'2020 Legal Max'!BA16+'2020 Legal Max'!BB16 -> 7036383 | BG16: =SUM((AV16+AR16)*'Weighting Factors'!$Q$5)+BA16+'2020 Legal Max'!BB16 -> 7808247 | BH16: =IF('Weighting Factors'!H16>0,'Weighting Factors'!H16,'Preliminary SO66'!AV15) -> 7906726 | BI16: 7808247 | BJ16: ='Weighting Factors'!G16 -> 0 | BK16: ='Weighting Factors'!F16 -> 0 | BL16: ='Weighting Factors'!E16 -> 0 | BM16: 0 | BN16: 7808247 | BO16: =SUM((S16+T16+Y16+AA16+AE16+AH16+AJ16++AO16+AP16+AQ16+AR16)*'Weighting Factors'!Q$12)+(MAX(AS16,'Weighting Factors'!B16)) -> 8326135 | BP16: ='LOB%'!F14 -> 0.33 | BQ16: 2747625 | BR16: 2760109 | BS16: 2747625 | BT16: 0.33 | BU16: 0 | BV16: FALSE | BW16: 0 | BX16: 0 | BY16: 0 | BZ16: TRUE | CA16: 974.2838 | CB16: 0.216702 | CC16: 235.6 | CD16: 0 | CE16: 543 | CF16: 0.684 | CG16: =IF(CF16<0.06,1,IF(CF16>=18.29,52,MATCH(CF16-0.001,'Weighting Factors'!$Y$5:$Y$156)+1)) -> 28 | CH16: =VLOOKUP(CG16, 'Weighting Factors'!$W$5:$Z$56,4) -> 1030 | CI16: =('Weighting Factors'!$Q$5/'Weighting Factors'!$Q$14) -> 1.0651 | CJ16: 382645 | CK16: =CJ16*'Weighting Factors'!$S$7 -> 382645 | CL16: 407555 | CM16: =AM16/'Weighting Factors'!$Q$5 -> 91.9 | CN16: 0 | CO16: 0 | CP16: 0 | CQ16: 0 | CR16: =SUM((AV16*'Weighting Factors'!$Q$5)+'2020 Legal Max'!BA16)*CQ16 -> 0 | CS16: 0 | CT16: 0.2536 | CU16: 0 | CV16: 0 | CW16: 1760.2 | CX16: ='LOB Transfers'!G15 -> 212666 | CY16: ='LOB Transfers'!J15 -> 0 | CZ16: D0113
A17: 114 | B17: Doniphan | C17: Riverside | D17: 584.7 | E17: 0 | F17: 584.7 | G17: 588.5 | H17: 0 | I17: 588.5 | J17: 580 | K17: 0 | L17: 580 | M17: =IF(ISNA(VLOOKUP($CZ17,'Audit Values'!$A$2:$BW$496,2,FALSE)),'Preliminary SO66'!C16,VLOOKUP($CZ17,'Audit Values'!$A$2:$BW$496,73,FALSE)) -> 563.4 | N17: =IF(ISNA(VLOOKUP($CZ17,'Audit Values'!$A$2:$BW$496,2,FALSE)),'Preliminary SO66'!F16,VLOOKUP($CZ17,'Audit Values'!$A$2:$BW$496,4,FALSE)) -> 0 | O17: 563.4 | P17: =IF('Military Provision'!J18="YES", MAX('2020 Legal Max'!L17,'2020 Legal Max'!I17,AVERAGE('2020 Legal Max'!F17,'2020 Legal Max'!I17,'2020 Legal Max'!L17)), MAX(L17, I17)) -> 588.5 | Q17: =IF(ISNA(VLOOKUP($CZ17,'Audit Values'!$A$2:$BU$393,2,FALSE)),'Preliminary SO66'!AL16,VLOOKUP($CZ17,'Audit Values'!$A$2:$BU$393,58,FALSE)) -> 8.5 | R17: 0 | S17: 597 | T17: 228.8 | U17: =IF(ISNA(VLOOKUP($CZ17,'Audit Values'!$A$2:$BW$447,2,FALSE)),'Preliminary SO66'!AM16,VLOOKUP($CZ17,'Audit Values'!$A$2:$BW$447,62,FALSE)) -> 0 | V17: =(U17/6)*'Weighting Factors'!$Q$7 -> 0 | W17: =IF(ISNA(VLOOKUP($CZ17,'Audit Values'!$A$2:$BW$447,2,FALSE)),'Preliminary SO66'!AN16,VLOOKUP($CZ17,'Audit Values'!$A$2:$BW$447,61,FALSE)) -> 0 | X17: =W17*'Weighting Factors'!$Q$8 -> 0 | Y17: 0 | Z17: =IF(ISNA(VLOOKUP($CZ17,'Audit Values'!$A$2:$BW$447,2,FALSE)),'Preliminary SO66'!AO16,VLOOKUP($CZ17,'Audit Values'!$A$2:$BW$447,60,FALSE)) -> 188 | AA17: =Z17/6*'Weighting Factors'!$Q$6 -> 15.7 | AB17: =IF(ISNA(VLOOKUP($CZ17,'Audit Values'!$A$2:$BU$393,2,FALSE)),'Preliminary SO66'!AS16,VLOOKUP($CZ17,'Audit Values'!$A$2:$BU$393,63,FALSE)) -> 594 | AC17: 0 | AD17: =IF(ISNA(VLOOKUP($CZ17,'Audit Values'!$A$2:$BU$393,2,FALSE)),'Preliminary SO66'!AP16,VLOOKUP($CZ17,'Audit Values'!$A$2:$BU$393,64,FALSE)) -> 258 | AE17: =IF(A17=207, AD17,MAX(AC17,AD17))*'Weighting Factors'!$Q$9 -> 124.9 | AF17: 15.2 | AG17: =IF(ISNA(VLOOKUP($CZ17,'Audit Values'!$A$2:$BW$393,2,FALSE)),'Preliminary SO66'!AG16,VLOOKUP($CZ17,'Audit Values'!$A$2:$BW$393,70,FALSE)) -> 16.1 | AH17: 16.1 | AI17: =IF(ISNA(VLOOKUP($CZ17,'Audit Values'!$A$2:$BU$393,2,FALSE)),'Preliminary SO66'!AQ16,VLOOKUP($CZ17,'Audit Values'!$A$2:$BU$393,65,FALSE)) -> 0 | AJ17: =AI17*'Weighting Factors'!$Q$10 -> 0 | AK17: =IF(ISNA(VLOOKUP($CZ17,'Audit Values'!$A$2:$BU$393,2,FALSE)),'Preliminary SO66'!AR16,VLOOKUP($CZ17,'Audit Values'!$A$2:$BU$393,66,FALSE)) -> 321 | AM17: 256423 | AN17: 227268 | AO17: =MAX(AN17, AM17)/'Weighting Factors'!$Q$5 -> 57.8 | AP17: =CN17/'Weighting Factors'!$Q$5 -> 0 | AQ17: 0 | AR17: =CS17/'Weighting Factors'!$Q$5 -> 0 | AS17: 651002 | AT17: =AS17/'Weighting Factors'!$Q$5 -> 146.8 | AU17: =IF(ISNA(VLOOKUP($CZ17,'Audit Values'!$A$2:$BU$393,2,FALSE)),'Preliminary SO66'!X16,VLOOKUP($CZ17,'Audit Values'!$A$2:$BU$393,47,FALSE)) -> 0 | AV17: 1187.1 | AW17: 1040.3 | AX17: =IF(ISNA(VLOOKUP($CZ17,'Audit Values'!$A$2:$BU$393,2,FALSE)),'Preliminary SO66'!AA16,VLOOKUP($CZ17,'Audit Values'!$A$2:$BU$393,41,FALSE)) -> 4 | AY17: =IF(ISNA(VLOOKUP($CZ17,'Audit Values'!$A$2:$BU$393,2,FALSE)),'Preliminary SO66'!AB16,VLOOKUP($CZ17,'Audit Values'!$A$2:$BU$393,42,FALSE)) -> 0 | AZ17: 14 | BA17: =SUM(AX17*'Weighting Factors'!$T$10)+('2020 Legal Max'!AY17*'Weighting Factors'!$T$11)+('2020 Legal Max'!AZ17*'Weighting Factors'!$T$12) -> 29926 | BB17: 0 | BC17: 29 | BD17: =IF(ISNA(VLOOKUP($CZ17,'Audit Values'!$A$2:$BV$447,2,FALSE)),"",VLOOKUP($CZ17,'Audit Values'!$A$2:$BV$447,51,FALSE)) -> A | BE17: =IF('Weighting Factors'!H17="","",IF('Weighting Factors'!J17="Pending","PX","R")) ->  | BF17: =SUM((S17+T17+Y17+AA17+AE17+AH17+AJ17++AO17+AP17+AQ17+AU17+AR17)*'Weighting Factors'!$Q$5)+'2020 Legal Max'!BA17+'2020 Legal Max'!BB17 -> 4644697 | BG17: =SUM((AV17+AR17)*'Weighting Factors'!$Q$5)+BA17+'2020 Legal Max'!BB17 -> 5295902 | BH17: =IF('Weighting Factors'!H17>0,'Weighting Factors'!H17,'Preliminary SO66'!AV16) -> 5392913 | BI17: 5295902 | BJ17: ='Weighting Factors'!G17 -> 0 | BK17: ='Weighting Factors'!F17 -> 0 | BL17: ='Weighting Factors'!E17 -> 0 | BM17: 0 | BN17: 5295902 | BO17: =SUM((S17+T17+Y17+AA17+AE17+AH17+AJ17++AO17+AP17+AQ17+AR17)*'Weighting Factors'!Q$12)+(MAX(AS17,'Weighting Factors'!B17)) -> 5392689 | BP17: ='LOB%'!F15 -> 0.3 | BQ17: 1617807 | BR17: 1647093 | BS17: 1617807 | BT17: 0.3 | BU17: 0 | BV17: FALSE | BW17: 0 | BX17: 0 | BY17: 0 | BZ17: TRUE | CA17: 367.5375 | CB17: 0.383281 | CC17: 228.8 | CD17: 0 | CE17: 88 | CF17: 3.648 | CG17: =IF(CF17<0.06,1,IF(CF17>=18.29,52,MATCH(CF17-0.001,'Weighting Factors'!$Y$5:$Y$156)+1)) -> 42 | CH17: =VLOOKUP(CG17, 'Weighting Factors'!$W$5:$Z$56,4) -> 750 | CI17: =('Weighting Factors'!$Q$5/'Weighting Factors'!$Q$14) -> 1.0651 | CJ17: 240750 | CK17: =CJ17*'Weighting Factors'!$S$7 -> 240750 | CL17: 256423 | CM17: =AM17/'Weighting Factors'!$Q$5 -> 57.8 | CN17: 0 | CO17: 0 | CP17: 0 | CQ17: 0 | CR17: =SUM((AV17*'Weighting Factors'!$Q$5)+'2020 Legal Max'!BA17)*CQ17 -> 0 | CS17: 0 | CT17: 0.4343 | CU17: 0 | CV17: 15.2 | CW17: 1187.1 | CX17: ='LOB Transfers'!G16 -> 171488 | CY17: ='LOB Transfers'!J16 -> 0 | CZ17: D0114
A18: 115 | B18: Nemaha | C18: Nemaha Central | D18: 560.3 | E18: 0 | F18: 560.3 | G18: 555.2 | H18: 0 | I18: 555.2 | J18: 564.4 | K18: 0 | L18: 564.4 | M18: =IF(ISNA(VLOOKUP($CZ18,'Audit Values'!$A$2:$BW$496,2,FALSE)),'Preliminary SO66'!C17,VLOOKUP($CZ18,'Audit Values'!$A$2:$BW$496,73,FALSE)) -> 595.3 | N18: =IF(ISNA(VLOOKUP($CZ18,'Audit Values'!$A$2:$BW$496,2,FALSE)),'Preliminary SO66'!F17,VLOOKUP($CZ18,'Audit Values'!$A$2:$BW$496,4,FALSE)) -> 0 | O18: 595.3 | P18: =IF('Military Provision'!J19="YES", MAX('2020 Legal Max'!L18,'2020 Legal Max'!I18,AVERAGE('2020 Legal Max'!F18,'2020 Legal Max'!I18,'2020 Legal Max'!L18)), MAX(L18, I18)) -> 564.4 | Q18: =IF(ISNA(VLOOKUP($CZ18,'Audit Values'!$A$2:$BU$393,2,FALSE)),'Preliminary SO66'!AL17,VLOOKUP($CZ18,'Audit Values'!$A$2:$BU$393,58,FALSE)) -> 13.5 | R18: 0 | S18: 577.9 | T18: 225.2 | U18: =IF(ISNA(VLOOKUP($CZ18,'Audit Values'!$A$2:$BW$447,2,FALSE)),'Preliminary SO66'!AM17,VLOOKUP($CZ18,'Audit Values'!$A$2:$BW$447,62,FALSE)) -> 0 | V18: =(U18/6)*'Weighting Factors'!$Q$7 -> 0 | W18: =IF(ISNA(VLOOKUP($CZ18,'Audit Values'!$A$2:$BW$447,2,FALSE)),'Preliminary SO66'!AN17,VLOOKUP($CZ18,'Audit Values'!$A$2:$BW$447,61,FALSE)) -> 16 | X18: =W18*'Weighting Factors'!$Q$8 -> 3 | Y18: 3 | Z18: =IF(ISNA(VLOOKUP($CZ18,'Audit Values'!$A$2:$BW$447,2,FALSE)),'Preliminary SO66'!AO17,VLOOKUP($CZ18,'Audit Values'!$A$2:$BW$447,60,FALSE)) -> 171.6 | AA18: =Z18/6*'Weighting Factors'!$Q$6 -> 14.3 | AB18: =IF(ISNA(VLOOKUP($CZ18,'Audit Values'!$A$2:$BU$393,2,FALSE)),'Preliminary SO66'!AS17,VLOOKUP($CZ18,'Audit Values'!$A$2:$BU$393,63,FALSE)) -> 649 | AC18: 0 | AD18: =IF(ISNA(VLOOKUP($CZ18,'Audit Values'!$A$2:$BU$393,2,FALSE)),'Preliminary SO66'!AP17,VLOOKUP($CZ18,'Audit Values'!$A$2:$BU$393,64,FALSE)) -> 123 | AE18: =IF(A18=207, AD18,MAX(AC18,AD18))*'Weighting Factors'!$Q$9 -> 59.5 | AF18: 0 | AG18: =IF(ISNA(VLOOKUP($CZ18,'Audit Values'!$A$2:$BW$393,2,FALSE)),'Preliminary SO66'!AG17,VLOOKUP($CZ18,'Audit Values'!$A$2:$BW$393,70,FALSE)) -> 0 | AH18: 0 | AI18: =IF(ISNA(VLOOKUP($CZ18,'Audit Values'!$A$2:$BU$393,2,FALSE)),'Preliminary SO66'!AQ17,VLOOKUP($CZ18,'Audit Values'!$A$2:$BU$393,65,FALSE)) -> 0 | AJ18: =AI18*'Weighting Factors'!$Q$10 -> 0 | AK18: =IF(ISNA(VLOOKUP($CZ18,'Audit Values'!$A$2:$BU$393,2,FALSE)),'Preliminary SO66'!AR17,VLOOKUP($CZ18,'Audit Values'!$A$2:$BU$393,66,FALSE)) -> 221.2 | AM18: 223820 | AN18: 225342 | AO18: =MAX(AN18, AM18)/'Weighting Factors'!$Q$5 -> 50.8 | AP18: =CN18/'Weighting Factors'!$Q$5 -> 0 | AQ18: 0 | AR18: =CS18/'Weighting Factors'!$Q$5 -> 0 | AS18: 475199 | AT18: =AS18/'Weighting Factors'!$Q$5 -> 107.1 | AU18: =IF(ISNA(VLOOKUP($CZ18,'Audit Values'!$A$2:$BU$393,2,FALSE)),'Preliminary SO66'!X17,VLOOKUP($CZ18,'Audit Values'!$A$2:$BU$393,47,FALSE)) -> 0 | AV18: 1037.8 | AW18: 930.7 | AX18: =IF(ISNA(VLOOKUP($CZ18,'Audit Values'!$A$2:$BU$393,2,FALSE)),'Preliminary SO66'!AA17,VLOOKUP($CZ18,'Audit Values'!$A$2:$BU$393,41,FALSE)) -> 0 | AY18: =IF(ISNA(VLOOKUP($CZ18,'Audit Values'!$A$2:$BU$393,2,FALSE)),'Preliminary SO66'!AB17,VLOOKUP($CZ18,'Audit Values'!$A$2:$BU$393,42,FALSE)) -> 0 | AZ18: 0 | BA18: =SUM(AX18*'Weighting Factors'!$T$10)+('2020 Legal Max'!AY18*'Weighting Factors'!$T$11)+('2020 Legal Max'!AZ18*'Weighting Factors'!$T$12) -> 0 | BB18: 0 | BC18: =IF(ISNA(VLOOKUP($CZ18,'Audit Values'!$A$2:$BU$274,2,FALSE)),"",IF(AND('Weighting Factors'!H18>0,VLOOKUP($CZ18,'Audit Values'!$A$2:$BU$274,51,FALSE)<'Weighting Factors'!H18),'Weighting Factors'!H18,VLOOKUP($CZ18,'Audit Values'!$A$2:$BU$274,50,FALSE))) -> 16 | BD18: =IF(ISNA(VLOOKUP($CZ18,'Audit Values'!$A$2:$BV$447,2,FALSE)),"",VLOOKUP($CZ18,'Audit Values'!$A$2:$BV$447,51,FALSE)) -> A | BE18: =IF('Weighting Factors'!H18="","",IF('Weighting Factors'!J18="Pending","PX","R")) ->  | BF18: =SUM((S18+T18+Y18+AA18+AE18+AH18+AJ18++AO18+AP18+AQ18+AU18+AR18)*'Weighting Factors'!$Q$5)+'2020 Legal Max'!BA18+'2020 Legal Max'!BB18 -> 4128585 | BG18: =SUM((AV18+AR18)*'Weighting Factors'!$Q$5)+BA18+'2020 Legal Max'!BB18 -> 4603681 | BH18: =IF('Weighting Factors'!H18>0,'Weighting Factors'!H18,'Preliminary SO66'!AV17) -> 4712363 | BI18: 4603681 | BJ18: ='Weighting Factors'!G18 -> 0 | BK18: ='Weighting Factors'!F18 -> 0 | BL18: ='Weighting Factors'!E18 -> 0 | BM18: 0 | BN18: 4603681 | BO18: =SUM((S18+T18+Y18+AA18+AE18+AH18+AJ18++AO18+AP18+AQ18+AR18)*'Weighting Factors'!Q$12)+(MAX(AS18,'Weighting Factors'!B18)) -> 4819364 | BP18: ='LOB%'!F16 -> 0.3 | BQ18: 1445809 | BR18: 1447713 | BS18: 1445809 | BT18: 0.3 | BU18: 0 | BV18: FALSE | BW18: 0 | BX18: 0 | BY18: 0 | BZ18: TRUE | CA18: 343.9013 | CB18: 0.38977 | CC18: 225.2 | CD18: 0 | CE18: 222 | CF18: 0.996 | CG18: =IF(CF18<0.06,1,IF(CF18>=18.29,52,MATCH(CF18-0.001,'Weighting Factors'!$Y$5:$Y$156)+1)) -> 32 | CH18: =VLOOKUP(CG18, 'Weighting Factors'!$W$5:$Z$56,4) -> 950 | CI18: =('Weighting Factors'!$Q$5/'Weighting Factors'!$Q$14) -> 1.0651 | CJ18: 210140 | CK18: =CJ18*'Weighting Factors'!$S$7 -> 210140 | CL18: 223820 | CM18: =AM18/'Weighting Factors'!$Q$5 -> 50.5 | CN18: 0 | CO18: 0 | CP18: 0 | CQ18: 0 | CR18: =SUM((AV18*'Weighting Factors'!$Q$5)+'2020 Legal Max'!BA18)*CQ18 -> 0 | CS18: 0 | CT18: 0.1895 | CU18: 0 | CV18: 0 | CW18: 1037.8 | CX18: ='LOB Transfers'!G17 -> 84002 | CY18: ='LOB Transfers'!J17 -> 4193 | CZ18: D0115
A19: 200 | B19: Greeley | C19: Greeley County Schools | D19: 243.3 | E19: 0 | F19: 243.3 | G19: 253.1 | H19: 0 | I19: 253.1 | J19: 250 | K19: 0 | L19: 250 | M19: =IF(ISNA(VLOOKUP($CZ19,'Audit Values'!$A$2:$BW$496,2,FALSE)),'Preliminary SO66'!C18,VLOOKUP($CZ19,'Audit Values'!$A$2:$BW$496,73,FALSE)) -> 234.2 | N19: =IF(ISNA(VLOOKUP($CZ19,'Audit Values'!$A$2:$BW$496,2,FALSE)),'Preliminary SO66'!F18,VLOOKUP($CZ19,'Audit Values'!$A$2:$BW$496,4,FALSE)) -> 0 | O19: 234.2 | P19: =IF('Military Provision'!J20="YES", MAX('2020 Legal Max'!L19,'2020 Legal Max'!I19,AVERAGE('2020 Legal Max'!F19,'2020 Legal Max'!I19,'2020 Legal Max'!L19)), MAX(L19, I19)) -> 253.1 | Q19: =IF(ISNA(VLOOKUP($CZ19,'Audit Values'!$A$2:$BU$393,2,FALSE)),'Preliminary SO66'!AL18,VLOOKUP($CZ19,'Audit Values'!$A$2:$BU$393,58,FALSE)) -> 2 | R19: 0 | S19: 255.1 | T19: 153.9 | U19: =IF(ISNA(VLOOKUP($CZ19,'Audit Values'!$A$2:$BW$447,2,FALSE)),'Preliminary SO66'!AM18,VLOOKUP($CZ19,'Audit Values'!$A$2:$BW$447,62,FALSE)) -> 75.6 | V19: =(U19/6)*'Weighting Factors'!$Q$7 -> 5 | W19: =IF(ISNA(VLOOKUP($CZ19,'Audit Values'!$A$2:$BW$447,2,FALSE)),'Preliminary SO66'!AN18,VLOOKUP($CZ19,'Audit Values'!$A$2:$BW$447,61,FALSE)) -> 48 | X19: =W19*'Weighting Factors'!$Q$8 -> 8.9 | Y19: 8.9 | Z19: =IF(ISNA(VLOOKUP($CZ19,'Audit Values'!$A$2:$BW$447,2,FALSE)),'Preliminary SO66'!AO18,VLOOKUP($CZ19,'Audit Values'!$A$2:$BW$447,60,FALSE)) -> 34.2 | AA19: =Z19/6*'Weighting Factors'!$Q$6 -> 2.9 | AB19: =IF(ISNA(VLOOKUP($CZ19,'Audit Values'!$A$2:$BU$393,2,FALSE)),'Preliminary SO66'!AS18,VLOOKUP($CZ19,'Audit Values'!$A$2:$BU$393,63,FALSE)) -> 240 | AC19: 0 | AD19: =IF(ISNA(VLOOKUP($CZ19,'Audit Values'!$A$2:$BU$393,2,FALSE)),'Preliminary SO66'!AP18,VLOOKUP($CZ19,'Audit Values'!$A$2:$BU$393,64,FALSE)) -> 81 | AE19: =IF(A19=207, AD19,MAX(AC19,AD19))*'Weighting Factors'!$Q$9 -> 39.2 | AF19: 0 | AG19: =IF(ISNA(VLOOKUP($CZ19,'Audit Values'!$A$2:$BW$393,2,FALSE)),'Preliminary SO66'!AG18,VLOOKUP($CZ19,'Audit Values'!$A$2:$BW$393,70,FALSE)) -> 0.4 | AH19: 0.4 | AI19: =IF(ISNA(VLOOKUP($CZ19,'Audit Values'!$A$2:$BU$393,2,FALSE)),'Preliminary SO66'!AQ18,VLOOKUP($CZ19,'Audit Values'!$A$2:$BU$393,65,FALSE)) -> 0 | AJ19: =AI19*'Weighting Factors'!$Q$10 -> 0 | AK19: =IF(ISNA(VLOOKUP($CZ19,'Audit Values'!$A$2:$BU$393,2,FALSE)),'Preliminary SO66'!AR18,VLOOKUP($CZ19,'Audit Values'!$A$2:$BU$393,66,FALSE)) -> 79 | AM19: 122007 | AN19: 124420 | AO19: =MAX(AN19, AM19)/'Weighting Factors'!$Q$5 -> 28 | AP19: =CN19/'Weighting Factors'!$Q$5 -> 0 | AQ19: 0 | AR19: =CS19/'Weighting Factors'!$Q$5 -> 0 | AS19: 159130 | AT19: =AS19/'Weighting Factors'!$Q$5 -> 35.9 | AU19: =IF(ISNA(VLOOKUP($CZ19,'Audit Values'!$A$2:$BU$393,2,FALSE)),'Preliminary SO66'!X18,VLOOKUP($CZ19,'Audit Values'!$A$2:$BU$393,47,FALSE)) -> 0 | AV19: 524.3 | AW19: 488.4 | AX19: =IF(ISNA(VLOOKUP($CZ19,'Audit Values'!$A$2:$BU$393,2,FALSE)),'Preliminary SO66'!AA18,VLOOKUP($CZ19,'Audit Values'!$A$2:$BU$393,41,FALSE)) -> 0 | AY19: =IF(ISNA(VLOOKUP($CZ19,'Audit Values'!$A$2:$BU$393,2,FALSE)),'Preliminary SO66'!AB18,VLOOKUP($CZ19,'Audit Values'!$A$2:$BU$393,42,FALSE)) -> 0 | AZ19: 0 | BA19: =SUM(AX19*'Weighting Factors'!$T$10)+('2020 Legal Max'!AY19*'Weighting Factors'!$T$11)+('2020 Legal Max'!AZ19*'Weighting Factors'!$T$12) -> 0 | BB19: 0 | BC19: =IF(ISNA(VLOOKUP($CZ19,'Audit Values'!$A$2:$BU$274,2,FALSE)),"",IF(AND('Weighting Factors'!H19>0,VLOOKUP($CZ19,'Audit Values'!$A$2:$BU$274,51,FALSE)<'Weighting Factors'!H19),'Weighting Factors'!H19,VLOOKUP($CZ19,'Audit Values'!$A$2:$BU$274,50,FALSE))) -> 9 | BD19: =IF(ISNA(VLOOKUP($CZ19,'Audit Values'!$A$2:$BV$447,2,FALSE)),"",VLOOKUP($CZ19,'Audit Values'!$A$2:$BV$447,51,FALSE)) -> A | BE19: =IF('Weighting Factors'!H19="","",IF('Weighting Factors'!J19="Pending","PX","R")) ->  | BF19: =SUM((S19+T19+Y19+AA19+AE19+AH19+AJ19++AO19+AP19+AQ19+AU19+AR19)*'Weighting Factors'!$Q$5)+'2020 Legal Max'!BA19+'2020 Legal Max'!BB19 -> 2166542 | BG19: =SUM((AV19+AR19)*'Weighting Factors'!$Q$5)+BA19+'2020 Legal Max'!BB19 -> 2325795 | BH19: =IF('Weighting Factors'!H19>0,'Weighting Factors'!H19,'Preliminary SO66'!AV18) -> 2484604 | BI19: 2325795 | BJ19: ='Weighting Factors'!G19 -> 0 | BK19: ='Weighting Factors'!F19 -> 0 | BL19: ='Weighting Factors'!E19 -> 0 | BM19: 0 | BN19: 2325795 | BO19: =SUM((S19+T19+Y19+AA19+AE19+AH19+AJ19++AO19+AP19+AQ19+AR19)*'Weighting Factors'!Q$12)+(MAX(AS19,'Weighting Factors'!B19)) -> 2391978 | BP19: ='LOB%'!F17 -> 0.3 | BQ19: 717593 | BR19: 764422 | BS19: 717593 | BT19: 0.3 | BU19: 0 | BV19: TRUE | BW19: 1497.491 | BX19: 0.603204 | BY19: 153.9 | BZ19: FALSE | CA19: 0 | CB19: 0 | CC19: 0 | CD19: 0 | CE19: 780 | CF19: 0.101 | CG19: =IF(CF19<0.06,1,IF(CF19>=18.29,52,MATCH(CF19-0.001,'Weighting Factors'!$Y$5:$Y$156)+1)) -> 6 | CH19: =VLOOKUP(CG19, 'Weighting Factors'!$W$5:$Z$56,4) -> 1450 | CI19: =('Weighting Factors'!$Q$5/'Weighting Factors'!$Q$14) -> 1.0651 | CJ19: 114550 | CK19: =CJ19*'Weighting Factors'!$S$7 -> 114550 | CL19: 122007 | CM19: =AM19/'Weighting Factors'!$Q$5 -> 27.5 | CN19: 0 | CO19: 0 | CP19: 0 | CQ19: 0 | CR19: =SUM((AV19*'Weighting Factors'!$Q$5)+'2020 Legal Max'!BA19)*CQ19 -> 0 | CS19: 0 | CT19: 0.3375 | CU19: 0 | CV19: 0 | CW19: 524.3 | CX19: ='LOB Transfers'!G18 -> 53891 | CY19: ='LOB Transfers'!J18 -> 12199 | CZ19: D0200
A20: 202 | B20: Wyandotte | C20: Turner-Kansas City | D20: 3906.9 | E20: 0 | F20: 3906.9 | G20: 3956 | H20: 0 | I20: 3956 | J20: 3899.5 | K20: 0 | L20: 3899.5 | M20: =IF(ISNA(VLOOKUP($CZ20,'Audit Values'!$A$2:$BW$496,2,FALSE)),'Preliminary SO66'!C19,VLOOKUP($CZ20,'Audit Values'!$A$2:$BW$496,73,FALSE)) -> 3839.8 | N20: =IF(ISNA(VLOOKUP($CZ20,'Audit Values'!$A$2:$BW$496,2,FALSE)),'Preliminary SO66'!F19,VLOOKUP($CZ20,'Audit Values'!$A$2:$BW$496,4,FALSE)) -> 0 | O20: 3839.8 | P20: =IF('Military Provision'!J21="YES", MAX('2020 Legal Max'!L20,'2020 Legal Max'!I20,AVERAGE('2020 Legal Max'!F20,'2020 Legal Max'!I20,'2020 Legal Max'!L20)), MAX(L20, I20)) -> 3956 | Q20: =IF(ISNA(VLOOKUP($CZ20,'Audit Values'!$A$2:$BU$393,2,FALSE)),'Preliminary SO66'!AL19,VLOOKUP($CZ20,'Audit Values'!$A$2:$BU$393,58,FALSE)) -> 77.5 | R20: 0 | S20: =P20+Q20 -> 4033.5 | T20: 141.3 | U20: =IF(ISNA(VLOOKUP($CZ20,'Audit Values'!$A$2:$BW$447,2,FALSE)),'Preliminary SO66'!AM19,VLOOKUP($CZ20,'Audit Values'!$A$2:$BW$447,62,FALSE)) -> 1927.9 | V20: =(U20/6)*'Weighting Factors'!$Q$7 -> 126.9 | W20: =IF(ISNA(VLOOKUP($CZ20,'Audit Values'!$A$2:$BW$447,2,FALSE)),'Preliminary SO66'!AN19,VLOOKUP($CZ20,'Audit Values'!$A$2:$BW$447,61,FALSE)) -> 868 | X20: =W20*'Weighting Factors'!$Q$8 -> 160.6 | Y20: 160.6 | Z20: =IF(ISNA(VLOOKUP($CZ20,'Audit Values'!$A$2:$BW$447,2,FALSE)),'Preliminary SO66'!AO19,VLOOKUP($CZ20,'Audit Values'!$A$2:$BW$447,60,FALSE)) -> 1018.2 | AA20: =Z20/6*'Weighting Factors'!$Q$6 -> 84.9 | AB20: =IF(ISNA(VLOOKUP($CZ20,'Audit Values'!$A$2:$BU$393,2,FALSE)),'Preliminary SO66'!AS19,VLOOKUP($CZ20,'Audit Values'!$A$2:$BU$393,63,FALSE)) -> 4015 | AC20: 0 | AD20: =IF(ISNA(VLOOKUP($CZ20,'Audit Values'!$A$2:$BU$393,2,FALSE)),'Preliminary SO66'!AP19,VLOOKUP($CZ20,'Audit Values'!$A$2:$BU$393,64,FALSE)) -> 2439 | AE20: =IF(A20=207, AD20,MAX(AC20,AD20))*'Weighting Factors'!$Q$9 -> 1180.5 | AF20: 256.1 | AG20: =IF(ISNA(VLOOKUP($CZ20,'Audit Values'!$A$2:$BW$393,2,FALSE)),'Preliminary SO66'!AG19,VLOOKUP($CZ20,'Audit Values'!$A$2:$BW$393,70,FALSE)) -> 256.1 | AH20: 256.1 | AI20: =IF(ISNA(VLOOKUP($CZ20,'Audit Values'!$A$2:$BU$393,2,FALSE)),'Preliminary SO66'!AQ19,VLOOKUP($CZ20,'Audit Values'!$A$2:$BU$393,65,FALSE)) -> 0 | AJ20: =AI20*'Weighting Factors'!$Q$10 -> 0 | AK20: =IF(ISNA(VLOOKUP($CZ20,'Audit Values'!$A$2:$BU$393,2,FALSE)),'Preliminary SO66'!AR19,VLOOKUP($CZ20,'Audit Values'!$A$2:$BU$393,66,FALSE)) -> 1127 | AM20: 660202 | AN20: 671789 | AO20: =MAX(AN20, AM20)/'Weighting Factors'!$Q$5 -> 151.4 | AP20: =CN20/'Weighting Factors'!$Q$5 -> 0 | AQ20: 0 | AR20: =CS20/'Weighting Factors'!$Q$5 -> 0 | AS20: 3304009 | AT20: =AS20/'Weighting Factors'!$Q$5 -> 744.8 | AU20: =IF(ISNA(VLOOKUP($CZ20,'Audit Values'!$A$2:$BU$393,2,FALSE)),'Preliminary SO66'!X19,VLOOKUP($CZ20,'Audit Values'!$A$2:$BU$393,47,FALSE)) -> 6 | AV20: 6759.1 | AW20: 6014.3 | AX20: =IF(ISNA(VLOOKUP($CZ20,'Audit Values'!$A$2:$BU$393,2,FALSE)),'Preliminary SO66'!AA19,VLOOKUP($CZ20,'Audit Values'!$A$2:$BU$393,41,FALSE)) -> 6 | AY20: =IF(ISNA(VLOOKUP($CZ20,'Audit Values'!$A$2:$BU$393,2,FALSE)),'Preliminary SO66'!AB19,VLOOKUP($CZ20,'Audit Values'!$A$2:$BU$393,42,FALSE)) -> 0.7 | AZ20: 82.5 | BA20: =SUM(AX20*'Weighting Factors'!$T$10)+('2020 Legal Max'!AY20*'Weighting Factors'!$T$11)+('2020 Legal Max'!AZ20*'Weighting Factors'!$T$12) -> 89683 | BB20: 0 | BC20: =IF(ISNA(VLOOKUP($CZ20,'Audit Values'!$A$2:$BU$274,2,FALSE)),"",IF(AND('Weighting Factors'!H20>0,VLOOKUP($CZ20,'Audit Values'!$A$2:$BU$274,51,FALSE)<'Weighting Factors'!H20),'Weighting Factors'!H20,VLOOKUP($CZ20,'Audit Values'!$A$2:$BU$274,50,FALSE))) -> 3 | BD20: =IF(ISNA(VLOOKUP($CZ20,'Audit Values'!$A$2:$BV$447,2,FALSE)),"",VLOOKUP($CZ20,'Audit Values'!$A$2:$BV$447,51,FALSE)) -> A | BE20: =IF('Weighting Factors'!H20="","",IF('Weighting Factors'!J20="Pending","PX","R")) ->  | BF20: =SUM((S20+T20+Y20+AA20+AE20+AH20+AJ20++AO20+AP20+AQ20+AU20+AR20)*'Weighting Factors'!$Q$5)+'2020 Legal Max'!BA20+'2020 Legal Max'!BB20 -> 26769118 | BG20: =SUM((AV20+AR20)*'Weighting Factors'!$Q$5)+BA20+'2020 Legal Max'!BB20 -> 30073051 | BH20: =IF('Weighting Factors'!H20>0,'Weighting Factors'!H20,'Preliminary SO66'!AV19) -> 30779532 | BI20: 30073051 | BJ20: ='Weighting Factors'!G20 -> 0 | BK20: ='Weighting Factors'!F20 -> 0 | BL20: ='Weighting Factors'!E20 -> -5318 | BM20: -5318 | BN20: 30067733 | BO20: =SUM((S20+T20+Y20+AA20+AE20+AH20+AJ20++AO20+AP20+AQ20+AR20)*'Weighting Factors'!Q$12)+(MAX(AS20,'Weighting Factors'!B20)) -> 30689840 | BP20: ='LOB%'!F18 -> 0.3 | BQ20: 9206952 | BR20: 9407163 | BS20: 9206952 | BT20: 0.3 | BU20: 0 | BV20: FALSE | BW20: 0 | BX20: 0 | BY20: 0 | BZ20: FALSE | CA20: 0 | CB20: 0 | CC20: 0 | CD20: 141.3 | CE20: 17 | CF20: 66.294 | CG20: =IF(CF20<0.06,1,IF(CF20>=18.29,52,MATCH(CF20-0.001,'Weighting Factors'!$Y$5:$Y$156)+1)) -> 52 | CH20: =VLOOKUP(CG20, 'Weighting Factors'!$W$5:$Z$56,4) -> 550 | CI20: =('Weighting Factors'!$Q$5/'Weighting Factors'!$Q$14) -> 1.0651 | CJ20: 619850 | CK20: =CJ20*'Weighting Factors'!$S$7 -> 619850 | CL20: 660202 | CM20: =AM20/'Weighting Factors'!$Q$5 -> 148.8 | CN20: 0 | CO20: 0 | CP20: 0 | CQ20: 0 | CR20: =SUM((AV20*'Weighting Factors'!$Q$5)+'2020 Legal Max'!BA20)*CQ20 -> 0 | CS20: 0 | CT20: 0.6075 | CU20: 256.1 | CV20: 0 | CW20: 6759.1 | CX20: ='LOB Transfers'!G19 -> 1627789 | CY20: ='LOB Transfers'!J19 -> 221888 | CZ20: D0202
A21: 203 | B21: Wyandotte | C21: Piper-Kansas City | D21: 2159.2 | E21: 0 | F21: 2159.2 | G21: 2260.3 | H21: 0 | I21: 2260.3 | J21: 2314 | K21: 0 | L21: 2314 | M21: =IF(ISNA(VLOOKUP($CZ21,'Audit Values'!$A$2:$BW$496,2,FALSE)),'Preliminary SO66'!C20,VLOOKUP($CZ21,'Audit Values'!$A$2:$BW$496,73,FALSE)) -> 2435.5 | N21: =IF(ISNA(VLOOKUP($CZ21,'Audit Values'!$A$2:$BW$496,2,FALSE)),'Preliminary SO66'!F20,VLOOKUP($CZ21,'Audit Values'!$A$2:$BW$496,4,FALSE)) -> 0 | O21: 2435.5 | P21: =IF('Military Provision'!J22="YES", MAX('2020 Legal Max'!L21,'2020 Legal Max'!I21,AVERAGE('2020 Legal Max'!F21,'2020 Legal Max'!I21,'2020 Legal Max'!L21)), MAX(L21, I21)) -> 2314 | Q21: =IF(ISNA(VLOOKUP($CZ21,'Audit Values'!$A$2:$BU$393,2,FALSE)),'Preliminary SO66'!AL20,VLOOKUP($CZ21,'Audit Values'!$A$2:$BU$393,58,FALSE)) -> 6 | R21: 0 | S21: 2320 | T21: 81.3 | U21: =IF(ISNA(VLOOKUP($CZ21,'Audit Values'!$A$2:$BW$447,2,FALSE)),'Preliminary SO66'!AM20,VLOOKUP($CZ21,'Audit Values'!$A$2:$BW$447,62,FALSE)) -> 150.8 | V21: =(U21/6)*'Weighting Factors'!$Q$7 -> 9.9 | W21: =IF(ISNA(VLOOKUP($CZ21,'Audit Values'!$A$2:$BW$447,2,FALSE)),'Preliminary SO66'!AN20,VLOOKUP($CZ21,'Audit Values'!$A$2:$BW$447,61,FALSE)) -> 66 | X21: =W21*'Weighting Factors'!$Q$8 -> 12.2 | Y21: 12.2 | Z21: =IF(ISNA(VLOOKUP($CZ21,'Audit Values'!$A$2:$BW$447,2,FALSE)),'Preliminary SO66'!AO20,VLOOKUP($CZ21,'Audit Values'!$A$2:$BW$447,60,FALSE)) -> 301.9 | AA21: =Z21/6*'Weighting Factors'!$Q$6 -> 25.2 | AB21: =IF(ISNA(VLOOKUP($CZ21,'Audit Values'!$A$2:$BU$393,2,FALSE)),'Preliminary SO66'!AS20,VLOOKUP($CZ21,'Audit Values'!$A$2:$BU$393,63,FALSE)) -> 2456 | AC21: 0 | AD21: =IF(ISNA(VLOOKUP($CZ21,'Audit Values'!$A$2:$BU$393,2,FALSE)),'Preliminary SO66'!AP20,VLOOKUP($CZ21,'Audit Values'!$A$2:$BU$393,64,FALSE)) -> 334 | AE21: =IF(A21=207, AD21,MAX(AC21,AD21))*'Weighting Factors'!$Q$9 -> 161.7 | AF21: 0 | AG21: =IF(ISNA(VLOOKUP($CZ21,'Audit Values'!$A$2:$BW$393,2,FALSE)),'Preliminary SO66'!AG20,VLOOKUP($CZ21,'Audit Values'!$A$2:$BW$393,70,FALSE)) -> 0 | AH21: 0 | AI21: =IF(ISNA(VLOOKUP($CZ21,'Audit Values'!$A$2:$BU$393,2,FALSE)),'Preliminary SO66'!AQ20,VLOOKUP($CZ21,'Audit Values'!$A$2:$BU$393,65,FALSE)) -> 0 | AJ21: =AI21*'Weighting Factors'!$Q$10 -> 0 | AK21: =IF(ISNA(VLOOKUP($CZ21,'Audit Values'!$A$2:$BU$393,2,FALSE)),'Preliminary SO66'!AR20,VLOOKUP($CZ21,'Audit Values'!$A$2:$BU$393,66,FALSE)) -> 1086 | AM21: 636184 | AN21: 608616 | AO21: =MAX(AN21, AM21)/'Weighting Factors'!$Q$5 -> 143.4 | AP21: =CN21/'Weighting Factors'!$Q$5 -> 0 | AQ21: 0 | AR21: =CS21/'Weighting Factors'!$Q$5 -> 115.6 | AS21: 2712101 | AT21: =AS21/'Weighting Factors'!$Q$5 -> 611.4 | AU21: =IF(ISNA(VLOOKUP($CZ21,'Audit Values'!$A$2:$BU$393,2,FALSE)),'Preliminary SO66'!X20,VLOOKUP($CZ21,'Audit Values'!$A$2:$BU$393,47,FALSE)) -> 0 | AV21: 3355.2 | AW21: 2859.4 | AX21: =IF(ISNA(VLOOKUP($CZ21,'Audit Values'!$A$2:$BU$393,2,FALSE)),'Preliminary SO66'!AA20,VLOOKUP($CZ21,'Audit Values'!$A$2:$BU$393,41,FALSE)) -> 13 | AY21: =IF(ISNA(VLOOKUP($CZ21,'Audit Values'!$A$2:$BU$393,2,FALSE)),'Preliminary SO66'!AB20,VLOOKUP($CZ21,'Audit Values'!$A$2:$BU$393,42,FALSE)) -> 0.9 | AZ21: 0 | BA21: =SUM(AX21*'Weighting Factors'!$T$10)+('2020 Legal Max'!AY21*'Weighting Factors'!$T$11)+('2020 Legal Max'!AZ21*'Weighting Factors'!$T$12) -> 66530 | BB21: 0 | BC21: =IF(ISNA(VLOOKUP($CZ21,'Audit Values'!$A$2:$BU$274,2,FALSE)),"",IF(AND('Weighting Factors'!H21>0,VLOOKUP($CZ21,'Audit Values'!$A$2:$BU$274,51,FALSE)<'Weighting Factors'!H21),'Weighting Factors'!H21,VLOOKUP($CZ21,'Audit Values'!$A$2:$BU$274,50,FALSE))) -> 23 | BD21: =IF(ISNA(VLOOKUP($CZ21,'Audit Values'!$A$2:$BV$447,2,FALSE)),"",VLOOKUP($CZ21,'Audit Values'!$A$2:$BV$447,51,FALSE)) -> A | BE21: =IF('Weighting Factors'!H21="","",IF('Weighting Factors'!J21="Pending","PX","R")) -> R | BF21: =SUM((S21+T21+Y21+AA21+AE21+AH21+AJ21++AO21+AP21+AQ21+AU21+AR21)*'Weighting Factors'!$Q$5)+'2020 Legal Max'!BA21+'2020 Legal Max'!BB21 -> 12750828 | BG21: =SUM((AV21+AR21)*'Weighting Factors'!$Q$5)+BA21+'2020 Legal Max'!BB21 -> 15462999 | BH21: =IF('Weighting Factors'!H21>0,'Weighting Factors'!H21,'Preliminary SO66'!AV20) -> 16042705 | BI21: 15462999 | BJ21: ='Weighting Factors'!G21 -> 0 | BK21: ='Weighting Factors'!F21 -> 0 | BL21: ='Weighting Factors'!E21 -> 0 | BM21: 0 | BN21: 15462999 | BO21: =SUM((S21+T21+Y21+AA21+AE21+AH21+AJ21++AO21+AP21+AQ21+AR21)*'Weighting Factors'!Q$12)+(MAX(AS21,'Weighting Factors'!B21)) -> 15745246 | BP21: ='LOB%'!F19 -> 0.31 | BQ21: 4881026 | BR21: 4989527 | BS21: 4881026 | BT21: 0.31 | BU21: 0 | BV21: FALSE | BW21: 0 | BX21: 0 | BY21: 0 | BZ21: FALSE | CA21: 0 | CB21: 0 | CC21: 0 | CD21: 81.3 | CE21: 31.4 | CF21: 34.586 | CG21: =IF(CF21<0.06,1,IF(CF21>=18.29,52,MATCH(CF21-0.001,'Weighting Factors'!$Y$5:$Y$156)+1)) -> 52 | CH21: =VLOOKUP(CG21, 'Weighting Factors'!$W$5:$Z$56,4) -> 550 | CI21: =('Weighting Factors'!$Q$5/'Weighting Factors'!$Q$14) -> 1.0651 | CJ21: 597300 | CK21: =CJ21*'Weighting Factors'!$S$7 -> 597300 | CL21: 636184 | CM21: =AM21/'Weighting Factors'!$Q$5 -> 143.4 | CN21: 0 | CO21: 0 | CP21: 523402 | CQ21: 0.0343 | CR21: =SUM((AV21*'Weighting Factors'!$Q$5)+'2020 Legal Max'!BA21)*CQ21 -> 512792 | CS21: 512792 | CT21: 0.136 | CU21: 0 | CV21: 0 | CW21: 3470.8 | CX21: ='LOB Transfers'!G20 -> 227944 | CY21: ='LOB Transfers'!J20 -> 17084 | CZ21: D0203
A22: 204 | B22: Wyandotte | C22: Bonner Springs | D22: 2630.5 | E22: 0 | F22: 2630.5 | G22: 2607.7 | H22: 0 | I22: 2607.7 | J22: 2591.3 | K22: 0 | L22: 2591.3 | M22: =IF(ISNA(VLOOKUP($CZ22,'Audit Values'!$A$2:$BW$496,2,FALSE)),'Preliminary SO66'!C21,VLOOKUP($CZ22,'Audit Values'!$A$2:$BW$496,73,FALSE)) -> 2621.5 | N22: =IF(ISNA(VLOOKUP($CZ22,'Audit Values'!$A$2:$BW$496,2,FALSE)),'Preliminary SO66'!F21,VLOOKUP($CZ22,'Audit Values'!$A$2:$BW$496,4,FALSE)) -> 0 | O22: 2621.5 | P22: =IF('Military Provision'!J23="YES", MAX('2020 Legal Max'!L22,'2020 Legal Max'!I22,AVERAGE('2020 Legal Max'!F22,'2020 Legal Max'!I22,'2020 Legal Max'!L22)), MAX(L22, I22)) -> 2607.7 | Q22: =IF(ISNA(VLOOKUP($CZ22,'Audit Values'!$A$2:$BU$393,2,FALSE)),'Preliminary SO66'!AL21,VLOOKUP($CZ22,'Audit Values'!$A$2:$BU$393,58,FALSE)) -> 21 | R22: 0 | S22: 2628.7 | T22: 92.1 | U22: =IF(ISNA(VLOOKUP($CZ22,'Audit Values'!$A$2:$BW$447,2,FALSE)),'Preliminary SO66'!AM21,VLOOKUP($CZ22,'Audit Values'!$A$2:$BW$447,62,FALSE)) -> 414.3 | V22: =(U22/6)*'Weighting Factors'!$Q$7 -> 27.3 | W22: =IF(ISNA(VLOOKUP($CZ22,'Audit Values'!$A$2:$BW$447,2,FALSE)),'Preliminary SO66'!AN21,VLOOKUP($CZ22,'Audit Values'!$A$2:$BW$447,61,FALSE)) -> 139 | X22: =W22*'Weighting Factors'!$Q$8 -> 25.7 | Y22: 27.3 | Z22: =IF(ISNA(VLOOKUP($CZ22,'Audit Values'!$A$2:$BW$447,2,FALSE)),'Preliminary SO66'!AO21,VLOOKUP($CZ22,'Audit Values'!$A$2:$BW$447,60,FALSE)) -> 708 | AA22: =Z22/6*'Weighting Factors'!$Q$6 -> 59 | AB22: =IF(ISNA(VLOOKUP($CZ22,'Audit Values'!$A$2:$BU$393,2,FALSE)),'Preliminary SO66'!AS21,VLOOKUP($CZ22,'Audit Values'!$A$2:$BU$393,63,FALSE)) -> 2689 | AC22: 0 | AD22: =IF(ISNA(VLOOKUP($CZ22,'Audit Values'!$A$2:$BU$393,2,FALSE)),'Preliminary SO66'!AP21,VLOOKUP($CZ22,'Audit Values'!$A$2:$BU$393,64,FALSE)) -> 993 | AE22: =IF(A22=207, AD22,MAX(AC22,AD22))*'Weighting Factors'!$Q$9 -> 480.6 | AF22: 13.4 | AG22: =IF(ISNA(VLOOKUP($CZ22,'Audit Values'!$A$2:$BW$393,2,FALSE)),'Preliminary SO66'!AG21,VLOOKUP($CZ22,'Audit Values'!$A$2:$BW$393,70,FALSE)) -> 25.2 | AH22: 25.2 | AI22: =IF(ISNA(VLOOKUP($CZ22,'Audit Values'!$A$2:$BU$393,2,FALSE)),'Preliminary SO66'!AQ21,VLOOKUP($CZ22,'Audit Values'!$A$2:$BU$393,65,FALSE)) -> 0 | AJ22: =AI22*'Weighting Factors'!$Q$10 -> 0 | AK22: =IF(ISNA(VLOOKUP($CZ22,'Audit Values'!$A$2:$BU$393,2,FALSE)),'Preliminary SO66'!AR21,VLOOKUP($CZ22,'Audit Values'!$A$2:$BU$393,66,FALSE)) -> 476 | AM22: 309262 | AN22: 506538 | AO22: =MAX(AN22, AM22)/'Weighting Factors'!$Q$5 -> 114.2 | AP22: =CN22/'Weighting Factors'!$Q$5 -> 0 | AQ22: 0 | AR22: =CS22/'Weighting Factors'!$Q$5 -> 0 | AS22: 3780960 | AT22: =AS22/'Weighting Factors'!$Q$5 -> 852.3 | AU22: =IF(ISNA(VLOOKUP($CZ22,'Audit Values'!$A$2:$BU$393,2,FALSE)),'Preliminary SO66'!X21,VLOOKUP($CZ22,'Audit Values'!$A$2:$BU$393,47,FALSE)) -> 0 | AV22: 4279.4 | AW22: 3427.1 | AX22: =IF(ISNA(VLOOKUP($CZ22,'Audit Values'!$A$2:$BU$393,2,FALSE)),'Preliminary SO66'!AA21,VLOOKUP($CZ22,'Audit Values'!$A$2:$BU$393,41,FALSE)) -> 38 | AY22: =IF(ISNA(VLOOKUP($CZ22,'Audit Values'!$A$2:$BU$393,2,FALSE)),'Preliminary SO66'!AB21,VLOOKUP($CZ22,'Audit Values'!$A$2:$BU$393,42,FALSE)) -> 3.1 | AZ22: 34.5 | BA22: =SUM(AX22*'Weighting Factors'!$T$10)+('2020 Legal Max'!AY22*'Weighting Factors'!$T$11)+('2020 Legal Max'!AZ22*'Weighting Factors'!$T$12) -> 219731 | BB22: 0 | BC22: =IF(ISNA(VLOOKUP($CZ22,'Audit Values'!$A$2:$BU$274,2,FALSE)),"",IF(AND('Weighting Factors'!H22>0,VLOOKUP($CZ22,'Audit Values'!$A$2:$BU$274,51,FALSE)<'Weighting Factors'!H22),'Weighting Factors'!H22,VLOOKUP($CZ22,'Audit Values'!$A$2:$BU$274,50,FALSE))) -> 22 | BD22: =IF(ISNA(VLOOKUP($CZ22,'Audit Values'!$A$2:$BV$447,2,FALSE)),"",VLOOKUP($CZ22,'Audit Values'!$A$2:$BV$447,51,FALSE)) -> A | BE22: =IF('Weighting Factors'!H22="","",IF('Weighting Factors'!J22="Pending","PX","R")) ->  | BF22: =SUM((S22+T22+Y22+AA22+AE22+AH22+AJ22++AO22+AP22+AQ22+AU22+AR22)*'Weighting Factors'!$Q$5)+'2020 Legal Max'!BA22+'2020 Legal Max'!BB22 -> 15422347 | BG22: =SUM((AV22+AR22)*'Weighting Factors'!$Q$5)+BA22+'2020 Legal Max'!BB22 -> 19203149 | BH22: =IF('Weighting Factors'!H22>0,'Weighting Factors'!H22,'Preliminary SO66'!AV21) -> 19415759 | BI22: 19203149 | BJ22: ='Weighting Factors'!G22 -> 0 | BK22: ='Weighting Factors'!F22 -> 0 | BL22: ='Weighting Factors'!E22 -> 0 | BM22: 0 | BN22: 19203149 | BO22: =SUM((S22+T22+Y22+AA22+AE22+AH22+AJ22++AO22+AP22+AQ22+AR22)*'Weighting Factors'!Q$12)+(MAX(AS22,'Weighting Factors'!B22)) -> 19401682 | BP22: ='LOB%'!F20 -> 0.33 | BQ22: 6402555 | BR22: 6451942 | BS22: 6402555 | BT22: 0.33 | BU22: 0 | BV22: FALSE | BW22: 0 | BX22: 0 | BY22: 0 | BZ22: FALSE | CA22: 0 | CB22: 0 | CC22: 0 | CD22: 92.1 | CE22: 38 | CF22: 12.526 | CG22: =IF(CF22<0.06,1,IF(CF22>=18.29,52,MATCH(CF22-0.001,'Weighting Factors'!$Y$5:$Y$156)+1)) -> 49 | CH22: =VLOOKUP(CG22, 'Weighting Factors'!$W$5:$Z$56,4) -> 610 | CI22: =('Weighting Factors'!$Q$5/'Weighting Factors'!$Q$14) -> 1.0651 | CJ22: 290360 | CK22: =CJ22*'Weighting Factors'!$S$7 -> 290360 | CL22: 309262 | CM22: =AM22/'Weighting Factors'!$Q$5 -> 69.7 | CN22: 0 | CO22: 0 | CP22: 0 | CQ22: 0 | CR22: =SUM((AV22*'Weighting Factors'!$Q$5)+'2020 Legal Max'!BA22)*CQ22 -> 0 | CS22: 0 | CT22: 0.3693 | CU22: 0 | CV22: 13.4 | CW22: 4279.4 | CX22: ='LOB Transfers'!G21 -> 722848 | CY22: ='LOB Transfers'!J21 -> 40976 | CZ22: D0204
A23: 205 | B23: Butler | C23: Bluestem | D23: 485 | E23: 0 | F23: 485 | G23: 475.5 | H23: 0 | I23: 475.5 | J23: 496 | K23: 0 | L23: 496 | M23: =IF(ISNA(VLOOKUP($CZ23,'Audit Values'!$A$2:$BW$496,2,FALSE)),'Preliminary SO66'!C22,VLOOKUP($CZ23,'Audit Values'!$A$2:$BW$496,73,FALSE)) -> 483.2 | N23: =IF(ISNA(VLOOKUP($CZ23,'Audit Values'!$A$2:$BW$496,2,FALSE)),'Preliminary SO66'!F22,VLOOKUP($CZ23,'Audit Values'!$A$2:$BW$496,4,FALSE)) -> 0 | O23: 483.2 | P23: =IF('Military Provision'!J24="YES", MAX('2020 Legal Max'!L23,'2020 Legal Max'!I23,AVERAGE('2020 Legal Max'!F23,'2020 Legal Max'!I23,'2020 Legal Max'!L23)), MAX(L23, I23)) -> 496 | Q23: =IF(ISNA(VLOOKUP($CZ23,'Audit Values'!$A$2:$BU$393,2,FALSE)),'Preliminary SO66'!AL22,VLOOKUP($CZ23,'Audit Values'!$A$2:$BU$393,58,FALSE)) -> 0 | R23: 0 | S23: 496 | T23: 207.1 | U23: =IF(ISNA(VLOOKUP($CZ23,'Audit Values'!$A$2:$BW$447,2,FALSE)),'Preliminary SO66'!AM22,VLOOKUP($CZ23,'Audit Values'!$A$2:$BW$447,62,FALSE)) -> 0 | V23: =(U23/6)*'Weighting Factors'!$Q$7 -> 0 | W23: =IF(ISNA(VLOOKUP($CZ23,'Audit Values'!$A$2:$BW$447,2,FALSE)),'Preliminary SO66'!AN22,VLOOKUP($CZ23,'Audit Values'!$A$2:$BW$447,61,FALSE)) -> 3 | X23: =W23*'Weighting Factors'!$Q$8 -> 0.6 | Y23: 0.6 | Z23: =IF(ISNA(VLOOKUP($CZ23,'Audit Values'!$A$2:$BW$447,2,FALSE)),'Preliminary SO66'!AO22,VLOOKUP($CZ23,'Audit Values'!$A$2:$BW$447,60,FALSE)) -> 102.4 | AA23: =Z23/6*'Weighting Factors'!$Q$6 -> 8.5 | AB23: =IF(ISNA(VLOOKUP($CZ23,'Audit Values'!$A$2:$BU$393,2,FALSE)),'Preliminary SO66'!AS22,VLOOKUP($CZ23,'Audit Values'!$A$2:$BU$393,63,FALSE)) -> 489 | AC23: 0 | AD23: =IF(ISNA(VLOOKUP($CZ23,'Audit Values'!$A$2:$BU$393,2,FALSE)),'Preliminary SO66'!AP22,VLOOKUP($CZ23,'Audit Values'!$A$2:$BU$393,64,FALSE)) -> 172 | AE23: =IF(A23=207, AD23,MAX(AC23,AD23))*'Weighting Factors'!$Q$9 -> 83.2 | AF23: 0.2 | AG23: =IF(ISNA(VLOOKUP($CZ23,'Audit Values'!$A$2:$BW$393,2,FALSE)),'Preliminary SO66'!AG22,VLOOKUP($CZ23,'Audit Values'!$A$2:$BW$393,70,FALSE)) -> 1.6 | AH23: 1.6 | AI23: =IF(ISNA(VLOOKUP($CZ23,'Audit Values'!$A$2:$BU$393,2,FALSE)),'Preliminary SO66'!AQ22,VLOOKUP($CZ23,'Audit Values'!$A$2:$BU$393,65,FALSE)) -> 0 | AJ23: =AI23*'Weighting Factors'!$Q$10 -> 0 | AK23: =IF(ISNA(VLOOKUP($CZ23,'Audit Values'!$A$2:$BU$393,2,FALSE)),'Preliminary SO66'!AR22,VLOOKUP($CZ23,'Audit Values'!$A$2:$BU$393,66,FALSE)) -> 232 | AM23: 254516 | AN23: 294293 | AO23: =MAX(AN23, AM23)/'Weighting Factors'!$Q$5 -> 66.3 | AP23: =CN23/'Weighting Factors'!$Q$5 -> 0 | AQ23: 0 | AR23: =CS23/'Weighting Factors'!$Q$5 -> 0 | AS23: 540315 | AT23: =AS23/'Weighting Factors'!$Q$5 -> 121.8 | AU23: =IF(ISNA(VLOOKUP($CZ23,'Audit Values'!$A$2:$BU$393,2,FALSE)),'Preliminary SO66'!X22,VLOOKUP($CZ23,'Audit Values'!$A$2:$BU$393,47,FALSE)) -> 0 | AV23: 985.1 | AW23: 863.3 | AX23: =IF(ISNA(VLOOKUP($CZ23,'Audit Values'!$A$2:$BU$393,2,FALSE)),'Preliminary SO66'!AA22,VLOOKUP($CZ23,'Audit Values'!$A$2:$BU$393,41,FALSE)) -> 0 | AY23: =IF(ISNA(VLOOKUP($CZ23,'Audit Values'!$A$2:$BU$393,2,FALSE)),'Preliminary SO66'!AB22,VLOOKUP($CZ23,'Audit Values'!$A$2:$BU$393,42,FALSE)) -> 0 | AZ23: 0 | BA23: =SUM(AX23*'Weighting Factors'!$T$10)+('2020 Legal Max'!AY23*'Weighting Factors'!$T$11)+('2020 Legal Max'!AZ23*'Weighting Factors'!$T$12) -> 0 | BB23: 0 | BC23: =IF(ISNA(VLOOKUP($CZ23,'Audit Values'!$A$2:$BU$274,2,FALSE)),"",IF(AND('Weighting Factors'!H23>0,VLOOKUP($CZ23,'Audit Values'!$A$2:$BU$274,51,FALSE)<'Weighting Factors'!H23),'Weighting Factors'!H23,VLOOKUP($CZ23,'Audit Values'!$A$2:$BU$274,50,FALSE))) -> 9 | BD23: =IF(ISNA(VLOOKUP($CZ23,'Audit Values'!$A$2:$BV$447,2,FALSE)),"",VLOOKUP($CZ23,'Audit Values'!$A$2:$BV$447,51,FALSE)) -> A | BE23: =IF('Weighting Factors'!H23="","",IF('Weighting Factors'!J23="Pending","PX","R")) ->  | BF23: =SUM((S23+T23+Y23+AA23+AE23+AH23+AJ23++AO23+AP23+AQ23+AU23+AR23)*'Weighting Factors'!$Q$5)+'2020 Legal Max'!BA23+'2020 Legal Max'!BB23 -> 3829599 | BG23: =SUM((AV23+AR23)*'Weighting Factors'!$Q$5)+BA23+'2020 Legal Max'!BB23 -> 4369904 | BH23: =IF('Weighting Factors'!H23>0,'Weighting Factors'!H23,'Preliminary SO66'!AV22) -> 4453744 | BI23: 4369904 | BJ23: ='Weighting Factors'!G23 -> 0 | BK23: ='Weighting Factors'!F23 -> -8309 | BL23: ='Weighting Factors'!E23 -> 0 | BM23: -8309 | BN23: 4361595 | BO23: =SUM((S23+T23+Y23+AA23+AE23+AH23+AJ23++AO23+AP23+AQ23+AR23)*'Weighting Factors'!Q$12)+(MAX(AS23,'Weighting Factors'!B23)) -> 4541395 | BP23: ='LOB%'!F21 -> 0.3 | BQ23: 1362419 | BR23: 1385938 | BS23: 1362419 | BT23: 0.3 | BU23: 0 | BV23: FALSE | BW23: 0 | BX23: 0 | BY23: 0 | BZ23: TRUE | CA23: 242.55 | CB23: 0.417596 | CC23: 207.1 | CD23: 0 | CE23: 348.6 | CF23: 0.666 | CG23: =IF(CF23<0.06,1,IF(CF23>=18.29,52,MATCH(CF23-0.001,'Weighting Factors'!$Y$5:$Y$156)+1)) -> 28 | CH23: =VLOOKUP(CG23, 'Weighting Factors'!$W$5:$Z$56,4) -> 1030 | CI23: =('Weighting Factors'!$Q$5/'Weighting Factors'!$Q$14) -> 1.0651 | CJ23: 238960 | CK23: =CJ23*'Weighting Factors'!$S$7 -> 238960 | CL23: 254516 | CM23: =AM23/'Weighting Factors'!$Q$5 -> 57.4 | CN23: 0 | CO23: 0 | CP23: 0 | CQ23: 0 | CR23: =SUM((AV23*'Weighting Factors'!$Q$5)+'2020 Legal Max'!BA23)*CQ23 -> 0 | CS23: 0 | CT23: 0.3517 | CU23: 0 | CV23: 0.2 | CW23: 985.1 | CX23: ='LOB Transfers'!G22 -> 115124 | CY23: ='LOB Transfers'!J22 -> 817 | CZ23: D0205
A24: 206 | B24: Butler | C24: Remington-Whitewater | D24: 501.9 | E24: 0 | F24: 501.9 | G24: 504.7 | H24: 0 | I24: 504.7 | J24: 492.9 | K24: 0 | L24: 492.9 | M24: =IF(ISNA(VLOOKUP($CZ24,'Audit Values'!$A$2:$BW$496,2,FALSE)),'Preliminary SO66'!C23,VLOOKUP($CZ24,'Audit Values'!$A$2:$BW$496,73,FALSE)) -> 460.8 | N24: =IF(ISNA(VLOOKUP($CZ24,'Audit Values'!$A$2:$BW$496,2,FALSE)),'Preliminary SO66'!F23,VLOOKUP($CZ24,'Audit Values'!$A$2:$BW$496,4,FALSE)) -> 0 | O24: 460.8 | P24: =IF('Military Provision'!J25="YES", MAX('2020 Legal Max'!L24,'2020 Legal Max'!I24,AVERAGE('2020 Legal Max'!F24,'2020 Legal Max'!I24,'2020 Legal Max'!L24)), MAX(L24, I24)) -> 504.7 | Q24: =IF(ISNA(VLOOKUP($CZ24,'Audit Values'!$A$2:$BU$393,2,FALSE)),'Preliminary SO66'!AL23,VLOOKUP($CZ24,'Audit Values'!$A$2:$BU$393,58,FALSE)) -> 7 | R24: 0 | S24: 511.7 | T24: 211 | U24: =IF(ISNA(VLOOKUP($CZ24,'Audit Values'!$A$2:$BW$447,2,FALSE)),'Preliminary SO66'!AM23,VLOOKUP($CZ24,'Audit Values'!$A$2:$BW$447,62,FALSE)) -> 23.7 | V24: =(U24/6)*'Weighting Factors'!$Q$7 -> 1.6 | W24: =IF(ISNA(VLOOKUP($CZ24,'Audit Values'!$A$2:$BW$447,2,FALSE)),'Preliminary SO66'!AN23,VLOOKUP($CZ24,'Audit Values'!$A$2:$BW$447,61,FALSE)) -> 15 | X24: =W24*'Weighting Factors'!$Q$8 -> 2.8 | Y24: 2.8 | Z24: =IF(ISNA(VLOOKUP($CZ24,'Audit Values'!$A$2:$BW$447,2,FALSE)),'Preliminary SO66'!AO23,VLOOKUP($CZ24,'Audit Values'!$A$2:$BW$447,60,FALSE)) -> 60.7 | AA24: =Z24/6*'Weighting Factors'!$Q$6 -> 5.1 | AB24: =IF(ISNA(VLOOKUP($CZ24,'Audit Values'!$A$2:$BU$393,2,FALSE)),'Preliminary SO66'!AS23,VLOOKUP($CZ24,'Audit Values'!$A$2:$BU$393,63,FALSE)) -> 478 | AC24: 0 | AD24: =IF(ISNA(VLOOKUP($CZ24,'Audit Values'!$A$2:$BU$393,2,FALSE)),'Preliminary SO66'!AP23,VLOOKUP($CZ24,'Audit Values'!$A$2:$BU$393,64,FALSE)) -> 124 | AE24: =IF(A24=207, AD24,MAX(AC24,AD24))*'Weighting Factors'!$Q$9 -> 60 | AF24: 0 | AG24: =IF(ISNA(VLOOKUP($CZ24,'Audit Values'!$A$2:$BW$393,2,FALSE)),'Preliminary SO66'!AG23,VLOOKUP($CZ24,'Audit Values'!$A$2:$BW$393,70,FALSE)) -> 0 | AH24: 0 | AI24: =IF(ISNA(VLOOKUP($CZ24,'Audit Values'!$A$2:$BU$393,2,FALSE)),'Preliminary SO66'!AQ23,VLOOKUP($CZ24,'Audit Values'!$A$2:$BU$393,65,FALSE)) -> 0 | AJ24: =AI24*'Weighting Factors'!$Q$10 -> 0 | AK24: =IF(ISNA(VLOOKUP($CZ24,'Audit Values'!$A$2:$BU$393,2,FALSE)),'Preliminary SO66'!AR23,VLOOKUP($CZ24,'Audit Values'!$A$2:$BU$393,66,FALSE)) -> 335.5 | AM24: 325180 | AN24: 348606 | AO24: =MAX(AN24, AM24)/'Weighting Factors'!$Q$5 -> 78.6 | AP24: =CN24/'Weighting Factors'!$Q$5 -> 0 | AQ24: 0 | AR24: =CS24/'Weighting Factors'!$Q$5 -> 0 | AS24: 598595 | AT24: =AS24/'Weighting Factors'!$Q$5 -> 134.9 | AU24: =IF(ISNA(VLOOKUP($CZ24,'Audit Values'!$A$2:$BU$393,2,FALSE)),'Preliminary SO66'!X23,VLOOKUP($CZ24,'Audit Values'!$A$2:$BU$393,47,FALSE)) -> 0 | AV24: 1004.1 | AW24: 869.2 | AX24: =IF(ISNA(VLOOKUP($CZ24,'Audit Values'!$A$2:$BU$393,2,FALSE)),'Preliminary SO66'!AA23,VLOOKUP($CZ24,'Audit Values'!$A$2:$BU$393,41,FALSE)) -> 0 | AY24: =IF(ISNA(VLOOKUP($CZ24,'Audit Values'!$A$2:$BU$393,2,FALSE)),'Preliminary SO66'!AB23,VLOOKUP($CZ24,'Audit Values'!$A$2:$BU$393,42,FALSE)) -> 0 | AZ24: 0 | BA24: =SUM(AX24*'Weighting Factors'!$T$10)+('2020 Legal Max'!AY24*'Weighting Factors'!$T$11)+('2020 Legal Max'!AZ24*'Weighting Factors'!$T$12) -> 0 | BB24: 0 | BC24: =IF(ISNA(VLOOKUP($CZ24,'Audit Values'!$A$2:$BU$274,2,FALSE)),"",IF(AND('Weighting Factors'!H24>0,VLOOKUP($CZ24,'Audit Values'!$A$2:$BU$274,51,FALSE)<'Weighting Factors'!H24),'Weighting Factors'!H24,VLOOKUP($CZ24,'Audit Values'!$A$2:$BU$274,50,FALSE))) -> 13 | BD24: =IF(ISNA(VLOOKUP($CZ24,'Audit Values'!$A$2:$BV$447,2,FALSE)),"",VLOOKUP($CZ24,'Audit Values'!$A$2:$BV$447,51,FALSE)) -> A | BE24: =IF('Weighting Factors'!H24="","",IF('Weighting Factors'!J24="Pending","PX","R")) ->  | BF24: =SUM((S24+T24+Y24+AA24+AE24+AH24+AJ24++AO24+AP24+AQ24+AU24+AR24)*'Weighting Factors'!$Q$5)+'2020 Legal Max'!BA24+'2020 Legal Max'!BB24 -> 3855771 | BG24: =SUM((AV24+AR24)*'Weighting Factors'!$Q$5)+BA24+'2020 Legal Max'!BB24 -> 4454188 | BH24: =IF('Weighting Factors'!H24>0,'Weighting Factors'!H24,'Preliminary SO66'!AV23) -> 4665341 | BI24: 4454188 | BJ24: ='Weighting Factors'!G24 -> 0 | BK24: ='Weighting Factors'!F24 -> -73449 | BL24: ='Weighting Factors'!E24 -> 0 | BM24: -73449 | BN24: 4380739 | BO24: =SUM((S24+T24+Y24+AA24+AE24+AH24+AJ24++AO24+AP24+AQ24+AR24)*'Weighting Factors'!Q$12)+(MAX(AS24,'Weighting Factors'!B24)) -> 4560409 | BP24: ='LOB%'!F22 -> 0.33 | BQ24: 1504935 | BR24: 1475000 | BS24: 1475000 | BT24: 0.3234 | BU24: 0 | BV24: FALSE | BW24: 0 | BX24: 0 | BY24: 0 | BZ24: TRUE | CA24: 261.9788 | CB24: 0.412261 | CC24: 211 | CD24: 0 | CE24: 253 | CF24: 1.326 | CG24: =IF(CF24<0.06,1,IF(CF24>=18.29,52,MATCH(CF24-0.001,'Weighting Factors'!$Y$5:$Y$156)+1)) -> 34 | CH24: =VLOOKUP(CG24, 'Weighting Factors'!$W$5:$Z$56,4) -> 910 | CI24: =('Weighting Factors'!$Q$5/'Weighting Factors'!$Q$14) -> 1.0651 | CJ24: 305305 | CK24: =CJ24*'Weighting Factors'!$S$7 -> 305305 | CL24: 325180 | CM24: =AM24/'Weighting Factors'!$Q$5 -> 73.3 | CN24: 0 | CO24: 0 | CP24: 0 | CQ24: 0 | CR24: =SUM((AV24*'Weighting Factors'!$Q$5)+'2020 Legal Max'!BA24)*CQ24 -> 0 | CS24: 0 | CT24: 0.2594 | CU24: 0 | CV24: 0 | CW24: 1004.1 | CX24: ='LOB Transfers'!G23 -> 88795 | CY24: ='LOB Transfers'!J23 -> 4130 | CZ24: D0206
A25: 207 | B25: Leavenworth | C25: Ft Leavenworth | D25: 1675.5 | E25: 67.5 | F25: 1743 | G25: 1756.6 | H25: 67 | I25: 1823.6 | J25: 1695.5 | K25: 61 | L25: 1756.5 | M25: =IF(ISNA(VLOOKUP($CZ25,'Audit Values'!$A$2:$BW$496,2,FALSE)),'Preliminary SO66'!C24,VLOOKUP($CZ25,'Audit Values'!$A$2:$BW$496,73,FALSE)) -> 1649.2 | N25: =IF(ISNA(VLOOKUP($CZ25,'Audit Values'!$A$2:$BW$496,2,FALSE)),'Preliminary SO66'!F24,VLOOKUP($CZ25,'Audit Values'!$A$2:$BW$496,4,FALSE)) -> 66.8 | O25: 1716 | P25: =IF('Military Provision'!J26="YES", MAX('2020 Legal Max'!L25,'2020 Legal Max'!I25,AVERAGE('2020 Legal Max'!F25,'2020 Legal Max'!I25,'2020 Legal Max'!L25)), MAX(L25, I25)) -> 1823.6 | Q25: =IF(ISNA(VLOOKUP($CZ25,'Audit Values'!$A$2:$BU$393,2,FALSE)),'Preliminary SO66'!AL24,VLOOKUP($CZ25,'Audit Values'!$A$2:$BU$393,58,FALSE)) -> 0 | R25: 0 | S25: 1823.6 | T25: 63.9 | U25: =IF(ISNA(VLOOKUP($CZ25,'Audit Values'!$A$2:$BW$447,2,FALSE)),'Preliminary SO66'!AM24,VLOOKUP($CZ25,'Audit Values'!$A$2:$BW$447,62,FALSE)) -> 53.1 | V25: =(U25/6)*'Weighting Factors'!$Q$7 -> 3.5 | W25: =IF(ISNA(VLOOKUP($CZ25,'Audit Values'!$A$2:$BW$447,2,FALSE)),'Preliminary SO66'!AN24,VLOOKUP($CZ25,'Audit Values'!$A$2:$BW$447,61,FALSE)) -> 70 | X25: =W25*'Weighting Factors'!$Q$8 -> 13 | Y25: 13 | Z25: =IF(ISNA(VLOOKUP($CZ25,'Audit Values'!$A$2:$BW$447,2,FALSE)),'Preliminary SO66'!AO24,VLOOKUP($CZ25,'Audit Values'!$A$2:$BW$447,60,FALSE)) -> 0 | AA25: =Z25/6*'Weighting Factors'!$Q$6 -> 0 | AB25: =IF(ISNA(VLOOKUP($CZ25,'Audit Values'!$A$2:$BU$393,2,FALSE)),'Preliminary SO66'!AS24,VLOOKUP($CZ25,'Audit Values'!$A$2:$BU$393,63,FALSE)) -> 1739 | AC25: 0 | AD25: =IF(ISNA(VLOOKUP($CZ25,'Audit Values'!$A$2:$BU$393,2,FALSE)),'Preliminary SO66'!AP24,VLOOKUP($CZ25,'Audit Values'!$A$2:$BU$393,64,FALSE)) -> 47 | AE25: =IF(A25=207, AD25,MAX(AC25,AD25))*'Weighting Factors'!$Q$9 -> 22.7 | AF25: 0 | AG25: =IF(ISNA(VLOOKUP($CZ25,'Audit Values'!$A$2:$BW$393,2,FALSE)),'Preliminary SO66'!AG24,VLOOKUP($CZ25,'Audit Values'!$A$2:$BW$393,70,FALSE)) -> 0 | AH25: 0 | AI25: =IF(ISNA(VLOOKUP($CZ25,'Audit Values'!$A$2:$BU$393,2,FALSE)),'Preliminary SO66'!AQ24,VLOOKUP($CZ25,'Audit Values'!$A$2:$BU$393,65,FALSE)) -> 0 | AJ25: =AI25*'Weighting Factors'!$Q$10 -> 0 | AK25: =IF(ISNA(VLOOKUP($CZ25,'Audit Values'!$A$2:$BU$393,2,FALSE)),'Preliminary SO66'!AR24,VLOOKUP($CZ25,'Audit Values'!$A$2:$BU$393,66,FALSE)) -> 181 | AM25: 106031 | AN25: 83974 | AO25: =MAX(AN25, AM25)/'Weighting Factors'!$Q$5 -> 23.9 | AP25: =CN25/'Weighting Factors'!$Q$5 -> 0 | AQ25: 0 | AR25: =CS25/'Weighting Factors'!$Q$5 -> 0 | AS25: 1236655 | AT25: =AS25/'Weighting Factors'!$Q$5 -> 278.8 | AU25: =IF(ISNA(VLOOKUP($CZ25,'Audit Values'!$A$2:$BU$393,2,FALSE)),'Preliminary SO66'!X24,VLOOKUP($CZ25,'Audit Values'!$A$2:$BU$393,47,FALSE)) -> 0 | AV25: 2225.9 | AW25: 1947.1 | AX25: =IF(ISNA(VLOOKUP($CZ25,'Audit Values'!$A$2:$BU$393,2,FALSE)),'Preliminary SO66'!AA24,VLOOKUP($CZ25,'Audit Values'!$A$2:$BU$393,41,FALSE)) -> 0 | AY25: =IF(ISNA(VLOOKUP($CZ25,'Audit Values'!$A$2:$BU$393,2,FALSE)),'Preliminary SO66'!AB24,VLOOKUP($CZ25,'Audit Values'!$A$2:$BU$393,42,FALSE)) -> 0 | AZ25: 0 | BA25: =SUM(AX25*'Weighting Factors'!$T$10)+('2020 Legal Max'!AY25*'Weighting Factors'!$T$11)+('2020 Legal Max'!AZ25*'Weighting Factors'!$T$12) -> 0 | BB25: 0 | BC25: =IF(ISNA(VLOOKUP($CZ25,'Audit Values'!$A$2:$BU$274,2,FALSE)),"",IF(AND('Weighting Factors'!H25>0,VLOOKUP($CZ25,'Audit Values'!$A$2:$BU$274,51,FALSE)<'Weighting Factors'!H25),'Weighting Factors'!H25,VLOOKUP($CZ25,'Audit Values'!$A$2:$BU$274,50,FALSE))) -> 27 | BD25: =IF(ISNA(VLOOKUP($CZ25,'Audit Values'!$A$2:$BV$447,2,FALSE)),"",VLOOKUP($CZ25,'Audit Values'!$A$2:$BV$447,51,FALSE)) -> A | BE25: =IF('Weighting Factors'!H25="","",IF('Weighting Factors'!J25="Pending","PX","R")) ->  | BF25: =SUM((S25+T25+Y25+AA25+AE25+AH25+AJ25++AO25+AP25+AQ25+AU25+AR25)*'Weighting Factors'!$Q$5)+'2020 Legal Max'!BA25+'2020 Legal Max'!BB25 -> 8637336 | BG25: =SUM((AV25+AR25)*'Weighting Factors'!$Q$5)+BA25+'2020 Legal Max'!BB25 -> 9874092 | BH25: =IF('Weighting Factors'!H25>0,'Weighting Factors'!H25,'Preliminary SO66'!AV24) -> 9990759 | BI25: 9874092 | BJ25: ='Weighting Factors'!G25 -> 0 | BK25: ='Weighting Factors'!F25 -> 0 | BL25: ='Weighting Factors'!E25 -> 0 | BM25: 0 | BN25: 9874092 | BO25: =SUM((S25+T25+Y25+AA25+AE25+AH25+AJ25++AO25+AP25+AQ25+AR25)*'Weighting Factors'!Q$12)+(MAX(AS25,'Weighting Factors'!B25)) -> 10114482 | BP25: ='LOB%'!F23 -> 0.33 | BQ25: 3337779 | BR25: 3375932 | BS25: 3337779 | BT25: 0.33 | BU25: 0 | BV25: FALSE | BW25: 0 | BX25: 0 | BY25: 0 | BZ25: FALSE | CA25: 0 | CB25: 0 | CC25: 0 | CD25: 63.9 | CE25: 8.5 | CF25: 21.294 | CG25: =IF(CF25<0.06,1,IF(CF25>=18.29,52,MATCH(CF25-0.001,'Weighting Factors'!$Y$5:$Y$156)+1)) -> 52 | CH25: =VLOOKUP(CG25, 'Weighting Factors'!$W$5:$Z$56,4) -> 550 | CI25: =('Weighting Factors'!$Q$5/'Weighting Factors'!$Q$14) -> 1.0651 | CJ25: 99550 | CK25: =CJ25*'Weighting Factors'!$S$7 -> 99550 | CL25: 106031 | CM25: =AM25/'Weighting Factors'!$Q$5 -> 23.9 | CN25: 0 | CO25: 0 | CP25: 0 | CQ25: 0 | CR25: =SUM((AV25*'Weighting Factors'!$Q$5)+'2020 Legal Max'!BA25)*CQ25 -> 0 | CS25: 0 | CT25: 0.027 | CU25: 0 | CV25: 0 | CW25: 2225.9 | CX25: ='LOB Transfers'!G24 -> 34045 | CY25: ='LOB Transfers'!J24 -> 19359 | CZ25: D0207
A26: 208 | B26: Trego | C26: Wakeeney | D26: 381.5 | E26: 0 | F26: 381.5 | G26: 385.3 | H26: 0 | I26: 385.3 | J26: 375.5 | K26: 0 | L26: 375.5 | M26: =IF(ISNA(VLOOKUP($CZ26,'Audit Values'!$A$2:$BW$496,2,FALSE)),'Preliminary SO66'!C25,VLOOKUP($CZ26,'Audit Values'!$A$2:$BW$496,73,FALSE)) -> 384.5 | N26: =IF(ISNA(VLOOKUP($CZ26,'Audit Values'!$A$2:$BW$496,2,FALSE)),'Preliminary SO66'!F25,VLOOKUP($CZ26,'Audit Values'!$A$2:$BW$496,4,FALSE)) -> 0 | O26: 384.5 | P26: =IF('Military Provision'!J27="YES", MAX('2020 Legal Max'!L26,'2020 Legal Max'!I26,AVERAGE('2020 Legal Max'!F26,'2020 Legal Max'!I26,'2020 Legal Max'!L26)), MAX(L26, I26)) -> 385.3 | Q26: =IF(ISNA(VLOOKUP($CZ26,'Audit Values'!$A$2:$BU$393,2,FALSE)),'Preliminary SO66'!AL25,VLOOKUP($CZ26,'Audit Values'!$A$2:$BU$393,58,FALSE)) -> 3 | R26: 0 | S26: 388.3 | T26: 176.4 | U26: =IF(ISNA(VLOOKUP($CZ26,'Audit Values'!$A$2:$BW$447,2,FALSE)),'Preliminary SO66'!AM25,VLOOKUP($CZ26,'Audit Values'!$A$2:$BW$447,62,FALSE)) -> 0 | V26: =(U26/6)*'Weighting Factors'!$Q$7 -> 0 | W26: =IF(ISNA(VLOOKUP($CZ26,'Audit Values'!$A$2:$BW$447,2,FALSE)),'Preliminary SO66'!AN25,VLOOKUP($CZ26,'Audit Values'!$A$2:$BW$447,61,FALSE)) -> 0 | X26: =W26*'Weighting Factors'!$Q$8 -> 0 | Y26: 0 | Z26: =IF(ISNA(VLOOKUP($CZ26,'Audit Values'!$A$2:$BW$447,2,FALSE)),'Preliminary SO66'!AO25,VLOOKUP($CZ26,'Audit Values'!$A$2:$BW$447,60,FALSE)) -> 164.3 | AA26: =Z26/6*'Weighting Factors'!$Q$6 -> 13.7 | AB26: =IF(ISNA(VLOOKUP($CZ26,'Audit Values'!$A$2:$BU$393,2,FALSE)),'Preliminary SO66'!AS25,VLOOKUP($CZ26,'Audit Values'!$A$2:$BU$393,63,FALSE)) -> 394 | AC26: 0 | AD26: =IF(ISNA(VLOOKUP($CZ26,'Audit Values'!$A$2:$BU$393,2,FALSE)),'Preliminary SO66'!AP25,VLOOKUP($CZ26,'Audit Values'!$A$2:$BU$393,64,FALSE)) -> 102 | AE26: =IF(A26=207, AD26,MAX(AC26,AD26))*'Weighting Factors'!$Q$9 -> 49.4 | AF26: 0 | AG26: =IF(ISNA(VLOOKUP($CZ26,'Audit Values'!$A$2:$BW$393,2,FALSE)),'Preliminary SO66'!AG25,VLOOKUP($CZ26,'Audit Values'!$A$2:$BW$393,70,FALSE)) -> 0 | AH26: 0 | AI26: =IF(ISNA(VLOOKUP($CZ26,'Audit Values'!$A$2:$BU$393,2,FALSE)),'Preliminary SO66'!AQ25,VLOOKUP($CZ26,'Audit Values'!$A$2:$BU$393,65,FALSE)) -> 0 | AJ26: =AI26*'Weighting Factors'!$Q$10 -> 0 | AK26: =IF(ISNA(VLOOKUP($CZ26,'Audit Values'!$A$2:$BU$393,2,FALSE)),'Preliminary SO66'!AR25,VLOOKUP($CZ26,'Audit Values'!$A$2:$BU$393,66,FALSE)) -> 81 | AM26: 123371 | AN26: 131353 | AO26: =MAX(AN26, AM26)/'Weighting Factors'!$Q$5 -> 29.6 | AP26: =CN26/'Weighting Factors'!$Q$5 -> 0 | AQ26: 0 | AR26: =CS26/'Weighting Factors'!$Q$5 -> 0 | AS26: 431130 | AT26: =AS26/'Weighting Factors'!$Q$5 -> 97.2 | AU26: =IF(ISNA(VLOOKUP($CZ26,'Audit Values'!$A$2:$BU$393,2,FALSE)),'Preliminary SO66'!X25,VLOOKUP($CZ26,'Audit Values'!$A$2:$BU$393,47,FALSE)) -> 0 | AV26: 754.6 | AW26: 657.4 | AX26: =IF(ISNA(VLOOKUP($CZ26,'Audit Values'!$A$2:$BU$393,2,FALSE)),'Preliminary SO66'!AA25,VLOOKUP($CZ26,'Audit Values'!$A$2:$BU$393,41,FALSE)) -> 0 | AY26: =IF(ISNA(VLOOKUP($CZ26,'Audit Values'!$A$2:$BU$393,2,FALSE)),'Preliminary SO66'!AB25,VLOOKUP($CZ26,'Audit Values'!$A$2:$BU$393,42,FALSE)) -> 0 | AZ26: 0 | BA26: =SUM(AX26*'Weighting Factors'!$T$10)+('2020 Legal Max'!AY26*'Weighting Factors'!$T$11)+('2020 Legal Max'!AZ26*'Weighting Factors'!$T$12) -> 0 | BB26: 0 | BC26: =IF(ISNA(VLOOKUP($CZ26,'Audit Values'!$A$2:$BU$274,2,FALSE)),"",IF(AND('Weighting Factors'!H26>0,VLOOKUP($CZ26,'Audit Values'!$A$2:$BU$274,51,FALSE)<'Weighting Factors'!H26),'Weighting Factors'!H26,VLOOKUP($CZ26,'Audit Values'!$A$2:$BU$274,50,FALSE))) -> 20 | BD26: =IF(ISNA(VLOOKUP($CZ26,'Audit Values'!$A$2:$BV$447,2,FALSE)),"",VLOOKUP($CZ26,'Audit Values'!$A$2:$BV$447,51,FALSE)) -> A | BE26: =IF('Weighting Factors'!H26="","",IF('Weighting Factors'!J26="Pending","PX","R")) ->  | BF26: =SUM((S26+T26+Y26+AA26+AE26+AH26+AJ26++AO26+AP26+AQ26+AU26+AR26)*'Weighting Factors'!$Q$5)+'2020 Legal Max'!BA26+'2020 Legal Max'!BB26 -> 2916226 | BG26: =SUM((AV26+AR26)*'Weighting Factors'!$Q$5)+BA26+'2020 Legal Max'!BB26 -> 3347406 | BH26: =IF('Weighting Factors'!H26>0,'Weighting Factors'!H26,'Preliminary SO66'!AV25) -> 3452095 | BI26: 3347406 | BJ26: ='Weighting Factors'!G26 -> 0 | BK26: ='Weighting Factors'!F26 -> 0 | BL26: ='Weighting Factors'!E26 -> 0 | BM26: 0 | BN26: 3347406 | BO26: =SUM((S26+T26+Y26+AA26+AE26+AH26+AJ26++AO26+AP26+AQ26+AR26)*'Weighting Factors'!Q$12)+(MAX(AS26,'Weighting Factors'!B26)) -> 3506427 | BP26: ='LOB%'!F24 -> 0.33 | BQ26: 1157121 | BR26: 1174268 | BS26: 1157121 | BT26: 0.33 | BU26: 0 | BV26: FALSE | BW26: 0 | BX26: 0 | BY26: 0 | BZ26: TRUE | CA26: 109.2713 | CB26: 0.454186 | CC26: 176.4 | CD26: 0 | CE26: 706.7 | CF26: 0.115 | CG26: =IF(CF26<0.06,1,IF(CF26>=18.29,52,MATCH(CF26-0.001,'Weighting Factors'!$Y$5:$Y$156)+1)) -> 7 | CH26: =VLOOKUP(CG26, 'Weighting Factors'!$W$5:$Z$56,4) -> 1430 | CI26: =('Weighting Factors'!$Q$5/'Weighting Factors'!$Q$14) -> 1.0651 | CJ26: 115830 | CK26: =CJ26*'Weighting Factors'!$S$7 -> 115830 | CL26: 123371 | CM26: =AM26/'Weighting Factors'!$Q$5 -> 27.8 | CN26: 0 | CO26: 0 | CP26: 0 | CQ26: 0 | CR26: =SUM((AV26*'Weighting Factors'!$Q$5)+'2020 Legal Max'!BA26)*CQ26 -> 0 | CS26: 0 | CT26: 0.2589 | CU26: 0 | CV26: 0 | CW26: 754.6 | CX26: ='LOB Transfers'!G25 -> 76023 | CY26: ='LOB Transfers'!J25 -> 0 | CZ26: D0208
A27: 209 | B27: Stevens | C27: Moscow Public Schools | D27: 171 | E27: 0 | F27: 171 | G27: 176 | H27: 0 | I27: 176 | J27: 159.2 | K27: 0 | L27: 159.2 | M27: =IF(ISNA(VLOOKUP($CZ27,'Audit Values'!$A$2:$BW$496,2,FALSE)),'Preliminary SO66'!C26,VLOOKUP($CZ27,'Audit Values'!$A$2:$BW$496,73,FALSE)) -> 148.9 | N27: =IF(ISNA(VLOOKUP($CZ27,'Audit Values'!$A$2:$BW$496,2,FALSE)),'Preliminary SO66'!F26,VLOOKUP($CZ27,'Audit Values'!$A$2:$BW$496,4,FALSE)) -> 0 | O27: 148.9 | P27: =IF('Military Provision'!J28="YES", MAX('2020 Legal Max'!L27,'2020 Legal Max'!I27,AVERAGE('2020 Legal Max'!F27,'2020 Legal Max'!I27,'2020 Legal Max'!L27)), MAX(L27, I27)) -> 176 | Q27: =IF(ISNA(VLOOKUP($CZ27,'Audit Values'!$A$2:$BU$393,2,FALSE)),'Preliminary SO66'!AL26,VLOOKUP($CZ27,'Audit Values'!$A$2:$BU$393,58,FALSE)) -> 1.9 | R27: 0 | S27: 177.9 | T27: 143.7 | U27: =IF(ISNA(VLOOKUP($CZ27,'Audit Values'!$A$2:$BW$447,2,FALSE)),'Preliminary SO66'!AM26,VLOOKUP($CZ27,'Audit Values'!$A$2:$BW$447,62,FALSE)) -> 198.1 | V27: =(U27/6)*'Weighting Factors'!$Q$7 -> 13 | W27: =IF(ISNA(VLOOKUP($CZ27,'Audit Values'!$A$2:$BW$447,2,FALSE)),'Preliminary SO66'!AN26,VLOOKUP($CZ27,'Audit Values'!$A$2:$BW$447,61,FALSE)) -> 47 | X27: =W27*'Weighting Factors'!$Q$8 -> 8.7 | Y27: 13 | Z27: =IF(ISNA(VLOOKUP($CZ27,'Audit Values'!$A$2:$BW$447,2,FALSE)),'Preliminary SO66'!AO26,VLOOKUP($CZ27,'Audit Values'!$A$2:$BW$447,60,FALSE)) -> 0 | AA27: =Z27/6*'Weighting Factors'!$Q$6 -> 0 | AB27: =IF(ISNA(VLOOKUP($CZ27,'Audit Values'!$A$2:$BU$393,2,FALSE)),'Preliminary SO66'!AS26,VLOOKUP($CZ27,'Audit Values'!$A$2:$BU$393,63,FALSE)) -> 160 | AC27: 0 | AD27: =IF(ISNA(VLOOKUP($CZ27,'Audit Values'!$A$2:$BU$393,2,FALSE)),'Preliminary SO66'!AP26,VLOOKUP($CZ27,'Audit Values'!$A$2:$BU$393,64,FALSE)) -> 74 | AE27: =IF(A27=207, AD27,MAX(AC27,AD27))*'Weighting Factors'!$Q$9 -> 35.8 | AF27: 5.8 | AG27: =IF(ISNA(VLOOKUP($CZ27,'Audit Values'!$A$2:$BW$393,2,FALSE)),'Preliminary SO66'!AG26,VLOOKUP($CZ27,'Audit Values'!$A$2:$BW$393,70,FALSE)) -> 5.8 | AH27: 5.8 | AI27: =IF(ISNA(VLOOKUP($CZ27,'Audit Values'!$A$2:$BU$393,2,FALSE)),'Preliminary SO66'!AQ26,VLOOKUP($CZ27,'Audit Values'!$A$2:$BU$393,65,FALSE)) -> 0 | AJ27: =AI27*'Weighting Factors'!$Q$10 -> 0 | AK27: =IF(ISNA(VLOOKUP($CZ27,'Audit Values'!$A$2:$BU$393,2,FALSE)),'Preliminary SO66'!AR26,VLOOKUP($CZ27,'Audit Values'!$A$2:$BU$393,66,FALSE)) -> 36 | AM27: 51380 | AN27: 69721 | AO27: =MAX(AN27, AM27)/'Weighting Factors'!$Q$5 -> 15.7 | AP27: =CN27/'Weighting Factors'!$Q$5 -> 0 | AQ27: 0 | AR27: =CS27/'Weighting Factors'!$Q$5 -> 0 | AS27: 115638 | AT27: =AS27/'Weighting Factors'!$Q$5 -> 26.1 | AU27: =IF(ISNA(VLOOKUP($CZ27,'Audit Values'!$A$2:$BU$393,2,FALSE)),'Preliminary SO66'!X26,VLOOKUP($CZ27,'Audit Values'!$A$2:$BU$393,47,FALSE)) -> 0 | AV27: 418 | AW27: 391.9 | AX27: =IF(ISNA(VLOOKUP($CZ27,'Audit Values'!$A$2:$BU$393,2,FALSE)),'Preliminary SO66'!AA26,VLOOKUP($CZ27,'Audit Values'!$A$2:$BU$393,41,FALSE)) -> 0 | AY27: =IF(ISNA(VLOOKUP($CZ27,'Audit Values'!$A$2:$BU$393,2,FALSE)),'Preliminary SO66'!AB26,VLOOKUP($CZ27,'Audit Values'!$A$2:$BU$393,42,FALSE)) -> 0 | AZ27: 0 | BA27: =SUM(AX27*'Weighting Factors'!$T$10)+('2020 Legal Max'!AY27*'Weighting Factors'!$T$11)+('2020 Legal Max'!AZ27*'Weighting Factors'!$T$12) -> 0 | BB27: 0 | BC27: =IF(ISNA(VLOOKUP($CZ27,'Audit Values'!$A$2:$BU$274,2,FALSE)),"",IF(AND('Weighting Factors'!H27>0,VLOOKUP($CZ27,'Audit Values'!$A$2:$BU$274,51,FALSE)<'Weighting Factors'!H27),'Weighting Factors'!H27,VLOOKUP($CZ27,'Audit Values'!$A$2:$BU$274,50,FALSE))) -> 23 | BD27: =IF(ISNA(VLOOKUP($CZ27,'Audit Values'!$A$2:$BV$447,2,FALSE)),"",VLOOKUP($CZ27,'Audit Values'!$A$2:$BV$447,51,FALSE)) -> A | BE27: =IF('Weighting Factors'!H27="","",IF('Weighting Factors'!J27="Pending","PX","R")) ->  | BF27: =SUM((S27+T27+Y27+AA27+AE27+AH27+AJ27++AO27+AP27+AQ27+AU27+AR27)*'Weighting Factors'!$Q$5)+'2020 Legal Max'!BA27+'2020 Legal Max'!BB27 -> 1738468 | BG27: =SUM((AV27+AR27)*'Weighting Factors'!$Q$5)+BA27+'2020 Legal Max'!BB27 -> 1854248 | BH27: =IF('Weighting Factors'!H27>0,'Weighting Factors'!H27,'Preliminary SO66'!AV26) -> 1934096 | BI27: 1854248 | BJ27: ='Weighting Factors'!G27 -> 0 | BK27: ='Weighting Factors'!F27 -> 0 | BL27: ='Weighting Factors'!E27 -> 0 | BM27: 0 | BN27: 1854248 | BO27: =SUM((S27+T27+Y27+AA27+AE27+AH27+AJ27++AO27+AP27+AQ27+AR27)*'Weighting Factors'!Q$12)+(MAX(AS27,'Weighting Factors'!B27)) -> 1924441 | BP27: ='LOB%'!F25 -> 0.33 | BQ27: 635066 | BR27: 654491 | BS27: 635066 | BT27: 0.33 | BU27: 0 | BV27: TRUE | BW27: 752.125 | BX27: 0.80784 | BY27: 143.7 | BZ27: FALSE | CA27: 0 | CB27: 0 | CC27: 0 | CD27: 0 | CE27: 223 | CF27: 0.161 | CG27: =IF(CF27<0.06,1,IF(CF27>=18.29,52,MATCH(CF27-0.001,'Weighting Factors'!$Y$5:$Y$156)+1)) -> 12 | CH27: =VLOOKUP(CG27, 'Weighting Factors'!$W$5:$Z$56,4) -> 1340 | CI27: =('Weighting Factors'!$Q$5/'Weighting Factors'!$Q$14) -> 1.0651 | CJ27: 48240 | CK27: =CJ27*'Weighting Factors'!$S$7 -> 48240 | CL27: 51380 | CM27: =AM27/'Weighting Factors'!$Q$5 -> 11.6 | CN27: 0 | CO27: 0 | CP27: 0 | CQ27: 0 | CR27: =SUM((AV27*'Weighting Factors'!$Q$5)+'2020 Legal Max'!BA27)*CQ27 -> 0 | CS27: 0 | CT27: 0.4625 | CU27: 0 | CV27: 5.8 | CW27: 418 | CX27: ='LOB Transfers'!G26 -> 54616 | CY27: ='LOB Transfers'!J26 -> 19814 | CZ27: D0209
A28: 210 | B28: Stevens | C28: Hugoton Public Schools | D28: 995.6 | E28: 0 | F28: 995.6 | G28: 959.1 | H28: 0 | I28: 959.1 | J28: 999.8 | K28: 0 | L28: 999.8 | M28: =IF(ISNA(VLOOKUP($CZ28,'Audit Values'!$A$2:$BW$496,2,FALSE)),'Preliminary SO66'!C27,VLOOKUP($CZ28,'Audit Values'!$A$2:$BW$496,73,FALSE)) -> 984.7 | N28: =IF(ISNA(VLOOKUP($CZ28,'Audit Values'!$A$2:$BW$496,2,FALSE)),'Preliminary SO66'!F27,VLOOKUP($CZ28,'Audit Values'!$A$2:$BW$496,4,FALSE)) -> 0 | O28: 984.7 | P28: =IF('Military Provision'!J29="YES", MAX('2020 Legal Max'!L28,'2020 Legal Max'!I28,AVERAGE('2020 Legal Max'!F28,'2020 Legal Max'!I28,'2020 Legal Max'!L28)), MAX(L28, I28)) -> 999.8 | Q28: =IF(ISNA(VLOOKUP($CZ28,'Audit Values'!$A$2:$BU$393,2,FALSE)),'Preliminary SO66'!AL27,VLOOKUP($CZ28,'Audit Values'!$A$2:$BU$393,58,FALSE)) -> 14.5 | R28: 0 | S28: 1014.3 | T28: 245 | U28: =IF(ISNA(VLOOKUP($CZ28,'Audit Values'!$A$2:$BW$447,2,FALSE)),'Preliminary SO66'!AM27,VLOOKUP($CZ28,'Audit Values'!$A$2:$BW$447,62,FALSE)) -> 1074.1 | V28: =(U28/6)*'Weighting Factors'!$Q$7 -> 70.7 | W28: =IF(ISNA(VLOOKUP($CZ28,'Audit Values'!$A$2:$BW$447,2,FALSE)),'Preliminary SO66'!AN27,VLOOKUP($CZ28,'Audit Values'!$A$2:$BW$447,61,FALSE)) -> 292 | X28: =W28*'Weighting Factors'!$Q$8 -> 54 | Y28: 70.7 | Z28: =IF(ISNA(VLOOKUP($CZ28,'Audit Values'!$A$2:$BW$447,2,FALSE)),'Preliminary SO66'!AO27,VLOOKUP($CZ28,'Audit Values'!$A$2:$BW$447,60,FALSE)) -> 240.8 | AA28: =Z28/6*'Weighting Factors'!$Q$6 -> 20.1 | AB28: =IF(ISNA(VLOOKUP($CZ28,'Audit Values'!$A$2:$BU$393,2,FALSE)),'Preliminary SO66'!AS27,VLOOKUP($CZ28,'Audit Values'!$A$2:$BU$393,63,FALSE)) -> 1026 | AC28: 0 | AD28: =IF(ISNA(VLOOKUP($CZ28,'Audit Values'!$A$2:$BU$393,2,FALSE)),'Preliminary SO66'!AP27,VLOOKUP($CZ28,'Audit Values'!$A$2:$BU$393,64,FALSE)) -> 462 | AE28: =IF(A28=207, AD28,MAX(AC28,AD28))*'Weighting Factors'!$Q$9 -> 223.6 | AF28: 32.4 | AG28: =IF(ISNA(VLOOKUP($CZ28,'Audit Values'!$A$2:$BW$393,2,FALSE)),'Preliminary SO66'!AG27,VLOOKUP($CZ28,'Audit Values'!$A$2:$BW$393,70,FALSE)) -> 34.4 | AH28: 34.4 | AI28: =IF(ISNA(VLOOKUP($CZ28,'Audit Values'!$A$2:$BU$393,2,FALSE)),'Preliminary SO66'!AQ27,VLOOKUP($CZ28,'Audit Values'!$A$2:$BU$393,65,FALSE)) -> 0 | AJ28: =AI28*'Weighting Factors'!$Q$10 -> 0 | AK28: =IF(ISNA(VLOOKUP($CZ28,'Audit Values'!$A$2:$BU$393,2,FALSE)),'Preliminary SO66'!AR27,VLOOKUP($CZ28,'Audit Values'!$A$2:$BU$393,66,FALSE)) -> 137 | AM28: 182398 | AN28: 245372 | AO28: =MAX(AN28, AM28)/'Weighting Factors'!$Q$5 -> 55.3 | AP28: =CN28/'Weighting Factors'!$Q$5 -> 0 | AQ28: 0 | AR28: =CS28/'Weighting Factors'!$Q$5 -> 0 | AS28: 572473 | AT28: =AS28/'Weighting Factors'!$Q$5 -> 129.1 | AU28: =IF(ISNA(VLOOKUP($CZ28,'Audit Values'!$A$2:$BU$393,2,FALSE)),'Preliminary SO66'!X27,VLOOKUP($CZ28,'Audit Values'!$A$2:$BU$393,47,FALSE)) -> 0 | AV28: 1792.5 | AW28: 1663.4 | AX28: =IF(ISNA(VLOOKUP($CZ28,'Audit Values'!$A$2:$BU$393,2,FALSE)),'Preliminary SO66'!AA27,VLOOKUP($CZ28,'Audit Values'!$A$2:$BU$393,41,FALSE)) -> 0 | AY28: =IF(ISNA(VLOOKUP($CZ28,'Audit Values'!$A$2:$BU$393,2,FALSE)),'Preliminary SO66'!AB27,VLOOKUP($CZ28,'Audit Values'!$A$2:$BU$393,42,FALSE)) -> 0 | AZ28: 44 | BA28: =SUM(AX28*'Weighting Factors'!$T$10)+('2020 Legal Max'!AY28*'Weighting Factors'!$T$11)+('2020 Legal Max'!AZ28*'Weighting Factors'!$T$12) -> 31196 | BB28: 0 | BC28: =IF(ISNA(VLOOKUP($CZ28,'Audit Values'!$A$2:$BU$274,2,FALSE)),"",IF(AND('Weighting Factors'!H28>0,VLOOKUP($CZ28,'Audit Values'!$A$2:$BU$274,51,FALSE)<'Weighting Factors'!H28),'Weighting Factors'!H28,VLOOKUP($CZ28,'Audit Values'!$A$2:$BU$274,50,FALSE))) -> 6 | BD28: =IF(ISNA(VLOOKUP($CZ28,'Audit Values'!$A$2:$BV$447,2,FALSE)),"",VLOOKUP($CZ28,'Audit Values'!$A$2:$BV$447,51,FALSE)) -> A | BE28: =IF('Weighting Factors'!H28="","",IF('Weighting Factors'!J28="Pending","PX","R")) ->  | BF28: =SUM((S28+T28+Y28+AA28+AE28+AH28+AJ28++AO28+AP28+AQ28+AU28+AR28)*'Weighting Factors'!$Q$5)+'2020 Legal Max'!BA28+'2020 Legal Max'!BB28 -> 7410038 | BG28: =SUM((AV28+AR28)*'Weighting Factors'!$Q$5)+BA28+'2020 Legal Max'!BB28 -> 7982726 | BH28: =IF('Weighting Factors'!H28>0,'Weighting Factors'!H28,'Preliminary SO66'!AV27) -> 8238416 | BI28: 7982726 | BJ28: ='Weighting Factors'!G28 -> 0 | BK28: ='Weighting Factors'!F28 -> 0 | BL28: ='Weighting Factors'!E28 -> 0 | BM28: 0 | BN28: 7982726 | BO28: =SUM((S28+T28+Y28+AA28+AE28+AH28+AJ28++AO28+AP28+AQ28+AR28)*'Weighting Factors'!Q$12)+(MAX(AS28,'Weighting Factors'!B28)) -> 8204556 | BP28: ='LOB%'!F26 -> 0.3 | BQ28: 2461367 | BR28: 2518087 | BS28: 2461367 | BT28: 0.3 | BU28: 0 | BV28: FALSE | BW28: 0 | BX28: 0 | BY28: 0 | BZ28: TRUE | CA28: 883.9463 | CB28: 0.241504 | CC28: 245 | CD28: 0 | CE28: 575 | CF28: 0.238 | CG28: =IF(CF28<0.06,1,IF(CF28>=18.29,52,MATCH(CF28-0.001,'Weighting Factors'!$Y$5:$Y$156)+1)) -> 17 | CH28: =VLOOKUP(CG28, 'Weighting Factors'!$W$5:$Z$56,4) -> 1250 | CI28: =('Weighting Factors'!$Q$5/'Weighting Factors'!$Q$14) -> 1.0651 | CJ28: 171250 | CK28: =CJ28*'Weighting Factors'!$S$7 -> 171250 | CL28: 182398 | CM28: =AM28/'Weighting Factors'!$Q$5 -> 41.1 | CN28: 0 | CO28: 0 | CP28: 0 | CQ28: 0 | CR28: =SUM((AV28*'Weighting Factors'!$Q$5)+'2020 Legal Max'!BA28)*CQ28 -> 0 | CS28: 0 | CT28: 0.4503 | CU28: 0 | CV28: 32.4 | CW28: 1792.5 | CX28: ='LOB Transfers'!G27 -> 309640 | CY28: ='LOB Transfers'!J27 -> 97962 | CZ28: D0210
A29: 211 | B29: Norton | C29: Norton Community Schools | D29: 659 | E29: 0 | F29: 659 | G29: 675.1 | H29: 0 | I29: 675.1 | J29: 672 | K29: 0 | L29: 672 | M29: =IF(ISNA(VLOOKUP($CZ29,'Audit Values'!$A$2:$BW$496,2,FALSE)),'Preliminary SO66'!C28,VLOOKUP($CZ29,'Audit Values'!$A$2:$BW$496,73,FALSE)) -> 653.7 | N29: =IF(ISNA(VLOOKUP($CZ29,'Audit Values'!$A$2:$BW$496,2,FALSE)),'Preliminary SO66'!F28,VLOOKUP($CZ29,'Audit Values'!$A$2:$BW$496,4,FALSE)) -> 0 | O29: 653.7 | P29: =IF('Military Provision'!J30="YES", MAX('2020 Legal Max'!L29,'2020 Legal Max'!I29,AVERAGE('2020 Legal Max'!F29,'2020 Legal Max'!I29,'2020 Legal Max'!L29)), MAX(L29, I29)) -> 675.1 | Q29: =IF(ISNA(VLOOKUP($CZ29,'Audit Values'!$A$2:$BU$393,2,FALSE)),'Preliminary SO66'!AL28,VLOOKUP($CZ29,'Audit Values'!$A$2:$BU$393,58,FALSE)) -> 0 | R29: 0 | S29: 675.1 | T29: 240.8 | U29: =IF(ISNA(VLOOKUP($CZ29,'Audit Values'!$A$2:$BW$447,2,FALSE)),'Preliminary SO66'!AM28,VLOOKUP($CZ29,'Audit Values'!$A$2:$BW$447,62,FALSE)) -> 0 | V29: =(U29/6)*'Weighting Factors'!$Q$7 -> 0 | W29: =IF(ISNA(VLOOKUP($CZ29,'Audit Values'!$A$2:$BW$447,2,FALSE)),'Preliminary SO66'!AN28,VLOOKUP($CZ29,'Audit Values'!$A$2:$BW$447,61,FALSE)) -> 5 | X29: =W29*'Weighting Factors'!$Q$8 -> 0.9 | Y29: 0.9 | Z29: =IF(ISNA(VLOOKUP($CZ29,'Audit Values'!$A$2:$BW$447,2,FALSE)),'Preliminary SO66'!AO28,VLOOKUP($CZ29,'Audit Values'!$A$2:$BW$447,60,FALSE)) -> 82.2 | AA29: =Z29/6*'Weighting Factors'!$Q$6 -> 6.9 | AB29: =IF(ISNA(VLOOKUP($CZ29,'Audit Values'!$A$2:$BU$393,2,FALSE)),'Preliminary SO66'!AS28,VLOOKUP($CZ29,'Audit Values'!$A$2:$BU$393,63,FALSE)) -> 659 | AC29: 0 | AD29: =IF(ISNA(VLOOKUP($CZ29,'Audit Values'!$A$2:$BU$393,2,FALSE)),'Preliminary SO66'!AP28,VLOOKUP($CZ29,'Audit Values'!$A$2:$BU$393,64,FALSE)) -> 198 | AE29: =IF(A29=207, AD29,MAX(AC29,AD29))*'Weighting Factors'!$Q$9 -> 95.8 | AF29: 0 | AG29: =IF(ISNA(VLOOKUP($CZ29,'Audit Values'!$A$2:$BW$393,2,FALSE)),'Preliminary SO66'!AG28,VLOOKUP($CZ29,'Audit Values'!$A$2:$BW$393,70,FALSE)) -> 0 | AH29: 0 | AI29: =IF(ISNA(VLOOKUP($CZ29,'Audit Values'!$A$2:$BU$393,2,FALSE)),'Preliminary SO66'!AQ28,VLOOKUP($CZ29,'Audit Values'!$A$2:$BU$393,65,FALSE)) -> 0 | AJ29: =AI29*'Weighting Factors'!$Q$10 -> 0 | AK29: =IF(ISNA(VLOOKUP($CZ29,'Audit Values'!$A$2:$BU$393,2,FALSE)),'Preliminary SO66'!AR28,VLOOKUP($CZ29,'Audit Values'!$A$2:$BU$393,66,FALSE)) -> 123.5 | AM29: 171002 | AN29: 220334 | AO29: =MAX(AN29, AM29)/'Weighting Factors'!$Q$5 -> 49.7 | AP29: =CN29/'Weighting Factors'!$Q$5 -> 0 | AQ29: 0 | AR29: =CS29/'Weighting Factors'!$Q$5 -> 0 | AS29: 809316 | AT29: =AS29/'Weighting Factors'!$Q$5 -> 182.4 | AU29: =IF(ISNA(VLOOKUP($CZ29,'Audit Values'!$A$2:$BU$393,2,FALSE)),'Preliminary SO66'!X28,VLOOKUP($CZ29,'Audit Values'!$A$2:$BU$393,47,FALSE)) -> 0 | AV29: 1251.6 | AW29: 1069.2 | AX29: =IF(ISNA(VLOOKUP($CZ29,'Audit Values'!$A$2:$BU$393,2,FALSE)),'Preliminary SO66'!AA28,VLOOKUP($CZ29,'Audit Values'!$A$2:$BU$393,41,FALSE)) -> 0 | AY29: =IF(ISNA(VLOOKUP($CZ29,'Audit Values'!$A$2:$BU$393,2,FALSE)),'Preliminary SO66'!AB28,VLOOKUP($CZ29,'Audit Values'!$A$2:$BU$393,42,FALSE)) -> 0 | AZ29: 0 | BA29: =SUM(AX29*'Weighting Factors'!$T$10)+('2020 Legal Max'!AY29*'Weighting Factors'!$T$11)+('2020 Legal Max'!AZ29*'Weighting Factors'!$T$12) -> 0 | BB29: 0 | BC29: =IF(ISNA(VLOOKUP($CZ29,'Audit Values'!$A$2:$BU$274,2,FALSE)),"",IF(AND('Weighting Factors'!H29>0,VLOOKUP($CZ29,'Audit Values'!$A$2:$BU$274,51,FALSE)<'Weighting Factors'!H29),'Weighting Factors'!H29,VLOOKUP($CZ29,'Audit Values'!$A$2:$BU$274,50,FALSE))) -> 8 | BD29: =IF(ISNA(VLOOKUP($CZ29,'Audit Values'!$A$2:$BV$447,2,FALSE)),"",VLOOKUP($CZ29,'Audit Values'!$A$2:$BV$447,51,FALSE)) -> A | BE29: =IF('Weighting Factors'!H29="","",IF('Weighting Factors'!J29="Pending","PX","R")) ->  | BF29: =SUM((S29+T29+Y29+AA29+AE29+AH29+AJ29++AO29+AP29+AQ29+AU29+AR29)*'Weighting Factors'!$Q$5)+'2020 Legal Max'!BA29+'2020 Legal Max'!BB29 -> 4742971 | BG29: =SUM((AV29+AR29)*'Weighting Factors'!$Q$5)+BA29+'2020 Legal Max'!BB29 -> 5552098 | BH29: =IF('Weighting Factors'!H29>0,'Weighting Factors'!H29,'Preliminary SO66'!AV28) -> 5762364 | BI29: 5552098 | BJ29: ='Weighting Factors'!G29 -> 0 | BK29: ='Weighting Factors'!F29 -> 0 | BL29: ='Weighting Factors'!E29 -> 0 | BM29: 0 | BN29: 5552098 | BO29: =SUM((S29+T29+Y29+AA29+AE29+AH29+AJ29++AO29+AP29+AQ29+AR29)*'Weighting Factors'!Q$12)+(MAX(AS29,'Weighting Factors'!B29)) -> 5739948 | BP29: ='LOB%'!F27 -> 0.3 | BQ29: 1721984 | BR29: 1768758 | BS29: 1721984 | BT29: 0.3 | BU29: 0 | BV29: FALSE | BW29: 0 | BX29: 0 | BY29: 0 | BZ29: TRUE | CA29: 464.1863 | CB29: 0.356747 | CC29: 240.8 | CD29: 0 | CE29: 678 | CF29: 0.182 | CG29: =IF(CF29<0.06,1,IF(CF29>=18.29,52,MATCH(CF29-0.001,'Weighting Factors'!$Y$5:$Y$156)+1)) -> 14 | CH29: =VLOOKUP(CG29, 'Weighting Factors'!$W$5:$Z$56,4) -> 1300 | CI29: =('Weighting Factors'!$Q$5/'Weighting Factors'!$Q$14) -> 1.0651 | CJ29: 160550 | CK29: =CJ29*'Weighting Factors'!$S$7 -> 160550 | CL29: 171002 | CM29: =AM29/'Weighting Factors'!$Q$5 -> 38.5 | CN29: 0 | CO29: 0 | CP29: 0 | CQ29: 0 | CR29: =SUM((AV29*'Weighting Factors'!$Q$5)+'2020 Legal Max'!BA29)*CQ29 -> 0 | CS29: 0 | CT29: 0.3005 | CU29: 0 | CV29: 0 | CW29: 1251.6 | CX29: ='LOB Transfers'!G28 -> 131732 | CY29: ='LOB Transfers'!J28 -> 1205 | CZ29: D0211
A30: 212 | B30: Norton | C30: Northern Valley | D30: 145 | E30: 0 | F30: 145 | G30: 150.5 | H30: 0 | I30: 150.5 | J30: 144 | K30: 0 | L30: 144 | M30: =IF(ISNA(VLOOKUP($CZ30,'Audit Values'!$A$2:$BW$496,2,FALSE)),'Preliminary SO66'!C29,VLOOKUP($CZ30,'Audit Values'!$A$2:$BW$496,73,FALSE)) -> 135.4 | N30: =IF(ISNA(VLOOKUP($CZ30,'Audit Values'!$A$2:$BW$496,2,FALSE)),'Preliminary SO66'!F29,VLOOKUP($CZ30,'Audit Values'!$A$2:$BW$496,4,FALSE)) -> 0 | O30: 135.4 | P30: =IF('Military Provision'!J31="YES", MAX('2020 Legal Max'!L30,'2020 Legal Max'!I30,AVERAGE('2020 Legal Max'!F30,'2020 Legal Max'!I30,'2020 Legal Max'!L30)), MAX(L30, I30)) -> 150.5 | Q30: =IF(ISNA(VLOOKUP($CZ30,'Audit Values'!$A$2:$BU$393,2,FALSE)),'Preliminary SO66'!AL29,VLOOKUP($CZ30,'Audit Values'!$A$2:$BU$393,58,FALSE)) -> 0 | R30: 0 | S30: 150.5 | T30: 132.5 | U30: =IF(ISNA(VLOOKUP($CZ30,'Audit Values'!$A$2:$BW$447,2,FALSE)),'Preliminary SO66'!AM29,VLOOKUP($CZ30,'Audit Values'!$A$2:$BW$447,62,FALSE)) -> 0 | V30: =(U30/6)*'Weighting Factors'!$Q$7 -> 0 | W30: =IF(ISNA(VLOOKUP($CZ30,'Audit Values'!$A$2:$BW$447,2,FALSE)),'Preliminary SO66'!AN29,VLOOKUP($CZ30,'Audit Values'!$A$2:$BW$447,61,FALSE)) -> 0 | X30: =W30*'Weighting Factors'!$Q$8 -> 0 | Y30: 0 | Z30: =IF(ISNA(VLOOKUP($CZ30,'Audit Values'!$A$2:$BW$447,2,FALSE)),'Preliminary SO66'!AO29,VLOOKUP($CZ30,'Audit Values'!$A$2:$BW$447,60,FALSE)) -> 70 | AA30: =Z30/6*'Weighting Factors'!$Q$6 -> 5.8 | AB30: =IF(ISNA(VLOOKUP($CZ30,'Audit Values'!$A$2:$BU$393,2,FALSE)),'Preliminary SO66'!AS29,VLOOKUP($CZ30,'Audit Values'!$A$2:$BU$393,63,FALSE)) -> 138 | AC30: 0 | AD30: =IF(ISNA(VLOOKUP($CZ30,'Audit Values'!$A$2:$BU$393,2,FALSE)),'Preliminary SO66'!AP29,VLOOKUP($CZ30,'Audit Values'!$A$2:$BU$393,64,FALSE)) -> 56 | AE30: =IF(A30=207, AD30,MAX(AC30,AD30))*'Weighting Factors'!$Q$9 -> 27.1 | AF30: 2.2 | AG30: =IF(ISNA(VLOOKUP($CZ30,'Audit Values'!$A$2:$BW$393,2,FALSE)),'Preliminary SO66'!AG29,VLOOKUP($CZ30,'Audit Values'!$A$2:$BW$393,70,FALSE)) -> 3.4 | AH30: 3.4 | AI30: =IF(ISNA(VLOOKUP($CZ30,'Audit Values'!$A$2:$BU$393,2,FALSE)),'Preliminary SO66'!AQ29,VLOOKUP($CZ30,'Audit Values'!$A$2:$BU$393,65,FALSE)) -> 0 | AJ30: =AI30*'Weighting Factors'!$Q$10 -> 0 | AK30: =IF(ISNA(VLOOKUP($CZ30,'Audit Values'!$A$2:$BU$393,2,FALSE)),'Preliminary SO66'!AR29,VLOOKUP($CZ30,'Audit Values'!$A$2:$BU$393,66,FALSE)) -> 24 | AM30: 37832 | AN30: 124805 | AO30: =MAX(AN30, AM30)/'Weighting Factors'!$Q$5 -> 28.1 | AP30: =CN30/'Weighting Factors'!$Q$5 -> 0 | AQ30: 0 | AR30: =CS30/'Weighting Factors'!$Q$5 -> 0 | AS30: 173424 | AT30: =AS30/'Weighting Factors'!$Q$5 -> 39.1 | AU30: =IF(ISNA(VLOOKUP($CZ30,'Audit Values'!$A$2:$BU$393,2,FALSE)),'Preliminary SO66'!X29,VLOOKUP($CZ30,'Audit Values'!$A$2:$BU$393,47,FALSE)) -> 0 | AV30: 386.5 | AW30: 347.4 | AX30: =IF(ISNA(VLOOKUP($CZ30,'Audit Values'!$A$2:$BU$393,2,FALSE)),'Preliminary SO66'!AA29,VLOOKUP($CZ30,'Audit Values'!$A$2:$BU$393,41,FALSE)) -> 0 | AY30: =IF(ISNA(VLOOKUP($CZ30,'Audit Values'!$A$2:$BU$393,2,FALSE)),'Preliminary SO66'!AB29,VLOOKUP($CZ30,'Audit Values'!$A$2:$BU$393,42,FALSE)) -> 0 | AZ30: 0 | BA30: =SUM(AX30*'Weighting Factors'!$T$10)+('2020 Legal Max'!AY30*'Weighting Factors'!$T$11)+('2020 Legal Max'!AZ30*'Weighting Factors'!$T$12) -> 0 | BB30: 0 | BC30: =IF(ISNA(VLOOKUP($CZ30,'Audit Values'!$A$2:$BU$274,2,FALSE)),"",IF(AND('Weighting Factors'!H30>0,VLOOKUP($CZ30,'Audit Values'!$A$2:$BU$274,51,FALSE)<'Weighting Factors'!H30),'Weighting Factors'!H30,VLOOKUP($CZ30,'Audit Values'!$A$2:$BU$274,50,FALSE))) -> 8 | BD30: =IF(ISNA(VLOOKUP($CZ30,'Audit Values'!$A$2:$BV$447,2,FALSE)),"",VLOOKUP($CZ30,'Audit Values'!$A$2:$BV$447,51,FALSE)) -> A | BE30: =IF('Weighting Factors'!H30="","",IF('Weighting Factors'!J30="Pending","PX","R")) ->  | BF30: =SUM((S30+T30+Y30+AA30+AE30+AH30+AJ30++AO30+AP30+AQ30+AU30+AR30)*'Weighting Factors'!$Q$5)+'2020 Legal Max'!BA30+'2020 Legal Max'!BB30 -> 1541066 | BG30: =SUM((AV30+AR30)*'Weighting Factors'!$Q$5)+BA30+'2020 Legal Max'!BB30 -> 1714514 | BH30: =IF('Weighting Factors'!H30>0,'Weighting Factors'!H30,'Preliminary SO66'!AV29) -> 1782828 | BI30: 1714514 | BJ30: ='Weighting Factors'!G30 -> 0 | BK30: ='Weighting Factors'!F30 -> 0 | BL30: ='Weighting Factors'!E30 -> 0 | BM30: 0 | BN30: 1714514 | BO30: =SUM((S30+T30+Y30+AA30+AE30+AH30+AJ30++AO30+AP30+AQ30+AR30)*'Weighting Factors'!Q$12)+(MAX(AS30,'Weighting Factors'!B30)) -> 1830549 | BP30: ='LOB%'!F28 -> 0.3 | BQ30: 549165 | BR30: 565027 | BS30: 549165 | BT30: 0.3 | BU30: 0 | BV30: TRUE | BW30: 487.578 | BX30: 0.880469 | BY30: 132.5 | BZ30: FALSE | CA30: 0 | CB30: 0 | CC30: 0 | CD30: 0 | CE30: 263 | CF30: 0.091 | CG30: =IF(CF30<0.06,1,IF(CF30>=18.29,52,MATCH(CF30-0.001,'Weighting Factors'!$Y$5:$Y$156)+1)) -> 5 | CH30: =VLOOKUP(CG30, 'Weighting Factors'!$W$5:$Z$56,4) -> 1480 | CI30: =('Weighting Factors'!$Q$5/'Weighting Factors'!$Q$14) -> 1.0651 | CJ30: 35520 | CK30: =CJ30*'Weighting Factors'!$S$7 -> 35520 | CL30: 37832 | CM30: =AM30/'Weighting Factors'!$Q$5 -> 8.5 | CN30: 0 | CO30: 0 | CP30: 0 | CQ30: 0 | CR30: =SUM((AV30*'Weighting Factors'!$Q$5)+'2020 Legal Max'!BA30)*CQ30 -> 0 | CS30: 0 | CT30: 0.4058 | CU30: 0 | CV30: 2.2 | CW30: 386.5 | CX30: ='LOB Transfers'!G29 -> 38496 | CY30: ='LOB Transfers'!J29 -> 0 | CZ30: D0212
A31: 214 | B31: Grant | C31: Ulysses | D31: 1633 | E31: 0 | F31: 1633 | G31: 1599.7 | H31: 0 | I31: 1599.7 | J31: 1545 | K31: 0 | L31: 1545 | M31: =IF(ISNA(VLOOKUP($CZ31,'Audit Values'!$A$2:$BW$496,2,FALSE)),'Preliminary SO66'!C30,VLOOKUP($CZ31,'Audit Values'!$A$2:$BW$496,73,FALSE)) -> 1530 | N31: =IF(ISNA(VLOOKUP($CZ31,'Audit Values'!$A$2:$BW$496,2,FALSE)),'Preliminary SO66'!F30,VLOOKUP($CZ31,'Audit Values'!$A$2:$BW$496,4,FALSE)) -> 0 | O31: 1530 | P31: =IF('Military Provision'!J32="YES", MAX('2020 Legal Max'!L31,'2020 Legal Max'!I31,AVERAGE('2020 Legal Max'!F31,'2020 Legal Max'!I31,'2020 Legal Max'!L31)), MAX(L31, I31)) -> 1599.7 | Q31: =IF(ISNA(VLOOKUP($CZ31,'Audit Values'!$A$2:$BU$393,2,FALSE)),'Preliminary SO66'!AL30,VLOOKUP($CZ31,'Audit Values'!$A$2:$BU$393,58,FALSE)) -> 20 | R31: 0 | S31: 1619.7 | T31: 58 | U31: =IF(ISNA(VLOOKUP($CZ31,'Audit Values'!$A$2:$BW$447,2,FALSE)),'Preliminary SO66'!AM30,VLOOKUP($CZ31,'Audit Values'!$A$2:$BW$447,62,FALSE)) -> 1636 | V31: =(U31/6)*'Weighting Factors'!$Q$7 -> 107.7 | W31: =IF(ISNA(VLOOKUP($CZ31,'Audit Values'!$A$2:$BW$447,2,FALSE)),'Preliminary SO66'!AN30,VLOOKUP($CZ31,'Audit Values'!$A$2:$BW$447,61,FALSE)) -> 486 | X31: =W31*'Weighting Factors'!$Q$8 -> 89.9 | Y31: 107.7 | Z31: =IF(ISNA(VLOOKUP($CZ31,'Audit Values'!$A$2:$BW$447,2,FALSE)),'Preliminary SO66'!AO30,VLOOKUP($CZ31,'Audit Values'!$A$2:$BW$447,60,FALSE)) -> 464 | AA31: =Z31/6*'Weighting Factors'!$Q$6 -> 38.7 | AB31: =IF(ISNA(VLOOKUP($CZ31,'Audit Values'!$A$2:$BU$393,2,FALSE)),'Preliminary SO66'!AS30,VLOOKUP($CZ31,'Audit Values'!$A$2:$BU$393,63,FALSE)) -> 1585 | AC31: 0 | AD31: =IF(ISNA(VLOOKUP($CZ31,'Audit Values'!$A$2:$BU$393,2,FALSE)),'Preliminary SO66'!AP30,VLOOKUP($CZ31,'Audit Values'!$A$2:$BU$393,64,FALSE)) -> 774 | AE31: =IF(A31=207, AD31,MAX(AC31,AD31))*'Weighting Factors'!$Q$9 -> 374.6 | AF31: 74.9 | AG31: =IF(ISNA(VLOOKUP($CZ31,'Audit Values'!$A$2:$BW$393,2,FALSE)),'Preliminary SO66'!AG30,VLOOKUP($CZ31,'Audit Values'!$A$2:$BW$393,70,FALSE)) -> 65.9 | AH31: 74.9 | AI31: =IF(ISNA(VLOOKUP($CZ31,'Audit Values'!$A$2:$BU$393,2,FALSE)),'Preliminary SO66'!AQ30,VLOOKUP($CZ31,'Audit Values'!$A$2:$BU$393,65,FALSE)) -> 0 | AJ31: =AI31*'Weighting Factors'!$Q$10 -> 0 | AK31: =IF(ISNA(VLOOKUP($CZ31,'Audit Values'!$A$2:$BU$393,2,FALSE)),'Preliminary SO66'!AR30,VLOOKUP($CZ31,'Audit Values'!$A$2:$BU$393,66,FALSE)) -> 220 | AM31: 264784 | AN31: 263477 | AO31: =MAX(AN31, AM31)/'Weighting Factors'!$Q$5 -> 59.7 | AP31: =CN31/'Weighting Factors'!$Q$5 -> 0 | AQ31: 0 | AR31: =CS31/'Weighting Factors'!$Q$5 -> 0 | AS31: 922827 | AT31: =AS31/'Weighting Factors'!$Q$5 -> 208 | AU31: =IF(ISNA(VLOOKUP($CZ31,'Audit Values'!$A$2:$BU$393,2,FALSE)),'Preliminary SO66'!X30,VLOOKUP($CZ31,'Audit Values'!$A$2:$BU$393,47,FALSE)) -> 0 | AV31: 2541.3 | AW31: 2333.3 | AX31: =IF(ISNA(VLOOKUP($CZ31,'Audit Values'!$A$2:$BU$393,2,FALSE)),'Preliminary SO66'!AA30,VLOOKUP($CZ31,'Audit Values'!$A$2:$BU$393,41,FALSE)) -> 9 | AY31: =IF(ISNA(VLOOKUP($CZ31,'Audit Values'!$A$2:$BU$393,2,FALSE)),'Preliminary SO66'!AB30,VLOOKUP($CZ31,'Audit Values'!$A$2:$BU$393,42,FALSE)) -> 3.3 | AZ31: 60 | BA31: =SUM(AX31*'Weighting Factors'!$T$10)+('2020 Legal Max'!AY31*'Weighting Factors'!$T$11)+('2020 Legal Max'!AZ31*'Weighting Factors'!$T$12) -> 93150 | BB31: 0 | BC31: =IF(ISNA(VLOOKUP($CZ31,'Audit Values'!$A$2:$BU$274,2,FALSE)),"",IF(AND('Weighting Factors'!H31>0,VLOOKUP($CZ31,'Audit Values'!$A$2:$BU$274,51,FALSE)<'Weighting Factors'!H31),'Weighting Factors'!H31,VLOOKUP($CZ31,'Audit Values'!$A$2:$BU$274,50,FALSE))) -> 10 | BD31: =IF(ISNA(VLOOKUP($CZ31,'Audit Values'!$A$2:$BV$447,2,FALSE)),"",VLOOKUP($CZ31,'Audit Values'!$A$2:$BV$447,51,FALSE)) -> A | BE31: =IF('Weighting Factors'!H31="","",IF('Weighting Factors'!J31="Pending","PX","R")) ->  | BF31: =SUM((S31+T31+Y31+AA31+AE31+AH31+AJ31++AO31+AP31+AQ31+AU31+AR31)*'Weighting Factors'!$Q$5)+'2020 Legal Max'!BA31+'2020 Legal Max'!BB31 -> 10443669 | BG31: =SUM((AV31+AR31)*'Weighting Factors'!$Q$5)+BA31+'2020 Legal Max'!BB31 -> 11366357 | BH31: =IF('Weighting Factors'!H31>0,'Weighting Factors'!H31,'Preliminary SO66'!AV30) -> 11560234 | BI31: 11366357 | BJ31: ='Weighting Factors'!G31 -> 0 | BK31: ='Weighting Factors'!F31 -> 0 | BL31: ='Weighting Factors'!E31 -> -36159 | BM31: -36159 | BN31: 11330198 | BO31: =SUM((S31+T31+Y31+AA31+AE31+AH31+AJ31++AO31+AP31+AQ31+AR31)*'Weighting Factors'!Q$12)+(MAX(AS31,'Weighting Factors'!B31)) -> 11629411 | BP31: ='LOB%'!F29 -> 0.3 | BQ31: 3488823 | BR31: 3533053 | BS31: 3488823 | BT31: 0.3 | BU31: 0 | BV31: FALSE | BW31: 0 | BX31: 0 | BY31: 0 | BZ31: TRUE | CA31: 1633.1288 | CB31: 0.03582 | CC31: 58 | CD31: 0 | CE31: 517 | CF31: 0.426 | CG31: =IF(CF31<0.06,1,IF(CF31>=18.29,52,MATCH(CF31-0.001,'Weighting Factors'!$Y$5:$Y$156)+1)) -> 23 | CH31: =VLOOKUP(CG31, 'Weighting Factors'!$W$5:$Z$56,4) -> 1130 | CI31: =('Weighting Factors'!$Q$5/'Weighting Factors'!$Q$14) -> 1.0651 | CJ31: 248600 | CK31: =CJ31*'Weighting Factors'!$S$7 -> 248600 | CL31: 264784 | CM31: =AM31/'Weighting Factors'!$Q$5 -> 59.7 | CN31: 0 | CO31: 0 | CP31: 0 | CQ31: 0 | CR31: =SUM((AV31*'Weighting Factors'!$Q$5)+'2020 Legal Max'!BA31)*CQ31 -> 0 | CS31: 0 | CT31: 0.4883 | CU31: 0 | CV31: 74.9 | CW31: 2541.3 | CX31: ='LOB Transfers'!G30 -> 518439 | CY31: ='LOB Transfers'!J30 -> 148973 | CZ31: D0214
A32: 215 | B32: Kearny | C32: Lakin | D32: 617 | E32: 0 | F32: 617 | G32: 639 | H32: 0 | I32: 639 | J32: 641 | K32: 0 | L32: 641 | M32: =IF(ISNA(VLOOKUP($CZ32,'Audit Values'!$A$2:$BW$496,2,FALSE)),'Preliminary SO66'!C31,VLOOKUP($CZ32,'Audit Values'!$A$2:$BW$496,73,FALSE)) -> 668 | N32: =IF(ISNA(VLOOKUP($CZ32,'Audit Values'!$A$2:$BW$496,2,FALSE)),'Preliminary SO66'!F31,VLOOKUP($CZ32,'Audit Values'!$A$2:$BW$496,4,FALSE)) -> 0 | O32: 668 | P32: =IF('Military Provision'!J33="YES", MAX('2020 Legal Max'!L32,'2020 Legal Max'!I32,AVERAGE('2020 Legal Max'!F32,'2020 Legal Max'!I32,'2020 Legal Max'!L32)), MAX(L32, I32)) -> 641 | Q32: =IF(ISNA(VLOOKUP($CZ32,'Audit Values'!$A$2:$BU$393,2,FALSE)),'Preliminary SO66'!AL31,VLOOKUP($CZ32,'Audit Values'!$A$2:$BU$393,58,FALSE)) -> 10 | R32: 0 | S32: 651 | T32: 237.6 | U32: =IF(ISNA(VLOOKUP($CZ32,'Audit Values'!$A$2:$BW$447,2,FALSE)),'Preliminary SO66'!AM31,VLOOKUP($CZ32,'Audit Values'!$A$2:$BW$447,62,FALSE)) -> 279 | V32: =(U32/6)*'Weighting Factors'!$Q$7 -> 18.4 | W32: =IF(ISNA(VLOOKUP($CZ32,'Audit Values'!$A$2:$BW$447,2,FALSE)),'Preliminary SO66'!AN31,VLOOKUP($CZ32,'Audit Values'!$A$2:$BW$447,61,FALSE)) -> 114 | X32: =W32*'Weighting Factors'!$Q$8 -> 21.1 | Y32: 21.1 | Z32: =IF(ISNA(VLOOKUP($CZ32,'Audit Values'!$A$2:$BW$447,2,FALSE)),'Preliminary SO66'!AO31,VLOOKUP($CZ32,'Audit Values'!$A$2:$BW$447,60,FALSE)) -> 135.7 | AA32: =Z32/6*'Weighting Factors'!$Q$6 -> 11.3 | AB32: =IF(ISNA(VLOOKUP($CZ32,'Audit Values'!$A$2:$BU$393,2,FALSE)),'Preliminary SO66'!AS31,VLOOKUP($CZ32,'Audit Values'!$A$2:$BU$393,63,FALSE)) -> 689 | AC32: 0 | AD32: =IF(ISNA(VLOOKUP($CZ32,'Audit Values'!$A$2:$BU$393,2,FALSE)),'Preliminary SO66'!AP31,VLOOKUP($CZ32,'Audit Values'!$A$2:$BU$393,64,FALSE)) -> 296 | AE32: =IF(A32=207, AD32,MAX(AC32,AD32))*'Weighting Factors'!$Q$9 -> 143.3 | AF32: 16.5 | AG32: =IF(ISNA(VLOOKUP($CZ32,'Audit Values'!$A$2:$BW$393,2,FALSE)),'Preliminary SO66'!AG31,VLOOKUP($CZ32,'Audit Values'!$A$2:$BW$393,70,FALSE)) -> 20 | AH32: 20 | AI32: =IF(ISNA(VLOOKUP($CZ32,'Audit Values'!$A$2:$BU$393,2,FALSE)),'Preliminary SO66'!AQ31,VLOOKUP($CZ32,'Audit Values'!$A$2:$BU$393,65,FALSE)) -> 0 | AJ32: =AI32*'Weighting Factors'!$Q$10 -> 0 | AK32: =IF(ISNA(VLOOKUP($CZ32,'Audit Values'!$A$2:$BU$393,2,FALSE)),'Preliminary SO66'!AR31,VLOOKUP($CZ32,'Audit Values'!$A$2:$BU$393,66,FALSE)) -> 79 | AM32: 118641 | AN32: 141754 | AO32: =MAX(AN32, AM32)/'Weighting Factors'!$Q$5 -> 32 | AP32: =CN32/'Weighting Factors'!$Q$5 -> 0 | AQ32: 0 | AR32: =CS32/'Weighting Factors'!$Q$5 -> 0 | AS32: 374032 | AT32: =AS32/'Weighting Factors'!$Q$5 -> 84.3 | AU32: =IF(ISNA(VLOOKUP($CZ32,'Audit Values'!$A$2:$BU$393,2,FALSE)),'Preliminary SO66'!X31,VLOOKUP($CZ32,'Audit Values'!$A$2:$BU$393,47,FALSE)) -> 0 | AV32: 1200.6 | AW32: 1116.3 | AX32: =IF(ISNA(VLOOKUP($CZ32,'Audit Values'!$A$2:$BU$393,2,FALSE)),'Preliminary SO66'!AA31,VLOOKUP($CZ32,'Audit Values'!$A$2:$BU$393,41,FALSE)) -> 0 | AY32: =IF(ISNA(VLOOKUP($CZ32,'Audit Values'!$A$2:$BU$393,2,FALSE)),'Preliminary SO66'!AB31,VLOOKUP($CZ32,'Audit Values'!$A$2:$BU$393,42,FALSE)) -> 0 | AZ32: 0 | BA32: =SUM(AX32*'Weighting Factors'!$T$10)+('2020 Legal Max'!AY32*'Weighting Factors'!$T$11)+('2020 Legal Max'!AZ32*'Weighting Factors'!$T$12) -> 0 | BB32: 0 | BC32: =IF(ISNA(VLOOKUP($CZ32,'Audit Values'!$A$2:$BU$274,2,FALSE)),"",IF(AND('Weighting Factors'!H32>0,VLOOKUP($CZ32,'Audit Values'!$A$2:$BU$274,51,FALSE)<'Weighting Factors'!H32),'Weighting Factors'!H32,VLOOKUP($CZ32,'Audit Values'!$A$2:$BU$274,50,FALSE))) -> 7 | BD32: =IF(ISNA(VLOOKUP($CZ32,'Audit Values'!$A$2:$BV$447,2,FALSE)),"",VLOOKUP($CZ32,'Audit Values'!$A$2:$BV$447,51,FALSE)) -> A | BE32: =IF('Weighting Factors'!H32="","",IF('Weighting Factors'!J32="Pending","PX","R")) ->  | BF32: =SUM((S32+T32+Y32+AA32+AE32+AH32+AJ32++AO32+AP32+AQ32+AU32+AR32)*'Weighting Factors'!$Q$5)+'2020 Legal Max'!BA32+'2020 Legal Max'!BB32 -> 4951907 | BG32: =SUM((AV32+AR32)*'Weighting Factors'!$Q$5)+BA32+'2020 Legal Max'!BB32 -> 5325862 | BH32: =IF('Weighting Factors'!H32>0,'Weighting Factors'!H32,'Preliminary SO66'!AV31) -> 5610653 | BI32: 5325862 | BJ32: ='Weighting Factors'!G32 -> 0 | BK32: ='Weighting Factors'!F32 -> 0 | BL32: ='Weighting Factors'!E32 -> 0 | BM32: 0 | BN32: 5325862 | BO32: =SUM((S32+T32+Y32+AA32+AE32+AH32+AJ32++AO32+AP32+AQ32+AR32)*'Weighting Factors'!Q$12)+(MAX(AS32,'Weighting Factors'!B32)) -> 5484646 | BP32: ='LOB%'!F30 -> 0.3 | BQ32: 1645394 | BR32: 1725937 | BS32: 1645394 | BT32: 0.3 | BU32: 0 | BV32: FALSE | BW32: 0 | BX32: 0 | BY32: 0 | BZ32: TRUE | CA32: 434.3625 | CB32: 0.364935 | CC32: 237.6 | CD32: 0 | CE32: 646 | CF32: 0.122 | CG32: =IF(CF32<0.06,1,IF(CF32>=18.29,52,MATCH(CF32-0.001,'Weighting Factors'!$Y$5:$Y$156)+1)) -> 8 | CH32: =VLOOKUP(CG32, 'Weighting Factors'!$W$5:$Z$56,4) -> 1410 | CI32: =('Weighting Factors'!$Q$5/'Weighting Factors'!$Q$14) -> 1.0651 | CJ32: 111390 | CK32: =CJ32*'Weighting Factors'!$S$7 -> 111390 | CL32: 118641 | CM32: =AM32/'Weighting Factors'!$Q$5 -> 26.7 | CN32: 0 | CO32: 0 | CP32: 0 | CQ32: 0 | CR32: =SUM((AV32*'Weighting Factors'!$Q$5)+'2020 Legal Max'!BA32)*CQ32 -> 0 | CS32: 0 | CT32: 0.4296 | CU32: 0 | CV32: 16.5 | CW32: 1200.6 | CX32: ='LOB Transfers'!G31 -> 198105 | CY32: ='LOB Transfers'!J31 -> 29123 | CZ32: D0215
A33: 216 | B33: Kearny | C33: Deerfield | D33: 196.5 | E33: 0 | F33: 196.5 | G33: 180 | H33: 0 | I33: 180 | J33: 182 | K33: 0 | L33: 182 | M33: =IF(ISNA(VLOOKUP($CZ33,'Audit Values'!$A$2:$BW$496,2,FALSE)),'Preliminary SO66'!C32,VLOOKUP($CZ33,'Audit Values'!$A$2:$BW$496,73,FALSE)) -> 178 | N33: =IF(ISNA(VLOOKUP($CZ33,'Audit Values'!$A$2:$BW$496,2,FALSE)),'Preliminary SO66'!F32,VLOOKUP($CZ33,'Audit Values'!$A$2:$BW$496,4,FALSE)) -> 0 | O33: 178 | P33: =IF('Military Provision'!J34="YES", MAX('2020 Legal Max'!L33,'2020 Legal Max'!I33,AVERAGE('2020 Legal Max'!F33,'2020 Legal Max'!I33,'2020 Legal Max'!L33)), MAX(L33, I33)) -> 182 | Q33: =IF(ISNA(VLOOKUP($CZ33,'Audit Values'!$A$2:$BU$393,2,FALSE)),'Preliminary SO66'!AL32,VLOOKUP($CZ33,'Audit Values'!$A$2:$BU$393,58,FALSE)) -> 6.5 | R33: 0 | S33: 188.5 | T33: 147 | U33: =IF(ISNA(VLOOKUP($CZ33,'Audit Values'!$A$2:$BW$447,2,FALSE)),'Preliminary SO66'!AM32,VLOOKUP($CZ33,'Audit Values'!$A$2:$BW$447,62,FALSE)) -> 351.2 | V33: =(U33/6)*'Weighting Factors'!$Q$7 -> 23.1 | W33: =IF(ISNA(VLOOKUP($CZ33,'Audit Values'!$A$2:$BW$447,2,FALSE)),'Preliminary SO66'!AN32,VLOOKUP($CZ33,'Audit Values'!$A$2:$BW$447,61,FALSE)) -> 72 | X33: =W33*'Weighting Factors'!$Q$8 -> 13.3 | Y33: 23.1 | Z33: =IF(ISNA(VLOOKUP($CZ33,'Audit Values'!$A$2:$BW$447,2,FALSE)),'Preliminary SO66'!AO32,VLOOKUP($CZ33,'Audit Values'!$A$2:$BW$447,60,FALSE)) -> 70.4 | AA33: =Z33/6*'Weighting Factors'!$Q$6 -> 5.9 | AB33: =IF(ISNA(VLOOKUP($CZ33,'Audit Values'!$A$2:$BU$393,2,FALSE)),'Preliminary SO66'!AS32,VLOOKUP($CZ33,'Audit Values'!$A$2:$BU$393,63,FALSE)) -> 193 | AC33: 0 | AD33: =IF(ISNA(VLOOKUP($CZ33,'Audit Values'!$A$2:$BU$393,2,FALSE)),'Preliminary SO66'!AP32,VLOOKUP($CZ33,'Audit Values'!$A$2:$BU$393,64,FALSE)) -> 122 | AE33: =IF(A33=207, AD33,MAX(AC33,AD33))*'Weighting Factors'!$Q$9 -> 59 | AF33: 12.8 | AG33: =IF(ISNA(VLOOKUP($CZ33,'Audit Values'!$A$2:$BW$393,2,FALSE)),'Preliminary SO66'!AG32,VLOOKUP($CZ33,'Audit Values'!$A$2:$BW$393,70,FALSE)) -> 12.8 | AH33: 12.8 | AI33: =IF(ISNA(VLOOKUP($CZ33,'Audit Values'!$A$2:$BU$393,2,FALSE)),'Preliminary SO66'!AQ32,VLOOKUP($CZ33,'Audit Values'!$A$2:$BU$393,65,FALSE)) -> 0 | AJ33: =AI33*'Weighting Factors'!$Q$10 -> 0 | AK33: =IF(ISNA(VLOOKUP($CZ33,'Audit Values'!$A$2:$BU$393,2,FALSE)),'Preliminary SO66'!AR32,VLOOKUP($CZ33,'Audit Values'!$A$2:$BU$393,66,FALSE)) -> 16 | AM33: 26244 | AN33: 24268 | AO33: =MAX(AN33, AM33)/'Weighting Factors'!$Q$5 -> 5.9 | AP33: =CN33/'Weighting Factors'!$Q$5 -> 0 | AQ33: 0 | AR33: =CS33/'Weighting Factors'!$Q$5 -> 0 | AS33: 120754 | AT33: =AS33/'Weighting Factors'!$Q$5 -> 27.2 | AU33: =IF(ISNA(VLOOKUP($CZ33,'Audit Values'!$A$2:$BU$393,2,FALSE)),'Preliminary SO66'!X32,VLOOKUP($CZ33,'Audit Values'!$A$2:$BU$393,47,FALSE)) -> 0 | AV33: 469.4 | AW33: 442.2 | AX33: =IF(ISNA(VLOOKUP($CZ33,'Audit Values'!$A$2:$BU$393,2,FALSE)),'Preliminary SO66'!AA32,VLOOKUP($CZ33,'Audit Values'!$A$2:$BU$393,41,FALSE)) -> 0 | AY33: =IF(ISNA(VLOOKUP($CZ33,'Audit Values'!$A$2:$BU$393,2,FALSE)),'Preliminary SO66'!AB32,VLOOKUP($CZ33,'Audit Values'!$A$2:$BU$393,42,FALSE)) -> 0 | AZ33: 0 | BA33: =SUM(AX33*'Weighting Factors'!$T$10)+('2020 Legal Max'!AY33*'Weighting Factors'!$T$11)+('2020 Legal Max'!AZ33*'Weighting Factors'!$T$12) -> 0 | BB33: 0 | BC33: =IF(ISNA(VLOOKUP($CZ33,'Audit Values'!$A$2:$BU$274,2,FALSE)),"",IF(AND('Weighting Factors'!H33>0,VLOOKUP($CZ33,'Audit Values'!$A$2:$BU$274,51,FALSE)<'Weighting Factors'!H33),'Weighting Factors'!H33,VLOOKUP($CZ33,'Audit Values'!$A$2:$BU$274,50,FALSE))) -> 5 | BD33: =IF(ISNA(VLOOKUP($CZ33,'Audit Values'!$A$2:$BV$447,2,FALSE)),"",VLOOKUP($CZ33,'Audit Values'!$A$2:$BV$447,51,FALSE)) -> A | BE33: =IF('Weighting Factors'!H33="","",IF('Weighting Factors'!J33="Pending","PX","R")) ->  | BF33: =SUM((S33+T33+Y33+AA33+AE33+AH33+AJ33++AO33+AP33+AQ33+AU33+AR33)*'Weighting Factors'!$Q$5)+'2020 Legal Max'!BA33+'2020 Legal Max'!BB33 -> 1961599 | BG33: =SUM((AV33+AR33)*'Weighting Factors'!$Q$5)+BA33+'2020 Legal Max'!BB33 -> 2082258 | BH33: =IF('Weighting Factors'!H33>0,'Weighting Factors'!H33,'Preliminary SO66'!AV32) -> 2253044 | BI33: 2082258 | BJ33: ='Weighting Factors'!G33 -> 0 | BK33: ='Weighting Factors'!F33 -> 0 | BL33: ='Weighting Factors'!E33 -> 0 | BM33: 0 | BN33: 2082258 | BO33: =SUM((S33+T33+Y33+AA33+AE33+AH33+AJ33++AO33+AP33+AQ33+AR33)*'Weighting Factors'!Q$12)+(MAX(AS33,'Weighting Factors'!B33)) -> 2221437 | BP33: ='LOB%'!F31 -> 0.33 | BQ33: 733074 | BR33: 782711 | BS33: 733074 | BT33: 0.33 | BU33: 0 | BV33: TRUE | BW33: 854.468 | BX33: 0.779742 | BY33: 147 | BZ33: FALSE | CA33: 0 | CB33: 0 | CC33: 0 | CD33: 0 | CE33: 216 | CF33: 0.074 | CG33: =IF(CF33<0.06,1,IF(CF33>=18.29,52,MATCH(CF33-0.001,'Weighting Factors'!$Y$5:$Y$156)+1)) -> 3 | CH33: =VLOOKUP(CG33, 'Weighting Factors'!$W$5:$Z$56,4) -> 1540 | CI33: =('Weighting Factors'!$Q$5/'Weighting Factors'!$Q$14) -> 1.0651 | CJ33: 24640 | CK33: =CJ33*'Weighting Factors'!$S$7 -> 24640 | CL33: 26244 | CM33: =AM33/'Weighting Factors'!$Q$5 -> 5.9 | CN33: 0 | CO33: 0 | CP33: 0 | CQ33: 0 | CR33: =SUM((AV33*'Weighting Factors'!$Q$5)+'2020 Legal Max'!BA33)*CQ33 -> 0 | CS33: 0 | CT33: 0.6321 | CU33: 12.8 | CV33: 0 | CW33: 469.4 | CX33: ='LOB Transfers'!G32 -> 93467 | CY33: ='LOB Transfers'!J32 -> 36580 | CZ33: D0216
A34: 217 | B34: Morton | C34: Rolla | D34: 132.5 | E34: 0 | F34: 132.5 | G34: 115 | H34: 0 | I34: 115 | J34: 113 | K34: 0 | L34: 113 | M34: =IF(ISNA(VLOOKUP($CZ34,'Audit Values'!$A$2:$BW$496,2,FALSE)),'Preliminary SO66'!C33,VLOOKUP($CZ34,'Audit Values'!$A$2:$BW$496,73,FALSE)) -> 109 | N34: =IF(ISNA(VLOOKUP($CZ34,'Audit Values'!$A$2:$BW$496,2,FALSE)),'Preliminary SO66'!F33,VLOOKUP($CZ34,'Audit Values'!$A$2:$BW$496,4,FALSE)) -> 0 | O34: 109 | P34: =IF('Military Provision'!J35="YES", MAX('2020 Legal Max'!L34,'2020 Legal Max'!I34,AVERAGE('2020 Legal Max'!F34,'2020 Legal Max'!I34,'2020 Legal Max'!L34)), MAX(L34, I34)) -> 115 | Q34: =IF(ISNA(VLOOKUP($CZ34,'Audit Values'!$A$2:$BU$393,2,FALSE)),'Preliminary SO66'!AL33,VLOOKUP($CZ34,'Audit Values'!$A$2:$BU$393,58,FALSE)) -> 2.5 | R34: 0 | S34: 117.5 | T34: 113.7 | U34: =IF(ISNA(VLOOKUP($CZ34,'Audit Values'!$A$2:$BW$447,2,FALSE)),'Preliminary SO66'!AM33,VLOOKUP($CZ34,'Audit Values'!$A$2:$BW$447,62,FALSE)) -> 127.8 | V34: =(U34/6)*'Weighting Factors'!$Q$7 -> 8.4 | W34: =IF(ISNA(VLOOKUP($CZ34,'Audit Values'!$A$2:$BW$447,2,FALSE)),'Preliminary SO66'!AN33,VLOOKUP($CZ34,'Audit Values'!$A$2:$BW$447,61,FALSE)) -> 33 | X34: =W34*'Weighting Factors'!$Q$8 -> 6.1 | Y34: 8.4 | Z34: =IF(ISNA(VLOOKUP($CZ34,'Audit Values'!$A$2:$BW$447,2,FALSE)),'Preliminary SO66'!AO33,VLOOKUP($CZ34,'Audit Values'!$A$2:$BW$447,60,FALSE)) -> 19.4 | AA34: =Z34/6*'Weighting Factors'!$Q$6 -> 1.6 | AB34: =IF(ISNA(VLOOKUP($CZ34,'Audit Values'!$A$2:$BU$393,2,FALSE)),'Preliminary SO66'!AS33,VLOOKUP($CZ34,'Audit Values'!$A$2:$BU$393,63,FALSE)) -> 114 | AC34: 0 | AD34: =IF(ISNA(VLOOKUP($CZ34,'Audit Values'!$A$2:$BU$393,2,FALSE)),'Preliminary SO66'!AP33,VLOOKUP($CZ34,'Audit Values'!$A$2:$BU$393,64,FALSE)) -> 41 | AE34: =IF(A34=207, AD34,MAX(AC34,AD34))*'Weighting Factors'!$Q$9 -> 19.8 | AF34: 0.3 | AG34: =IF(ISNA(VLOOKUP($CZ34,'Audit Values'!$A$2:$BW$393,2,FALSE)),'Preliminary SO66'!AG33,VLOOKUP($CZ34,'Audit Values'!$A$2:$BW$393,70,FALSE)) -> 2.7 | AH34: 2.7 | AI34: =IF(ISNA(VLOOKUP($CZ34,'Audit Values'!$A$2:$BU$393,2,FALSE)),'Preliminary SO66'!AQ33,VLOOKUP($CZ34,'Audit Values'!$A$2:$BU$393,65,FALSE)) -> 0 | AJ34: =AI34*'Weighting Factors'!$Q$10 -> 0 | AK34: =IF(ISNA(VLOOKUP($CZ34,'Audit Values'!$A$2:$BU$393,2,FALSE)),'Preliminary SO66'!AR33,VLOOKUP($CZ34,'Audit Values'!$A$2:$BU$393,66,FALSE)) -> 18 | AM34: 29525 | AN34: 51617 | AO34: =MAX(AN34, AM34)/'Weighting Factors'!$Q$5 -> 11.6 | AP34: =CN34/'Weighting Factors'!$Q$5 -> 0 | AQ34: 0 | AR34: =CS34/'Weighting Factors'!$Q$5 -> 0 | AS34: 80332 | AT34: =AS34/'Weighting Factors'!$Q$5 -> 18.1 | AU34: =IF(ISNA(VLOOKUP($CZ34,'Audit Values'!$A$2:$BU$393,2,FALSE)),'Preliminary SO66'!X33,VLOOKUP($CZ34,'Audit Values'!$A$2:$BU$393,47,FALSE)) -> 0 | AV34: 293.4 | AW34: 275.3 | AX34: =IF(ISNA(VLOOKUP($CZ34,'Audit Values'!$A$2:$BU$393,2,FALSE)),'Preliminary SO66'!AA33,VLOOKUP($CZ34,'Audit Values'!$A$2:$BU$393,41,FALSE)) -> 0 | AY34: =IF(ISNA(VLOOKUP($CZ34,'Audit Values'!$A$2:$BU$393,2,FALSE)),'Preliminary SO66'!AB33,VLOOKUP($CZ34,'Audit Values'!$A$2:$BU$393,42,FALSE)) -> 0 | AZ34: 0 | BA34: =SUM(AX34*'Weighting Factors'!$T$10)+('2020 Legal Max'!AY34*'Weighting Factors'!$T$11)+('2020 Legal Max'!AZ34*'Weighting Factors'!$T$12) -> 0 | BB34: 0 | BC34: =IF(ISNA(VLOOKUP($CZ34,'Audit Values'!$A$2:$BU$274,2,FALSE)),"",IF(AND('Weighting Factors'!H34>0,VLOOKUP($CZ34,'Audit Values'!$A$2:$BU$274,51,FALSE)<'Weighting Factors'!H34),'Weighting Factors'!H34,VLOOKUP($CZ34,'Audit Values'!$A$2:$BU$274,50,FALSE))) -> 1 | BD34: =IF(ISNA(VLOOKUP($CZ34,'Audit Values'!$A$2:$BV$447,2,FALSE)),"",VLOOKUP($CZ34,'Audit Values'!$A$2:$BV$447,51,FALSE)) -> A | BE34: =IF('Weighting Factors'!H34="","",IF('Weighting Factors'!J34="Pending","PX","R")) ->  | BF34: =SUM((S34+T34+Y34+AA34+AE34+AH34+AJ34++AO34+AP34+AQ34+AU34+AR34)*'Weighting Factors'!$Q$5)+'2020 Legal Max'!BA34+'2020 Legal Max'!BB34 -> 1221231 | BG34: =SUM((AV34+AR34)*'Weighting Factors'!$Q$5)+BA34+'2020 Legal Max'!BB34 -> 1301522 | BH34: =IF('Weighting Factors'!H34>0,'Weighting Factors'!H34,'Preliminary SO66'!AV33) -> 1329469 | BI34: 1301522 | BJ34: ='Weighting Factors'!G34 -> 0 | BK34: ='Weighting Factors'!F34 -> 0 | BL34: ='Weighting Factors'!E34 -> 0 | BM34: 0 | BN34: 1301522 | BO34: =SUM((S34+T34+Y34+AA34+AE34+AH34+AJ34++AO34+AP34+AQ34+AR34)*'Weighting Factors'!Q$12)+(MAX(AS34,'Weighting Factors'!B34)) -> 1401157 | BP34: ='LOB%'!F32 -> 0.33 | BQ34: 462382 | BR34: 467947 | BS34: 462382 | BT34: 0.33 | BU34: 0 | BV34: TRUE | BW34: 168.963 | BX34: 0.967943 | BY34: 113.7 | BZ34: FALSE | CA34: 0 | CB34: 0 | CC34: 0 | CD34: 0 | CE34: 252 | CF34: 0.071 | CG34: =IF(CF34<0.06,1,IF(CF34>=18.29,52,MATCH(CF34-0.001,'Weighting Factors'!$Y$5:$Y$156)+1)) -> 3 | CH34: =VLOOKUP(CG34, 'Weighting Factors'!$W$5:$Z$56,4) -> 1540 | CI34: =('Weighting Factors'!$Q$5/'Weighting Factors'!$Q$14) -> 1.0651 | CJ34: 27720 | CK34: =CJ34*'Weighting Factors'!$S$7 -> 27720 | CL34: 29525 | CM34: =AM34/'Weighting Factors'!$Q$5 -> 6.7 | CN34: 0 | CO34: 0 | CP34: 0 | CQ34: 0 | CR34: =SUM((AV34*'Weighting Factors'!$Q$5)+'2020 Legal Max'!BA34)*CQ34 -> 0 | CS34: 0 | CT34: 0.3596 | CU34: 0 | CV34: 0.3 | CW34: 293.4 | CX34: ='LOB Transfers'!G33 -> 31488 | CY34: ='LOB Transfers'!J33 -> 13363 | CZ34: D0217
A35: 218 | B35: Morton | C35: Elkhart | D35: 453.9 | E35: 0 | F35: 453.9 | G35: 420.2 | H35: 0 | I35: 420.2 | J35: 407.2 | K35: 0 | L35: 407.2 | M35: =IF(ISNA(VLOOKUP($CZ35,'Audit Values'!$A$2:$BW$496,2,FALSE)),'Preliminary SO66'!C34,VLOOKUP($CZ35,'Audit Values'!$A$2:$BW$496,73,FALSE)) -> 426.2 | N35: =IF(ISNA(VLOOKUP($CZ35,'Audit Values'!$A$2:$BW$496,2,FALSE)),'Preliminary SO66'!F34,VLOOKUP($CZ35,'Audit Values'!$A$2:$BW$496,4,FALSE)) -> 0 | O35: 426.2 | P35: =IF('Military Provision'!J36="YES", MAX('2020 Legal Max'!L35,'2020 Legal Max'!I35,AVERAGE('2020 Legal Max'!F35,'2020 Legal Max'!I35,'2020 Legal Max'!L35)), MAX(L35, I35)) -> 420.2 | Q35: =IF(ISNA(VLOOKUP($CZ35,'Audit Values'!$A$2:$BU$393,2,FALSE)),'Preliminary SO66'!AL34,VLOOKUP($CZ35,'Audit Values'!$A$2:$BU$393,58,FALSE)) -> 6.3 | R35: 0 | S35: 426.5 | T35: 188.2 | U35: =IF(ISNA(VLOOKUP($CZ35,'Audit Values'!$A$2:$BW$447,2,FALSE)),'Preliminary SO66'!AM34,VLOOKUP($CZ35,'Audit Values'!$A$2:$BW$447,62,FALSE)) -> 330.1 | V35: =(U35/6)*'Weighting Factors'!$Q$7 -> 21.7 | W35: =IF(ISNA(VLOOKUP($CZ35,'Audit Values'!$A$2:$BW$447,2,FALSE)),'Preliminary SO66'!AN34,VLOOKUP($CZ35,'Audit Values'!$A$2:$BW$447,61,FALSE)) -> 73 | X35: =W35*'Weighting Factors'!$Q$8 -> 13.5 | Y35: 21.7 | Z35: =IF(ISNA(VLOOKUP($CZ35,'Audit Values'!$A$2:$BW$447,2,FALSE)),'Preliminary SO66'!AO34,VLOOKUP($CZ35,'Audit Values'!$A$2:$BW$447,60,FALSE)) -> 136.2 | AA35: =Z35/6*'Weighting Factors'!$Q$6 -> 11.4 | AB35: =IF(ISNA(VLOOKUP($CZ35,'Audit Values'!$A$2:$BU$393,2,FALSE)),'Preliminary SO66'!AS34,VLOOKUP($CZ35,'Audit Values'!$A$2:$BU$393,63,FALSE)) -> 447 | AC35: 0 | AD35: =IF(ISNA(VLOOKUP($CZ35,'Audit Values'!$A$2:$BU$393,2,FALSE)),'Preliminary SO66'!AP34,VLOOKUP($CZ35,'Audit Values'!$A$2:$BU$393,64,FALSE)) -> 183 | AE35: =IF(A35=207, AD35,MAX(AC35,AD35))*'Weighting Factors'!$Q$9 -> 88.6 | AF35: 7.6 | AG35: =IF(ISNA(VLOOKUP($CZ35,'Audit Values'!$A$2:$BW$393,2,FALSE)),'Preliminary SO66'!AG34,VLOOKUP($CZ35,'Audit Values'!$A$2:$BW$393,70,FALSE)) -> 9.7 | AH35: 9.7 | AI35: =IF(ISNA(VLOOKUP($CZ35,'Audit Values'!$A$2:$BU$393,2,FALSE)),'Preliminary SO66'!AQ34,VLOOKUP($CZ35,'Audit Values'!$A$2:$BU$393,65,FALSE)) -> 0 | AJ35: =AI35*'Weighting Factors'!$Q$10 -> 0 | AK35: =IF(ISNA(VLOOKUP($CZ35,'Audit Values'!$A$2:$BU$393,2,FALSE)),'Preliminary SO66'!AR34,VLOOKUP($CZ35,'Audit Values'!$A$2:$BU$393,66,FALSE)) -> 20 | AM35: 34509 | AN35: 68180 | AO35: =MAX(AN35, AM35)/'Weighting Factors'!$Q$5 -> 15.4 | AP35: =CN35/'Weighting Factors'!$Q$5 -> 0 | AQ35: 0 | AR35: =CS35/'Weighting Factors'!$Q$5 -> 0 | AS35: 253954 | AT35: =AS35/'Weighting Factors'!$Q$5 -> 57.2 | AU35: =IF(ISNA(VLOOKUP($CZ35,'Audit Values'!$A$2:$BU$393,2,FALSE)),'Preliminary SO66'!X34,VLOOKUP($CZ35,'Audit Values'!$A$2:$BU$393,47,FALSE)) -> 0 | AV35: 818.7 | AW35: 761.5 | AX35: =IF(ISNA(VLOOKUP($CZ35,'Audit Values'!$A$2:$BU$393,2,FALSE)),'Preliminary SO66'!AA34,VLOOKUP($CZ35,'Audit Values'!$A$2:$BU$393,41,FALSE)) -> 765 | AY35: =IF(ISNA(VLOOKUP($CZ35,'Audit Values'!$A$2:$BU$393,2,FALSE)),'Preliminary SO66'!AB34,VLOOKUP($CZ35,'Audit Values'!$A$2:$BU$393,42,FALSE)) -> 17.3 | AZ35: 0 | BA35: =SUM(AX35*'Weighting Factors'!$T$10)+('2020 Legal Max'!AY35*'Weighting Factors'!$T$11)+('2020 Legal Max'!AZ35*'Weighting Factors'!$T$12) -> 3854410 | BB35: 0 | BC35: =IF(ISNA(VLOOKUP($CZ35,'Audit Values'!$A$2:$BU$274,2,FALSE)),"",IF(AND('Weighting Factors'!H35>0,VLOOKUP($CZ35,'Audit Values'!$A$2:$BU$274,51,FALSE)<'Weighting Factors'!H35),'Weighting Factors'!H35,VLOOKUP($CZ35,'Audit Values'!$A$2:$BU$274,50,FALSE))) -> 25 | BD35: =IF(ISNA(VLOOKUP($CZ35,'Audit Values'!$A$2:$BV$447,2,FALSE)),"",VLOOKUP($CZ35,'Audit Values'!$A$2:$BV$447,51,FALSE)) -> A | BE35: =IF('Weighting Factors'!H35="","",IF('Weighting Factors'!J35="Pending","PX","R")) ->  | BF35: =SUM((S35+T35+Y35+AA35+AE35+AH35+AJ35++AO35+AP35+AQ35+AU35+AR35)*'Weighting Factors'!$Q$5)+'2020 Legal Max'!BA35+'2020 Legal Max'!BB35 -> 7232424 | BG35: =SUM((AV35+AR35)*'Weighting Factors'!$Q$5)+BA35+'2020 Legal Max'!BB35 -> 7486163 | BH35: =IF('Weighting Factors'!H35>0,'Weighting Factors'!H35,'Preliminary SO66'!AV34) -> 8266871 | BI35: 7486163 | BJ35: ='Weighting Factors'!G35 -> 0 | BK35: ='Weighting Factors'!F35 -> 0 | BL35: ='Weighting Factors'!E35 -> -4609 | BM35: -4609 | BN35: 7481554 | BO35: =SUM((S35+T35+Y35+AA35+AE35+AH35+AJ35++AO35+AP35+AQ35+AR35)*'Weighting Factors'!Q$12)+(MAX(AS35,'Weighting Factors'!B35)) -> 3861706 | BP35: ='LOB%'!F33 -> 0.3 | BQ35: 1158512 | BR35: 1236727 | BS35: 1158512 | BT35: 0.3 | BU35: 0 | BV35: FALSE | BW35: 0 | BX35: 0 | BY35: 0 | BZ35: TRUE | CA35: 156.5438 | CB35: 0.441208 | CC35: 188.2 | CD35: 0 | CE35: 376 | CF35: 0.053 | CG35: =IF(CF35<0.06,1,IF(CF35>=18.29,52,MATCH(CF35-0.001,'Weighting Factors'!$Y$5:$Y$156)+1)) -> 1 | CH35: =VLOOKUP(CG35, 'Weighting Factors'!$W$5:$Z$56,4) -> 1620 | CI35: =('Weighting Factors'!$Q$5/'Weighting Factors'!$Q$14) -> 1.0651 | CJ35: 32400 | CK35: =CJ35*'Weighting Factors'!$S$7 -> 32400 | CL35: 34509 | CM35: =AM35/'Weighting Factors'!$Q$5 -> 7.8 | CN35: 0 | CO35: 0 | CP35: 0 | CQ35: 0 | CR35: =SUM((AV35*'Weighting Factors'!$Q$5)+'2020 Legal Max'!BA35)*CQ35 -> 0 | CS35: 0 | CT35: 0.4094 | CU35: 0 | CV35: 7.6 | CW35: 818.7 | CX35: ='LOB Transfers'!G34 -> 126394 | CY35: ='LOB Transfers'!J34 -> 30932 | CZ35: D0218
A36: 219 | B36: Clark | C36: Minneola | D36: 243.5 | E36: 0 | F36: 243.5 | G36: 236.5 | H36: 0 | I36: 236.5 | J36: 237.5 | K36: 0 | L36: 237.5 | M36: =IF(ISNA(VLOOKUP($CZ36,'Audit Values'!$A$2:$BW$496,2,FALSE)),'Preliminary SO66'!C35,VLOOKUP($CZ36,'Audit Values'!$A$2:$BW$496,73,FALSE)) -> 232.5 | N36: =IF(ISNA(VLOOKUP($CZ36,'Audit Values'!$A$2:$BW$496,2,FALSE)),'Preliminary SO66'!F35,VLOOKUP($CZ36,'Audit Values'!$A$2:$BW$496,4,FALSE)) -> 0 | O36: 232.5 | P36: =IF('Military Provision'!J37="YES", MAX('2020 Legal Max'!L36,'2020 Legal Max'!I36,AVERAGE('2020 Legal Max'!F36,'2020 Legal Max'!I36,'2020 Legal Max'!L36)), MAX(L36, I36)) -> 237.5 | Q36: =IF(ISNA(VLOOKUP($CZ36,'Audit Values'!$A$2:$BU$393,2,FALSE)),'Preliminary SO66'!AL35,VLOOKUP($CZ36,'Audit Values'!$A$2:$BU$393,58,FALSE)) -> 2.5 | R36: 0 | S36: 240 | T36: 154.4 | U36: =IF(ISNA(VLOOKUP($CZ36,'Audit Values'!$A$2:$BW$447,2,FALSE)),'Preliminary SO66'!AM35,VLOOKUP($CZ36,'Audit Values'!$A$2:$BW$447,62,FALSE)) -> 0 | V36: =(U36/6)*'Weighting Factors'!$Q$7 -> 0 | W36: =IF(ISNA(VLOOKUP($CZ36,'Audit Values'!$A$2:$BW$447,2,FALSE)),'Preliminary SO66'!AN35,VLOOKUP($CZ36,'Audit Values'!$A$2:$BW$447,61,FALSE)) -> 0 | X36: =W36*'Weighting Factors'!$Q$8 -> 0 | Y36: 0 | Z36: =IF(ISNA(VLOOKUP($CZ36,'Audit Values'!$A$2:$BW$447,2,FALSE)),'Preliminary SO66'!AO35,VLOOKUP($CZ36,'Audit Values'!$A$2:$BW$447,60,FALSE)) -> 0 | AA36: =Z36/6*'Weighting Factors'!$Q$6 -> 0 | AB36: =IF(ISNA(VLOOKUP($CZ36,'Audit Values'!$A$2:$BU$393,2,FALSE)),'Preliminary SO66'!AS35,VLOOKUP($CZ36,'Audit Values'!$A$2:$BU$393,63,FALSE)) -> 239 | AC36: 0 | AD36: =IF(ISNA(VLOOKUP($CZ36,'Audit Values'!$A$2:$BU$393,2,FALSE)),'Preliminary SO66'!AP35,VLOOKUP($CZ36,'Audit Values'!$A$2:$BU$393,64,FALSE)) -> 100 | AE36: =IF(A36=207, AD36,MAX(AC36,AD36))*'Weighting Factors'!$Q$9 -> 48.4 | AF36: 4.8 | AG36: =IF(ISNA(VLOOKUP($CZ36,'Audit Values'!$A$2:$BW$393,2,FALSE)),'Preliminary SO66'!AG35,VLOOKUP($CZ36,'Audit Values'!$A$2:$BW$393,70,FALSE)) -> 5.1 | AH36: 5.1 | AI36: =IF(ISNA(VLOOKUP($CZ36,'Audit Values'!$A$2:$BU$393,2,FALSE)),'Preliminary SO66'!AQ35,VLOOKUP($CZ36,'Audit Values'!$A$2:$BU$393,65,FALSE)) -> 0 | AJ36: =AI36*'Weighting Factors'!$Q$10 -> 0 | AK36: =IF(ISNA(VLOOKUP($CZ36,'Audit Values'!$A$2:$BU$393,2,FALSE)),'Preliminary SO66'!AR35,VLOOKUP($CZ36,'Audit Values'!$A$2:$BU$393,66,FALSE)) -> 37 | AM36: 55566 | AN36: 70106 | AO36: =MAX(AN36, AM36)/'Weighting Factors'!$Q$5 -> 15.8 | AP36: =CN36/'Weighting Factors'!$Q$5 -> 0 | AQ36: 0 | AR36: =CS36/'Weighting Factors'!$Q$5 -> 0 | AS36: 180110 | AT36: =AS36/'Weighting Factors'!$Q$5 -> 40.6 | AU36: =IF(ISNA(VLOOKUP($CZ36,'Audit Values'!$A$2:$BU$393,2,FALSE)),'Preliminary SO66'!X35,VLOOKUP($CZ36,'Audit Values'!$A$2:$BU$393,47,FALSE)) -> 0 | AV36: 504.3 | AW36: 463.7 | AX36: =IF(ISNA(VLOOKUP($CZ36,'Audit Values'!$A$2:$BU$393,2,FALSE)),'Preliminary SO66'!AA35,VLOOKUP($CZ36,'Audit Values'!$A$2:$BU$393,41,FALSE)) -> 0 | AY36: =IF(ISNA(VLOOKUP($CZ36,'Audit Values'!$A$2:$BU$393,2,FALSE)),'Preliminary SO66'!AB35,VLOOKUP($CZ36,'Audit Values'!$A$2:$BU$393,42,FALSE)) -> 0 | AZ36: 0 | BA36: =SUM(AX36*'Weighting Factors'!$T$10)+('2020 Legal Max'!AY36*'Weighting Factors'!$T$11)+('2020 Legal Max'!AZ36*'Weighting Factors'!$T$12) -> 0 | BB36: 0 | BC36: =IF(ISNA(VLOOKUP($CZ36,'Audit Values'!$A$2:$BU$274,2,FALSE)),"",IF(AND('Weighting Factors'!H36>0,VLOOKUP($CZ36,'Audit Values'!$A$2:$BU$274,51,FALSE)<'Weighting Factors'!H36),'Weighting Factors'!H36,VLOOKUP($CZ36,'Audit Values'!$A$2:$BU$274,50,FALSE))) -> 5 | BD36: =IF(ISNA(VLOOKUP($CZ36,'Audit Values'!$A$2:$BV$447,2,FALSE)),"",VLOOKUP($CZ36,'Audit Values'!$A$2:$BV$447,51,FALSE)) -> A | BE36: =IF('Weighting Factors'!H36="","",IF('Weighting Factors'!J36="Pending","PX","R")) ->  | BF36: =SUM((S36+T36+Y36+AA36+AE36+AH36+AJ36++AO36+AP36+AQ36+AU36+AR36)*'Weighting Factors'!$Q$5)+'2020 Legal Max'!BA36+'2020 Legal Max'!BB36 -> 2056973 | BG36: =SUM((AV36+AR36)*'Weighting Factors'!$Q$5)+BA36+'2020 Legal Max'!BB36 -> 2237075 | BH36: =IF('Weighting Factors'!H36>0,'Weighting Factors'!H36,'Preliminary SO66'!AV35) -> 2296517 | BI36: 2237075 | BJ36: ='Weighting Factors'!G36 -> 0 | BK36: ='Weighting Factors'!F36 -> -5711 | BL36: ='Weighting Factors'!E36 -> 0 | BM36: -5711 | BN36: 2231364 | BO36: =SUM((S36+T36+Y36+AA36+AE36+AH36+AJ36++AO36+AP36+AQ36+AR36)*'Weighting Factors'!Q$12)+(MAX(AS36,'Weighting Factors'!B36)) -> 2361368 | BP36: ='LOB%'!F34 -> 0.3 | BQ36: 708410 | BR36: 712786 | BS36: 708410 | BT36: 0.3 | BU36: 0 | BV36: TRUE | BW36: 1351.7 | BX36: 0.64323 | BY36: 154.4 | BZ36: FALSE | CA36: 0 | CB36: 0 | CC36: 0 | CD36: 0 | CE36: 292 | CF36: 0.127 | CG36: =IF(CF36<0.06,1,IF(CF36>=18.29,52,MATCH(CF36-0.001,'Weighting Factors'!$Y$5:$Y$156)+1)) -> 8 | CH36: =VLOOKUP(CG36, 'Weighting Factors'!$W$5:$Z$56,4) -> 1410 | CI36: =('Weighting Factors'!$Q$5/'Weighting Factors'!$Q$14) -> 1.0651 | CJ36: 52170 | CK36: =CJ36*'Weighting Factors'!$S$7 -> 52170 | CL36: 55566 | CM36: =AM36/'Weighting Factors'!$Q$5 -> 12.5 | CN36: 0 | CO36: 0 | CP36: 0 | CQ36: 0 | CR36: =SUM((AV36*'Weighting Factors'!$Q$5)+'2020 Legal Max'!BA36)*CQ36 -> 0 | CS36: 0 | CT36: 0.4184 | CU36: 0 | CV36: 4.8 | CW36: 504.3 | CX36: ='LOB Transfers'!G35 -> 68362 | CY36: ='LOB Transfers'!J35 -> 0 | CZ36: D0219
A37: 220 | B37: Clark | C37: Ashland | D37: 191.6 | E37: 0 | F37: 191.6 | G37: 208 | H37: 0 | I37: 208 | J37: 207.3 | K37: 0 | L37: 207.3 | M37: =IF(ISNA(VLOOKUP($CZ37,'Audit Values'!$A$2:$BW$496,2,FALSE)),'Preliminary SO66'!C36,VLOOKUP($CZ37,'Audit Values'!$A$2:$BW$496,73,FALSE)) -> 200.7 | N37: =IF(ISNA(VLOOKUP($CZ37,'Audit Values'!$A$2:$BW$496,2,FALSE)),'Preliminary SO66'!F36,VLOOKUP($CZ37,'Audit Values'!$A$2:$BW$496,4,FALSE)) -> 0 | O37: 200.7 | P37: =IF('Military Provision'!J38="YES", MAX('2020 Legal Max'!L37,'2020 Legal Max'!I37,AVERAGE('2020 Legal Max'!F37,'2020 Legal Max'!I37,'2020 Legal Max'!L37)), MAX(L37, I37)) -> 208 | Q37: =IF(ISNA(VLOOKUP($CZ37,'Audit Values'!$A$2:$BU$393,2,FALSE)),'Preliminary SO66'!AL36,VLOOKUP($CZ37,'Audit Values'!$A$2:$BU$393,58,FALSE)) -> 1.5 | R37: 0 | S37: 209.5 | T37: 151.7 | U37: =IF(ISNA(VLOOKUP($CZ37,'Audit Values'!$A$2:$BW$447,2,FALSE)),'Preliminary SO66'!AM36,VLOOKUP($CZ37,'Audit Values'!$A$2:$BW$447,62,FALSE)) -> 32.4 | V37: =(U37/6)*'Weighting Factors'!$Q$7 -> 2.1 | W37: =IF(ISNA(VLOOKUP($CZ37,'Audit Values'!$A$2:$BW$447,2,FALSE)),'Preliminary SO66'!AN36,VLOOKUP($CZ37,'Audit Values'!$A$2:$BW$447,61,FALSE)) -> 18 | X37: =W37*'Weighting Factors'!$Q$8 -> 3.3 | Y37: 3.3 | Z37: =IF(ISNA(VLOOKUP($CZ37,'Audit Values'!$A$2:$BW$447,2,FALSE)),'Preliminary SO66'!AO36,VLOOKUP($CZ37,'Audit Values'!$A$2:$BW$447,60,FALSE)) -> 25.8 | AA37: =Z37/6*'Weighting Factors'!$Q$6 -> 2.2 | AB37: =IF(ISNA(VLOOKUP($CZ37,'Audit Values'!$A$2:$BU$393,2,FALSE)),'Preliminary SO66'!AS36,VLOOKUP($CZ37,'Audit Values'!$A$2:$BU$393,63,FALSE)) -> 205 | AC37: 0 | AD37: =IF(ISNA(VLOOKUP($CZ37,'Audit Values'!$A$2:$BU$393,2,FALSE)),'Preliminary SO66'!AP36,VLOOKUP($CZ37,'Audit Values'!$A$2:$BU$393,64,FALSE)) -> 76 | AE37: =IF(A37=207, AD37,MAX(AC37,AD37))*'Weighting Factors'!$Q$9 -> 36.8 | AF37: 1.1 | AG37: =IF(ISNA(VLOOKUP($CZ37,'Audit Values'!$A$2:$BW$393,2,FALSE)),'Preliminary SO66'!AG36,VLOOKUP($CZ37,'Audit Values'!$A$2:$BW$393,70,FALSE)) -> 4.1 | AH37: 4.1 | AI37: =IF(ISNA(VLOOKUP($CZ37,'Audit Values'!$A$2:$BU$393,2,FALSE)),'Preliminary SO66'!AQ36,VLOOKUP($CZ37,'Audit Values'!$A$2:$BU$393,65,FALSE)) -> 0 | AJ37: =AI37*'Weighting Factors'!$Q$10 -> 0 | AK37: =IF(ISNA(VLOOKUP($CZ37,'Audit Values'!$A$2:$BU$393,2,FALSE)),'Preliminary SO66'!AR36,VLOOKUP($CZ37,'Audit Values'!$A$2:$BU$393,66,FALSE)) -> 47.5 | AM37: 77912 | AN37: 91292 | AO37: =MAX(AN37, AM37)/'Weighting Factors'!$Q$5 -> 20.6 | AP37: =CN37/'Weighting Factors'!$Q$5 -> 0 | AQ37: 0 | AR37: =CS37/'Weighting Factors'!$Q$5 -> 0 | AS37: 156932 | AT37: =AS37/'Weighting Factors'!$Q$5 -> 35.4 | AU37: =IF(ISNA(VLOOKUP($CZ37,'Audit Values'!$A$2:$BU$393,2,FALSE)),'Preliminary SO66'!X36,VLOOKUP($CZ37,'Audit Values'!$A$2:$BU$393,47,FALSE)) -> 0 | AV37: 463.6 | AW37: 428.2 | AX37: =IF(ISNA(VLOOKUP($CZ37,'Audit Values'!$A$2:$BU$393,2,FALSE)),'Preliminary SO66'!AA36,VLOOKUP($CZ37,'Audit Values'!$A$2:$BU$393,41,FALSE)) -> 0 | AY37: =IF(ISNA(VLOOKUP($CZ37,'Audit Values'!$A$2:$BU$393,2,FALSE)),'Preliminary SO66'!AB36,VLOOKUP($CZ37,'Audit Values'!$A$2:$BU$393,42,FALSE)) -> 0 | AZ37: 0 | BA37: =SUM(AX37*'Weighting Factors'!$T$10)+('2020 Legal Max'!AY37*'Weighting Factors'!$T$11)+('2020 Legal Max'!AZ37*'Weighting Factors'!$T$12) -> 0 | BB37: 0 | BC37: =IF(ISNA(VLOOKUP($CZ37,'Audit Values'!$A$2:$BU$274,2,FALSE)),"",IF(AND('Weighting Factors'!H37>0,VLOOKUP($CZ37,'Audit Values'!$A$2:$BU$274,51,FALSE)<'Weighting Factors'!H37),'Weighting Factors'!H37,VLOOKUP($CZ37,'Audit Values'!$A$2:$BU$274,50,FALSE))) -> 5 | BD37: =IF(ISNA(VLOOKUP($CZ37,'Audit Values'!$A$2:$BV$447,2,FALSE)),"",VLOOKUP($CZ37,'Audit Values'!$A$2:$BV$447,51,FALSE)) -> A | BE37: =IF('Weighting Factors'!H37="","",IF('Weighting Factors'!J37="Pending","PX","R")) ->  | BF37: =SUM((S37+T37+Y37+AA37+AE37+AH37+AJ37++AO37+AP37+AQ37+AU37+AR37)*'Weighting Factors'!$Q$5)+'2020 Legal Max'!BA37+'2020 Legal Max'!BB37 -> 1899495 | BG37: =SUM((AV37+AR37)*'Weighting Factors'!$Q$5)+BA37+'2020 Legal Max'!BB37 -> 2056530 | BH37: =IF('Weighting Factors'!H37>0,'Weighting Factors'!H37,'Preliminary SO66'!AV36) -> 2090243 | BI37: 2056530 | BJ37: ='Weighting Factors'!G37 -> 0 | BK37: ='Weighting Factors'!F37 -> 0 | BL37: ='Weighting Factors'!E37 -> 0 | BM37: 0 | BN37: 2056530 | BO37: =SUM((S37+T37+Y37+AA37+AE37+AH37+AJ37++AO37+AP37+AQ37+AR37)*'Weighting Factors'!Q$12)+(MAX(AS37,'Weighting Factors'!B37)) -> 2150417 | BP37: ='LOB%'!F35 -> 0.3 | BQ37: 645125 | BR37: 653740 | BS37: 645125 | BT37: 0.3 | BU37: 0 | BV37: TRUE | BW37: 1057.223 | BX37: 0.724077 | BY37: 151.7 | BZ37: FALSE | CA37: 0 | CB37: 0 | CC37: 0 | CD37: 0 | CE37: 660 | CF37: 0.072 | CG37: =IF(CF37<0.06,1,IF(CF37>=18.29,52,MATCH(CF37-0.001,'Weighting Factors'!$Y$5:$Y$156)+1)) -> 3 | CH37: =VLOOKUP(CG37, 'Weighting Factors'!$W$5:$Z$56,4) -> 1540 | CI37: =('Weighting Factors'!$Q$5/'Weighting Factors'!$Q$14) -> 1.0651 | CJ37: 73150 | CK37: =CJ37*'Weighting Factors'!$S$7 -> 73150 | CL37: 77912 | CM37: =AM37/'Weighting Factors'!$Q$5 -> 17.6 | CN37: 0 | CO37: 0 | CP37: 0 | CQ37: 0 | CR37: =SUM((AV37*'Weighting Factors'!$Q$5)+'2020 Legal Max'!BA37)*CQ37 -> 0 | CS37: 0 | CT37: 0.3707 | CU37: 0 | CV37: 1.1 | CW37: 463.6 | CX37: ='LOB Transfers'!G36 -> 51352 | CY37: ='LOB Transfers'!J36 -> 4580 | CZ37: D0220
A38: 223 | B38: Washington | C38: Barnes | D38: 367.4 | E38: 0 | F38: 367.4 | G38: 368.8 | H38: 0 | I38: 368.8 | J38: 365 | K38: 0 | L38: 365 | M38: =IF(ISNA(VLOOKUP($CZ38,'Audit Values'!$A$2:$BW$496,2,FALSE)),'Preliminary SO66'!C37,VLOOKUP($CZ38,'Audit Values'!$A$2:$BW$496,73,FALSE)) -> 352.6 | N38: =IF(ISNA(VLOOKUP($CZ38,'Audit Values'!$A$2:$BW$496,2,FALSE)),'Preliminary SO66'!F37,VLOOKUP($CZ38,'Audit Values'!$A$2:$BW$496,4,FALSE)) -> 0 | O38: 352.6 | P38: =IF('Military Provision'!J39="YES", MAX('2020 Legal Max'!L38,'2020 Legal Max'!I38,AVERAGE('2020 Legal Max'!F38,'2020 Legal Max'!I38,'2020 Legal Max'!L38)), MAX(L38, I38)) -> 368.8 | Q38: =IF(ISNA(VLOOKUP($CZ38,'Audit Values'!$A$2:$BU$393,2,FALSE)),'Preliminary SO66'!AL37,VLOOKUP($CZ38,'Audit Values'!$A$2:$BU$393,58,FALSE)) -> 0 | R38: 0 | S38: 368.8 | T38: 169.9 | U38: =IF(ISNA(VLOOKUP($CZ38,'Audit Values'!$A$2:$BW$447,2,FALSE)),'Preliminary SO66'!AM37,VLOOKUP($CZ38,'Audit Values'!$A$2:$BW$447,62,FALSE)) -> 69.1 | V38: =(U38/6)*'Weighting Factors'!$Q$7 -> 4.5 | W38: =IF(ISNA(VLOOKUP($CZ38,'Audit Values'!$A$2:$BW$447,2,FALSE)),'Preliminary SO66'!AN37,VLOOKUP($CZ38,'Audit Values'!$A$2:$BW$447,61,FALSE)) -> 33 | X38: =W38*'Weighting Factors'!$Q$8 -> 6.1 | Y38: 6.1 | Z38: =IF(ISNA(VLOOKUP($CZ38,'Audit Values'!$A$2:$BW$447,2,FALSE)),'Preliminary SO66'!AO37,VLOOKUP($CZ38,'Audit Values'!$A$2:$BW$447,60,FALSE)) -> 141.8 | AA38: =Z38/6*'Weighting Factors'!$Q$6 -> 11.8 | AB38: =IF(ISNA(VLOOKUP($CZ38,'Audit Values'!$A$2:$BU$393,2,FALSE)),'Preliminary SO66'!AS37,VLOOKUP($CZ38,'Audit Values'!$A$2:$BU$393,63,FALSE)) -> 437 | AC38: 0 | AD38: =IF(ISNA(VLOOKUP($CZ38,'Audit Values'!$A$2:$BU$393,2,FALSE)),'Preliminary SO66'!AP37,VLOOKUP($CZ38,'Audit Values'!$A$2:$BU$393,64,FALSE)) -> 97 | AE38: =IF(A38=207, AD38,MAX(AC38,AD38))*'Weighting Factors'!$Q$9 -> 46.9 | AF38: 0 | AG38: =IF(ISNA(VLOOKUP($CZ38,'Audit Values'!$A$2:$BW$393,2,FALSE)),'Preliminary SO66'!AG37,VLOOKUP($CZ38,'Audit Values'!$A$2:$BW$393,70,FALSE)) -> 0 | AH38: 0 | AI38: =IF(ISNA(VLOOKUP($CZ38,'Audit Values'!$A$2:$BU$393,2,FALSE)),'Preliminary SO66'!AQ37,VLOOKUP($CZ38,'Audit Values'!$A$2:$BU$393,65,FALSE)) -> 0 | AJ38: =AI38*'Weighting Factors'!$Q$10 -> 0 | AK38: =IF(ISNA(VLOOKUP($CZ38,'Audit Values'!$A$2:$BU$393,2,FALSE)),'Preliminary SO66'!AR37,VLOOKUP($CZ38,'Audit Values'!$A$2:$BU$393,66,FALSE)) -> 141.2 | AM38: 172951 | AN38: 178348 | AO38: =MAX(AN38, AM38)/'Weighting Factors'!$Q$5 -> 40.2 | AP38: =CN38/'Weighting Factors'!$Q$5 -> 0 | AQ38: 0 | AR38: =CS38/'Weighting Factors'!$Q$5 -> 0 | AS38: 450577 | AT38: =AS38/'Weighting Factors'!$Q$5 -> 101.6 | AU38: =IF(ISNA(VLOOKUP($CZ38,'Audit Values'!$A$2:$BU$393,2,FALSE)),'Preliminary SO66'!X37,VLOOKUP($CZ38,'Audit Values'!$A$2:$BU$393,47,FALSE)) -> 1 | AV38: 746.3 | AW38: 644.7 | AX38: =IF(ISNA(VLOOKUP($CZ38,'Audit Values'!$A$2:$BU$393,2,FALSE)),'Preliminary SO66'!AA37,VLOOKUP($CZ38,'Audit Values'!$A$2:$BU$393,41,FALSE)) -> 0 | AY38: =IF(ISNA(VLOOKUP($CZ38,'Audit Values'!$A$2:$BU$393,2,FALSE)),'Preliminary SO66'!AB37,VLOOKUP($CZ38,'Audit Values'!$A$2:$BU$393,42,FALSE)) -> 0 | AZ38: 0 | BA38: =SUM(AX38*'Weighting Factors'!$T$10)+('2020 Legal Max'!AY38*'Weighting Factors'!$T$11)+('2020 Legal Max'!AZ38*'Weighting Factors'!$T$12) -> 0 | BB38: 0 | BC38: =IF(ISNA(VLOOKUP($CZ38,'Audit Values'!$A$2:$BU$274,2,FALSE)),"",IF(AND('Weighting Factors'!H38>0,VLOOKUP($CZ38,'Audit Values'!$A$2:$BU$274,51,FALSE)<'Weighting Factors'!H38),'Weighting Factors'!H38,VLOOKUP($CZ38,'Audit Values'!$A$2:$BU$274,50,FALSE))) -> 2 | BD38: =IF(ISNA(VLOOKUP($CZ38,'Audit Values'!$A$2:$BV$447,2,FALSE)),"",VLOOKUP($CZ38,'Audit Values'!$A$2:$BV$447,51,FALSE)) -> A | BE38: =IF('Weighting Factors'!H38="","",IF('Weighting Factors'!J38="Pending","PX","R")) ->  | BF38: =SUM((S38+T38+Y38+AA38+AE38+AH38+AJ38++AO38+AP38+AQ38+AU38+AR38)*'Weighting Factors'!$Q$5)+'2020 Legal Max'!BA38+'2020 Legal Max'!BB38 -> 2859889 | BG38: =SUM((AV38+AR38)*'Weighting Factors'!$Q$5)+BA38+'2020 Legal Max'!BB38 -> 3310587 | BH38: =IF('Weighting Factors'!H38>0,'Weighting Factors'!H38,'Preliminary SO66'!AV37) -> 3378014 | BI38: 3310587 | BJ38: ='Weighting Factors'!G38 -> 0 | BK38: ='Weighting Factors'!F38 -> 0 | BL38: ='Weighting Factors'!E38 -> 0 | BM38: 0 | BN38: 3310587 | BO38: =SUM((S38+T38+Y38+AA38+AE38+AH38+AJ38++AO38+AP38+AQ38+AR38)*'Weighting Factors'!Q$12)+(MAX(AS38,'Weighting Factors'!B38)) -> 3384562 | BP38: ='LOB%'!F36 -> 0.3 | BQ38: 1015369 | BR38: 1035700 | BS38: 1015369 | BT38: 0.3 | BU38: 0 | BV38: FALSE | BW38: 0 | BX38: 0 | BY38: 0 | BZ38: TRUE | CA38: 85.14 | CB38: 0.460812 | CC38: 169.9 | CD38: 0 | CE38: 378 | CF38: 0.374 | CG38: =IF(CF38<0.06,1,IF(CF38>=18.29,52,MATCH(CF38-0.001,'Weighting Factors'!$Y$5:$Y$156)+1)) -> 22 | CH38: =VLOOKUP(CG38, 'Weighting Factors'!$W$5:$Z$56,4) -> 1150 | CI38: =('Weighting Factors'!$Q$5/'Weighting Factors'!$Q$14) -> 1.0651 | CJ38: 162380 | CK38: =CJ38*'Weighting Factors'!$S$7 -> 162380 | CL38: 172951 | CM38: =AM38/'Weighting Factors'!$Q$5 -> 39 | CN38: 0 | CO38: 0 | CP38: 0 | CQ38: 0 | CR38: =SUM((AV38*'Weighting Factors'!$Q$5)+'2020 Legal Max'!BA38)*CQ38 -> 0 | CS38: 0 | CT38: 0.222 | CU38: 0 | CV38: 0 | CW38: 746.3 | CX38: ='LOB Transfers'!G37 -> 63867 | CY38: ='LOB Transfers'!J37 -> 8326 | CZ38: D0223
A39: 224 | B39: Washington | C39: Clifton-Clyde | D39: 313.5 | E39: 0 | F39: 313.5 | G39: 300 | H39: 0 | I39: 300 | J39: 311.5 | K39: 0 | L39: 311.5 | M39: =IF(ISNA(VLOOKUP($CZ39,'Audit Values'!$A$2:$BW$496,2,FALSE)),'Preliminary SO66'!C38,VLOOKUP($CZ39,'Audit Values'!$A$2:$BW$496,73,FALSE)) -> 314 | N39: =IF(ISNA(VLOOKUP($CZ39,'Audit Values'!$A$2:$BW$496,2,FALSE)),'Preliminary SO66'!F38,VLOOKUP($CZ39,'Audit Values'!$A$2:$BW$496,4,FALSE)) -> 0 | O39: 314 | P39: =IF('Military Provision'!J40="YES", MAX('2020 Legal Max'!L39,'2020 Legal Max'!I39,AVERAGE('2020 Legal Max'!F39,'2020 Legal Max'!I39,'2020 Legal Max'!L39)), MAX(L39, I39)) -> 311.5 | Q39: =IF(ISNA(VLOOKUP($CZ39,'Audit Values'!$A$2:$BU$393,2,FALSE)),'Preliminary SO66'!AL38,VLOOKUP($CZ39,'Audit Values'!$A$2:$BU$393,58,FALSE)) -> 3 | R39: 0 | S39: 314.5 | T39: 150.7 | U39: =IF(ISNA(VLOOKUP($CZ39,'Audit Values'!$A$2:$BW$447,2,FALSE)),'Preliminary SO66'!AM38,VLOOKUP($CZ39,'Audit Values'!$A$2:$BW$447,62,FALSE)) -> 0 | V39: =(U39/6)*'Weighting Factors'!$Q$7 -> 0 | W39: =IF(ISNA(VLOOKUP($CZ39,'Audit Values'!$A$2:$BW$447,2,FALSE)),'Preliminary SO66'!AN38,VLOOKUP($CZ39,'Audit Values'!$A$2:$BW$447,61,FALSE)) -> 0 | X39: =W39*'Weighting Factors'!$Q$8 -> 0 | Y39: 0 | Z39: =IF(ISNA(VLOOKUP($CZ39,'Audit Values'!$A$2:$BW$447,2,FALSE)),'Preliminary SO66'!AO38,VLOOKUP($CZ39,'Audit Values'!$A$2:$BW$447,60,FALSE)) -> 135 | AA39: =Z39/6*'Weighting Factors'!$Q$6 -> 11.3 | AB39: =IF(ISNA(VLOOKUP($CZ39,'Audit Values'!$A$2:$BU$393,2,FALSE)),'Preliminary SO66'!AS38,VLOOKUP($CZ39,'Audit Values'!$A$2:$BU$393,63,FALSE)) -> 323 | AC39: 0 | AD39: =IF(ISNA(VLOOKUP($CZ39,'Audit Values'!$A$2:$BU$393,2,FALSE)),'Preliminary SO66'!AP38,VLOOKUP($CZ39,'Audit Values'!$A$2:$BU$393,64,FALSE)) -> 88 | AE39: =IF(A39=207, AD39,MAX(AC39,AD39))*'Weighting Factors'!$Q$9 -> 42.6 | AF39: 0 | AG39: =IF(ISNA(VLOOKUP($CZ39,'Audit Values'!$A$2:$BW$393,2,FALSE)),'Preliminary SO66'!AG38,VLOOKUP($CZ39,'Audit Values'!$A$2:$BW$393,70,FALSE)) -> 0 | AH39: 0 | AI39: =IF(ISNA(VLOOKUP($CZ39,'Audit Values'!$A$2:$BU$393,2,FALSE)),'Preliminary SO66'!AQ38,VLOOKUP($CZ39,'Audit Values'!$A$2:$BU$393,65,FALSE)) -> 0 | AJ39: =AI39*'Weighting Factors'!$Q$10 -> 0 | AK39: =IF(ISNA(VLOOKUP($CZ39,'Audit Values'!$A$2:$BU$393,2,FALSE)),'Preliminary SO66'!AR38,VLOOKUP($CZ39,'Audit Values'!$A$2:$BU$393,66,FALSE)) -> 160 | AM39: 178937 | AN39: 211475 | AO39: =MAX(AN39, AM39)/'Weighting Factors'!$Q$5 -> 47.7 | AP39: =CN39/'Weighting Factors'!$Q$5 -> 0 | AQ39: 0 | AR39: =CS39/'Weighting Factors'!$Q$5 -> 0 | AS39: 300585 | AT39: =AS39/'Weighting Factors'!$Q$5 -> 67.8 | AU39: =IF(ISNA(VLOOKUP($CZ39,'Audit Values'!$A$2:$BU$393,2,FALSE)),'Preliminary SO66'!X38,VLOOKUP($CZ39,'Audit Values'!$A$2:$BU$393,47,FALSE)) -> 0 | AV39: 634.6 | AW39: 566.8 | AX39: =IF(ISNA(VLOOKUP($CZ39,'Audit Values'!$A$2:$BU$393,2,FALSE)),'Preliminary SO66'!AA38,VLOOKUP($CZ39,'Audit Values'!$A$2:$BU$393,41,FALSE)) -> 0 | AY39: =IF(ISNA(VLOOKUP($CZ39,'Audit Values'!$A$2:$BU$393,2,FALSE)),'Preliminary SO66'!AB38,VLOOKUP($CZ39,'Audit Values'!$A$2:$BU$393,42,FALSE)) -> 0 | AZ39: 0 | BA39: =SUM(AX39*'Weighting Factors'!$T$10)+('2020 Legal Max'!AY39*'Weighting Factors'!$T$11)+('2020 Legal Max'!AZ39*'Weighting Factors'!$T$12) -> 0 | BB39: 0 | BC39: =IF(ISNA(VLOOKUP($CZ39,'Audit Values'!$A$2:$BU$274,2,FALSE)),"",IF(AND('Weighting Factors'!H39>0,VLOOKUP($CZ39,'Audit Values'!$A$2:$BU$274,51,FALSE)<'Weighting Factors'!H39),'Weighting Factors'!H39,VLOOKUP($CZ39,'Audit Values'!$A$2:$BU$274,50,FALSE))) -> 16 | BD39: =IF(ISNA(VLOOKUP($CZ39,'Audit Values'!$A$2:$BV$447,2,FALSE)),"",VLOOKUP($CZ39,'Audit Values'!$A$2:$BV$447,51,FALSE)) -> A | BE39: =IF('Weighting Factors'!H39="","",IF('Weighting Factors'!J39="Pending","PX","R")) ->  | BF39: =SUM((S39+T39+Y39+AA39+AE39+AH39+AJ39++AO39+AP39+AQ39+AU39+AR39)*'Weighting Factors'!$Q$5)+'2020 Legal Max'!BA39+'2020 Legal Max'!BB39 -> 2514325 | BG39: =SUM((AV39+AR39)*'Weighting Factors'!$Q$5)+BA39+'2020 Legal Max'!BB39 -> 2815086 | BH39: =IF('Weighting Factors'!H39>0,'Weighting Factors'!H39,'Preliminary SO66'!AV38) -> 2877190 | BI39: 2815086 | BJ39: ='Weighting Factors'!G39 -> 0 | BK39: ='Weighting Factors'!F39 -> 0 | BL39: ='Weighting Factors'!E39 -> 0 | BM39: 0 | BN39: 2815086 | BO39: =SUM((S39+T39+Y39+AA39+AE39+AH39+AJ39++AO39+AP39+AQ39+AR39)*'Weighting Factors'!Q$12)+(MAX(AS39,'Weighting Factors'!B39)) -> 2931332 | BP39: ='LOB%'!F37 -> 0.3 | BQ39: 879400 | BR39: 888561 | BS39: 879400 | BT39: 0.3 | BU39: 0 | BV39: FALSE | BW39: 0 | BX39: 0 | BY39: 0 | BZ39: TRUE | CA39: 17.9438 | CB39: 0.47926 | CC39: 150.7 | CD39: 0 | CE39: 255 | CF39: 0.627 | CG39: =IF(CF39<0.06,1,IF(CF39>=18.29,52,MATCH(CF39-0.001,'Weighting Factors'!$Y$5:$Y$156)+1)) -> 27 | CH39: =VLOOKUP(CG39, 'Weighting Factors'!$W$5:$Z$56,4) -> 1050 | CI39: =('Weighting Factors'!$Q$5/'Weighting Factors'!$Q$14) -> 1.0651 | CJ39: 168000 | CK39: =CJ39*'Weighting Factors'!$S$7 -> 168000 | CL39: 178937 | CM39: =AM39/'Weighting Factors'!$Q$5 -> 40.3 | CN39: 0 | CO39: 0 | CP39: 0 | CQ39: 0 | CR39: =SUM((AV39*'Weighting Factors'!$Q$5)+'2020 Legal Max'!BA39)*CQ39 -> 0 | CS39: 0 | CT39: 0.2724 | CU39: 0 | CV39: 0 | CW39: 634.6 | CX39: ='LOB Transfers'!G38 -> 59272 | CY39: ='LOB Transfers'!J38 -> 0 | CZ39: D0224
A40: 225 | B40: Meade | C40: Fowler | D40: 141.5 | E40: 0 | F40: 141.5 | G40: 132 | H40: 0 | I40: 132 | J40: 132.5 | K40: 0 | L40: 132.5 | M40: =IF(ISNA(VLOOKUP($CZ40,'Audit Values'!$A$2:$BW$496,2,FALSE)),'Preliminary SO66'!C39,VLOOKUP($CZ40,'Audit Values'!$A$2:$BW$496,73,FALSE)) -> 120 | N40: =IF(ISNA(VLOOKUP($CZ40,'Audit Values'!$A$2:$BW$496,2,FALSE)),'Preliminary SO66'!F39,VLOOKUP($CZ40,'Audit Values'!$A$2:$BW$496,4,FALSE)) -> 0 | O40: 120 | P40: =IF('Military Provision'!J41="YES", MAX('2020 Legal Max'!L40,'2020 Legal Max'!I40,AVERAGE('2020 Legal Max'!F40,'2020 Legal Max'!I40,'2020 Legal Max'!L40)), MAX(L40, I40)) -> 132.5 | Q40: =IF(ISNA(VLOOKUP($CZ40,'Audit Values'!$A$2:$BU$393,2,FALSE)),'Preliminary SO66'!AL39,VLOOKUP($CZ40,'Audit Values'!$A$2:$BU$393,58,FALSE)) -> 2 | R40: 0 | S40: 134.5 | T40: 124.1 | U40: =IF(ISNA(VLOOKUP($CZ40,'Audit Values'!$A$2:$BW$447,2,FALSE)),'Preliminary SO66'!AM39,VLOOKUP($CZ40,'Audit Values'!$A$2:$BW$447,62,FALSE)) -> 14.6 | V40: =(U40/6)*'Weighting Factors'!$Q$7 -> 1 | W40: =IF(ISNA(VLOOKUP($CZ40,'Audit Values'!$A$2:$BW$447,2,FALSE)),'Preliminary SO66'!AN39,VLOOKUP($CZ40,'Audit Values'!$A$2:$BW$447,61,FALSE)) -> 12 | X40: =W40*'Weighting Factors'!$Q$8 -> 2.2 | Y40: 2.2 | Z40: =IF(ISNA(VLOOKUP($CZ40,'Audit Values'!$A$2:$BW$447,2,FALSE)),'Preliminary SO66'!AO39,VLOOKUP($CZ40,'Audit Values'!$A$2:$BW$447,60,FALSE)) -> 27.3 | AA40: =Z40/6*'Weighting Factors'!$Q$6 -> 2.3 | AB40: =IF(ISNA(VLOOKUP($CZ40,'Audit Values'!$A$2:$BU$393,2,FALSE)),'Preliminary SO66'!AS39,VLOOKUP($CZ40,'Audit Values'!$A$2:$BU$393,63,FALSE)) -> 125 | AC40: 0 | AD40: =IF(ISNA(VLOOKUP($CZ40,'Audit Values'!$A$2:$BU$393,2,FALSE)),'Preliminary SO66'!AP39,VLOOKUP($CZ40,'Audit Values'!$A$2:$BU$393,64,FALSE)) -> 68 | AE40: =IF(A40=207, AD40,MAX(AC40,AD40))*'Weighting Factors'!$Q$9 -> 32.9 | AF40: 7.1 | AG40: =IF(ISNA(VLOOKUP($CZ40,'Audit Values'!$A$2:$BW$393,2,FALSE)),'Preliminary SO66'!AG39,VLOOKUP($CZ40,'Audit Values'!$A$2:$BW$393,70,FALSE)) -> 7 | AH40: 7.1 | AI40: =IF(ISNA(VLOOKUP($CZ40,'Audit Values'!$A$2:$BU$393,2,FALSE)),'Preliminary SO66'!AQ39,VLOOKUP($CZ40,'Audit Values'!$A$2:$BU$393,65,FALSE)) -> 0 | AJ40: =AI40*'Weighting Factors'!$Q$10 -> 0 | AK40: =IF(ISNA(VLOOKUP($CZ40,'Audit Values'!$A$2:$BU$393,2,FALSE)),'Preliminary SO66'!AR39,VLOOKUP($CZ40,'Audit Values'!$A$2:$BU$393,66,FALSE)) -> 10 | AM40: 17255 | AN40: 40831 | AO40: =MAX(AN40, AM40)/'Weighting Factors'!$Q$5 -> 9.2 | AP40: =CN40/'Weighting Factors'!$Q$5 -> 0 | AQ40: 0 | AR40: =CS40/'Weighting Factors'!$Q$5 -> 0 | AS40: 97266 | AT40: =AS40/'Weighting Factors'!$Q$5 -> 21.9 | AU40: =IF(ISNA(VLOOKUP($CZ40,'Audit Values'!$A$2:$BU$393,2,FALSE)),'Preliminary SO66'!X39,VLOOKUP($CZ40,'Audit Values'!$A$2:$BU$393,47,FALSE)) -> 0 | AV40: 334.2 | AW40: 312.3 | AX40: =IF(ISNA(VLOOKUP($CZ40,'Audit Values'!$A$2:$BU$393,2,FALSE)),'Preliminary SO66'!AA39,VLOOKUP($CZ40,'Audit Values'!$A$2:$BU$393,41,FALSE)) -> 0 | AY40: =IF(ISNA(VLOOKUP($CZ40,'Audit Values'!$A$2:$BU$393,2,FALSE)),'Preliminary SO66'!AB39,VLOOKUP($CZ40,'Audit Values'!$A$2:$BU$393,42,FALSE)) -> 0 | AZ40: 0 | BA40: =SUM(AX40*'Weighting Factors'!$T$10)+('2020 Legal Max'!AY40*'Weighting Factors'!$T$11)+('2020 Legal Max'!AZ40*'Weighting Factors'!$T$12) -> 0 | BB40: 0 | BC40: =IF(ISNA(VLOOKUP($CZ40,'Audit Values'!$A$2:$BU$274,2,FALSE)),"",IF(AND('Weighting Factors'!H40>0,VLOOKUP($CZ40,'Audit Values'!$A$2:$BU$274,51,FALSE)<'Weighting Factors'!H40),'Weighting Factors'!H40,VLOOKUP($CZ40,'Audit Values'!$A$2:$BU$274,50,FALSE))) -> 5 | BD40: =IF(ISNA(VLOOKUP($CZ40,'Audit Values'!$A$2:$BV$447,2,FALSE)),"",VLOOKUP($CZ40,'Audit Values'!$A$2:$BV$447,51,FALSE)) -> A | BE40: =IF('Weighting Factors'!H40="","",IF('Weighting Factors'!J40="Pending","PX","R")) ->  | BF40: =SUM((S40+T40+Y40+AA40+AE40+AH40+AJ40++AO40+AP40+AQ40+AU40+AR40)*'Weighting Factors'!$Q$5)+'2020 Legal Max'!BA40+'2020 Legal Max'!BB40 -> 1385363 | BG40: =SUM((AV40+AR40)*'Weighting Factors'!$Q$5)+BA40+'2020 Legal Max'!BB40 -> 1482511 | BH40: =IF('Weighting Factors'!H40>0,'Weighting Factors'!H40,'Preliminary SO66'!AV39) -> 1486060 | BI40: 1482511 | BJ40: ='Weighting Factors'!G40 -> 0 | BK40: ='Weighting Factors'!F40 -> -9097 | BL40: ='Weighting Factors'!E40 -> 0 | BM40: -9097 | BN40: 1473414 | BO40: =SUM((S40+T40+Y40+AA40+AE40+AH40+AJ40++AO40+AP40+AQ40+AR40)*'Weighting Factors'!Q$12)+(MAX(AS40,'Weighting Factors'!B40)) -> 1576250 | BP40: ='LOB%'!F38 -> 0.33 | BQ40: 520163 | BR40: 519410 | BS40: 519410 | BT40: 0.3295 | BU40: 0 | BV40: TRUE | BW40: 333.098 | BX40: 0.922881 | BY40: 124.1 | BZ40: FALSE | CA40: 0 | CB40: 0 | CC40: 0 | CD40: 0 | CE40: 281 | CF40: 0.036 | CG40: =IF(CF40<0.06,1,IF(CF40>=18.29,52,MATCH(CF40-0.001,'Weighting Factors'!$Y$5:$Y$156)+1)) -> 1 | CH40: =VLOOKUP(CG40, 'Weighting Factors'!$W$5:$Z$56,4) -> 1620 | CI40: =('Weighting Factors'!$Q$5/'Weighting Factors'!$Q$14) -> 1.0651 | CJ40: 16200 | CK40: =CJ40*'Weighting Factors'!$S$7 -> 16200 | CL40: 17255 | CM40: =AM40/'Weighting Factors'!$Q$5 -> 3.9 | CN40: 0 | CO40: 0 | CP40: 0 | CQ40: 0 | CR40: =SUM((AV40*'Weighting Factors'!$Q$5)+'2020 Legal Max'!BA40)*CQ40 -> 0 | CS40: 0 | CT40: 0.544 | CU40: 7.1 | CV40: 0 | CW40: 334.2 | CX40: ='LOB Transfers'!G39 -> 51422 | CY40: ='LOB Transfers'!J39 -> 3428 | CZ40: D0225
A41: 226 | B41: Meade | C41: Meade | D41: 388.9 | E41: 0 | F41: 388.9 | G41: 412.1 | H41: 0 | I41: 412.1 | J41: 379 | K41: 0 | L41: 379 | M41: =IF(ISNA(VLOOKUP($CZ41,'Audit Values'!$A$2:$BW$496,2,FALSE)),'Preliminary SO66'!C40,VLOOKUP($CZ41,'Audit Values'!$A$2:$BW$496,73,FALSE)) -> 370.9 | N41: =IF(ISNA(VLOOKUP($CZ41,'Audit Values'!$A$2:$BW$496,2,FALSE)),'Preliminary SO66'!F40,VLOOKUP($CZ41,'Audit Values'!$A$2:$BW$496,4,FALSE)) -> 0 | O41: 370.9 | P41: =IF('Military Provision'!J42="YES", MAX('2020 Legal Max'!L41,'2020 Legal Max'!I41,AVERAGE('2020 Legal Max'!F41,'2020 Legal Max'!I41,'2020 Legal Max'!L41)), MAX(L41, I41)) -> 412.1 | Q41: =IF(ISNA(VLOOKUP($CZ41,'Audit Values'!$A$2:$BU$393,2,FALSE)),'Preliminary SO66'!AL40,VLOOKUP($CZ41,'Audit Values'!$A$2:$BU$393,58,FALSE)) -> 2.5 | R41: 0 | S41: 414.6 | T41: 184.6 | U41: =IF(ISNA(VLOOKUP($CZ41,'Audit Values'!$A$2:$BW$447,2,FALSE)),'Preliminary SO66'!AM40,VLOOKUP($CZ41,'Audit Values'!$A$2:$BW$447,62,FALSE)) -> 43.4 | V41: =(U41/6)*'Weighting Factors'!$Q$7 -> 2.9 | W41: =IF(ISNA(VLOOKUP($CZ41,'Audit Values'!$A$2:$BW$447,2,FALSE)),'Preliminary SO66'!AN40,VLOOKUP($CZ41,'Audit Values'!$A$2:$BW$447,61,FALSE)) -> 10 | X41: =W41*'Weighting Factors'!$Q$8 -> 1.9 | Y41: 2.9 | Z41: =IF(ISNA(VLOOKUP($CZ41,'Audit Values'!$A$2:$BW$447,2,FALSE)),'Preliminary SO66'!AO40,VLOOKUP($CZ41,'Audit Values'!$A$2:$BW$447,60,FALSE)) -> 50.8 | AA41: =Z41/6*'Weighting Factors'!$Q$6 -> 4.2 | AB41: =IF(ISNA(VLOOKUP($CZ41,'Audit Values'!$A$2:$BU$393,2,FALSE)),'Preliminary SO66'!AS40,VLOOKUP($CZ41,'Audit Values'!$A$2:$BU$393,63,FALSE)) -> 381 | AC41: 0 | AD41: =IF(ISNA(VLOOKUP($CZ41,'Audit Values'!$A$2:$BU$393,2,FALSE)),'Preliminary SO66'!AP40,VLOOKUP($CZ41,'Audit Values'!$A$2:$BU$393,64,FALSE)) -> 135 | AE41: =IF(A41=207, AD41,MAX(AC41,AD41))*'Weighting Factors'!$Q$9 -> 65.3 | AF41: 0.4 | AG41: =IF(ISNA(VLOOKUP($CZ41,'Audit Values'!$A$2:$BW$393,2,FALSE)),'Preliminary SO66'!AG40,VLOOKUP($CZ41,'Audit Values'!$A$2:$BW$393,70,FALSE)) -> 3.5 | AH41: 3.5 | AI41: =IF(ISNA(VLOOKUP($CZ41,'Audit Values'!$A$2:$BU$393,2,FALSE)),'Preliminary SO66'!AQ40,VLOOKUP($CZ41,'Audit Values'!$A$2:$BU$393,65,FALSE)) -> 0 | AJ41: =AI41*'Weighting Factors'!$Q$10 -> 0 | AK41: =IF(ISNA(VLOOKUP($CZ41,'Audit Values'!$A$2:$BU$393,2,FALSE)),'Preliminary SO66'!AR40,VLOOKUP($CZ41,'Audit Values'!$A$2:$BU$393,66,FALSE)) -> 49 | AM41: 74632 | AN41: 103619 | AO41: =MAX(AN41, AM41)/'Weighting Factors'!$Q$5 -> 23.4 | AP41: =CN41/'Weighting Factors'!$Q$5 -> 0 | AQ41: 0 | AR41: =CS41/'Weighting Factors'!$Q$5 -> 0 | AS41: 277133 | AT41: =AS41/'Weighting Factors'!$Q$5 -> 62.5 | AU41: =IF(ISNA(VLOOKUP($CZ41,'Audit Values'!$A$2:$BU$393,2,FALSE)),'Preliminary SO66'!X40,VLOOKUP($CZ41,'Audit Values'!$A$2:$BU$393,47,FALSE)) -> 0 | AV41: 761 | AW41: 698.5 | AX41: =IF(ISNA(VLOOKUP($CZ41,'Audit Values'!$A$2:$BU$393,2,FALSE)),'Preliminary SO66'!AA40,VLOOKUP($CZ41,'Audit Values'!$A$2:$BU$393,41,FALSE)) -> 0 | AY41: =IF(ISNA(VLOOKUP($CZ41,'Audit Values'!$A$2:$BU$393,2,FALSE)),'Preliminary SO66'!AB40,VLOOKUP($CZ41,'Audit Values'!$A$2:$BU$393,42,FALSE)) -> 0 | AZ41: 0 | BA41: =SUM(AX41*'Weighting Factors'!$T$10)+('2020 Legal Max'!AY41*'Weighting Factors'!$T$11)+('2020 Legal Max'!AZ41*'Weighting Factors'!$T$12) -> 0 | BB41: 0 | BC41: =IF(ISNA(VLOOKUP($CZ41,'Audit Values'!$A$2:$BU$274,2,FALSE)),"",IF(AND('Weighting Factors'!H41>0,VLOOKUP($CZ41,'Audit Values'!$A$2:$BU$274,51,FALSE)<'Weighting Factors'!H41),'Weighting Factors'!H41,VLOOKUP($CZ41,'Audit Values'!$A$2:$BU$274,50,FALSE))) -> 5 | BD41: =IF(ISNA(VLOOKUP($CZ41,'Audit Values'!$A$2:$BV$447,2,FALSE)),"",VLOOKUP($CZ41,'Audit Values'!$A$2:$BV$447,51,FALSE)) -> A | BE41: =IF('Weighting Factors'!H41="","",IF('Weighting Factors'!J41="Pending","PX","R")) ->  | BF41: =SUM((S41+T41+Y41+AA41+AE41+AH41+AJ41++AO41+AP41+AQ41+AU41+AR41)*'Weighting Factors'!$Q$5)+'2020 Legal Max'!BA41+'2020 Legal Max'!BB41 -> 3098546 | BG41: =SUM((AV41+AR41)*'Weighting Factors'!$Q$5)+BA41+'2020 Legal Max'!BB41 -> 3375796 | BH41: =IF('Weighting Factors'!H41>0,'Weighting Factors'!H41,'Preliminary SO66'!AV40) -> 3563882 | BI41: 3375796 | BJ41: ='Weighting Factors'!G41 -> 0 | BK41: ='Weighting Factors'!F41 -> -6796 | BL41: ='Weighting Factors'!E41 -> 0 | BM41: -6796 | BN41: 3369000 | BO41: =SUM((S41+T41+Y41+AA41+AE41+AH41+AJ41++AO41+AP41+AQ41+AR41)*'Weighting Factors'!Q$12)+(MAX(AS41,'Weighting Factors'!B41)) -> 3577357 | BP41: ='LOB%'!F39 -> 0.33 | BQ41: 1180528 | BR41: 1189000 | BS41: 1180528 | BT41: 0.33 | BU41: 0 | BV41: FALSE | BW41: 0 | BX41: 0 | BY41: 0 | BZ41: TRUE | CA41: 141.8175 | CB41: 0.445251 | CC41: 184.6 | CD41: 0 | CE41: 440 | CF41: 0.111 | CG41: =IF(CF41<0.06,1,IF(CF41>=18.29,52,MATCH(CF41-0.001,'Weighting Factors'!$Y$5:$Y$156)+1)) -> 7 | CH41: =VLOOKUP(CG41, 'Weighting Factors'!$W$5:$Z$56,4) -> 1430 | CI41: =('Weighting Factors'!$Q$5/'Weighting Factors'!$Q$14) -> 1.0651 | CJ41: 70070 | CK41: =CJ41*'Weighting Factors'!$S$7 -> 70070 | CL41: 74632 | CM41: =AM41/'Weighting Factors'!$Q$5 -> 16.8 | CN41: 0 | CO41: 0 | CP41: 0 | CQ41: 0 | CR41: =SUM((AV41*'Weighting Factors'!$Q$5)+'2020 Legal Max'!BA41)*CQ41 -> 0 | CS41: 0 | CT41: 0.3543 | CU41: 0 | CV41: 0.4 | CW41: 761 | CX41: ='LOB Transfers'!G40 -> 101643 | CY41: ='LOB Transfers'!J40 -> 4486 | CZ41: D0226
A42: 227 | B42: Hodgeman | C42: Hodgeman County Schools | D42: 287 | E42: 0 | F42: 287 | G42: 296.5 | H42: 0 | I42: 296.5 | J42: 280.5 | K42: 0 | L42: 280.5 | M42: =IF(ISNA(VLOOKUP($CZ42,'Audit Values'!$A$2:$BW$496,2,FALSE)),'Preliminary SO66'!C41,VLOOKUP($CZ42,'Audit Values'!$A$2:$BW$496,73,FALSE)) -> 282 | N42: =IF(ISNA(VLOOKUP($CZ42,'Audit Values'!$A$2:$BW$496,2,FALSE)),'Preliminary SO66'!F41,VLOOKUP($CZ42,'Audit Values'!$A$2:$BW$496,4,FALSE)) -> 0 | O42: 282 | P42: =IF('Military Provision'!J43="YES", MAX('2020 Legal Max'!L42,'2020 Legal Max'!I42,AVERAGE('2020 Legal Max'!F42,'2020 Legal Max'!I42,'2020 Legal Max'!L42)), MAX(L42, I42)) -> 296.5 | Q42: =IF(ISNA(VLOOKUP($CZ42,'Audit Values'!$A$2:$BU$393,2,FALSE)),'Preliminary SO66'!AL41,VLOOKUP($CZ42,'Audit Values'!$A$2:$BU$393,58,FALSE)) -> 0 | R42: 0 | S42: 296.5 | T42: 146.3 | U42: =IF(ISNA(VLOOKUP($CZ42,'Audit Values'!$A$2:$BW$447,2,FALSE)),'Preliminary SO66'!AM41,VLOOKUP($CZ42,'Audit Values'!$A$2:$BW$447,62,FALSE)) -> 8.5 | V42: =(U42/6)*'Weighting Factors'!$Q$7 -> 0.6 | W42: =IF(ISNA(VLOOKUP($CZ42,'Audit Values'!$A$2:$BW$447,2,FALSE)),'Preliminary SO66'!AN41,VLOOKUP($CZ42,'Audit Values'!$A$2:$BW$447,61,FALSE)) -> 8 | X42: =W42*'Weighting Factors'!$Q$8 -> 1.5 | Y42: 1.5 | Z42: =IF(ISNA(VLOOKUP($CZ42,'Audit Values'!$A$2:$BW$447,2,FALSE)),'Preliminary SO66'!AO41,VLOOKUP($CZ42,'Audit Values'!$A$2:$BW$447,60,FALSE)) -> 46.8 | AA42: =Z42/6*'Weighting Factors'!$Q$6 -> 3.9 | AB42: =IF(ISNA(VLOOKUP($CZ42,'Audit Values'!$A$2:$BU$393,2,FALSE)),'Preliminary SO66'!AS41,VLOOKUP($CZ42,'Audit Values'!$A$2:$BU$393,63,FALSE)) -> 286 | AC42: 0 | AD42: =IF(ISNA(VLOOKUP($CZ42,'Audit Values'!$A$2:$BU$393,2,FALSE)),'Preliminary SO66'!AP41,VLOOKUP($CZ42,'Audit Values'!$A$2:$BU$393,64,FALSE)) -> 67 | AE42: =IF(A42=207, AD42,MAX(AC42,AD42))*'Weighting Factors'!$Q$9 -> 32.4 | AF42: 0 | AG42: =IF(ISNA(VLOOKUP($CZ42,'Audit Values'!$A$2:$BW$393,2,FALSE)),'Preliminary SO66'!AG41,VLOOKUP($CZ42,'Audit Values'!$A$2:$BW$393,70,FALSE)) -> 0 | AH42: 0 | AI42: =IF(ISNA(VLOOKUP($CZ42,'Audit Values'!$A$2:$BU$393,2,FALSE)),'Preliminary SO66'!AQ41,VLOOKUP($CZ42,'Audit Values'!$A$2:$BU$393,65,FALSE)) -> 0 | AJ42: =AI42*'Weighting Factors'!$Q$10 -> 0 | AK42: =IF(ISNA(VLOOKUP($CZ42,'Audit Values'!$A$2:$BU$393,2,FALSE)),'Preliminary SO66'!AR41,VLOOKUP($CZ42,'Audit Values'!$A$2:$BU$393,66,FALSE)) -> 125.5 | AM42: 180455 | AN42: 203771 | AO42: =MAX(AN42, AM42)/'Weighting Factors'!$Q$5 -> 45.9 | AP42: =CN42/'Weighting Factors'!$Q$5 -> 0 | AQ42: 0 | AR42: =CS42/'Weighting Factors'!$Q$5 -> 0 | AS42: 205340 | AT42: =AS42/'Weighting Factors'!$Q$5 -> 46.3 | AU42: =IF(ISNA(VLOOKUP($CZ42,'Audit Values'!$A$2:$BU$393,2,FALSE)),'Preliminary SO66'!X41,VLOOKUP($CZ42,'Audit Values'!$A$2:$BU$393,47,FALSE)) -> 0 | AV42: 572.8 | AW42: 526.5 | AX42: =IF(ISNA(VLOOKUP($CZ42,'Audit Values'!$A$2:$BU$393,2,FALSE)),'Preliminary SO66'!AA41,VLOOKUP($CZ42,'Audit Values'!$A$2:$BU$393,41,FALSE)) -> 0 | AY42: =IF(ISNA(VLOOKUP($CZ42,'Audit Values'!$A$2:$BU$393,2,FALSE)),'Preliminary SO66'!AB41,VLOOKUP($CZ42,'Audit Values'!$A$2:$BU$393,42,FALSE)) -> 0 | AZ42: 0 | BA42: =SUM(AX42*'Weighting Factors'!$T$10)+('2020 Legal Max'!AY42*'Weighting Factors'!$T$11)+('2020 Legal Max'!AZ42*'Weighting Factors'!$T$12) -> 0 | BB42: 0 | BC42: =IF(ISNA(VLOOKUP($CZ42,'Audit Values'!$A$2:$BU$274,2,FALSE)),"",IF(AND('Weighting Factors'!H42>0,VLOOKUP($CZ42,'Audit Values'!$A$2:$BU$274,51,FALSE)<'Weighting Factors'!H42),'Weighting Factors'!H42,VLOOKUP($CZ42,'Audit Values'!$A$2:$BU$274,50,FALSE))) -> 9 | BD42: =IF(ISNA(VLOOKUP($CZ42,'Audit Values'!$A$2:$BV$447,2,FALSE)),"",VLOOKUP($CZ42,'Audit Values'!$A$2:$BV$447,51,FALSE)) -> A | BE42: =IF('Weighting Factors'!H42="","",IF('Weighting Factors'!J42="Pending","PX","R")) ->  | BF42: =SUM((S42+T42+Y42+AA42+AE42+AH42+AJ42++AO42+AP42+AQ42+AU42+AR42)*'Weighting Factors'!$Q$5)+'2020 Legal Max'!BA42+'2020 Legal Max'!BB42 -> 2335554 | BG42: =SUM((AV42+AR42)*'Weighting Factors'!$Q$5)+BA42+'2020 Legal Max'!BB42 -> 2540941 | BH42: =IF('Weighting Factors'!H42>0,'Weighting Factors'!H42,'Preliminary SO66'!AV41) -> 2608368 | BI42: 2540941 | BJ42: ='Weighting Factors'!G42 -> 0 | BK42: ='Weighting Factors'!F42 -> 0 | BL42: ='Weighting Factors'!E42 -> 0 | BM42: 0 | BN42: 2540941 | BO42: =SUM((S42+T42+Y42+AA42+AE42+AH42+AJ42++AO42+AP42+AQ42+AR42)*'Weighting Factors'!Q$12)+(MAX(AS42,'Weighting Factors'!B42)) -> 2720439 | BP42: ='LOB%'!F40 -> 0.3 | BQ42: 816132 | BR42: 833087 | BS42: 816132 | BT42: 0.3 | BU42: 0 | BV42: TRUE | BW42: 1897.208 | BX42: 0.493464 | BY42: 146.3 | BZ42: FALSE | CA42: 0 | CB42: 0 | CC42: 0 | CD42: 0 | CE42: 807.5 | CF42: 0.155 | CG42: =IF(CF42<0.06,1,IF(CF42>=18.29,52,MATCH(CF42-0.001,'Weighting Factors'!$Y$5:$Y$156)+1)) -> 11 | CH42: =VLOOKUP(CG42, 'Weighting Factors'!$W$5:$Z$56,4) -> 1350 | CI42: =('Weighting Factors'!$Q$5/'Weighting Factors'!$Q$14) -> 1.0651 | CJ42: 169425 | CK42: =CJ42*'Weighting Factors'!$S$7 -> 169425 | CL42: 180455 | CM42: =AM42/'Weighting Factors'!$Q$5 -> 40.7 | CN42: 0 | CO42: 0 | CP42: 0 | CQ42: 0 | CR42: =SUM((AV42*'Weighting Factors'!$Q$5)+'2020 Legal Max'!BA42)*CQ42 -> 0 | CS42: 0 | CT42: 0.2343 | CU42: 0 | CV42: 0 | CW42: 572.8 | CX42: ='LOB Transfers'!G41 -> 46193 | CY42: ='LOB Transfers'!J41 -> 2122 | CZ42: D0227
A43: 229 | B43: Johnson | C43: Blue Valley | D43: 22241.3 | E43: 0 | F43: 22241.3 | G43: 22315.9 | H43: 0 | I43: 22315.9 | J43: 22329.2 | K43: 0 | L43: 22329.2 | M43: =IF(ISNA(VLOOKUP($CZ43,'Audit Values'!$A$2:$BW$496,2,FALSE)),'Preliminary SO66'!C42,VLOOKUP($CZ43,'Audit Values'!$A$2:$BW$496,73,FALSE)) -> 22347.4 | N43: =IF(ISNA(VLOOKUP($CZ43,'Audit Values'!$A$2:$BW$496,2,FALSE)),'Preliminary SO66'!F42,VLOOKUP($CZ43,'Audit Values'!$A$2:$BW$496,4,FALSE)) -> 0 | O43: 22347.4 | P43: =IF('Military Provision'!J44="YES", MAX('2020 Legal Max'!L43,'2020 Legal Max'!I43,AVERAGE('2020 Legal Max'!F43,'2020 Legal Max'!I43,'2020 Legal Max'!L43)), MAX(L43, I43)) -> 22329.2 | Q43: =IF(ISNA(VLOOKUP($CZ43,'Audit Values'!$A$2:$BU$393,2,FALSE)),'Preliminary SO66'!AL42,VLOOKUP($CZ43,'Audit Values'!$A$2:$BU$393,58,FALSE)) -> 0 | R43: 0 | S43: 22329.2 | T43: 782.4 | U43: =IF(ISNA(VLOOKUP($CZ43,'Audit Values'!$A$2:$BW$447,2,FALSE)),'Preliminary SO66'!AM42,VLOOKUP($CZ43,'Audit Values'!$A$2:$BW$447,62,FALSE)) -> 909.6 | V43: =(U43/6)*'Weighting Factors'!$Q$7 -> 59.9 | W43: =IF(ISNA(VLOOKUP($CZ43,'Audit Values'!$A$2:$BW$447,2,FALSE)),'Preliminary SO66'!AN42,VLOOKUP($CZ43,'Audit Values'!$A$2:$BW$447,61,FALSE)) -> 570 | X43: =W43*'Weighting Factors'!$Q$8 -> 105.5 | Y43: 105.5 | Z43: =IF(ISNA(VLOOKUP($CZ43,'Audit Values'!$A$2:$BW$447,2,FALSE)),'Preliminary SO66'!AO42,VLOOKUP($CZ43,'Audit Values'!$A$2:$BW$447,60,FALSE)) -> 4963.6 | AA43: =Z43/6*'Weighting Factors'!$Q$6 -> 413.6 | AB43: =IF(ISNA(VLOOKUP($CZ43,'Audit Values'!$A$2:$BU$393,2,FALSE)),'Preliminary SO66'!AS42,VLOOKUP($CZ43,'Audit Values'!$A$2:$BU$393,63,FALSE)) -> 22641 | AC43: 0 | AD43: =IF(ISNA(VLOOKUP($CZ43,'Audit Values'!$A$2:$BU$393,2,FALSE)),'Preliminary SO66'!AP42,VLOOKUP($CZ43,'Audit Values'!$A$2:$BU$393,64,FALSE)) -> 1070 | AE43: =IF(A43=207, AD43,MAX(AC43,AD43))*'Weighting Factors'!$Q$9 -> 517.9 | AF43: 0 | AG43: =IF(ISNA(VLOOKUP($CZ43,'Audit Values'!$A$2:$BW$393,2,FALSE)),'Preliminary SO66'!AG42,VLOOKUP($CZ43,'Audit Values'!$A$2:$BW$393,70,FALSE)) -> 0 | AH43: 0 | AI43: =IF(ISNA(VLOOKUP($CZ43,'Audit Values'!$A$2:$BU$393,2,FALSE)),'Preliminary SO66'!AQ42,VLOOKUP($CZ43,'Audit Values'!$A$2:$BU$393,65,FALSE)) -> 269.5 | AJ43: =AI43*'Weighting Factors'!$Q$10 -> 67.4 | AK43: =IF(ISNA(VLOOKUP($CZ43,'Audit Values'!$A$2:$BU$393,2,FALSE)),'Preliminary SO66'!AR42,VLOOKUP($CZ43,'Audit Values'!$A$2:$BU$393,66,FALSE)) -> 4806 | AM43: 2815379 | AN43: 2553876 | AO43: =MAX(AN43, AM43)/'Weighting Factors'!$Q$5 -> 634.7 | AP43: =CN43/'Weighting Factors'!$Q$5 -> 1214 | AQ43: 0 | AR43: =CS43/'Weighting Factors'!$Q$5 -> 1579 | AS43: 24345715 | AT43: =AS43/'Weighting Factors'!$Q$5 -> 5488.2 | AU43: =IF(ISNA(VLOOKUP($CZ43,'Audit Values'!$A$2:$BU$393,2,FALSE)),'Preliminary SO66'!X42,VLOOKUP($CZ43,'Audit Values'!$A$2:$BU$393,47,FALSE)) -> 0 | AV43: 31552.9 | AW43: 27643.7 | AX43: =IF(ISNA(VLOOKUP($CZ43,'Audit Values'!$A$2:$BU$393,2,FALSE)),'Preliminary SO66'!AA42,VLOOKUP($CZ43,'Audit Values'!$A$2:$BU$393,41,FALSE)) -> 1 | AY43: =IF(ISNA(VLOOKUP($CZ43,'Audit Values'!$A$2:$BU$393,2,FALSE)),'Preliminary SO66'!AB42,VLOOKUP($CZ43,'Audit Values'!$A$2:$BU$393,42,FALSE)) -> 68 | AZ43: 0 | BA43: =SUM(AX43*'Weighting Factors'!$T$10)+('2020 Legal Max'!AY43*'Weighting Factors'!$T$11)+('2020 Legal Max'!AZ43*'Weighting Factors'!$T$12) -> 120600 | BB43: 0 | BC43: 28 | BD43: =IF(ISNA(VLOOKUP($CZ43,'Audit Values'!$A$2:$BV$447,2,FALSE)),"",VLOOKUP($CZ43,'Audit Values'!$A$2:$BV$447,51,FALSE)) -> A | BE43: =IF('Weighting Factors'!H43="","",IF('Weighting Factors'!J43="Pending","PX","R")) ->  | BF43: =SUM((S43+T43+Y43+AA43+AE43+AH43+AJ43++AO43+AP43+AQ43+AU43+AR43)*'Weighting Factors'!$Q$5)+'2020 Legal Max'!BA43+'2020 Legal Max'!BB43 -> 122748053 | BG43: =SUM((AV43+AR43)*'Weighting Factors'!$Q$5)+BA43+'2020 Legal Max'!BB43 -> 147093708 | BH43: =IF('Weighting Factors'!H43>0,'Weighting Factors'!H43,'Preliminary SO66'!AV42) -> 148029965 | BI43: 147093708 | BJ43: ='Weighting Factors'!G43 -> 0 | BK43: ='Weighting Factors'!F43 -> 0 | BL43: ='Weighting Factors'!E43 -> 0 | BM43: 0 | BN43: 147093708 | BO43: =SUM((S43+T43+Y43+AA43+AE43+AH43+AJ43++AO43+AP43+AQ43+AR43)*'Weighting Factors'!Q$12)+(MAX(AS43,'Weighting Factors'!B43)) -> 150345700 | BP43: ='LOB%'!F41 -> 0.33 | BQ43: 49614081 | BR43: 49954338 | BS43: 49614081 | BT43: 0.33 | BU43: 0 | BV43: FALSE | BW43: 0 | BX43: 0 | BY43: 0 | BZ43: FALSE | CA43: 0 | CB43: 0 | CC43: 0 | CD43: 782.4 | CE43: 91 | CF43: 52.813 | CG43: =IF(CF43<0.06,1,IF(CF43>=18.29,52,MATCH(CF43-0.001,'Weighting Factors'!$Y$5:$Y$156)+1)) -> 52 | CH43: =VLOOKUP(CG43, 'Weighting Factors'!$W$5:$Z$56,4) -> 550 | CI43: =('Weighting Factors'!$Q$5/'Weighting Factors'!$Q$14) -> 1.0651 | CJ43: 2643300 | CK43: =CJ43*'Weighting Factors'!$S$7 -> 2643300 | CL43: 2815379 | CM43: =AM43/'Weighting Factors'!$Q$5 -> 634.7 | CN43: 5385206 | CO43: 0 | CP43: 7049036 | CQ43: 0.05 | CR43: =SUM((AV43*'Weighting Factors'!$Q$5)+'2020 Legal Max'!BA43)*CQ43 -> 7004463 | CS43: 7004463 | CT43: 0.0473 | CU43: 0 | CV43: 0 | CW43: 33131.9 | CX43: ='LOB Transfers'!G42 -> 773980 | CY43: ='LOB Transfers'!J42 -> 158765 | CZ43: D0229
A44: 230 | B44: Johnson | C44: Spring Hill | D44: 2735.6 | E44: 0 | F44: 2735.6 | G44: 2882.9 | H44: 0 | I44: 2882.9 | J44: 3073.4 | K44: 0 | L44: 3073.4 | M44: =IF(ISNA(VLOOKUP($CZ44,'Audit Values'!$A$2:$BW$496,2,FALSE)),'Preliminary SO66'!C43,VLOOKUP($CZ44,'Audit Values'!$A$2:$BW$496,73,FALSE)) -> 3236 | N44: =IF(ISNA(VLOOKUP($CZ44,'Audit Values'!$A$2:$BW$496,2,FALSE)),'Preliminary SO66'!F43,VLOOKUP($CZ44,'Audit Values'!$A$2:$BW$496,4,FALSE)) -> 0 | O44: 3236 | P44: =IF('Military Provision'!J45="YES", MAX('2020 Legal Max'!L44,'2020 Legal Max'!I44,AVERAGE('2020 Legal Max'!F44,'2020 Legal Max'!I44,'2020 Legal Max'!L44)), MAX(L44, I44)) -> 3073.4 | Q44: =IF(ISNA(VLOOKUP($CZ44,'Audit Values'!$A$2:$BU$393,2,FALSE)),'Preliminary SO66'!AL43,VLOOKUP($CZ44,'Audit Values'!$A$2:$BU$393,58,FALSE)) -> 2.5 | R44: 0 | S44: 3075.9 | T44: 107.8 | U44: =IF(ISNA(VLOOKUP($CZ44,'Audit Values'!$A$2:$BW$447,2,FALSE)),'Preliminary SO66'!AM43,VLOOKUP($CZ44,'Audit Values'!$A$2:$BW$447,62,FALSE)) -> 32.4 | V44: =(U44/6)*'Weighting Factors'!$Q$7 -> 2.1 | W44: =IF(ISNA(VLOOKUP($CZ44,'Audit Values'!$A$2:$BW$447,2,FALSE)),'Preliminary SO66'!AN43,VLOOKUP($CZ44,'Audit Values'!$A$2:$BW$447,61,FALSE)) -> 26 | X44: =W44*'Weighting Factors'!$Q$8 -> 4.8 | Y44: 4.8 | Z44: =IF(ISNA(VLOOKUP($CZ44,'Audit Values'!$A$2:$BW$447,2,FALSE)),'Preliminary SO66'!AO43,VLOOKUP($CZ44,'Audit Values'!$A$2:$BW$447,60,FALSE)) -> 486 | AA44: =Z44/6*'Weighting Factors'!$Q$6 -> 40.5 | AB44: =IF(ISNA(VLOOKUP($CZ44,'Audit Values'!$A$2:$BU$393,2,FALSE)),'Preliminary SO66'!AS43,VLOOKUP($CZ44,'Audit Values'!$A$2:$BU$393,63,FALSE)) -> 3259 | AC44: 0 | AD44: =IF(ISNA(VLOOKUP($CZ44,'Audit Values'!$A$2:$BU$393,2,FALSE)),'Preliminary SO66'!AP43,VLOOKUP($CZ44,'Audit Values'!$A$2:$BU$393,64,FALSE)) -> 358 | AE44: =IF(A44=207, AD44,MAX(AC44,AD44))*'Weighting Factors'!$Q$9 -> 173.3 | AF44: 0 | AG44: =IF(ISNA(VLOOKUP($CZ44,'Audit Values'!$A$2:$BW$393,2,FALSE)),'Preliminary SO66'!AG43,VLOOKUP($CZ44,'Audit Values'!$A$2:$BW$393,70,FALSE)) -> 0 | AH44: 0 | AI44: =IF(ISNA(VLOOKUP($CZ44,'Audit Values'!$A$2:$BU$393,2,FALSE)),'Preliminary SO66'!AQ43,VLOOKUP($CZ44,'Audit Values'!$A$2:$BU$393,65,FALSE)) -> 0 | AJ44: =AI44*'Weighting Factors'!$Q$10 -> 0 | AK44: =IF(ISNA(VLOOKUP($CZ44,'Audit Values'!$A$2:$BU$393,2,FALSE)),'Preliminary SO66'!AR43,VLOOKUP($CZ44,'Audit Values'!$A$2:$BU$393,66,FALSE)) -> 1251 | AM44: 759491 | AN44: 689123 | AO44: =MAX(AN44, AM44)/'Weighting Factors'!$Q$5 -> 171.2 | AP44: =CN44/'Weighting Factors'!$Q$5 -> 605.2 | AQ44: 0 | AR44: =CS44/'Weighting Factors'!$Q$5 -> 0 | AS44: 3589126 | AT44: =AS44/'Weighting Factors'!$Q$5 -> 809.1 | AU44: =IF(ISNA(VLOOKUP($CZ44,'Audit Values'!$A$2:$BU$393,2,FALSE)),'Preliminary SO66'!X43,VLOOKUP($CZ44,'Audit Values'!$A$2:$BU$393,47,FALSE)) -> 0 | AV44: 4987.8 | AW44: 4178.7 | AX44: =IF(ISNA(VLOOKUP($CZ44,'Audit Values'!$A$2:$BU$393,2,FALSE)),'Preliminary SO66'!AA43,VLOOKUP($CZ44,'Audit Values'!$A$2:$BU$393,41,FALSE)) -> 1109 | AY44: =IF(ISNA(VLOOKUP($CZ44,'Audit Values'!$A$2:$BU$393,2,FALSE)),'Preliminary SO66'!AB43,VLOOKUP($CZ44,'Audit Values'!$A$2:$BU$393,42,FALSE)) -> 25.9 | AZ44: 230 | BA44: =SUM(AX44*'Weighting Factors'!$T$10)+('2020 Legal Max'!AY44*'Weighting Factors'!$T$11)+('2020 Legal Max'!AZ44*'Weighting Factors'!$T$12) -> 5752100 | BB44: 0 | BC44: =IF(ISNA(VLOOKUP($CZ44,'Audit Values'!$A$2:$BU$274,2,FALSE)),"",IF(AND('Weighting Factors'!H44>0,VLOOKUP($CZ44,'Audit Values'!$A$2:$BU$274,51,FALSE)<'Weighting Factors'!H44),'Weighting Factors'!H44,VLOOKUP($CZ44,'Audit Values'!$A$2:$BU$274,50,FALSE))) -> 27 | BD44: =IF(ISNA(VLOOKUP($CZ44,'Audit Values'!$A$2:$BV$447,2,FALSE)),"",VLOOKUP($CZ44,'Audit Values'!$A$2:$BV$447,51,FALSE)) -> A | BE44: =IF('Weighting Factors'!H44="","",IF('Weighting Factors'!J44="Pending","PX","R")) ->  | BF44: =SUM((S44+T44+Y44+AA44+AE44+AH44+AJ44++AO44+AP44+AQ44+AU44+AR44)*'Weighting Factors'!$Q$5)+'2020 Legal Max'!BA44+'2020 Legal Max'!BB44 -> 24288813 | BG44: =SUM((AV44+AR44)*'Weighting Factors'!$Q$5)+BA44+'2020 Legal Max'!BB44 -> 27877981 | BH44: =IF('Weighting Factors'!H44>0,'Weighting Factors'!H44,'Preliminary SO66'!AV43) -> 31051675 | BI44: 27877981 | BJ44: ='Weighting Factors'!G44 -> 0 | BK44: ='Weighting Factors'!F44 -> 0 | BL44: ='Weighting Factors'!E44 -> 0 | BM44: 0 | BN44: 27877981 | BO44: =SUM((S44+T44+Y44+AA44+AE44+AH44+AJ44++AO44+AP44+AQ44+AR44)*'Weighting Factors'!Q$12)+(MAX(AS44,'Weighting Factors'!B44)) -> 22635641 | BP44: ='LOB%'!F42 -> 0.33 | BQ44: 7469762 | BR44: 7852546 | BS44: 7469762 | BT44: 0.33 | BU44: 0 | BV44: FALSE | BW44: 0 | BX44: 0 | BY44: 0 | BZ44: FALSE | CA44: 0 | CB44: 0 | CC44: 0 | CD44: 107.8 | CE44: 71 | CF44: 17.62 | CG44: =IF(CF44<0.06,1,IF(CF44>=18.29,52,MATCH(CF44-0.001,'Weighting Factors'!$Y$5:$Y$156)+1)) -> 51 | CH44: =VLOOKUP(CG44, 'Weighting Factors'!$W$5:$Z$56,4) -> 570 | CI44: =('Weighting Factors'!$Q$5/'Weighting Factors'!$Q$14) -> 1.0651 | CJ44: 713070 | CK44: =CJ44*'Weighting Factors'!$S$7 -> 713070 | CL44: 759491 | CM44: =AM44/'Weighting Factors'!$Q$5 -> 171.2 | CN44: 2684869 | CO44: 0 | CP44: 0 | CQ44: 0.05 | CR44: =SUM((AV44*'Weighting Factors'!$Q$5)+'2020 Legal Max'!BA44)*CQ44 -> 1393899 | CS44: 0 | CT44: 0.1098 | CU44: 0 | CV44: 0 | CW44: 4987.8 | CX44: ='LOB Transfers'!G43 -> 259948 | CY44: ='LOB Transfers'!J43 -> 7470 | CZ44: D0230
A45: 231 | B45: Johnson | C45: Gardner Edgerton | D45: 5809.5 | E45: 0 | F45: 5809.5 | G45: 5888.9 | H45: 0 | I45: 5888.9 | J45: 5882.1 | K45: 0 | L45: 5882.1 | M45: =IF(ISNA(VLOOKUP($CZ45,'Audit Values'!$A$2:$BW$496,2,FALSE)),'Preliminary SO66'!C44,VLOOKUP($CZ45,'Audit Values'!$A$2:$BW$496,73,FALSE)) -> 5955.7 | N45: =IF(ISNA(VLOOKUP($CZ45,'Audit Values'!$A$2:$BW$496,2,FALSE)),'Preliminary SO66'!F44,VLOOKUP($CZ45,'Audit Values'!$A$2:$BW$496,4,FALSE)) -> 0 | O45: 5955.7 | P45: =IF('Military Provision'!J46="YES", MAX('2020 Legal Max'!L45,'2020 Legal Max'!I45,AVERAGE('2020 Legal Max'!F45,'2020 Legal Max'!I45,'2020 Legal Max'!L45)), MAX(L45, I45)) -> 5888.9 | Q45: =IF(ISNA(VLOOKUP($CZ45,'Audit Values'!$A$2:$BU$393,2,FALSE)),'Preliminary SO66'!AL44,VLOOKUP($CZ45,'Audit Values'!$A$2:$BU$393,58,FALSE)) -> 0 | R45: 0 | S45: 5888.9 | T45: 206.3 | U45: =IF(ISNA(VLOOKUP($CZ45,'Audit Values'!$A$2:$BW$447,2,FALSE)),'Preliminary SO66'!AM44,VLOOKUP($CZ45,'Audit Values'!$A$2:$BW$447,62,FALSE)) -> 316.7 | V45: =(U45/6)*'Weighting Factors'!$Q$7 -> 20.8 | W45: =IF(ISNA(VLOOKUP($CZ45,'Audit Values'!$A$2:$BW$447,2,FALSE)),'Preliminary SO66'!AN44,VLOOKUP($CZ45,'Audit Values'!$A$2:$BW$447,61,FALSE)) -> 146 | X45: =W45*'Weighting Factors'!$Q$8 -> 27 | Y45: 27 | Z45: =IF(ISNA(VLOOKUP($CZ45,'Audit Values'!$A$2:$BW$447,2,FALSE)),'Preliminary SO66'!AO44,VLOOKUP($CZ45,'Audit Values'!$A$2:$BW$447,60,FALSE)) -> 1159.4 | AA45: =Z45/6*'Weighting Factors'!$Q$6 -> 96.6 | AB45: =IF(ISNA(VLOOKUP($CZ45,'Audit Values'!$A$2:$BU$393,2,FALSE)),'Preliminary SO66'!AS44,VLOOKUP($CZ45,'Audit Values'!$A$2:$BU$393,63,FALSE)) -> 6031 | AC45: 0 | AD45: =IF(ISNA(VLOOKUP($CZ45,'Audit Values'!$A$2:$BU$393,2,FALSE)),'Preliminary SO66'!AP44,VLOOKUP($CZ45,'Audit Values'!$A$2:$BU$393,64,FALSE)) -> 1165 | AE45: =IF(A45=207, AD45,MAX(AC45,AD45))*'Weighting Factors'!$Q$9 -> 563.9 | AF45: 0 | AG45: =IF(ISNA(VLOOKUP($CZ45,'Audit Values'!$A$2:$BW$393,2,FALSE)),'Preliminary SO66'!AG44,VLOOKUP($CZ45,'Audit Values'!$A$2:$BW$393,70,FALSE)) -> 0 | AH45: 0 | AI45: =IF(ISNA(VLOOKUP($CZ45,'Audit Values'!$A$2:$BU$393,2,FALSE)),'Preliminary SO66'!AQ44,VLOOKUP($CZ45,'Audit Values'!$A$2:$BU$393,65,FALSE)) -> 0 | AJ45: =AI45*'Weighting Factors'!$Q$10 -> 0 | AK45: =IF(ISNA(VLOOKUP($CZ45,'Audit Values'!$A$2:$BU$393,2,FALSE)),'Preliminary SO66'!AR44,VLOOKUP($CZ45,'Audit Values'!$A$2:$BU$393,66,FALSE)) -> 1251 | AM45: 812788 | AN45: 744592 | AO45: =MAX(AN45, AM45)/'Weighting Factors'!$Q$5 -> 183.2 | AP45: =CN45/'Weighting Factors'!$Q$5 -> 312.5 | AQ45: 0 | AR45: =CS45/'Weighting Factors'!$Q$5 -> 134 | AS45: 6817007 | AT45: =AS45/'Weighting Factors'!$Q$5 -> 1536.7 | AU45: =IF(ISNA(VLOOKUP($CZ45,'Audit Values'!$A$2:$BU$393,2,FALSE)),'Preliminary SO66'!X44,VLOOKUP($CZ45,'Audit Values'!$A$2:$BU$393,47,FALSE)) -> 0 | AV45: 8815.1 | AW45: 7412.4 | AX45: =IF(ISNA(VLOOKUP($CZ45,'Audit Values'!$A$2:$BU$393,2,FALSE)),'Preliminary SO66'!AA44,VLOOKUP($CZ45,'Audit Values'!$A$2:$BU$393,41,FALSE)) -> 0 | AY45: =IF(ISNA(VLOOKUP($CZ45,'Audit Values'!$A$2:$BU$393,2,FALSE)),'Preliminary SO66'!AB44,VLOOKUP($CZ45,'Audit Values'!$A$2:$BU$393,42,FALSE)) -> 0 | AZ45: 0 | BA45: =SUM(AX45*'Weighting Factors'!$T$10)+('2020 Legal Max'!AY45*'Weighting Factors'!$T$11)+('2020 Legal Max'!AZ45*'Weighting Factors'!$T$12) -> 0 | BB45: 0 | BC45: =IF(ISNA(VLOOKUP($CZ45,'Audit Values'!$A$2:$BU$274,2,FALSE)),"",IF(AND('Weighting Factors'!H45>0,VLOOKUP($CZ45,'Audit Values'!$A$2:$BU$274,51,FALSE)<'Weighting Factors'!H45),'Weighting Factors'!H45,VLOOKUP($CZ45,'Audit Values'!$A$2:$BU$274,50,FALSE))) -> 16 | BD45: =IF(ISNA(VLOOKUP($CZ45,'Audit Values'!$A$2:$BV$447,2,FALSE)),"",VLOOKUP($CZ45,'Audit Values'!$A$2:$BV$447,51,FALSE)) -> A | BE45: =IF('Weighting Factors'!H45="","",IF('Weighting Factors'!J45="Pending","PX","R")) ->  | BF45: =SUM((S45+T45+Y45+AA45+AE45+AH45+AJ45++AO45+AP45+AQ45+AU45+AR45)*'Weighting Factors'!$Q$5)+'2020 Legal Max'!BA45+'2020 Legal Max'!BB45 -> 32881406 | BG45: =SUM((AV45+AR45)*'Weighting Factors'!$Q$5)+BA45+'2020 Legal Max'!BB45 -> 39698208 | BH45: =IF('Weighting Factors'!H45>0,'Weighting Factors'!H45,'Preliminary SO66'!AV44) -> 41876727 | BI45: 39698208 | BJ45: ='Weighting Factors'!G45 -> 0 | BK45: ='Weighting Factors'!F45 -> 0 | BL45: ='Weighting Factors'!E45 -> 0 | BM45: 0 | BN45: 39698208 | BO45: =SUM((S45+T45+Y45+AA45+AE45+AH45+AJ45++AO45+AP45+AQ45+AR45)*'Weighting Factors'!Q$12)+(MAX(AS45,'Weighting Factors'!B45)) -> 40602726 | BP45: ='LOB%'!F43 -> 0.33 | BQ45: 13398900 | BR45: 14124415 | BS45: 13398900 | BT45: 0.33 | BU45: 0 | BV45: FALSE | BW45: 0 | BX45: 0 | BY45: 0 | BZ45: FALSE | CA45: 0 | CB45: 0 | CC45: 0 | CD45: 206.3 | CE45: 103 | CF45: 12.146 | CG45: =IF(CF45<0.06,1,IF(CF45>=18.29,52,MATCH(CF45-0.001,'Weighting Factors'!$Y$5:$Y$156)+1)) -> 49 | CH45: =VLOOKUP(CG45, 'Weighting Factors'!$W$5:$Z$56,4) -> 610 | CI45: =('Weighting Factors'!$Q$5/'Weighting Factors'!$Q$14) -> 1.0651 | CJ45: 763110 | CK45: =CJ45*'Weighting Factors'!$S$7 -> 763110 | CL45: 812788 | CM45: =AM45/'Weighting Factors'!$Q$5 -> 183.2 | CN45: 1386179 | CO45: 0 | CP45: 626999 | CQ45: 0.0152 | CR45: =SUM((AV45*'Weighting Factors'!$Q$5)+'2020 Legal Max'!BA45)*CQ45 -> 594378 | CS45: 594378 | CT45: 0.1932 | CU45: 0 | CV45: 0 | CW45: 8949.1 | CX45: ='LOB Transfers'!G44 -> 844131 | CY45: ='LOB Transfers'!J44 -> 40197 | CZ45: D0231
A46: 232 | B46: Johnson | C46: De Soto | D46: 7072.6 | E46: 0 | F46: 7072.6 | G46: 7202.5 | H46: 0 | I46: 7202.5 | J46: 7262.7 | K46: 0 | L46: 7262.7 | M46: =IF(ISNA(VLOOKUP($CZ46,'Audit Values'!$A$2:$BW$496,2,FALSE)),'Preliminary SO66'!C45,VLOOKUP($CZ46,'Audit Values'!$A$2:$BW$496,73,FALSE)) -> 7307.1 | N46: =IF(ISNA(VLOOKUP($CZ46,'Audit Values'!$A$2:$BW$496,2,FALSE)),'Preliminary SO66'!F45,VLOOKUP($CZ46,'Audit Values'!$A$2:$BW$496,4,FALSE)) -> 0 | O46: 7307.1 | P46: =IF('Military Provision'!J47="YES", MAX('2020 Legal Max'!L46,'2020 Legal Max'!I46,AVERAGE('2020 Legal Max'!F46,'2020 Legal Max'!I46,'2020 Legal Max'!L46)), MAX(L46, I46)) -> 7262.7 | Q46: =IF(ISNA(VLOOKUP($CZ46,'Audit Values'!$A$2:$BU$393,2,FALSE)),'Preliminary SO66'!AL45,VLOOKUP($CZ46,'Audit Values'!$A$2:$BU$393,58,FALSE)) -> 13.5 | R46: 0 | S46: 7276.2 | T46: 255 | U46: =IF(ISNA(VLOOKUP($CZ46,'Audit Values'!$A$2:$BW$447,2,FALSE)),'Preliminary SO66'!AM45,VLOOKUP($CZ46,'Audit Values'!$A$2:$BW$447,62,FALSE)) -> 1001.9 | V46: =(U46/6)*'Weighting Factors'!$Q$7 -> 66 | W46: =IF(ISNA(VLOOKUP($CZ46,'Audit Values'!$A$2:$BW$447,2,FALSE)),'Preliminary SO66'!AN45,VLOOKUP($CZ46,'Audit Values'!$A$2:$BW$447,61,FALSE)) -> 237 | X46: =W46*'Weighting Factors'!$Q$8 -> 43.8 | Y46: 66 | Z46: =IF(ISNA(VLOOKUP($CZ46,'Audit Values'!$A$2:$BW$447,2,FALSE)),'Preliminary SO66'!AO45,VLOOKUP($CZ46,'Audit Values'!$A$2:$BW$447,60,FALSE)) -> 1867.3 | AA46: =Z46/6*'Weighting Factors'!$Q$6 -> 155.6 | AB46: =IF(ISNA(VLOOKUP($CZ46,'Audit Values'!$A$2:$BU$393,2,FALSE)),'Preliminary SO66'!AS45,VLOOKUP($CZ46,'Audit Values'!$A$2:$BU$393,63,FALSE)) -> 7392 | AC46: 0 | AD46: =IF(ISNA(VLOOKUP($CZ46,'Audit Values'!$A$2:$BU$393,2,FALSE)),'Preliminary SO66'!AP45,VLOOKUP($CZ46,'Audit Values'!$A$2:$BU$393,64,FALSE)) -> 613 | AE46: =IF(A46=207, AD46,MAX(AC46,AD46))*'Weighting Factors'!$Q$9 -> 296.7 | AF46: 0 | AG46: =IF(ISNA(VLOOKUP($CZ46,'Audit Values'!$A$2:$BW$393,2,FALSE)),'Preliminary SO66'!AG45,VLOOKUP($CZ46,'Audit Values'!$A$2:$BW$393,70,FALSE)) -> 1.3 | AH46: 1.3 | AI46: =IF(ISNA(VLOOKUP($CZ46,'Audit Values'!$A$2:$BU$393,2,FALSE)),'Preliminary SO66'!AQ45,VLOOKUP($CZ46,'Audit Values'!$A$2:$BU$393,65,FALSE)) -> 0 | AJ46: =AI46*'Weighting Factors'!$Q$10 -> 0 | AK46: =IF(ISNA(VLOOKUP($CZ46,'Audit Values'!$A$2:$BU$393,2,FALSE)),'Preliminary SO66'!AR45,VLOOKUP($CZ46,'Audit Values'!$A$2:$BU$393,66,FALSE)) -> 1880 | AM46: 1101313 | AN46: 1077790 | AO46: =MAX(AN46, AM46)/'Weighting Factors'!$Q$5 -> 248.3 | AP46: =CN46/'Weighting Factors'!$Q$5 -> 0 | AQ46: 0 | AR46: =CS46/'Weighting Factors'!$Q$5 -> 463.8 | AS46: 5729978 | AT46: =AS46/'Weighting Factors'!$Q$5 -> 1291.7 | AU46: =IF(ISNA(VLOOKUP($CZ46,'Audit Values'!$A$2:$BU$393,2,FALSE)),'Preliminary SO66'!X45,VLOOKUP($CZ46,'Audit Values'!$A$2:$BU$393,47,FALSE)) -> 0 | AV46: 9590.8 | AW46: 8762.9 | AX46: =IF(ISNA(VLOOKUP($CZ46,'Audit Values'!$A$2:$BU$393,2,FALSE)),'Preliminary SO66'!AA45,VLOOKUP($CZ46,'Audit Values'!$A$2:$BU$393,41,FALSE)) -> 8 | AY46: =IF(ISNA(VLOOKUP($CZ46,'Audit Values'!$A$2:$BU$393,2,FALSE)),'Preliminary SO66'!AB45,VLOOKUP($CZ46,'Audit Values'!$A$2:$BU$393,42,FALSE)) -> 3.1 | AZ46: 0 | BA46: =SUM(AX46*'Weighting Factors'!$T$10)+('2020 Legal Max'!AY46*'Weighting Factors'!$T$11)+('2020 Legal Max'!AZ46*'Weighting Factors'!$T$12) -> 45270 | BB46: 0 | BC46: =IF(ISNA(VLOOKUP($CZ46,'Audit Values'!$A$2:$BU$274,2,FALSE)),"",IF(AND('Weighting Factors'!H46>0,VLOOKUP($CZ46,'Audit Values'!$A$2:$BU$274,51,FALSE)<'Weighting Factors'!H46),'Weighting Factors'!H46,VLOOKUP($CZ46,'Audit Values'!$A$2:$BU$274,50,FALSE))) -> 27 | BD46: =IF(ISNA(VLOOKUP($CZ46,'Audit Values'!$A$2:$BV$447,2,FALSE)),"",VLOOKUP($CZ46,'Audit Values'!$A$2:$BV$447,51,FALSE)) -> A | BE46: =IF('Weighting Factors'!H46="","",IF('Weighting Factors'!J46="Pending","PX","R")) ->  | BF46: =SUM((S46+T46+Y46+AA46+AE46+AH46+AJ46++AO46+AP46+AQ46+AU46+AR46)*'Weighting Factors'!$Q$5)+'2020 Legal Max'!BA46+'2020 Legal Max'!BB46 -> 38917494 | BG46: =SUM((AV46+AR46)*'Weighting Factors'!$Q$5)+BA46+'2020 Legal Max'!BB46 -> 44647476 | BH46: =IF('Weighting Factors'!H46>0,'Weighting Factors'!H46,'Preliminary SO66'!AV45) -> 45475670 | BI46: 44647476 | BJ46: ='Weighting Factors'!G46 -> 0 | BK46: ='Weighting Factors'!F46 -> 0 | BL46: ='Weighting Factors'!E46 -> -3545 | BM46: -3545 | BN46: 44643931 | BO46: =SUM((S46+T46+Y46+AA46+AE46+AH46+AJ46++AO46+AP46+AQ46+AR46)*'Weighting Factors'!Q$12)+(MAX(AS46,'Weighting Factors'!B46)) -> 45671276 | BP46: ='LOB%'!F44 -> 0.33 | BQ46: 15071521 | BR46: 15339896 | BS46: 15071521 | BT46: 0.33 | BU46: 0 | BV46: FALSE | BW46: 0 | BX46: 0 | BY46: 0 | BZ46: FALSE | CA46: 0 | CB46: 0 | CC46: 0 | CD46: 255 | CE46: 100 | CF46: 18.8 | CG46: =IF(CF46<0.06,1,IF(CF46>=18.29,52,MATCH(CF46-0.001,'Weighting Factors'!$Y$5:$Y$156)+1)) -> 52 | CH46: =VLOOKUP(CG46, 'Weighting Factors'!$W$5:$Z$56,4) -> 550 | CI46: =('Weighting Factors'!$Q$5/'Weighting Factors'!$Q$14) -> 1.0651 | CJ46: 1034000 | CK46: =CJ46*'Weighting Factors'!$S$7 -> 1034000 | CL46: 1101313 | CM46: =AM46/'Weighting Factors'!$Q$5 -> 248.3 | CN46: 0 | CO46: 0 | CP46: 2057302 | CQ46: 0.05 | CR46: =SUM((AV46*'Weighting Factors'!$Q$5)+'2020 Legal Max'!BA46)*CQ46 -> 2129503 | CS46: 2057302 | CT46: 0.0829 | CU46: 0 | CV46: 0 | CW46: 10054.6 | CX46: ='LOB Transfers'!G45 -> 444610 | CY46: ='LOB Transfers'!J45 -> 99472 | CZ46: D0232
A47: 233 | B47: Johnson | C47: Olathe | D47: 28734.2 | E47: 0 | F47: 28734.2 | G47: 29074.1 | H47: 0 | I47: 29074.1 | J47: 29177.1 | K47: 0 | L47: 29177.1 | M47: =IF(ISNA(VLOOKUP($CZ47,'Audit Values'!$A$2:$BW$496,2,FALSE)),'Preliminary SO66'!C46,VLOOKUP($CZ47,'Audit Values'!$A$2:$BW$496,73,FALSE)) -> 29287.6 | N47: =IF(ISNA(VLOOKUP($CZ47,'Audit Values'!$A$2:$BW$496,2,FALSE)),'Preliminary SO66'!F46,VLOOKUP($CZ47,'Audit Values'!$A$2:$BW$496,4,FALSE)) -> 0 | O47: 29287.6 | P47: =IF('Military Provision'!J48="YES", MAX('2020 Legal Max'!L47,'2020 Legal Max'!I47,AVERAGE('2020 Legal Max'!F47,'2020 Legal Max'!I47,'2020 Legal Max'!L47)), MAX(L47, I47)) -> 29177.1 | Q47: =IF(ISNA(VLOOKUP($CZ47,'Audit Values'!$A$2:$BU$393,2,FALSE)),'Preliminary SO66'!AL46,VLOOKUP($CZ47,'Audit Values'!$A$2:$BU$393,58,FALSE)) -> 72.5 | R47: 0 | S47: 29249.6 | T47: 1024.9 | U47: =IF(ISNA(VLOOKUP($CZ47,'Audit Values'!$A$2:$BW$447,2,FALSE)),'Preliminary SO66'!AM46,VLOOKUP($CZ47,'Audit Values'!$A$2:$BW$447,62,FALSE)) -> 5285.2 | V47: =(U47/6)*'Weighting Factors'!$Q$7 -> 347.9 | W47: =IF(ISNA(VLOOKUP($CZ47,'Audit Values'!$A$2:$BW$447,2,FALSE)),'Preliminary SO66'!AN46,VLOOKUP($CZ47,'Audit Values'!$A$2:$BW$447,61,FALSE)) -> 2746 | X47: =W47*'Weighting Factors'!$Q$8 -> 508 | Y47: 508 | Z47: =IF(ISNA(VLOOKUP($CZ47,'Audit Values'!$A$2:$BW$447,2,FALSE)),'Preliminary SO66'!AO46,VLOOKUP($CZ47,'Audit Values'!$A$2:$BW$447,60,FALSE)) -> 6270.4 | AA47: =Z47/6*'Weighting Factors'!$Q$6 -> 522.5 | AB47: =IF(ISNA(VLOOKUP($CZ47,'Audit Values'!$A$2:$BU$393,2,FALSE)),'Preliminary SO66'!AS46,VLOOKUP($CZ47,'Audit Values'!$A$2:$BU$393,63,FALSE)) -> 29732 | AC47: 0 | AD47: =IF(ISNA(VLOOKUP($CZ47,'Audit Values'!$A$2:$BU$393,2,FALSE)),'Preliminary SO66'!AP46,VLOOKUP($CZ47,'Audit Values'!$A$2:$BU$393,64,FALSE)) -> 5703 | AE47: =IF(A47=207, AD47,MAX(AC47,AD47))*'Weighting Factors'!$Q$9 -> 2760.3 | AF47: 0 | AG47: =IF(ISNA(VLOOKUP($CZ47,'Audit Values'!$A$2:$BW$393,2,FALSE)),'Preliminary SO66'!AG46,VLOOKUP($CZ47,'Audit Values'!$A$2:$BW$393,70,FALSE)) -> 147.2 | AH47: 147.2 | AI47: =IF(ISNA(VLOOKUP($CZ47,'Audit Values'!$A$2:$BU$393,2,FALSE)),'Preliminary SO66'!AQ46,VLOOKUP($CZ47,'Audit Values'!$A$2:$BU$393,65,FALSE)) -> 513.9 | AJ47: =AI47*'Weighting Factors'!$Q$10 -> 128.5 | AK47: =IF(ISNA(VLOOKUP($CZ47,'Audit Values'!$A$2:$BU$393,2,FALSE)),'Preliminary SO66'!AR46,VLOOKUP($CZ47,'Audit Values'!$A$2:$BU$393,66,FALSE)) -> 5783 | AM47: 3387710 | AN47: 3241458 | AO47: =MAX(AN47, AM47)/'Weighting Factors'!$Q$5 -> 763.7 | AP47: =CN47/'Weighting Factors'!$Q$5 -> 4508.6 | AQ47: 0 | AR47: =CS47/'Weighting Factors'!$Q$5 -> 2273.9 | AS47: 33116178 | AT47: =AS47/'Weighting Factors'!$Q$5 -> 7465.3 | AU47: =IF(ISNA(VLOOKUP($CZ47,'Audit Values'!$A$2:$BU$393,2,FALSE)),'Preliminary SO66'!X46,VLOOKUP($CZ47,'Audit Values'!$A$2:$BU$393,47,FALSE)) -> 0 | AV47: 47078.6 | AW47: 41887.2 | AX47: =IF(ISNA(VLOOKUP($CZ47,'Audit Values'!$A$2:$BU$393,2,FALSE)),'Preliminary SO66'!AA46,VLOOKUP($CZ47,'Audit Values'!$A$2:$BU$393,41,FALSE)) -> 0 | AY47: =IF(ISNA(VLOOKUP($CZ47,'Audit Values'!$A$2:$BU$393,2,FALSE)),'Preliminary SO66'!AB46,VLOOKUP($CZ47,'Audit Values'!$A$2:$BU$393,42,FALSE)) -> 0 | AZ47: 0 | BA47: =SUM(AX47*'Weighting Factors'!$T$10)+('2020 Legal Max'!AY47*'Weighting Factors'!$T$11)+('2020 Legal Max'!AZ47*'Weighting Factors'!$T$12) -> 0 | BB47: 0 | BC47: =IF(ISNA(VLOOKUP($CZ47,'Audit Values'!$A$2:$BU$274,2,FALSE)),"",IF(AND('Weighting Factors'!H47>0,VLOOKUP($CZ47,'Audit Values'!$A$2:$BU$274,51,FALSE)<'Weighting Factors'!H47),'Weighting Factors'!H47,VLOOKUP($CZ47,'Audit Values'!$A$2:$BU$274,50,FALSE))) -> 27 | BD47: =IF(ISNA(VLOOKUP($CZ47,'Audit Values'!$A$2:$BV$447,2,FALSE)),"",VLOOKUP($CZ47,'Audit Values'!$A$2:$BV$447,51,FALSE)) -> A | BE47: =IF('Weighting Factors'!H47="","",IF('Weighting Factors'!J47="Pending","PX","R")) ->  | BF47: =SUM((S47+T47+Y47+AA47+AE47+AH47+AJ47++AO47+AP47+AQ47+AU47+AR47)*'Weighting Factors'!$Q$5)+'2020 Legal Max'!BA47+'2020 Legal Max'!BB47 -> 185811619 | BG47: =SUM((AV47+AR47)*'Weighting Factors'!$Q$5)+BA47+'2020 Legal Max'!BB47 -> 218927690 | BH47: =IF('Weighting Factors'!H47>0,'Weighting Factors'!H47,'Preliminary SO66'!AV46) -> 222780356 | BI47: 218927690 | BJ47: ='Weighting Factors'!G47 -> 0 | BK47: ='Weighting Factors'!F47 -> 0 | BL47: ='Weighting Factors'!E47 -> 0 | BM47: 0 | BN47: 218927690 | BO47: =SUM((S47+T47+Y47+AA47+AE47+AH47+AJ47++AO47+AP47+AQ47+AR47)*'Weighting Factors'!Q$12)+(MAX(AS47,'Weighting Factors'!B47)) -> 224038036 | BP47: ='LOB%'!F45 -> 0.33 | BQ47: 73932552 | BR47: 75231859 | BS47: 73932552 | BT47: 0.33 | BU47: 0 | BV47: FALSE | BW47: 0 | BX47: 0 | BY47: 0 | BZ47: FALSE | CA47: 0 | CB47: 0 | CC47: 0 | CD47: 1024.9 | CE47: 75.3 | CF47: 76.799 | CG47: =IF(CF47<0.06,1,IF(CF47>=18.29,52,MATCH(CF47-0.001,'Weighting Factors'!$Y$5:$Y$156)+1)) -> 52 | CH47: =VLOOKUP(CG47, 'Weighting Factors'!$W$5:$Z$56,4) -> 550 | CI47: =('Weighting Factors'!$Q$5/'Weighting Factors'!$Q$14) -> 1.0651 | CJ47: 3180650 | CK47: =CJ47*'Weighting Factors'!$S$7 -> 3180650 | CL47: 3387710 | CM47: =AM47/'Weighting Factors'!$Q$5 -> 763.7 | CN47: 20000000 | CO47: 0 | CP47: 10264518 | CQ47: 0.0483 | CR47: =SUM((AV47*'Weighting Factors'!$Q$5)+'2020 Legal Max'!BA47)*CQ47 -> 10087004 | CS47: 10087004 | CT47: 0.1918 | CU47: 0 | CV47: 0 | CW47: 49352.5 | CX47: ='LOB Transfers'!G46 -> 4140223 | CY47: ='LOB Transfers'!J46 -> 761505 | CZ47: D0233
A48: 234 | B48: Bourbon | C48: Fort Scott | D48: 1832.5 | E48: 0 | F48: 1832.5 | G48: 1844 | H48: 0 | I48: 1844 | J48: 1863 | K48: 0 | L48: 1863 | M48: =IF(ISNA(VLOOKUP($CZ48,'Audit Values'!$A$2:$BW$496,2,FALSE)),'Preliminary SO66'!C47,VLOOKUP($CZ48,'Audit Values'!$A$2:$BW$496,73,FALSE)) -> 1823.1 | N48: =IF(ISNA(VLOOKUP($CZ48,'Audit Values'!$A$2:$BW$496,2,FALSE)),'Preliminary SO66'!F47,VLOOKUP($CZ48,'Audit Values'!$A$2:$BW$496,4,FALSE)) -> 0 | O48: 1823.1 | P48: =IF('Military Provision'!J49="YES", MAX('2020 Legal Max'!L48,'2020 Legal Max'!I48,AVERAGE('2020 Legal Max'!F48,'2020 Legal Max'!I48,'2020 Legal Max'!L48)), MAX(L48, I48)) -> 1863 | Q48: =IF(ISNA(VLOOKUP($CZ48,'Audit Values'!$A$2:$BU$393,2,FALSE)),'Preliminary SO66'!AL47,VLOOKUP($CZ48,'Audit Values'!$A$2:$BU$393,58,FALSE)) -> 23 | R48: 0 | S48: 1886 | T48: 66.1 | U48: =IF(ISNA(VLOOKUP($CZ48,'Audit Values'!$A$2:$BW$447,2,FALSE)),'Preliminary SO66'!AM47,VLOOKUP($CZ48,'Audit Values'!$A$2:$BW$447,62,FALSE)) -> 10.4 | V48: =(U48/6)*'Weighting Factors'!$Q$7 -> 0.7 | W48: =IF(ISNA(VLOOKUP($CZ48,'Audit Values'!$A$2:$BW$447,2,FALSE)),'Preliminary SO66'!AN47,VLOOKUP($CZ48,'Audit Values'!$A$2:$BW$447,61,FALSE)) -> 10 | X48: =W48*'Weighting Factors'!$Q$8 -> 1.9 | Y48: 1.9 | Z48: =IF(ISNA(VLOOKUP($CZ48,'Audit Values'!$A$2:$BW$447,2,FALSE)),'Preliminary SO66'!AO47,VLOOKUP($CZ48,'Audit Values'!$A$2:$BW$447,60,FALSE)) -> 499.2 | AA48: =Z48/6*'Weighting Factors'!$Q$6 -> 41.6 | AB48: =IF(ISNA(VLOOKUP($CZ48,'Audit Values'!$A$2:$BU$393,2,FALSE)),'Preliminary SO66'!AS47,VLOOKUP($CZ48,'Audit Values'!$A$2:$BU$393,63,FALSE)) -> 1885 | AC48: 0 | AD48: =IF(ISNA(VLOOKUP($CZ48,'Audit Values'!$A$2:$BU$393,2,FALSE)),'Preliminary SO66'!AP47,VLOOKUP($CZ48,'Audit Values'!$A$2:$BU$393,64,FALSE)) -> 873 | AE48: =IF(A48=207, AD48,MAX(AC48,AD48))*'Weighting Factors'!$Q$9 -> 422.5 | AF48: 69.1 | AG48: =IF(ISNA(VLOOKUP($CZ48,'Audit Values'!$A$2:$BW$393,2,FALSE)),'Preliminary SO66'!AG47,VLOOKUP($CZ48,'Audit Values'!$A$2:$BW$393,70,FALSE)) -> 63 | AH48: 69.1 | AI48: =IF(ISNA(VLOOKUP($CZ48,'Audit Values'!$A$2:$BU$393,2,FALSE)),'Preliminary SO66'!AQ47,VLOOKUP($CZ48,'Audit Values'!$A$2:$BU$393,65,FALSE)) -> 0 | AJ48: =AI48*'Weighting Factors'!$Q$10 -> 0 | AK48: =IF(ISNA(VLOOKUP($CZ48,'Audit Values'!$A$2:$BU$393,2,FALSE)),'Preliminary SO66'!AR47,VLOOKUP($CZ48,'Audit Values'!$A$2:$BU$393,66,FALSE)) -> 560 | AM48: 506988 | AN48: 522331 | AO48: =MAX(AN48, AM48)/'Weighting Factors'!$Q$5 -> 117.7 | AP48: =CN48/'Weighting Factors'!$Q$5 -> 0 | AQ48: 0 | AR48: =CS48/'Weighting Factors'!$Q$5 -> 0 | AS48: 1694643 | AT48: =AS48/'Weighting Factors'!$Q$5 -> 382 | AU48: =IF(ISNA(VLOOKUP($CZ48,'Audit Values'!$A$2:$BU$393,2,FALSE)),'Preliminary SO66'!X47,VLOOKUP($CZ48,'Audit Values'!$A$2:$BU$393,47,FALSE)) -> 0 | AV48: 2986.9 | AW48: 2604.9 | AX48: =IF(ISNA(VLOOKUP($CZ48,'Audit Values'!$A$2:$BU$393,2,FALSE)),'Preliminary SO66'!AA47,VLOOKUP($CZ48,'Audit Values'!$A$2:$BU$393,41,FALSE)) -> 4 | AY48: =IF(ISNA(VLOOKUP($CZ48,'Audit Values'!$A$2:$BU$393,2,FALSE)),'Preliminary SO66'!AB47,VLOOKUP($CZ48,'Audit Values'!$A$2:$BU$393,42,FALSE)) -> 1.8 | AZ48: 0 | BA48: =SUM(AX48*'Weighting Factors'!$T$10)+('2020 Legal Max'!AY48*'Weighting Factors'!$T$11)+('2020 Legal Max'!AZ48*'Weighting Factors'!$T$12) -> 23060 | BB48: 0 | BC48: 28 | BD48: =IF(ISNA(VLOOKUP($CZ48,'Audit Values'!$A$2:$BV$447,2,FALSE)),"",VLOOKUP($CZ48,'Audit Values'!$A$2:$BV$447,51,FALSE)) -> A | BE48: =IF('Weighting Factors'!H48="","",IF('Weighting Factors'!J48="Pending","PX","R")) ->  | BF48: =SUM((S48+T48+Y48+AA48+AE48+AH48+AJ48++AO48+AP48+AQ48+AU48+AR48)*'Weighting Factors'!$Q$5)+'2020 Legal Max'!BA48+'2020 Legal Max'!BB48 -> 11578396 | BG48: =SUM((AV48+AR48)*'Weighting Factors'!$Q$5)+BA48+'2020 Legal Max'!BB48 -> 13272948 | BH48: =IF('Weighting Factors'!H48>0,'Weighting Factors'!H48,'Preliminary SO66'!AV47) -> 13358691 | BI48: 13272948 | BJ48: ='Weighting Factors'!G48 -> 0 | BK48: ='Weighting Factors'!F48 -> 0 | BL48: ='Weighting Factors'!E48 -> 0 | BM48: 0 | BN48: 13272948 | BO48: =SUM((S48+T48+Y48+AA48+AE48+AH48+AJ48++AO48+AP48+AQ48+AR48)*'Weighting Factors'!Q$12)+(MAX(AS48,'Weighting Factors'!B48)) -> 13567777 | BP48: ='LOB%'!F46 -> 0.3 | BQ48: 4070333 | BR48: 4101105 | BS48: 4070333 | BT48: 0.3 | BU48: 0 | BV48: FALSE | BW48: 0 | BX48: 0 | BY48: 0 | BZ48: FALSE | CA48: 0 | CB48: 0 | CC48: 0 | CD48: 66.1 | CE48: 300 | CF48: 1.867 | CG48: =IF(CF48<0.06,1,IF(CF48>=18.29,52,MATCH(CF48-0.001,'Weighting Factors'!$Y$5:$Y$156)+1)) -> 37 | CH48: =VLOOKUP(CG48, 'Weighting Factors'!$W$5:$Z$56,4) -> 850 | CI48: =('Weighting Factors'!$Q$5/'Weighting Factors'!$Q$14) -> 1.0651 | CJ48: 476000 | CK48: =CJ48*'Weighting Factors'!$S$7 -> 476000 | CL48: 506988 | CM48: =AM48/'Weighting Factors'!$Q$5 -> 114.3 | CN48: 0 | CO48: 0 | CP48: 0 | CQ48: 0 | CR48: =SUM((AV48*'Weighting Factors'!$Q$5)+'2020 Legal Max'!BA48)*CQ48 -> 0 | CS48: 0 | CT48: 0.4631 | CU48: 0 | CV48: 69.1 | CW48: 2986.9 | CX48: ='LOB Transfers'!G47 -> 580022 | CY48: ='LOB Transfers'!J47 -> 2442 | CZ48: D0234
A49: 235 | B49: Bourbon | C49: Uniontown | D49: 428 | E49: 0 | F49: 428 | G49: 429.5 | H49: 0 | I49: 429.5 | J49: 428.5 | K49: 0 | L49: 428.5 | M49: =IF(ISNA(VLOOKUP($CZ49,'Audit Values'!$A$2:$BW$496,2,FALSE)),'Preliminary SO66'!C48,VLOOKUP($CZ49,'Audit Values'!$A$2:$BW$496,73,FALSE)) -> 429.5 | N49: =IF(ISNA(VLOOKUP($CZ49,'Audit Values'!$A$2:$BW$496,2,FALSE)),'Preliminary SO66'!F48,VLOOKUP($CZ49,'Audit Values'!$A$2:$BW$496,4,FALSE)) -> 0 | O49: 429.5 | P49: =IF('Military Provision'!J50="YES", MAX('2020 Legal Max'!L49,'2020 Legal Max'!I49,AVERAGE('2020 Legal Max'!F49,'2020 Legal Max'!I49,'2020 Legal Max'!L49)), MAX(L49, I49)) -> 429.5 | Q49: =IF(ISNA(VLOOKUP($CZ49,'Audit Values'!$A$2:$BU$393,2,FALSE)),'Preliminary SO66'!AL48,VLOOKUP($CZ49,'Audit Values'!$A$2:$BU$393,58,FALSE)) -> 6 | R49: 0 | S49: 435.5 | T49: 190.8 | U49: =IF(ISNA(VLOOKUP($CZ49,'Audit Values'!$A$2:$BW$447,2,FALSE)),'Preliminary SO66'!AM48,VLOOKUP($CZ49,'Audit Values'!$A$2:$BW$447,62,FALSE)) -> 0 | V49: =(U49/6)*'Weighting Factors'!$Q$7 -> 0 | W49: =IF(ISNA(VLOOKUP($CZ49,'Audit Values'!$A$2:$BW$447,2,FALSE)),'Preliminary SO66'!AN48,VLOOKUP($CZ49,'Audit Values'!$A$2:$BW$447,61,FALSE)) -> 0 | X49: =W49*'Weighting Factors'!$Q$8 -> 0 | Y49: 0 | Z49: =IF(ISNA(VLOOKUP($CZ49,'Audit Values'!$A$2:$BW$447,2,FALSE)),'Preliminary SO66'!AO48,VLOOKUP($CZ49,'Audit Values'!$A$2:$BW$447,60,FALSE)) -> 65.7 | AA49: =Z49/6*'Weighting Factors'!$Q$6 -> 5.5 | AB49: =IF(ISNA(VLOOKUP($CZ49,'Audit Values'!$A$2:$BU$393,2,FALSE)),'Preliminary SO66'!AS48,VLOOKUP($CZ49,'Audit Values'!$A$2:$BU$393,63,FALSE)) -> 445 | AC49: 0 | AD49: =IF(ISNA(VLOOKUP($CZ49,'Audit Values'!$A$2:$BU$393,2,FALSE)),'Preliminary SO66'!AP48,VLOOKUP($CZ49,'Audit Values'!$A$2:$BU$393,64,FALSE)) -> 172 | AE49: =IF(A49=207, AD49,MAX(AC49,AD49))*'Weighting Factors'!$Q$9 -> 83.2 | AF49: 4.4 | AG49: =IF(ISNA(VLOOKUP($CZ49,'Audit Values'!$A$2:$BW$393,2,FALSE)),'Preliminary SO66'!AG48,VLOOKUP($CZ49,'Audit Values'!$A$2:$BW$393,70,FALSE)) -> 12 | AH49: 12 | AI49: =IF(ISNA(VLOOKUP($CZ49,'Audit Values'!$A$2:$BU$393,2,FALSE)),'Preliminary SO66'!AQ48,VLOOKUP($CZ49,'Audit Values'!$A$2:$BU$393,65,FALSE)) -> 0 | AJ49: =AI49*'Weighting Factors'!$Q$10 -> 0 | AK49: =IF(ISNA(VLOOKUP($CZ49,'Audit Values'!$A$2:$BU$393,2,FALSE)),'Preliminary SO66'!AR48,VLOOKUP($CZ49,'Audit Values'!$A$2:$BU$393,66,FALSE)) -> 264 | AM49: 278375 | AN49: 316249 | AO49: =MAX(AN49, AM49)/'Weighting Factors'!$Q$5 -> 71.3 | AP49: =CN49/'Weighting Factors'!$Q$5 -> 0 | AQ49: 0 | AR49: =CS49/'Weighting Factors'!$Q$5 -> 0 | AS49: 435895 | AT49: =AS49/'Weighting Factors'!$Q$5 -> 98.3 | AU49: =IF(ISNA(VLOOKUP($CZ49,'Audit Values'!$A$2:$BU$393,2,FALSE)),'Preliminary SO66'!X48,VLOOKUP($CZ49,'Audit Values'!$A$2:$BU$393,47,FALSE)) -> 0 | AV49: 896.6 | AW49: 798.3 | AX49: =IF(ISNA(VLOOKUP($CZ49,'Audit Values'!$A$2:$BU$393,2,FALSE)),'Preliminary SO66'!AA48,VLOOKUP($CZ49,'Audit Values'!$A$2:$BU$393,41,FALSE)) -> 0 | AY49: =IF(ISNA(VLOOKUP($CZ49,'Audit Values'!$A$2:$BU$393,2,FALSE)),'Preliminary SO66'!AB48,VLOOKUP($CZ49,'Audit Values'!$A$2:$BU$393,42,FALSE)) -> 0 | AZ49: 0 | BA49: =SUM(AX49*'Weighting Factors'!$T$10)+('2020 Legal Max'!AY49*'Weighting Factors'!$T$11)+('2020 Legal Max'!AZ49*'Weighting Factors'!$T$12) -> 0 | BB49: 0 | BC49: =IF(ISNA(VLOOKUP($CZ49,'Audit Values'!$A$2:$BU$274,2,FALSE)),"",IF(AND('Weighting Factors'!H49>0,VLOOKUP($CZ49,'Audit Values'!$A$2:$BU$274,51,FALSE)<'Weighting Factors'!H49),'Weighting Factors'!H49,VLOOKUP($CZ49,'Audit Values'!$A$2:$BU$274,50,FALSE))) -> 5 | BD49: =IF(ISNA(VLOOKUP($CZ49,'Audit Values'!$A$2:$BV$447,2,FALSE)),"",VLOOKUP($CZ49,'Audit Values'!$A$2:$BV$447,51,FALSE)) -> A | BE49: =IF('Weighting Factors'!H49="","",IF('Weighting Factors'!J49="Pending","PX","R")) -> R | BF49: =SUM((S49+T49+Y49+AA49+AE49+AH49+AJ49++AO49+AP49+AQ49+AU49+AR49)*'Weighting Factors'!$Q$5)+'2020 Legal Max'!BA49+'2020 Legal Max'!BB49 -> 3541259 | BG49: =SUM((AV49+AR49)*'Weighting Factors'!$Q$5)+BA49+'2020 Legal Max'!BB49 -> 3977318 | BH49: =IF('Weighting Factors'!H49>0,'Weighting Factors'!H49,'Preliminary SO66'!AV48) -> 4027444 | BI49: 3977318 | BJ49: ='Weighting Factors'!G49 -> 0 | BK49: ='Weighting Factors'!F49 -> -63116 | BL49: ='Weighting Factors'!E49 -> 0 | BM49: -63116 | BN49: 3914202 | BO49: =SUM((S49+T49+Y49+AA49+AE49+AH49+AJ49++AO49+AP49+AQ49+AR49)*'Weighting Factors'!Q$12)+(MAX(AS49,'Weighting Factors'!B49)) -> 4074546 | BP49: ='LOB%'!F47 -> 0.3 | BQ49: 1222364 | BR49: 1228393 | BS49: 1222364 | BT49: 0.3 | BU49: 0 | BV49: FALSE | BW49: 0 | BX49: 0 | BY49: 0 | BZ49: TRUE | CA49: 167.6813 | CB49: 0.43815 | CC49: 190.8 | CD49: 0 | CE49: 309 | CF49: 0.854 | CG49: =IF(CF49<0.06,1,IF(CF49>=18.29,52,MATCH(CF49-0.001,'Weighting Factors'!$Y$5:$Y$156)+1)) -> 30 | CH49: =VLOOKUP(CG49, 'Weighting Factors'!$W$5:$Z$56,4) -> 990 | CI49: =('Weighting Factors'!$Q$5/'Weighting Factors'!$Q$14) -> 1.0651 | CJ49: 261360 | CK49: =CJ49*'Weighting Factors'!$S$7 -> 261360 | CL49: 278375 | CM49: =AM49/'Weighting Factors'!$Q$5 -> 62.8 | CN49: 0 | CO49: 0 | CP49: 0 | CQ49: 0 | CR49: =SUM((AV49*'Weighting Factors'!$Q$5)+'2020 Legal Max'!BA49)*CQ49 -> 0 | CS49: 0 | CT49: 0.3865 | CU49: 0 | CV49: 4.4 | CW49: 896.6 | CX49: ='LOB Transfers'!G48 -> 114169 | CY49: ='LOB Transfers'!J48 -> 0 | CZ49: D0235
A50: 237 | B50: Smith | C50: Smith Center | D50: 395 | E50: 0 | F50: 395 | G50: 396 | H50: 0 | I50: 396 | J50: 423.3 | K50: 0 | L50: 423.3 | M50: =IF(ISNA(VLOOKUP($CZ50,'Audit Values'!$A$2:$BW$496,2,FALSE)),'Preliminary SO66'!C49,VLOOKUP($CZ50,'Audit Values'!$A$2:$BW$496,73,FALSE)) -> 399 | N50: =IF(ISNA(VLOOKUP($CZ50,'Audit Values'!$A$2:$BW$496,2,FALSE)),'Preliminary SO66'!F49,VLOOKUP($CZ50,'Audit Values'!$A$2:$BW$496,4,FALSE)) -> 0 | O50: 399 | P50: =IF('Military Provision'!J51="YES", MAX('2020 Legal Max'!L50,'2020 Legal Max'!I50,AVERAGE('2020 Legal Max'!F50,'2020 Legal Max'!I50,'2020 Legal Max'!L50)), MAX(L50, I50)) -> 423.3 | Q50: =IF(ISNA(VLOOKUP($CZ50,'Audit Values'!$A$2:$BU$393,2,FALSE)),'Preliminary SO66'!AL49,VLOOKUP($CZ50,'Audit Values'!$A$2:$BU$393,58,FALSE)) -> 0 | R50: 0 | S50: 423.3 | T50: 187.2 | U50: =IF(ISNA(VLOOKUP($CZ50,'Audit Values'!$A$2:$BW$447,2,FALSE)),'Preliminary SO66'!AM49,VLOOKUP($CZ50,'Audit Values'!$A$2:$BW$447,62,FALSE)) -> 0 | V50: =(U50/6)*'Weighting Factors'!$Q$7 -> 0 | W50: =IF(ISNA(VLOOKUP($CZ50,'Audit Values'!$A$2:$BW$447,2,FALSE)),'Preliminary SO66'!AN49,VLOOKUP($CZ50,'Audit Values'!$A$2:$BW$447,61,FALSE)) -> 4 | X50: =W50*'Weighting Factors'!$Q$8 -> 0.7 | Y50: 0.7 | Z50: =IF(ISNA(VLOOKUP($CZ50,'Audit Values'!$A$2:$BW$447,2,FALSE)),'Preliminary SO66'!AO49,VLOOKUP($CZ50,'Audit Values'!$A$2:$BW$447,60,FALSE)) -> 122.6 | AA50: =Z50/6*'Weighting Factors'!$Q$6 -> 10.2 | AB50: =IF(ISNA(VLOOKUP($CZ50,'Audit Values'!$A$2:$BU$393,2,FALSE)),'Preliminary SO66'!AS49,VLOOKUP($CZ50,'Audit Values'!$A$2:$BU$393,63,FALSE)) -> 402 | AC50: 0 | AD50: =IF(ISNA(VLOOKUP($CZ50,'Audit Values'!$A$2:$BU$393,2,FALSE)),'Preliminary SO66'!AP49,VLOOKUP($CZ50,'Audit Values'!$A$2:$BU$393,64,FALSE)) -> 138 | AE50: =IF(A50=207, AD50,MAX(AC50,AD50))*'Weighting Factors'!$Q$9 -> 66.8 | AF50: 0 | AG50: =IF(ISNA(VLOOKUP($CZ50,'Audit Values'!$A$2:$BW$393,2,FALSE)),'Preliminary SO66'!AG49,VLOOKUP($CZ50,'Audit Values'!$A$2:$BW$393,70,FALSE)) -> 0 | AH50: 0 | AI50: =IF(ISNA(VLOOKUP($CZ50,'Audit Values'!$A$2:$BU$393,2,FALSE)),'Preliminary SO66'!AQ49,VLOOKUP($CZ50,'Audit Values'!$A$2:$BU$393,65,FALSE)) -> 0 | AJ50: =AI50*'Weighting Factors'!$Q$10 -> 0 | AK50: =IF(ISNA(VLOOKUP($CZ50,'Audit Values'!$A$2:$BU$393,2,FALSE)),'Preliminary SO66'!AR49,VLOOKUP($CZ50,'Audit Values'!$A$2:$BU$393,66,FALSE)) -> 127 | AM50: 171790 | AN50: 192215 | AO50: =MAX(AN50, AM50)/'Weighting Factors'!$Q$5 -> 43.3 | AP50: =CN50/'Weighting Factors'!$Q$5 -> 0 | AQ50: 0 | AR50: =CS50/'Weighting Factors'!$Q$5 -> 0 | AS50: 510149 | AT50: =AS50/'Weighting Factors'!$Q$5 -> 115 | AU50: =IF(ISNA(VLOOKUP($CZ50,'Audit Values'!$A$2:$BU$393,2,FALSE)),'Preliminary SO66'!X49,VLOOKUP($CZ50,'Audit Values'!$A$2:$BU$393,47,FALSE)) -> 0 | AV50: 846.5 | AW50: 731.5 | AX50: =IF(ISNA(VLOOKUP($CZ50,'Audit Values'!$A$2:$BU$393,2,FALSE)),'Preliminary SO66'!AA49,VLOOKUP($CZ50,'Audit Values'!$A$2:$BU$393,41,FALSE)) -> 0 | AY50: =IF(ISNA(VLOOKUP($CZ50,'Audit Values'!$A$2:$BU$393,2,FALSE)),'Preliminary SO66'!AB49,VLOOKUP($CZ50,'Audit Values'!$A$2:$BU$393,42,FALSE)) -> 0 | AZ50: 0 | BA50: =SUM(AX50*'Weighting Factors'!$T$10)+('2020 Legal Max'!AY50*'Weighting Factors'!$T$11)+('2020 Legal Max'!AZ50*'Weighting Factors'!$T$12) -> 0 | BB50: 0 | BC50: =IF(ISNA(VLOOKUP($CZ50,'Audit Values'!$A$2:$BU$274,2,FALSE)),"",IF(AND('Weighting Factors'!H50>0,VLOOKUP($CZ50,'Audit Values'!$A$2:$BU$274,51,FALSE)<'Weighting Factors'!H50),'Weighting Factors'!H50,VLOOKUP($CZ50,'Audit Values'!$A$2:$BU$274,50,FALSE))) -> 13 | BD50: =IF(ISNA(VLOOKUP($CZ50,'Audit Values'!$A$2:$BV$447,2,FALSE)),"",VLOOKUP($CZ50,'Audit Values'!$A$2:$BV$447,51,FALSE)) -> A | BE50: =IF('Weighting Factors'!H50="","",IF('Weighting Factors'!J50="Pending","PX","R")) ->  | BF50: =SUM((S50+T50+Y50+AA50+AE50+AH50+AJ50++AO50+AP50+AQ50+AU50+AR50)*'Weighting Factors'!$Q$5)+'2020 Legal Max'!BA50+'2020 Legal Max'!BB50 -> 3244934 | BG50: =SUM((AV50+AR50)*'Weighting Factors'!$Q$5)+BA50+'2020 Legal Max'!BB50 -> 3755074 | BH50: =IF('Weighting Factors'!H50>0,'Weighting Factors'!H50,'Preliminary SO66'!AV49) -> 3929409 | BI50: 3755074 | BJ50: ='Weighting Factors'!G50 -> 0 | BK50: ='Weighting Factors'!F50 -> 0 | BL50: ='Weighting Factors'!E50 -> 0 | BM50: 0 | BN50: 3755074 | BO50: =SUM((S50+T50+Y50+AA50+AE50+AH50+AJ50++AO50+AP50+AQ50+AR50)*'Weighting Factors'!Q$12)+(MAX(AS50,'Weighting Factors'!B50)) -> 3920212 | BP50: ='LOB%'!F48 -> 0.33 | BQ50: 1293670 | BR50: 1326447 | BS50: 1293670 | BT50: 0.33 | BU50: 0 | BV50: FALSE | BW50: 0 | BX50: 0 | BY50: 0 | BZ50: TRUE | CA50: 152.5838 | CB50: 0.442295 | CC50: 187.2 | CD50: 0 | CE50: 599 | CF50: 0.212 | CG50: =IF(CF50<0.06,1,IF(CF50>=18.29,52,MATCH(CF50-0.001,'Weighting Factors'!$Y$5:$Y$156)+1)) -> 16 | CH50: =VLOOKUP(CG50, 'Weighting Factors'!$W$5:$Z$56,4) -> 1270 | CI50: =('Weighting Factors'!$Q$5/'Weighting Factors'!$Q$14) -> 1.0651 | CJ50: 161290 | CK50: =CJ50*'Weighting Factors'!$S$7 -> 161290 | CL50: 171790 | CM50: =AM50/'Weighting Factors'!$Q$5 -> 38.7 | CN50: 0 | CO50: 0 | CP50: 0 | CQ50: 0 | CR50: =SUM((AV50*'Weighting Factors'!$Q$5)+'2020 Legal Max'!BA50)*CQ50 -> 0 | CS50: 0 | CT50: 0.3433 | CU50: 0 | CV50: 0 | CW50: 846.5 | CX50: ='LOB Transfers'!G49 -> 102071 | CY50: ='LOB Transfers'!J49 -> 1035 | CZ50: D0237
A51: 239 | B51: Ottawa | C51: North Ottawa County | D51: 611.2 | E51: 0 | F51: 611.2 | G51: 606 | H51: 0 | I51: 606 | J51: 594.8 | K51: 0 | L51: 594.8 | M51: =IF(ISNA(VLOOKUP($CZ51,'Audit Values'!$A$2:$BW$496,2,FALSE)),'Preliminary SO66'!C50,VLOOKUP($CZ51,'Audit Values'!$A$2:$BW$496,73,FALSE)) -> 618.6 | N51: =IF(ISNA(VLOOKUP($CZ51,'Audit Values'!$A$2:$BW$496,2,FALSE)),'Preliminary SO66'!F50,VLOOKUP($CZ51,'Audit Values'!$A$2:$BW$496,4,FALSE)) -> 0 | O51: 618.6 | P51: =IF('Military Provision'!J52="YES", MAX('2020 Legal Max'!L51,'2020 Legal Max'!I51,AVERAGE('2020 Legal Max'!F51,'2020 Legal Max'!I51,'2020 Legal Max'!L51)), MAX(L51, I51)) -> 606 | Q51: =IF(ISNA(VLOOKUP($CZ51,'Audit Values'!$A$2:$BU$393,2,FALSE)),'Preliminary SO66'!AL50,VLOOKUP($CZ51,'Audit Values'!$A$2:$BU$393,58,FALSE)) -> 0 | R51: 0 | S51: 606 | T51: 230.4 | U51: =IF(ISNA(VLOOKUP($CZ51,'Audit Values'!$A$2:$BW$447,2,FALSE)),'Preliminary SO66'!AM50,VLOOKUP($CZ51,'Audit Values'!$A$2:$BW$447,62,FALSE)) -> 0 | V51: =(U51/6)*'Weighting Factors'!$Q$7 -> 0 | W51: =IF(ISNA(VLOOKUP($CZ51,'Audit Values'!$A$2:$BW$447,2,FALSE)),'Preliminary SO66'!AN50,VLOOKUP($CZ51,'Audit Values'!$A$2:$BW$447,61,FALSE)) -> 0 | X51: =W51*'Weighting Factors'!$Q$8 -> 0 | Y51: 0 | Z51: =IF(ISNA(VLOOKUP($CZ51,'Audit Values'!$A$2:$BW$447,2,FALSE)),'Preliminary SO66'!AO50,VLOOKUP($CZ51,'Audit Values'!$A$2:$BW$447,60,FALSE)) -> 148.9 | AA51: =Z51/6*'Weighting Factors'!$Q$6 -> 12.4 | AB51: =IF(ISNA(VLOOKUP($CZ51,'Audit Values'!$A$2:$BU$393,2,FALSE)),'Preliminary SO66'!AS50,VLOOKUP($CZ51,'Audit Values'!$A$2:$BU$393,63,FALSE)) -> 625 | AC51: 0 | AD51: =IF(ISNA(VLOOKUP($CZ51,'Audit Values'!$A$2:$BU$393,2,FALSE)),'Preliminary SO66'!AP50,VLOOKUP($CZ51,'Audit Values'!$A$2:$BU$393,64,FALSE)) -> 165 | AE51: =IF(A51=207, AD51,MAX(AC51,AD51))*'Weighting Factors'!$Q$9 -> 79.9 | AF51: 0 | AG51: =IF(ISNA(VLOOKUP($CZ51,'Audit Values'!$A$2:$BW$393,2,FALSE)),'Preliminary SO66'!AG50,VLOOKUP($CZ51,'Audit Values'!$A$2:$BW$393,70,FALSE)) -> 0 | AH51: 0 | AI51: =IF(ISNA(VLOOKUP($CZ51,'Audit Values'!$A$2:$BU$393,2,FALSE)),'Preliminary SO66'!AQ50,VLOOKUP($CZ51,'Audit Values'!$A$2:$BU$393,65,FALSE)) -> 0 | AJ51: =AI51*'Weighting Factors'!$Q$10 -> 0 | AK51: =IF(ISNA(VLOOKUP($CZ51,'Audit Values'!$A$2:$BU$393,2,FALSE)),'Preliminary SO66'!AR50,VLOOKUP($CZ51,'Audit Values'!$A$2:$BU$393,66,FALSE)) -> 184 | AM51: 217536 | AN51: 234202 | AO51: =MAX(AN51, AM51)/'Weighting Factors'!$Q$5 -> 52.8 | AP51: =CN51/'Weighting Factors'!$Q$5 -> 0 | AQ51: 0 | AR51: =CS51/'Weighting Factors'!$Q$5 -> 0 | AS51: 694675 | AT51: =AS51/'Weighting Factors'!$Q$5 -> 156.6 | AU51: =IF(ISNA(VLOOKUP($CZ51,'Audit Values'!$A$2:$BU$393,2,FALSE)),'Preliminary SO66'!X50,VLOOKUP($CZ51,'Audit Values'!$A$2:$BU$393,47,FALSE)) -> 0 | AV51: 1138.1 | AW51: 981.5 | AX51: =IF(ISNA(VLOOKUP($CZ51,'Audit Values'!$A$2:$BU$393,2,FALSE)),'Preliminary SO66'!AA50,VLOOKUP($CZ51,'Audit Values'!$A$2:$BU$393,41,FALSE)) -> 0 | AY51: =IF(ISNA(VLOOKUP($CZ51,'Audit Values'!$A$2:$BU$393,2,FALSE)),'Preliminary SO66'!AB50,VLOOKUP($CZ51,'Audit Values'!$A$2:$BU$393,42,FALSE)) -> 0 | AZ51: 0 | BA51: =SUM(AX51*'Weighting Factors'!$T$10)+('2020 Legal Max'!AY51*'Weighting Factors'!$T$11)+('2020 Legal Max'!AZ51*'Weighting Factors'!$T$12) -> 0 | BB51: 0 | BC51: =IF(ISNA(VLOOKUP($CZ51,'Audit Values'!$A$2:$BU$274,2,FALSE)),"",IF(AND('Weighting Factors'!H51>0,VLOOKUP($CZ51,'Audit Values'!$A$2:$BU$274,51,FALSE)<'Weighting Factors'!H51),'Weighting Factors'!H51,VLOOKUP($CZ51,'Audit Values'!$A$2:$BU$274,50,FALSE))) -> 19 | BD51: =IF(ISNA(VLOOKUP($CZ51,'Audit Values'!$A$2:$BV$447,2,FALSE)),"",VLOOKUP($CZ51,'Audit Values'!$A$2:$BV$447,51,FALSE)) -> A | BE51: =IF('Weighting Factors'!H51="","",IF('Weighting Factors'!J51="Pending","PX","R")) ->  | BF51: =SUM((S51+T51+Y51+AA51+AE51+AH51+AJ51++AO51+AP51+AQ51+AU51+AR51)*'Weighting Factors'!$Q$5)+'2020 Legal Max'!BA51+'2020 Legal Max'!BB51 -> 4353934 | BG51: =SUM((AV51+AR51)*'Weighting Factors'!$Q$5)+BA51+'2020 Legal Max'!BB51 -> 5048612 | BH51: =IF('Weighting Factors'!H51>0,'Weighting Factors'!H51,'Preliminary SO66'!AV50) -> 5144429 | BI51: 5048612 | BJ51: ='Weighting Factors'!G51 -> 0 | BK51: ='Weighting Factors'!F51 -> 0 | BL51: ='Weighting Factors'!E51 -> 0 | BM51: 0 | BN51: 5048612 | BO51: =SUM((S51+T51+Y51+AA51+AE51+AH51+AJ51++AO51+AP51+AQ51+AR51)*'Weighting Factors'!Q$12)+(MAX(AS51,'Weighting Factors'!B51)) -> 5168352 | BP51: ='LOB%'!F49 -> 0.33 | BQ51: 1705556 | BR51: 1737383 | BS51: 1705556 | BT51: 0.33 | BU51: 0 | BV51: FALSE | BW51: 0 | BX51: 0 | BY51: 0 | BZ51: TRUE | CA51: 378.675 | CB51: 0.380223 | CC51: 230.4 | CD51: 0 | CE51: 418.5 | CF51: 0.44 | CG51: =IF(CF51<0.06,1,IF(CF51>=18.29,52,MATCH(CF51-0.001,'Weighting Factors'!$Y$5:$Y$156)+1)) -> 24 | CH51: =VLOOKUP(CG51, 'Weighting Factors'!$W$5:$Z$56,4) -> 1110 | CI51: =('Weighting Factors'!$Q$5/'Weighting Factors'!$Q$14) -> 1.0651 | CJ51: 204240 | CK51: =CJ51*'Weighting Factors'!$S$7 -> 204240 | CL51: 217536 | CM51: =AM51/'Weighting Factors'!$Q$5 -> 49 | CN51: 0 | CO51: 0 | CP51: 0 | CQ51: 0 | CR51: =SUM((AV51*'Weighting Factors'!$Q$5)+'2020 Legal Max'!BA51)*CQ51 -> 0 | CS51: 0 | CT51: 0.264 | CU51: 0 | CV51: 0 | CW51: 1138.1 | CX51: ='LOB Transfers'!G50 -> 119730 | CY51: ='LOB Transfers'!J50 -> 0 | CZ51: D0239
A52: 240 | B52: Ottawa | C52: Twin Valley | D52: 579.5 | E52: 0 | F52: 579.5 | G52: 582.6 | H52: 0 | I52: 582.6 | J52: 562 | K52: 0 | L52: 562 | M52: =IF(ISNA(VLOOKUP($CZ52,'Audit Values'!$A$2:$BW$496,2,FALSE)),'Preliminary SO66'!C51,VLOOKUP($CZ52,'Audit Values'!$A$2:$BW$496,73,FALSE)) -> 524.5 | N52: =IF(ISNA(VLOOKUP($CZ52,'Audit Values'!$A$2:$BW$496,2,FALSE)),'Preliminary SO66'!F51,VLOOKUP($CZ52,'Audit Values'!$A$2:$BW$496,4,FALSE)) -> 0 | O52: 524.5 | P52: =IF('Military Provision'!J53="YES", MAX('2020 Legal Max'!L52,'2020 Legal Max'!I52,AVERAGE('2020 Legal Max'!F52,'2020 Legal Max'!I52,'2020 Legal Max'!L52)), MAX(L52, I52)) -> 582.6 | Q52: =IF(ISNA(VLOOKUP($CZ52,'Audit Values'!$A$2:$BU$393,2,FALSE)),'Preliminary SO66'!AL51,VLOOKUP($CZ52,'Audit Values'!$A$2:$BU$393,58,FALSE)) -> 12 | R52: 0 | S52: =P52+Q52 -> 594.6 | T52: 228.4 | U52: =IF(ISNA(VLOOKUP($CZ52,'Audit Values'!$A$2:$BW$447,2,FALSE)),'Preliminary SO66'!AM51,VLOOKUP($CZ52,'Audit Values'!$A$2:$BW$447,62,FALSE)) -> 0 | V52: =(U52/6)*'Weighting Factors'!$Q$7 -> 0 | W52: =IF(ISNA(VLOOKUP($CZ52,'Audit Values'!$A$2:$BW$447,2,FALSE)),'Preliminary SO66'!AN51,VLOOKUP($CZ52,'Audit Values'!$A$2:$BW$447,61,FALSE)) -> 0 | X52: =W52*'Weighting Factors'!$Q$8 -> 0 | Y52: 0 | Z52: =IF(ISNA(VLOOKUP($CZ52,'Audit Values'!$A$2:$BW$447,2,FALSE)),'Preliminary SO66'!AO51,VLOOKUP($CZ52,'Audit Values'!$A$2:$BW$447,60,FALSE)) -> 181.8 | AA52: =Z52/6*'Weighting Factors'!$Q$6 -> 15.2 | AB52: =IF(ISNA(VLOOKUP($CZ52,'Audit Values'!$A$2:$BU$393,2,FALSE)),'Preliminary SO66'!AS51,VLOOKUP($CZ52,'Audit Values'!$A$2:$BU$393,63,FALSE)) -> 551 | AC52: 0 | AD52: =IF(ISNA(VLOOKUP($CZ52,'Audit Values'!$A$2:$BU$393,2,FALSE)),'Preliminary SO66'!AP51,VLOOKUP($CZ52,'Audit Values'!$A$2:$BU$393,64,FALSE)) -> 205 | AE52: =IF(A52=207, AD52,MAX(AC52,AD52))*'Weighting Factors'!$Q$9 -> 99.2 | AF52: 3.2 | AG52: =IF(ISNA(VLOOKUP($CZ52,'Audit Values'!$A$2:$BW$393,2,FALSE)),'Preliminary SO66'!AG51,VLOOKUP($CZ52,'Audit Values'!$A$2:$BW$393,70,FALSE)) -> 8.9 | AH52: 8.9 | AI52: =IF(ISNA(VLOOKUP($CZ52,'Audit Values'!$A$2:$BU$393,2,FALSE)),'Preliminary SO66'!AQ51,VLOOKUP($CZ52,'Audit Values'!$A$2:$BU$393,65,FALSE)) -> 0 | AJ52: =AI52*'Weighting Factors'!$Q$10 -> 0 | AK52: =IF(ISNA(VLOOKUP($CZ52,'Audit Values'!$A$2:$BU$393,2,FALSE)),'Preliminary SO66'!AR51,VLOOKUP($CZ52,'Audit Values'!$A$2:$BU$393,66,FALSE)) -> 157 | AM52: 175582 | AN52: 209549 | AO52: =MAX(AN52, AM52)/'Weighting Factors'!$Q$5 -> 47.2 | AP52: =CN52/'Weighting Factors'!$Q$5 -> 0 | AQ52: 0 | AR52: =CS52/'Weighting Factors'!$Q$5 -> 0 | AS52: 594127 | AT52: =AS52/'Weighting Factors'!$Q$5 -> 133.9 | AU52: =IF(ISNA(VLOOKUP($CZ52,'Audit Values'!$A$2:$BU$393,2,FALSE)),'Preliminary SO66'!X51,VLOOKUP($CZ52,'Audit Values'!$A$2:$BU$393,47,FALSE)) -> 0 | AV52: 1127.4 | AW52: 993.5 | AX52: =IF(ISNA(VLOOKUP($CZ52,'Audit Values'!$A$2:$BU$393,2,FALSE)),'Preliminary SO66'!AA51,VLOOKUP($CZ52,'Audit Values'!$A$2:$BU$393,41,FALSE)) -> 0 | AY52: =IF(ISNA(VLOOKUP($CZ52,'Audit Values'!$A$2:$BU$393,2,FALSE)),'Preliminary SO66'!AB51,VLOOKUP($CZ52,'Audit Values'!$A$2:$BU$393,42,FALSE)) -> 0.8 | AZ52: 0 | BA52: =SUM(AX52*'Weighting Factors'!$T$10)+('2020 Legal Max'!AY52*'Weighting Factors'!$T$11)+('2020 Legal Max'!AZ52*'Weighting Factors'!$T$12) -> 1360 | BB52: 0 | BC52: =IF(ISNA(VLOOKUP($CZ52,'Audit Values'!$A$2:$BU$274,2,FALSE)),"",IF(AND('Weighting Factors'!H52>0,VLOOKUP($CZ52,'Audit Values'!$A$2:$BU$274,51,FALSE)<'Weighting Factors'!H52),'Weighting Factors'!H52,VLOOKUP($CZ52,'Audit Values'!$A$2:$BU$274,50,FALSE))) -> 4 | BD52: =IF(ISNA(VLOOKUP($CZ52,'Audit Values'!$A$2:$BV$447,2,FALSE)),"",VLOOKUP($CZ52,'Audit Values'!$A$2:$BV$447,51,FALSE)) -> A | BE52: =IF('Weighting Factors'!H52="","",IF('Weighting Factors'!J52="Pending","PX","R")) ->  | BF52: =SUM((S52+T52+Y52+AA52+AE52+AH52+AJ52++AO52+AP52+AQ52+AU52+AR52)*'Weighting Factors'!$Q$5)+'2020 Legal Max'!BA52+'2020 Legal Max'!BB52 -> 4408526 | BG52: =SUM((AV52+AR52)*'Weighting Factors'!$Q$5)+BA52+'2020 Legal Max'!BB52 -> 5002506 | BH52: =IF('Weighting Factors'!H52>0,'Weighting Factors'!H52,'Preliminary SO66'!AV51) -> 5075671 | BI52: 5002506 | BJ52: ='Weighting Factors'!G52 -> 0 | BK52: ='Weighting Factors'!F52 -> 0 | BL52: ='Weighting Factors'!E52 -> 0 | BM52: 0 | BN52: 5002506 | BO52: =SUM((S52+T52+Y52+AA52+AE52+AH52+AJ52++AO52+AP52+AQ52+AR52)*'Weighting Factors'!Q$12)+(MAX(AS52,'Weighting Factors'!B52)) -> 5122500 | BP52: ='LOB%'!F50 -> 0.33 | BQ52: 1690425 | BR52: 1715032 | BS52: 1690425 | BT52: 0.33 | BU52: 0 | BV52: FALSE | BW52: 0 | BX52: 0 | BY52: 0 | BZ52: TRUE | CA52: 364.5675 | CB52: 0.384096 | CC52: 228.4 | CD52: 0 | CE52: 269.3 | CF52: 0.583 | CG52: =IF(CF52<0.06,1,IF(CF52>=18.29,52,MATCH(CF52-0.001,'Weighting Factors'!$Y$5:$Y$156)+1)) -> 27 | CH52: =VLOOKUP(CG52, 'Weighting Factors'!$W$5:$Z$56,4) -> 1050 | CI52: =('Weighting Factors'!$Q$5/'Weighting Factors'!$Q$14) -> 1.0651 | CJ52: 164850 | CK52: =CJ52*'Weighting Factors'!$S$7 -> 164850 | CL52: 175582 | CM52: =AM52/'Weighting Factors'!$Q$5 -> 39.6 | CN52: 0 | CO52: 0 | CP52: 0 | CQ52: 0 | CR52: =SUM((AV52*'Weighting Factors'!$Q$5)+'2020 Legal Max'!BA52)*CQ52 -> 0 | CS52: 0 | CT52: 0.3721 | CU52: 0 | CV52: 3.2 | CW52: 1127.4 | CX52: ='LOB Transfers'!G51 -> 150279 | CY52: ='LOB Transfers'!J51 -> 0 | CZ52: D0240
A53: 241 | B53: Wallace | C53: Wallace County Schools | D53: 200.5 | E53: 0 | F53: 200.5 | G53: 199.5 | H53: 0 | I53: 199.5 | J53: 198 | K53: 0 | L53: 198 | M53: =IF(ISNA(VLOOKUP($CZ53,'Audit Values'!$A$2:$BW$496,2,FALSE)),'Preliminary SO66'!C52,VLOOKUP($CZ53,'Audit Values'!$A$2:$BW$496,73,FALSE)) -> 198 | N53: =IF(ISNA(VLOOKUP($CZ53,'Audit Values'!$A$2:$BW$496,2,FALSE)),'Preliminary SO66'!F52,VLOOKUP($CZ53,'Audit Values'!$A$2:$BW$496,4,FALSE)) -> 0 | O53: 198 | P53: =IF('Military Provision'!J54="YES", MAX('2020 Legal Max'!L53,'2020 Legal Max'!I53,AVERAGE('2020 Legal Max'!F53,'2020 Legal Max'!I53,'2020 Legal Max'!L53)), MAX(L53, I53)) -> 199.5 | Q53: =IF(ISNA(VLOOKUP($CZ53,'Audit Values'!$A$2:$BU$393,2,FALSE)),'Preliminary SO66'!AL52,VLOOKUP($CZ53,'Audit Values'!$A$2:$BU$393,58,FALSE)) -> 0 | R53: 0 | S53: 199.5 | T53: 149.7 | U53: =IF(ISNA(VLOOKUP($CZ53,'Audit Values'!$A$2:$BW$447,2,FALSE)),'Preliminary SO66'!AM52,VLOOKUP($CZ53,'Audit Values'!$A$2:$BW$447,62,FALSE)) -> 0 | V53: =(U53/6)*'Weighting Factors'!$Q$7 -> 0 | W53: =IF(ISNA(VLOOKUP($CZ53,'Audit Values'!$A$2:$BW$447,2,FALSE)),'Preliminary SO66'!AN52,VLOOKUP($CZ53,'Audit Values'!$A$2:$BW$447,61,FALSE)) -> 5 | X53: =W53*'Weighting Factors'!$Q$8 -> 0.9 | Y53: 0.9 | Z53: =IF(ISNA(VLOOKUP($CZ53,'Audit Values'!$A$2:$BW$447,2,FALSE)),'Preliminary SO66'!AO52,VLOOKUP($CZ53,'Audit Values'!$A$2:$BW$447,60,FALSE)) -> 0 | AA53: =Z53/6*'Weighting Factors'!$Q$6 -> 0 | AB53: =IF(ISNA(VLOOKUP($CZ53,'Audit Values'!$A$2:$BU$393,2,FALSE)),'Preliminary SO66'!AS52,VLOOKUP($CZ53,'Audit Values'!$A$2:$BU$393,63,FALSE)) -> 200 | AC53: 0 | AD53: =IF(ISNA(VLOOKUP($CZ53,'Audit Values'!$A$2:$BU$393,2,FALSE)),'Preliminary SO66'!AP52,VLOOKUP($CZ53,'Audit Values'!$A$2:$BU$393,64,FALSE)) -> 55 | AE53: =IF(A53=207, AD53,MAX(AC53,AD53))*'Weighting Factors'!$Q$9 -> 26.6 | AF53: 0 | AG53: =IF(ISNA(VLOOKUP($CZ53,'Audit Values'!$A$2:$BW$393,2,FALSE)),'Preliminary SO66'!AG52,VLOOKUP($CZ53,'Audit Values'!$A$2:$BW$393,70,FALSE)) -> 0 | AH53: 0 | AI53: =IF(ISNA(VLOOKUP($CZ53,'Audit Values'!$A$2:$BU$393,2,FALSE)),'Preliminary SO66'!AQ52,VLOOKUP($CZ53,'Audit Values'!$A$2:$BU$393,65,FALSE)) -> 0 | AJ53: =AI53*'Weighting Factors'!$Q$10 -> 0 | AK53: =IF(ISNA(VLOOKUP($CZ53,'Audit Values'!$A$2:$BU$393,2,FALSE)),'Preliminary SO66'!AR52,VLOOKUP($CZ53,'Audit Values'!$A$2:$BU$393,66,FALSE)) -> 61 | AM53: 96157 | AN53: 107471 | AO53: =MAX(AN53, AM53)/'Weighting Factors'!$Q$5 -> 24.2 | AP53: =CN53/'Weighting Factors'!$Q$5 -> 0 | AQ53: 0 | AR53: =CS53/'Weighting Factors'!$Q$5 -> 0 | AS53: 146633 | AT53: =AS53/'Weighting Factors'!$Q$5 -> 33.1 | AU53: =IF(ISNA(VLOOKUP($CZ53,'Audit Values'!$A$2:$BU$393,2,FALSE)),'Preliminary SO66'!X52,VLOOKUP($CZ53,'Audit Values'!$A$2:$BU$393,47,FALSE)) -> 0 | AV53: 434 | AW53: 400.9 | AX53: =IF(ISNA(VLOOKUP($CZ53,'Audit Values'!$A$2:$BU$393,2,FALSE)),'Preliminary SO66'!AA52,VLOOKUP($CZ53,'Audit Values'!$A$2:$BU$393,41,FALSE)) -> 0 | AY53: =IF(ISNA(VLOOKUP($CZ53,'Audit Values'!$A$2:$BU$393,2,FALSE)),'Preliminary SO66'!AB52,VLOOKUP($CZ53,'Audit Values'!$A$2:$BU$393,42,FALSE)) -> 0 | AZ53: 0 | BA53: =SUM(AX53*'Weighting Factors'!$T$10)+('2020 Legal Max'!AY53*'Weighting Factors'!$T$11)+('2020 Legal Max'!AZ53*'Weighting Factors'!$T$12) -> 0 | BB53: 0 | BC53: =IF(ISNA(VLOOKUP($CZ53,'Audit Values'!$A$2:$BU$274,2,FALSE)),"",IF(AND('Weighting Factors'!H53>0,VLOOKUP($CZ53,'Audit Values'!$A$2:$BU$274,51,FALSE)<'Weighting Factors'!H53),'Weighting Factors'!H53,VLOOKUP($CZ53,'Audit Values'!$A$2:$BU$274,50,FALSE))) -> 20 | BD53: =IF(ISNA(VLOOKUP($CZ53,'Audit Values'!$A$2:$BV$447,2,FALSE)),"",VLOOKUP($CZ53,'Audit Values'!$A$2:$BV$447,51,FALSE)) -> A | BE53: =IF('Weighting Factors'!H53="","",IF('Weighting Factors'!J53="Pending","PX","R")) ->  | BF53: =SUM((S53+T53+Y53+AA53+AE53+AH53+AJ53++AO53+AP53+AQ53+AU53+AR53)*'Weighting Factors'!$Q$5)+'2020 Legal Max'!BA53+'2020 Legal Max'!BB53 -> 1778392 | BG53: =SUM((AV53+AR53)*'Weighting Factors'!$Q$5)+BA53+'2020 Legal Max'!BB53 -> 1925224 | BH53: =IF('Weighting Factors'!H53>0,'Weighting Factors'!H53,'Preliminary SO66'!AV52) -> 1971358 | BI53: 1925224 | BJ53: ='Weighting Factors'!G53 -> 0 | BK53: ='Weighting Factors'!F53 -> -45085 | BL53: ='Weighting Factors'!E53 -> 0 | BM53: -45085 | BN53: 1880139 | BO53: =SUM((S53+T53+Y53+AA53+AE53+AH53+AJ53++AO53+AP53+AQ53+AR53)*'Weighting Factors'!Q$12)+(MAX(AS53,'Weighting Factors'!B53)) -> 1984076 | BP53: ='LOB%'!F51 -> 0.3 | BQ53: 595223 | BR53: 606218 | BS53: 595223 | BT53: 0.3 | BU53: 0 | BV53: TRUE | BW53: 960.673 | BX53: 0.750584 | BY53: 149.7 | BZ53: FALSE | CA53: 0 | CB53: 0 | CC53: 0 | CD53: 0 | CE53: 681.5 | CF53: 0.09 | CG53: =IF(CF53<0.06,1,IF(CF53>=18.29,52,MATCH(CF53-0.001,'Weighting Factors'!$Y$5:$Y$156)+1)) -> 5 | CH53: =VLOOKUP(CG53, 'Weighting Factors'!$W$5:$Z$56,4) -> 1480 | CI53: =('Weighting Factors'!$Q$5/'Weighting Factors'!$Q$14) -> 1.0651 | CJ53: 90280 | CK53: =CJ53*'Weighting Factors'!$S$7 -> 90280 | CL53: 96157 | CM53: =AM53/'Weighting Factors'!$Q$5 -> 21.7 | CN53: 0 | CO53: 0 | CP53: 0 | CQ53: 0 | CR53: =SUM((AV53*'Weighting Factors'!$Q$5)+'2020 Legal Max'!BA53)*CQ53 -> 0 | CS53: 0 | CT53: 0.275 | CU53: 0 | CV53: 0 | CW53: 434 | CX53: ='LOB Transfers'!G52 -> 36487 | CY53: ='LOB Transfers'!J52 -> 1250 | CZ53: D0241
A54: 242 | B54: Wallace | C54: Weskan | D54: 102.5 | E54: 0 | F54: 102.5 | G54: 103.5 | H54: 0 | I54: 103.5 | J54: 99.5 | K54: 0 | L54: 99.5 | M54: =IF(ISNA(VLOOKUP($CZ54,'Audit Values'!$A$2:$BW$496,2,FALSE)),'Preliminary SO66'!C53,VLOOKUP($CZ54,'Audit Values'!$A$2:$BW$496,73,FALSE)) -> 103.5 | N54: =IF(ISNA(VLOOKUP($CZ54,'Audit Values'!$A$2:$BW$496,2,FALSE)),'Preliminary SO66'!F53,VLOOKUP($CZ54,'Audit Values'!$A$2:$BW$496,4,FALSE)) -> 0 | O54: 103.5 | P54: =IF('Military Provision'!J55="YES", MAX('2020 Legal Max'!L54,'2020 Legal Max'!I54,AVERAGE('2020 Legal Max'!F54,'2020 Legal Max'!I54,'2020 Legal Max'!L54)), MAX(L54, I54)) -> 103.5 | Q54: =IF(ISNA(VLOOKUP($CZ54,'Audit Values'!$A$2:$BU$393,2,FALSE)),'Preliminary SO66'!AL53,VLOOKUP($CZ54,'Audit Values'!$A$2:$BU$393,58,FALSE)) -> 0 | R54: 0 | S54: 103.5 | T54: 104 | U54: =IF(ISNA(VLOOKUP($CZ54,'Audit Values'!$A$2:$BW$447,2,FALSE)),'Preliminary SO66'!AM53,VLOOKUP($CZ54,'Audit Values'!$A$2:$BW$447,62,FALSE)) -> 8.6 | V54: =(U54/6)*'Weighting Factors'!$Q$7 -> 0.6 | W54: =IF(ISNA(VLOOKUP($CZ54,'Audit Values'!$A$2:$BW$447,2,FALSE)),'Preliminary SO66'!AN53,VLOOKUP($CZ54,'Audit Values'!$A$2:$BW$447,61,FALSE)) -> 4 | X54: =W54*'Weighting Factors'!$Q$8 -> 0.7 | Y54: 0.7 | Z54: =IF(ISNA(VLOOKUP($CZ54,'Audit Values'!$A$2:$BW$447,2,FALSE)),'Preliminary SO66'!AO53,VLOOKUP($CZ54,'Audit Values'!$A$2:$BW$447,60,FALSE)) -> 11.3 | AA54: =Z54/6*'Weighting Factors'!$Q$6 -> 0.9 | AB54: =IF(ISNA(VLOOKUP($CZ54,'Audit Values'!$A$2:$BU$393,2,FALSE)),'Preliminary SO66'!AS53,VLOOKUP($CZ54,'Audit Values'!$A$2:$BU$393,63,FALSE)) -> 106 | AC54: 0 | AD54: =IF(ISNA(VLOOKUP($CZ54,'Audit Values'!$A$2:$BU$393,2,FALSE)),'Preliminary SO66'!AP53,VLOOKUP($CZ54,'Audit Values'!$A$2:$BU$393,64,FALSE)) -> 16 | AE54: =IF(A54=207, AD54,MAX(AC54,AD54))*'Weighting Factors'!$Q$9 -> 7.7 | AF54: 0 | AG54: =IF(ISNA(VLOOKUP($CZ54,'Audit Values'!$A$2:$BW$393,2,FALSE)),'Preliminary SO66'!AG53,VLOOKUP($CZ54,'Audit Values'!$A$2:$BW$393,70,FALSE)) -> 0 | AH54: 0 | AI54: =IF(ISNA(VLOOKUP($CZ54,'Audit Values'!$A$2:$BU$393,2,FALSE)),'Preliminary SO66'!AQ53,VLOOKUP($CZ54,'Audit Values'!$A$2:$BU$393,65,FALSE)) -> 0 | AJ54: =AI54*'Weighting Factors'!$Q$10 -> 0 | AK54: =IF(ISNA(VLOOKUP($CZ54,'Audit Values'!$A$2:$BU$393,2,FALSE)),'Preliminary SO66'!AR53,VLOOKUP($CZ54,'Audit Values'!$A$2:$BU$393,66,FALSE)) -> 23 | AM54: 36256 | AN54: 53158 | AO54: =MAX(AN54, AM54)/'Weighting Factors'!$Q$5 -> 12 | AP54: =CN54/'Weighting Factors'!$Q$5 -> 0 | AQ54: 0 | AR54: =CS54/'Weighting Factors'!$Q$5 -> 0 | AS54: 103791 | AT54: =AS54/'Weighting Factors'!$Q$5 -> 23.4 | AU54: =IF(ISNA(VLOOKUP($CZ54,'Audit Values'!$A$2:$BU$393,2,FALSE)),'Preliminary SO66'!X53,VLOOKUP($CZ54,'Audit Values'!$A$2:$BU$393,47,FALSE)) -> 0 | AV54: 252.2 | AW54: 228.8 | AX54: =IF(ISNA(VLOOKUP($CZ54,'Audit Values'!$A$2:$BU$393,2,FALSE)),'Preliminary SO66'!AA53,VLOOKUP($CZ54,'Audit Values'!$A$2:$BU$393,41,FALSE)) -> 0 | AY54: =IF(ISNA(VLOOKUP($CZ54,'Audit Values'!$A$2:$BU$393,2,FALSE)),'Preliminary SO66'!AB53,VLOOKUP($CZ54,'Audit Values'!$A$2:$BU$393,42,FALSE)) -> 0 | AZ54: 0 | BA54: =SUM(AX54*'Weighting Factors'!$T$10)+('2020 Legal Max'!AY54*'Weighting Factors'!$T$11)+('2020 Legal Max'!AZ54*'Weighting Factors'!$T$12) -> 0 | BB54: 0 | BC54: 28 | BD54: =IF(ISNA(VLOOKUP($CZ54,'Audit Values'!$A$2:$BV$447,2,FALSE)),"",VLOOKUP($CZ54,'Audit Values'!$A$2:$BV$447,51,FALSE)) -> A | BE54: =IF('Weighting Factors'!H54="","",IF('Weighting Factors'!J54="Pending","PX","R")) ->  | BF54: =SUM((S54+T54+Y54+AA54+AE54+AH54+AJ54++AO54+AP54+AQ54+AU54+AR54)*'Weighting Factors'!$Q$5)+'2020 Legal Max'!BA54+'2020 Legal Max'!BB54 -> 1014957 | BG54: =SUM((AV54+AR54)*'Weighting Factors'!$Q$5)+BA54+'2020 Legal Max'!BB54 -> 1118759 | BH54: =IF('Weighting Factors'!H54>0,'Weighting Factors'!H54,'Preliminary SO66'!AV53) -> 1155578 | BI54: 1118759 | BJ54: ='Weighting Factors'!G54 -> 0 | BK54: ='Weighting Factors'!F54 -> -10388 | BL54: ='Weighting Factors'!E54 -> 0 | BM54: -10388 | BN54: 1108371 | BO54: =SUM((S54+T54+Y54+AA54+AE54+AH54+AJ54++AO54+AP54+AQ54+AR54)*'Weighting Factors'!Q$12)+(MAX(AS54,'Weighting Factors'!B54)) -> 1146661 | BP54: ='LOB%'!F52 -> 0.33 | BQ54: 378398 | BR54: 390651 | BS54: 378398 | BT54: 0.33 | BU54: 0 | BV54: TRUE | BW54: 33.793 | BX54: 1.005054 | BY54: 104 | BZ54: FALSE | CA54: 0 | CB54: 0 | CC54: 0 | CD54: 0 | CE54: 243 | CF54: 0.095 | CG54: =IF(CF54<0.06,1,IF(CF54>=18.29,52,MATCH(CF54-0.001,'Weighting Factors'!$Y$5:$Y$156)+1)) -> 5 | CH54: =VLOOKUP(CG54, 'Weighting Factors'!$W$5:$Z$56,4) -> 1480 | CI54: =('Weighting Factors'!$Q$5/'Weighting Factors'!$Q$14) -> 1.0651 | CJ54: 34040 | CK54: =CJ54*'Weighting Factors'!$S$7 -> 34040 | CL54: 36256 | CM54: =AM54/'Weighting Factors'!$Q$5 -> 8.2 | CN54: 0 | CO54: 0 | CP54: 0 | CQ54: 0 | CR54: =SUM((AV54*'Weighting Factors'!$Q$5)+'2020 Legal Max'!BA54)*CQ54 -> 0 | CS54: 0 | CT54: 0.1509 | CU54: 0 | CV54: 0 | CW54: 252.2 | CX54: ='LOB Transfers'!G53 -> 11541 | CY54: ='LOB Transfers'!J53 -> 1060 | CZ54: D0242
A55: 243 | B55: Coffey | C55: Lebo-Waverly | D55: 423 | E55: 0 | F55: 423 | G55: 415.5 | H55: 0 | I55: 415.5 | J55: 423 | K55: 0 | L55: 423 | M55: =IF(ISNA(VLOOKUP($CZ55,'Audit Values'!$A$2:$BW$496,2,FALSE)),'Preliminary SO66'!C54,VLOOKUP($CZ55,'Audit Values'!$A$2:$BW$496,73,FALSE)) -> 444.2 | N55: =IF(ISNA(VLOOKUP($CZ55,'Audit Values'!$A$2:$BW$496,2,FALSE)),'Preliminary SO66'!F54,VLOOKUP($CZ55,'Audit Values'!$A$2:$BW$496,4,FALSE)) -> 0 | O55: 444.2 | P55: =IF('Military Provision'!J56="YES", MAX('2020 Legal Max'!L55,'2020 Legal Max'!I55,AVERAGE('2020 Legal Max'!F55,'2020 Legal Max'!I55,'2020 Legal Max'!L55)), MAX(L55, I55)) -> 423 | Q55: =IF(ISNA(VLOOKUP($CZ55,'Audit Values'!$A$2:$BU$393,2,FALSE)),'Preliminary SO66'!AL54,VLOOKUP($CZ55,'Audit Values'!$A$2:$BU$393,58,FALSE)) -> 0 | R55: 0 | S55: 423 | T55: 187.1 | U55: =IF(ISNA(VLOOKUP($CZ55,'Audit Values'!$A$2:$BW$447,2,FALSE)),'Preliminary SO66'!AM54,VLOOKUP($CZ55,'Audit Values'!$A$2:$BW$447,62,FALSE)) -> 0 | V55: =(U55/6)*'Weighting Factors'!$Q$7 -> 0 | W55: =IF(ISNA(VLOOKUP($CZ55,'Audit Values'!$A$2:$BW$447,2,FALSE)),'Preliminary SO66'!AN54,VLOOKUP($CZ55,'Audit Values'!$A$2:$BW$447,61,FALSE)) -> 0 | X55: =W55*'Weighting Factors'!$Q$8 -> 0 | Y55: 0 | Z55: =IF(ISNA(VLOOKUP($CZ55,'Audit Values'!$A$2:$BW$447,2,FALSE)),'Preliminary SO66'!AO54,VLOOKUP($CZ55,'Audit Values'!$A$2:$BW$447,60,FALSE)) -> 116.3 | AA55: =Z55/6*'Weighting Factors'!$Q$6 -> 9.7 | AB55: =IF(ISNA(VLOOKUP($CZ55,'Audit Values'!$A$2:$BU$393,2,FALSE)),'Preliminary SO66'!AS54,VLOOKUP($CZ55,'Audit Values'!$A$2:$BU$393,63,FALSE)) -> 456 | AC55: 0 | AD55: =IF(ISNA(VLOOKUP($CZ55,'Audit Values'!$A$2:$BU$393,2,FALSE)),'Preliminary SO66'!AP54,VLOOKUP($CZ55,'Audit Values'!$A$2:$BU$393,64,FALSE)) -> 135 | AE55: =IF(A55=207, AD55,MAX(AC55,AD55))*'Weighting Factors'!$Q$9 -> 65.3 | AF55: 0 | AG55: =IF(ISNA(VLOOKUP($CZ55,'Audit Values'!$A$2:$BW$393,2,FALSE)),'Preliminary SO66'!AG54,VLOOKUP($CZ55,'Audit Values'!$A$2:$BW$393,70,FALSE)) -> 0 | AH55: 0 | AI55: =IF(ISNA(VLOOKUP($CZ55,'Audit Values'!$A$2:$BU$393,2,FALSE)),'Preliminary SO66'!AQ54,VLOOKUP($CZ55,'Audit Values'!$A$2:$BU$393,65,FALSE)) -> 0 | AJ55: =AI55*'Weighting Factors'!$Q$10 -> 0 | AK55: =IF(ISNA(VLOOKUP($CZ55,'Audit Values'!$A$2:$BU$393,2,FALSE)),'Preliminary SO66'!AR54,VLOOKUP($CZ55,'Audit Values'!$A$2:$BU$393,66,FALSE)) -> 92.5 | AM55: 113300 | AN55: 146376 | AO55: =MAX(AN55, AM55)/'Weighting Factors'!$Q$5 -> 33 | AP55: =CN55/'Weighting Factors'!$Q$5 -> 0 | AQ55: 0 | AR55: =CS55/'Weighting Factors'!$Q$5 -> 0 | AS55: 613022 | AT55: =AS55/'Weighting Factors'!$Q$5 -> 138.2 | AU55: =IF(ISNA(VLOOKUP($CZ55,'Audit Values'!$A$2:$BU$393,2,FALSE)),'Preliminary SO66'!X54,VLOOKUP($CZ55,'Audit Values'!$A$2:$BU$393,47,FALSE)) -> 0 | AV55: 856.3 | AW55: 718.1 | AX55: =IF(ISNA(VLOOKUP($CZ55,'Audit Values'!$A$2:$BU$393,2,FALSE)),'Preliminary SO66'!AA54,VLOOKUP($CZ55,'Audit Values'!$A$2:$BU$393,41,FALSE)) -> 0 | AY55: =IF(ISNA(VLOOKUP($CZ55,'Audit Values'!$A$2:$BU$393,2,FALSE)),'Preliminary SO66'!AB54,VLOOKUP($CZ55,'Audit Values'!$A$2:$BU$393,42,FALSE)) -> 0 | AZ55: 0 | BA55: =SUM(AX55*'Weighting Factors'!$T$10)+('2020 Legal Max'!AY55*'Weighting Factors'!$T$11)+('2020 Legal Max'!AZ55*'Weighting Factors'!$T$12) -> 0 | BB55: 0 | BC55: =IF(ISNA(VLOOKUP($CZ55,'Audit Values'!$A$2:$BU$274,2,FALSE)),"",IF(AND('Weighting Factors'!H55>0,VLOOKUP($CZ55,'Audit Values'!$A$2:$BU$274,51,FALSE)<'Weighting Factors'!H55),'Weighting Factors'!H55,VLOOKUP($CZ55,'Audit Values'!$A$2:$BU$274,50,FALSE))) -> 22 | BD55: =IF(ISNA(VLOOKUP($CZ55,'Audit Values'!$A$2:$BV$447,2,FALSE)),"",VLOOKUP($CZ55,'Audit Values'!$A$2:$BV$447,51,FALSE)) -> A | BE55: =IF('Weighting Factors'!H55="","",IF('Weighting Factors'!J55="Pending","PX","R")) ->  | BF55: =SUM((S55+T55+Y55+AA55+AE55+AH55+AJ55++AO55+AP55+AQ55+AU55+AR55)*'Weighting Factors'!$Q$5)+'2020 Legal Max'!BA55+'2020 Legal Max'!BB55 -> 3185492 | BG55: =SUM((AV55+AR55)*'Weighting Factors'!$Q$5)+BA55+'2020 Legal Max'!BB55 -> 3798547 | BH55: =IF('Weighting Factors'!H55>0,'Weighting Factors'!H55,'Preliminary SO66'!AV54) -> 4006595 | BI55: 3798547 | BJ55: ='Weighting Factors'!G55 -> 0 | BK55: ='Weighting Factors'!F55 -> 0 | BL55: ='Weighting Factors'!E55 -> 0 | BM55: 0 | BN55: 3798547 | BO55: =SUM((S55+T55+Y55+AA55+AE55+AH55+AJ55++AO55+AP55+AQ55+AR55)*'Weighting Factors'!Q$12)+(MAX(AS55,'Weighting Factors'!B55)) -> 3886122 | BP55: ='LOB%'!F53 -> 0.3 | BQ55: 1165837 | BR55: 1229012 | BS55: 1165837 | BT55: 0.3 | BU55: 0 | BV55: FALSE | BW55: 0 | BX55: 0 | BY55: 0 | BZ55: TRUE | CA55: 152.2125 | CB55: 0.442397 | CC55: 187.1 | CD55: 0 | CE55: 248 | CF55: 0.373 | CG55: =IF(CF55<0.06,1,IF(CF55>=18.29,52,MATCH(CF55-0.001,'Weighting Factors'!$Y$5:$Y$156)+1)) -> 22 | CH55: =VLOOKUP(CG55, 'Weighting Factors'!$W$5:$Z$56,4) -> 1150 | CI55: =('Weighting Factors'!$Q$5/'Weighting Factors'!$Q$14) -> 1.0651 | CJ55: 106375 | CK55: =CJ55*'Weighting Factors'!$S$7 -> 106375 | CL55: 113300 | CM55: =AM55/'Weighting Factors'!$Q$5 -> 25.5 | CN55: 0 | CO55: 0 | CP55: 0 | CQ55: 0 | CR55: =SUM((AV55*'Weighting Factors'!$Q$5)+'2020 Legal Max'!BA55)*CQ55 -> 0 | CS55: 0 | CT55: 0.2961 | CU55: 0 | CV55: 0 | CW55: 856.3 | CX55: ='LOB Transfers'!G54 -> 88953 | CY55: ='LOB Transfers'!J54 -> 0 | CZ55: D0243
A56: 244 | B56: Coffey | C56: Burlington | D56: 847.5 | E56: 0 | F56: 847.5 | G56: 846 | H56: 0 | I56: 846 | J56: 815 | K56: 0 | L56: 815 | M56: =IF(ISNA(VLOOKUP($CZ56,'Audit Values'!$A$2:$BW$496,2,FALSE)),'Preliminary SO66'!C55,VLOOKUP($CZ56,'Audit Values'!$A$2:$BW$496,73,FALSE)) -> 799 | N56: =IF(ISNA(VLOOKUP($CZ56,'Audit Values'!$A$2:$BW$496,2,FALSE)),'Preliminary SO66'!F55,VLOOKUP($CZ56,'Audit Values'!$A$2:$BW$496,4,FALSE)) -> 0 | O56: 799 | P56: =IF('Military Provision'!J57="YES", MAX('2020 Legal Max'!L56,'2020 Legal Max'!I56,AVERAGE('2020 Legal Max'!F56,'2020 Legal Max'!I56,'2020 Legal Max'!L56)), MAX(L56, I56)) -> 846 | Q56: =IF(ISNA(VLOOKUP($CZ56,'Audit Values'!$A$2:$BU$393,2,FALSE)),'Preliminary SO66'!AL55,VLOOKUP($CZ56,'Audit Values'!$A$2:$BU$393,58,FALSE)) -> 6 | R56: 0 | S56: 852 | T56: 252.7 | U56: =IF(ISNA(VLOOKUP($CZ56,'Audit Values'!$A$2:$BW$447,2,FALSE)),'Preliminary SO66'!AM55,VLOOKUP($CZ56,'Audit Values'!$A$2:$BW$447,62,FALSE)) -> 1.5 | V56: =(U56/6)*'Weighting Factors'!$Q$7 -> 0.1 | W56: =IF(ISNA(VLOOKUP($CZ56,'Audit Values'!$A$2:$BW$447,2,FALSE)),'Preliminary SO66'!AN55,VLOOKUP($CZ56,'Audit Values'!$A$2:$BW$447,61,FALSE)) -> 5 | X56: =W56*'Weighting Factors'!$Q$8 -> 0.9 | Y56: 0.9 | Z56: =IF(ISNA(VLOOKUP($CZ56,'Audit Values'!$A$2:$BW$447,2,FALSE)),'Preliminary SO66'!AO55,VLOOKUP($CZ56,'Audit Values'!$A$2:$BW$447,60,FALSE)) -> 314.7 | AA56: =Z56/6*'Weighting Factors'!$Q$6 -> 26.2 | AB56: =IF(ISNA(VLOOKUP($CZ56,'Audit Values'!$A$2:$BU$393,2,FALSE)),'Preliminary SO66'!AS55,VLOOKUP($CZ56,'Audit Values'!$A$2:$BU$393,63,FALSE)) -> 819 | AC56: 0 | AD56: =IF(ISNA(VLOOKUP($CZ56,'Audit Values'!$A$2:$BU$393,2,FALSE)),'Preliminary SO66'!AP55,VLOOKUP($CZ56,'Audit Values'!$A$2:$BU$393,64,FALSE)) -> 247 | AE56: =IF(A56=207, AD56,MAX(AC56,AD56))*'Weighting Factors'!$Q$9 -> 119.5 | AF56: 0 | AG56: =IF(ISNA(VLOOKUP($CZ56,'Audit Values'!$A$2:$BW$393,2,FALSE)),'Preliminary SO66'!AG55,VLOOKUP($CZ56,'Audit Values'!$A$2:$BW$393,70,FALSE)) -> 0.1 | AH56: 0.1 | AI56: =IF(ISNA(VLOOKUP($CZ56,'Audit Values'!$A$2:$BU$393,2,FALSE)),'Preliminary SO66'!AQ55,VLOOKUP($CZ56,'Audit Values'!$A$2:$BU$393,65,FALSE)) -> 0 | AJ56: =AI56*'Weighting Factors'!$Q$10 -> 0 | AK56: =IF(ISNA(VLOOKUP($CZ56,'Audit Values'!$A$2:$BU$393,2,FALSE)),'Preliminary SO66'!AR55,VLOOKUP($CZ56,'Audit Values'!$A$2:$BU$393,66,FALSE)) -> 239 | AM56: 221466 | AN56: 224186 | AO56: =MAX(AN56, AM56)/'Weighting Factors'!$Q$5 -> 50.5 | AP56: =CN56/'Weighting Factors'!$Q$5 -> 0 | AQ56: 0 | AR56: =CS56/'Weighting Factors'!$Q$5 -> 0 | AS56: 1411023 | AT56: =AS56/'Weighting Factors'!$Q$5 -> 318.1 | AU56: =IF(ISNA(VLOOKUP($CZ56,'Audit Values'!$A$2:$BU$393,2,FALSE)),'Preliminary SO66'!X55,VLOOKUP($CZ56,'Audit Values'!$A$2:$BU$393,47,FALSE)) -> 0 | AV56: 1620 | AW56: 1301.9 | AX56: =IF(ISNA(VLOOKUP($CZ56,'Audit Values'!$A$2:$BU$393,2,FALSE)),'Preliminary SO66'!AA55,VLOOKUP($CZ56,'Audit Values'!$A$2:$BU$393,41,FALSE)) -> 0 | AY56: =IF(ISNA(VLOOKUP($CZ56,'Audit Values'!$A$2:$BU$393,2,FALSE)),'Preliminary SO66'!AB55,VLOOKUP($CZ56,'Audit Values'!$A$2:$BU$393,42,FALSE)) -> 0 | AZ56: 0 | BA56: =SUM(AX56*'Weighting Factors'!$T$10)+('2020 Legal Max'!AY56*'Weighting Factors'!$T$11)+('2020 Legal Max'!AZ56*'Weighting Factors'!$T$12) -> 0 | BB56: 0 | BC56: =IF(ISNA(VLOOKUP($CZ56,'Audit Values'!$A$2:$BU$274,2,FALSE)),"",IF(AND('Weighting Factors'!H56>0,VLOOKUP($CZ56,'Audit Values'!$A$2:$BU$274,51,FALSE)<'Weighting Factors'!H56),'Weighting Factors'!H56,VLOOKUP($CZ56,'Audit Values'!$A$2:$BU$274,50,FALSE))) -> 26 | BD56: =IF(ISNA(VLOOKUP($CZ56,'Audit Values'!$A$2:$BV$447,2,FALSE)),"",VLOOKUP($CZ56,'Audit Values'!$A$2:$BV$447,51,FALSE)) -> A | BE56: =IF('Weighting Factors'!H56="","",IF('Weighting Factors'!J56="Pending","PX","R")) ->  | BF56: =SUM((S56+T56+Y56+AA56+AE56+AH56+AJ56++AO56+AP56+AQ56+AU56+AR56)*'Weighting Factors'!$Q$5)+'2020 Legal Max'!BA56+'2020 Legal Max'!BB56 -> 5775228 | BG56: =SUM((AV56+AR56)*'Weighting Factors'!$Q$5)+BA56+'2020 Legal Max'!BB56 -> 7186320 | BH56: =IF('Weighting Factors'!H56>0,'Weighting Factors'!H56,'Preliminary SO66'!AV55) -> 7451149 | BI56: 7186320 | BJ56: ='Weighting Factors'!G56 -> 0 | BK56: ='Weighting Factors'!F56 -> 0 | BL56: ='Weighting Factors'!E56 -> 0 | BM56: 0 | BN56: 7186320 | BO56: =SUM((S56+T56+Y56+AA56+AE56+AH56+AJ56++AO56+AP56+AQ56+AR56)*'Weighting Factors'!Q$12)+(MAX(AS56,'Weighting Factors'!B56)) -> 7345083 | BP56: ='LOB%'!F54 -> 0.3 | BQ56: 2203525 | BR56: 2267153 | BS56: 2203525 | BT56: 0.3 | BU56: 0 | BV56: FALSE | BW56: 0 | BX56: 0 | BY56: 0 | BZ56: TRUE | CA56: 683.1 | CB56: 0.296645 | CC56: 252.7 | CD56: 0 | CE56: 147 | CF56: 1.626 | CG56: =IF(CF56<0.06,1,IF(CF56>=18.29,52,MATCH(CF56-0.001,'Weighting Factors'!$Y$5:$Y$156)+1)) -> 36 | CH56: =VLOOKUP(CG56, 'Weighting Factors'!$W$5:$Z$56,4) -> 870 | CI56: =('Weighting Factors'!$Q$5/'Weighting Factors'!$Q$14) -> 1.0651 | CJ56: 207930 | CK56: =CJ56*'Weighting Factors'!$S$7 -> 207930 | CL56: 221466 | CM56: =AM56/'Weighting Factors'!$Q$5 -> 49.9 | CN56: 0 | CO56: 0 | CP56: 0 | CQ56: 0 | CR56: =SUM((AV56*'Weighting Factors'!$Q$5)+'2020 Legal Max'!BA56)*CQ56 -> 0 | CS56: 0 | CT56: 0.3016 | CU56: 0 | CV56: 0 | CW56: 1620 | CX56: ='LOB Transfers'!G55 -> 163061 | CY56: ='LOB Transfers'!J55 -> 1322 | CZ56: D0244
A57: 245 | B57: Coffey | C57: LeRoy-Gridley | D57: 200.5 | E57: 0 | F57: 200.5 | G57: 192 | H57: 0 | I57: 192 | J57: 202 | K57: 0 | L57: 202 | M57: =IF(ISNA(VLOOKUP($CZ57,'Audit Values'!$A$2:$BW$496,2,FALSE)),'Preliminary SO66'!C56,VLOOKUP($CZ57,'Audit Values'!$A$2:$BW$496,73,FALSE)) -> 182 | N57: =IF(ISNA(VLOOKUP($CZ57,'Audit Values'!$A$2:$BW$496,2,FALSE)),'Preliminary SO66'!F56,VLOOKUP($CZ57,'Audit Values'!$A$2:$BW$496,4,FALSE)) -> 0 | O57: 182 | P57: =IF('Military Provision'!J58="YES", MAX('2020 Legal Max'!L57,'2020 Legal Max'!I57,AVERAGE('2020 Legal Max'!F57,'2020 Legal Max'!I57,'2020 Legal Max'!L57)), MAX(L57, I57)) -> 202 | Q57: =IF(ISNA(VLOOKUP($CZ57,'Audit Values'!$A$2:$BU$393,2,FALSE)),'Preliminary SO66'!AL56,VLOOKUP($CZ57,'Audit Values'!$A$2:$BU$393,58,FALSE)) -> 0 | R57: 0 | S57: 202 | T57: 150.3 | U57: =IF(ISNA(VLOOKUP($CZ57,'Audit Values'!$A$2:$BW$447,2,FALSE)),'Preliminary SO66'!AM56,VLOOKUP($CZ57,'Audit Values'!$A$2:$BW$447,62,FALSE)) -> 0 | V57: =(U57/6)*'Weighting Factors'!$Q$7 -> 0 | W57: =IF(ISNA(VLOOKUP($CZ57,'Audit Values'!$A$2:$BW$447,2,FALSE)),'Preliminary SO66'!AN56,VLOOKUP($CZ57,'Audit Values'!$A$2:$BW$447,61,FALSE)) -> 0 | X57: =W57*'Weighting Factors'!$Q$8 -> 0 | Y57: 0 | Z57: =IF(ISNA(VLOOKUP($CZ57,'Audit Values'!$A$2:$BW$447,2,FALSE)),'Preliminary SO66'!AO56,VLOOKUP($CZ57,'Audit Values'!$A$2:$BW$447,60,FALSE)) -> 72 | AA57: =Z57/6*'Weighting Factors'!$Q$6 -> 6 | AB57: =IF(ISNA(VLOOKUP($CZ57,'Audit Values'!$A$2:$BU$393,2,FALSE)),'Preliminary SO66'!AS56,VLOOKUP($CZ57,'Audit Values'!$A$2:$BU$393,63,FALSE)) -> 183 | AC57: 0 | AD57: =IF(ISNA(VLOOKUP($CZ57,'Audit Values'!$A$2:$BU$393,2,FALSE)),'Preliminary SO66'!AP56,VLOOKUP($CZ57,'Audit Values'!$A$2:$BU$393,64,FALSE)) -> 73 | AE57: =IF(A57=207, AD57,MAX(AC57,AD57))*'Weighting Factors'!$Q$9 -> 35.3 | AF57: 2.5 | AG57: =IF(ISNA(VLOOKUP($CZ57,'Audit Values'!$A$2:$BW$393,2,FALSE)),'Preliminary SO66'!AG56,VLOOKUP($CZ57,'Audit Values'!$A$2:$BW$393,70,FALSE)) -> 2.9 | AH57: 2.9 | AI57: =IF(ISNA(VLOOKUP($CZ57,'Audit Values'!$A$2:$BU$393,2,FALSE)),'Preliminary SO66'!AQ56,VLOOKUP($CZ57,'Audit Values'!$A$2:$BU$393,65,FALSE)) -> 0 | AJ57: =AI57*'Weighting Factors'!$Q$10 -> 0 | AK57: =IF(ISNA(VLOOKUP($CZ57,'Audit Values'!$A$2:$BU$393,2,FALSE)),'Preliminary SO66'!AR56,VLOOKUP($CZ57,'Audit Values'!$A$2:$BU$393,66,FALSE)) -> 101 | AM57: 117257 | AN57: 132509 | AO57: =MAX(AN57, AM57)/'Weighting Factors'!$Q$5 -> 29.9 | AP57: =CN57/'Weighting Factors'!$Q$5 -> 0 | AQ57: 0 | AR57: =CS57/'Weighting Factors'!$Q$5 -> 0 | AS57: 227428 | AT57: =AS57/'Weighting Factors'!$Q$5 -> 51.3 | AU57: =IF(ISNA(VLOOKUP($CZ57,'Audit Values'!$A$2:$BU$393,2,FALSE)),'Preliminary SO66'!X56,VLOOKUP($CZ57,'Audit Values'!$A$2:$BU$393,47,FALSE)) -> 0 | AV57: 477.7 | AW57: 426.4 | AX57: =IF(ISNA(VLOOKUP($CZ57,'Audit Values'!$A$2:$BU$393,2,FALSE)),'Preliminary SO66'!AA56,VLOOKUP($CZ57,'Audit Values'!$A$2:$BU$393,41,FALSE)) -> 0 | AY57: =IF(ISNA(VLOOKUP($CZ57,'Audit Values'!$A$2:$BU$393,2,FALSE)),'Preliminary SO66'!AB56,VLOOKUP($CZ57,'Audit Values'!$A$2:$BU$393,42,FALSE)) -> 0 | AZ57: 0 | BA57: =SUM(AX57*'Weighting Factors'!$T$10)+('2020 Legal Max'!AY57*'Weighting Factors'!$T$11)+('2020 Legal Max'!AZ57*'Weighting Factors'!$T$12) -> 0 | BB57: 0 | BC57: =IF(ISNA(VLOOKUP($CZ57,'Audit Values'!$A$2:$BU$274,2,FALSE)),"",IF(AND('Weighting Factors'!H57>0,VLOOKUP($CZ57,'Audit Values'!$A$2:$BU$274,51,FALSE)<'Weighting Factors'!H57),'Weighting Factors'!H57,VLOOKUP($CZ57,'Audit Values'!$A$2:$BU$274,50,FALSE))) -> 10 | BD57: =IF(ISNA(VLOOKUP($CZ57,'Audit Values'!$A$2:$BV$447,2,FALSE)),"",VLOOKUP($CZ57,'Audit Values'!$A$2:$BV$447,51,FALSE)) -> A | BE57: =IF('Weighting Factors'!H57="","",IF('Weighting Factors'!J57="Pending","PX","R")) ->  | BF57: =SUM((S57+T57+Y57+AA57+AE57+AH57+AJ57++AO57+AP57+AQ57+AU57+AR57)*'Weighting Factors'!$Q$5)+'2020 Legal Max'!BA57+'2020 Legal Max'!BB57 -> 1891510 | BG57: =SUM((AV57+AR57)*'Weighting Factors'!$Q$5)+BA57+'2020 Legal Max'!BB57 -> 2119077 | BH57: =IF('Weighting Factors'!H57>0,'Weighting Factors'!H57,'Preliminary SO66'!AV56) -> 2139926 | BI57: 2119077 | BJ57: ='Weighting Factors'!G57 -> 0 | BK57: ='Weighting Factors'!F57 -> 0 | BL57: ='Weighting Factors'!E57 -> 0 | BM57: 0 | BN57: 2119077 | BO57: =SUM((S57+T57+Y57+AA57+AE57+AH57+AJ57++AO57+AP57+AQ57+AR57)*'Weighting Factors'!Q$12)+(MAX(AS57,'Weighting Factors'!B57)) -> 2244082 | BP57: ='LOB%'!F55 -> 0.3 | BQ57: 673225 | BR57: 668986 | BS57: 668986 | BT57: 0.2981 | BU57: 0 | BV57: TRUE | BW57: 984.81 | BX57: 0.743957 | BY57: 150.3 | BZ57: FALSE | CA57: 0 | CB57: 0 | CC57: 0 | CD57: 0 | CE57: 207 | CF57: 0.488 | CG57: =IF(CF57<0.06,1,IF(CF57>=18.29,52,MATCH(CF57-0.001,'Weighting Factors'!$Y$5:$Y$156)+1)) -> 25 | CH57: =VLOOKUP(CG57, 'Weighting Factors'!$W$5:$Z$56,4) -> 1090 | CI57: =('Weighting Factors'!$Q$5/'Weighting Factors'!$Q$14) -> 1.0651 | CJ57: 110090 | CK57: =CJ57*'Weighting Factors'!$S$7 -> 110090 | CL57: 117257 | CM57: =AM57/'Weighting Factors'!$Q$5 -> 26.4 | CN57: 0 | CO57: 0 | CP57: 0 | CQ57: 0 | CR57: =SUM((AV57*'Weighting Factors'!$Q$5)+'2020 Legal Max'!BA57)*CQ57 -> 0 | CS57: 0 | CT57: 0.3989 | CU57: 0 | CV57: 2.5 | CW57: 477.7 | CX57: ='LOB Transfers'!G56 -> 49438 | CY57: ='LOB Transfers'!J56 -> 0 | CZ57: D0245
A58: 246 | B58: Crawford | C58: Northeast | D58: 463 | E58: 0 | F58: 463 | G58: 444.6 | H58: 0 | I58: 444.6 | J58: 438.5 | K58: 0 | L58: 438.5 | M58: =IF(ISNA(VLOOKUP($CZ58,'Audit Values'!$A$2:$BW$496,2,FALSE)),'Preliminary SO66'!C57,VLOOKUP($CZ58,'Audit Values'!$A$2:$BW$496,73,FALSE)) -> 449 | N58: =IF(ISNA(VLOOKUP($CZ58,'Audit Values'!$A$2:$BW$496,2,FALSE)),'Preliminary SO66'!F57,VLOOKUP($CZ58,'Audit Values'!$A$2:$BW$496,4,FALSE)) -> 0 | O58: 449 | P58: =IF('Military Provision'!J59="YES", MAX('2020 Legal Max'!L58,'2020 Legal Max'!I58,AVERAGE('2020 Legal Max'!F58,'2020 Legal Max'!I58,'2020 Legal Max'!L58)), MAX(L58, I58)) -> 444.6 | Q58: =IF(ISNA(VLOOKUP($CZ58,'Audit Values'!$A$2:$BU$393,2,FALSE)),'Preliminary SO66'!AL57,VLOOKUP($CZ58,'Audit Values'!$A$2:$BU$393,58,FALSE)) -> 6.5 | R58: 0 | S58: 451.1 | T58: 195.3 | U58: =IF(ISNA(VLOOKUP($CZ58,'Audit Values'!$A$2:$BW$447,2,FALSE)),'Preliminary SO66'!AM57,VLOOKUP($CZ58,'Audit Values'!$A$2:$BW$447,62,FALSE)) -> 0 | V58: =(U58/6)*'Weighting Factors'!$Q$7 -> 0 | W58: =IF(ISNA(VLOOKUP($CZ58,'Audit Values'!$A$2:$BW$447,2,FALSE)),'Preliminary SO66'!AN57,VLOOKUP($CZ58,'Audit Values'!$A$2:$BW$447,61,FALSE)) -> 2 | X58: =W58*'Weighting Factors'!$Q$8 -> 0.4 | Y58: 0.4 | Z58: =IF(ISNA(VLOOKUP($CZ58,'Audit Values'!$A$2:$BW$447,2,FALSE)),'Preliminary SO66'!AO57,VLOOKUP($CZ58,'Audit Values'!$A$2:$BW$447,60,FALSE)) -> 82.5 | AA58: =Z58/6*'Weighting Factors'!$Q$6 -> 6.9 | AB58: =IF(ISNA(VLOOKUP($CZ58,'Audit Values'!$A$2:$BU$393,2,FALSE)),'Preliminary SO66'!AS57,VLOOKUP($CZ58,'Audit Values'!$A$2:$BU$393,63,FALSE)) -> 465 | AC58: 0 | AD58: =IF(ISNA(VLOOKUP($CZ58,'Audit Values'!$A$2:$BU$393,2,FALSE)),'Preliminary SO66'!AP57,VLOOKUP($CZ58,'Audit Values'!$A$2:$BU$393,64,FALSE)) -> 269 | AE58: =IF(A58=207, AD58,MAX(AC58,AD58))*'Weighting Factors'!$Q$9 -> 130.2 | AF58: 28.2 | AG58: =IF(ISNA(VLOOKUP($CZ58,'Audit Values'!$A$2:$BW$393,2,FALSE)),'Preliminary SO66'!AG57,VLOOKUP($CZ58,'Audit Values'!$A$2:$BW$393,70,FALSE)) -> 26.9 | AH58: 28.2 | AI58: =IF(ISNA(VLOOKUP($CZ58,'Audit Values'!$A$2:$BU$393,2,FALSE)),'Preliminary SO66'!AQ57,VLOOKUP($CZ58,'Audit Values'!$A$2:$BU$393,65,FALSE)) -> 0 | AJ58: =AI58*'Weighting Factors'!$Q$10 -> 0 | AK58: =IF(ISNA(VLOOKUP($CZ58,'Audit Values'!$A$2:$BU$393,2,FALSE)),'Preliminary SO66'!AR57,VLOOKUP($CZ58,'Audit Values'!$A$2:$BU$393,66,FALSE)) -> 165 | AM58: 156410 | AN58: 176422 | AO58: =MAX(AN58, AM58)/'Weighting Factors'!$Q$5 -> 39.8 | AP58: =CN58/'Weighting Factors'!$Q$5 -> 0 | AQ58: 0 | AR58: =CS58/'Weighting Factors'!$Q$5 -> 0 | AS58: 533045 | AT58: =AS58/'Weighting Factors'!$Q$5 -> 120.2 | AU58: =IF(ISNA(VLOOKUP($CZ58,'Audit Values'!$A$2:$BU$393,2,FALSE)),'Preliminary SO66'!X57,VLOOKUP($CZ58,'Audit Values'!$A$2:$BU$393,47,FALSE)) -> 0 | AV58: 972.1 | AW58: 851.9 | AX58: =IF(ISNA(VLOOKUP($CZ58,'Audit Values'!$A$2:$BU$393,2,FALSE)),'Preliminary SO66'!AA57,VLOOKUP($CZ58,'Audit Values'!$A$2:$BU$393,41,FALSE)) -> 8 | AY58: =IF(ISNA(VLOOKUP($CZ58,'Audit Values'!$A$2:$BU$393,2,FALSE)),'Preliminary SO66'!AB57,VLOOKUP($CZ58,'Audit Values'!$A$2:$BU$393,42,FALSE)) -> 0 | AZ58: 0 | BA58: =SUM(AX58*'Weighting Factors'!$T$10)+('2020 Legal Max'!AY58*'Weighting Factors'!$T$11)+('2020 Legal Max'!AZ58*'Weighting Factors'!$T$12) -> 40000 | BB58: 0 | BC58: =IF(ISNA(VLOOKUP($CZ58,'Audit Values'!$A$2:$BU$274,2,FALSE)),"",IF(AND('Weighting Factors'!H58>0,VLOOKUP($CZ58,'Audit Values'!$A$2:$BU$274,51,FALSE)<'Weighting Factors'!H58),'Weighting Factors'!H58,VLOOKUP($CZ58,'Audit Values'!$A$2:$BU$274,50,FALSE))) -> 10 | BD58: =IF(ISNA(VLOOKUP($CZ58,'Audit Values'!$A$2:$BV$447,2,FALSE)),"",VLOOKUP($CZ58,'Audit Values'!$A$2:$BV$447,51,FALSE)) -> A | BE58: =IF('Weighting Factors'!H58="","",IF('Weighting Factors'!J58="Pending","PX","R")) -> R | BF58: =SUM((S58+T58+Y58+AA58+AE58+AH58+AJ58++AO58+AP58+AQ58+AU58+AR58)*'Weighting Factors'!$Q$5)+'2020 Legal Max'!BA58+'2020 Legal Max'!BB58 -> 3819028 | BG58: =SUM((AV58+AR58)*'Weighting Factors'!$Q$5)+BA58+'2020 Legal Max'!BB58 -> 4352236 | BH58: =IF('Weighting Factors'!H58>0,'Weighting Factors'!H58,'Preliminary SO66'!AV57) -> 4400588 | BI58: 4352236 | BJ58: ='Weighting Factors'!G58 -> 0 | BK58: ='Weighting Factors'!F58 -> -6797 | BL58: ='Weighting Factors'!E58 -> 0 | BM58: -6797 | BN58: 4345439 | BO58: =SUM((S58+T58+Y58+AA58+AE58+AH58+AJ58++AO58+AP58+AQ58+AR58)*'Weighting Factors'!Q$12)+(MAX(AS58,'Weighting Factors'!B58)) -> 4416005 | BP58: ='LOB%'!F56 -> 0.3 | BQ58: 1324802 | BR58: 1321488 | BS58: 1321488 | BT58: 0.2992 | BU58: 0 | BV58: FALSE | BW58: 0 | BX58: 0 | BY58: 0 | BZ58: TRUE | CA58: 186.9863 | CB58: 0.43285 | CC58: 195.3 | CD58: 0 | CE58: 106 | CF58: 1.557 | CG58: =IF(CF58<0.06,1,IF(CF58>=18.29,52,MATCH(CF58-0.001,'Weighting Factors'!$Y$5:$Y$156)+1)) -> 35 | CH58: =VLOOKUP(CG58, 'Weighting Factors'!$W$5:$Z$56,4) -> 890 | CI58: =('Weighting Factors'!$Q$5/'Weighting Factors'!$Q$14) -> 1.0651 | CJ58: 146850 | CK58: =CJ58*'Weighting Factors'!$S$7 -> 146850 | CL58: 156410 | CM58: =AM58/'Weighting Factors'!$Q$5 -> 35.3 | CN58: 0 | CO58: 0 | CP58: 0 | CQ58: 0 | CR58: =SUM((AV58*'Weighting Factors'!$Q$5)+'2020 Legal Max'!BA58)*CQ58 -> 0 | CS58: 0 | CT58: 0.5785 | CU58: 28.2 | CV58: 0 | CW58: 972.1 | CX58: ='LOB Transfers'!G57 -> 178137 | CY58: ='LOB Transfers'!J57 -> 529 | CZ58: D0246
A59: 247 | B59: Crawford | C59: Cherokee | D59: 471 | E59: 0 | F59: 471 | G59: 484 | H59: 0 | I59: 484 | J59: 469.1 | K59: 0 | L59: 469.1 | M59: =IF(ISNA(VLOOKUP($CZ59,'Audit Values'!$A$2:$BW$496,2,FALSE)),'Preliminary SO66'!C58,VLOOKUP($CZ59,'Audit Values'!$A$2:$BW$496,73,FALSE)) -> 467.1 | N59: =IF(ISNA(VLOOKUP($CZ59,'Audit Values'!$A$2:$BW$496,2,FALSE)),'Preliminary SO66'!F58,VLOOKUP($CZ59,'Audit Values'!$A$2:$BW$496,4,FALSE)) -> 0 | O59: 467.1 | P59: =IF('Military Provision'!J60="YES", MAX('2020 Legal Max'!L59,'2020 Legal Max'!I59,AVERAGE('2020 Legal Max'!F59,'2020 Legal Max'!I59,'2020 Legal Max'!L59)), MAX(L59, I59)) -> 484 | Q59: =IF(ISNA(VLOOKUP($CZ59,'Audit Values'!$A$2:$BU$393,2,FALSE)),'Preliminary SO66'!AL58,VLOOKUP($CZ59,'Audit Values'!$A$2:$BU$393,58,FALSE)) -> 7.5 | R59: 0 | S59: 491.5 | T59: 206 | U59: =IF(ISNA(VLOOKUP($CZ59,'Audit Values'!$A$2:$BW$447,2,FALSE)),'Preliminary SO66'!AM58,VLOOKUP($CZ59,'Audit Values'!$A$2:$BW$447,62,FALSE)) -> 0 | V59: =(U59/6)*'Weighting Factors'!$Q$7 -> 0 | W59: =IF(ISNA(VLOOKUP($CZ59,'Audit Values'!$A$2:$BW$447,2,FALSE)),'Preliminary SO66'!AN58,VLOOKUP($CZ59,'Audit Values'!$A$2:$BW$447,61,FALSE)) -> 0 | X59: =W59*'Weighting Factors'!$Q$8 -> 0 | Y59: 0 | Z59: =IF(ISNA(VLOOKUP($CZ59,'Audit Values'!$A$2:$BW$447,2,FALSE)),'Preliminary SO66'!AO58,VLOOKUP($CZ59,'Audit Values'!$A$2:$BW$447,60,FALSE)) -> 245.9 | AA59: =Z59/6*'Weighting Factors'!$Q$6 -> 20.5 | AB59: =IF(ISNA(VLOOKUP($CZ59,'Audit Values'!$A$2:$BU$393,2,FALSE)),'Preliminary SO66'!AS58,VLOOKUP($CZ59,'Audit Values'!$A$2:$BU$393,63,FALSE)) -> 486 | AC59: 0 | AD59: =IF(ISNA(VLOOKUP($CZ59,'Audit Values'!$A$2:$BU$393,2,FALSE)),'Preliminary SO66'!AP58,VLOOKUP($CZ59,'Audit Values'!$A$2:$BU$393,64,FALSE)) -> 243 | AE59: =IF(A59=207, AD59,MAX(AC59,AD59))*'Weighting Factors'!$Q$9 -> 117.6 | AF59: 25.5 | AG59: =IF(ISNA(VLOOKUP($CZ59,'Audit Values'!$A$2:$BW$393,2,FALSE)),'Preliminary SO66'!AG58,VLOOKUP($CZ59,'Audit Values'!$A$2:$BW$393,70,FALSE)) -> 22.4 | AH59: 25.5 | AI59: =IF(ISNA(VLOOKUP($CZ59,'Audit Values'!$A$2:$BU$393,2,FALSE)),'Preliminary SO66'!AQ58,VLOOKUP($CZ59,'Audit Values'!$A$2:$BU$393,65,FALSE)) -> 0 | AJ59: =AI59*'Weighting Factors'!$Q$10 -> 0 | AK59: =IF(ISNA(VLOOKUP($CZ59,'Audit Values'!$A$2:$BU$393,2,FALSE)),'Preliminary SO66'!AR58,VLOOKUP($CZ59,'Audit Values'!$A$2:$BU$393,66,FALSE)) -> 269 | AM59: 277917 | AN59: 367866 | AO59: =MAX(AN59, AM59)/'Weighting Factors'!$Q$5 -> 82.9 | AP59: =CN59/'Weighting Factors'!$Q$5 -> 0 | AQ59: 0 | AR59: =CS59/'Weighting Factors'!$Q$5 -> 0 | AS59: 493715 | AT59: =AS59/'Weighting Factors'!$Q$5 -> 111.3 | AU59: =IF(ISNA(VLOOKUP($CZ59,'Audit Values'!$A$2:$BU$393,2,FALSE)),'Preliminary SO66'!X58,VLOOKUP($CZ59,'Audit Values'!$A$2:$BU$393,47,FALSE)) -> 0 | AV59: 1055.3 | AW59: 944 | AX59: =IF(ISNA(VLOOKUP($CZ59,'Audit Values'!$A$2:$BU$393,2,FALSE)),'Preliminary SO66'!AA58,VLOOKUP($CZ59,'Audit Values'!$A$2:$BU$393,41,FALSE)) -> 4 | AY59: =IF(ISNA(VLOOKUP($CZ59,'Audit Values'!$A$2:$BU$393,2,FALSE)),'Preliminary SO66'!AB58,VLOOKUP($CZ59,'Audit Values'!$A$2:$BU$393,42,FALSE)) -> 0 | AZ59: 0 | BA59: =SUM(AX59*'Weighting Factors'!$T$10)+('2020 Legal Max'!AY59*'Weighting Factors'!$T$11)+('2020 Legal Max'!AZ59*'Weighting Factors'!$T$12) -> 20000 | BB59: 0 | BC59: =IF(ISNA(VLOOKUP($CZ59,'Audit Values'!$A$2:$BU$274,2,FALSE)),"",IF(AND('Weighting Factors'!H59>0,VLOOKUP($CZ59,'Audit Values'!$A$2:$BU$274,51,FALSE)<'Weighting Factors'!H59),'Weighting Factors'!H59,VLOOKUP($CZ59,'Audit Values'!$A$2:$BU$274,50,FALSE))) -> 10 | BD59: =IF(ISNA(VLOOKUP($CZ59,'Audit Values'!$A$2:$BV$447,2,FALSE)),"",VLOOKUP($CZ59,'Audit Values'!$A$2:$BV$447,51,FALSE)) -> A | BE59: =IF('Weighting Factors'!H59="","",IF('Weighting Factors'!J59="Pending","PX","R")) ->  | BF59: =SUM((S59+T59+Y59+AA59+AE59+AH59+AJ59++AO59+AP59+AQ59+AU59+AR59)*'Weighting Factors'!$Q$5)+'2020 Legal Max'!BA59+'2020 Legal Max'!BB59 -> 4207584 | BG59: =SUM((AV59+AR59)*'Weighting Factors'!$Q$5)+BA59+'2020 Legal Max'!BB59 -> 4701311 | BH59: =IF('Weighting Factors'!H59>0,'Weighting Factors'!H59,'Preliminary SO66'!AV58) -> 4816970 | BI59: 4701311 | BJ59: ='Weighting Factors'!G59 -> 0 | BK59: ='Weighting Factors'!F59 -> -2544 | BL59: ='Weighting Factors'!E59 -> 0 | BM59: -2544 | BN59: 4698767 | BO59: =SUM((S59+T59+Y59+AA59+AE59+AH59+AJ59++AO59+AP59+AQ59+AR59)*'Weighting Factors'!Q$12)+(MAX(AS59,'Weighting Factors'!B59)) -> 4959392 | BP59: ='LOB%'!F57 -> 0.3 | BQ59: 1487818 | BR59: 1509012 | BS59: 1487818 | BT59: 0.3 | BU59: 0 | BV59: FALSE | BW59: 0 | BX59: 0 | BY59: 0 | BZ59: TRUE | CA59: 236.9813 | CB59: 0.419124 | CC59: 206 | CD59: 0 | CE59: 300 | CF59: 0.897 | CG59: =IF(CF59<0.06,1,IF(CF59>=18.29,52,MATCH(CF59-0.001,'Weighting Factors'!$Y$5:$Y$156)+1)) -> 31 | CH59: =VLOOKUP(CG59, 'Weighting Factors'!$W$5:$Z$56,4) -> 970 | CI59: =('Weighting Factors'!$Q$5/'Weighting Factors'!$Q$14) -> 1.0651 | CJ59: 260930 | CK59: =CJ59*'Weighting Factors'!$S$7 -> 260930 | CL59: 277917 | CM59: =AM59/'Weighting Factors'!$Q$5 -> 62.7 | CN59: 0 | CO59: 0 | CP59: 0 | CQ59: 0 | CR59: =SUM((AV59*'Weighting Factors'!$Q$5)+'2020 Legal Max'!BA59)*CQ59 -> 0 | CS59: 0 | CT59: 0.5 | CU59: 25.5 | CV59: 0 | CW59: 1055.3 | CX59: ='LOB Transfers'!G58 -> 166933 | CY59: ='LOB Transfers'!J58 -> 0 | CZ59: D0247
A60: 248 | B60: Crawford | C60: Girard | D60: 994 | E60: 0 | F60: 994 | G60: 1003 | H60: 0 | I60: 1003 | J60: 1005 | K60: 0 | L60: 1005 | M60: =IF(ISNA(VLOOKUP($CZ60,'Audit Values'!$A$2:$BW$496,2,FALSE)),'Preliminary SO66'!C59,VLOOKUP($CZ60,'Audit Values'!$A$2:$BW$496,73,FALSE)) -> 991.5 | N60: =IF(ISNA(VLOOKUP($CZ60,'Audit Values'!$A$2:$BW$496,2,FALSE)),'Preliminary SO66'!F59,VLOOKUP($CZ60,'Audit Values'!$A$2:$BW$496,4,FALSE)) -> 0 | O60: 991.5 | P60: =IF('Military Provision'!J61="YES", MAX('2020 Legal Max'!L60,'2020 Legal Max'!I60,AVERAGE('2020 Legal Max'!F60,'2020 Legal Max'!I60,'2020 Legal Max'!L60)), MAX(L60, I60)) -> 1005 | Q60: =IF(ISNA(VLOOKUP($CZ60,'Audit Values'!$A$2:$BU$393,2,FALSE)),'Preliminary SO66'!AL59,VLOOKUP($CZ60,'Audit Values'!$A$2:$BU$393,58,FALSE)) -> 6 | R60: 0 | S60: 1011 | T60: 245.3 | U60: =IF(ISNA(VLOOKUP($CZ60,'Audit Values'!$A$2:$BW$447,2,FALSE)),'Preliminary SO66'!AM59,VLOOKUP($CZ60,'Audit Values'!$A$2:$BW$447,62,FALSE)) -> 10.5 | V60: =(U60/6)*'Weighting Factors'!$Q$7 -> 0.7 | W60: =IF(ISNA(VLOOKUP($CZ60,'Audit Values'!$A$2:$BW$447,2,FALSE)),'Preliminary SO66'!AN59,VLOOKUP($CZ60,'Audit Values'!$A$2:$BW$447,61,FALSE)) -> 16 | X60: =W60*'Weighting Factors'!$Q$8 -> 3 | Y60: 3 | Z60: =IF(ISNA(VLOOKUP($CZ60,'Audit Values'!$A$2:$BW$447,2,FALSE)),'Preliminary SO66'!AO59,VLOOKUP($CZ60,'Audit Values'!$A$2:$BW$447,60,FALSE)) -> 344.3 | AA60: =Z60/6*'Weighting Factors'!$Q$6 -> 28.7 | AB60: =IF(ISNA(VLOOKUP($CZ60,'Audit Values'!$A$2:$BU$393,2,FALSE)),'Preliminary SO66'!AS59,VLOOKUP($CZ60,'Audit Values'!$A$2:$BU$393,63,FALSE)) -> 1009 | AC60: 0 | AD60: =IF(ISNA(VLOOKUP($CZ60,'Audit Values'!$A$2:$BU$393,2,FALSE)),'Preliminary SO66'!AP59,VLOOKUP($CZ60,'Audit Values'!$A$2:$BU$393,64,FALSE)) -> 353 | AE60: =IF(A60=207, AD60,MAX(AC60,AD60))*'Weighting Factors'!$Q$9 -> 170.9 | AF60: 0 | AG60: =IF(ISNA(VLOOKUP($CZ60,'Audit Values'!$A$2:$BW$393,2,FALSE)),'Preliminary SO66'!AG59,VLOOKUP($CZ60,'Audit Values'!$A$2:$BW$393,70,FALSE)) -> 4.1 | AH60: 4.1 | AI60: =IF(ISNA(VLOOKUP($CZ60,'Audit Values'!$A$2:$BU$393,2,FALSE)),'Preliminary SO66'!AQ59,VLOOKUP($CZ60,'Audit Values'!$A$2:$BU$393,65,FALSE)) -> 0 | AJ60: =AI60*'Weighting Factors'!$Q$10 -> 0 | AK60: =IF(ISNA(VLOOKUP($CZ60,'Audit Values'!$A$2:$BU$393,2,FALSE)),'Preliminary SO66'!AR59,VLOOKUP($CZ60,'Audit Values'!$A$2:$BU$393,66,FALSE)) -> 297.5 | AM60: 294687 | AN60: 348221 | AO60: =MAX(AN60, AM60)/'Weighting Factors'!$Q$5 -> 78.5 | AP60: =CN60/'Weighting Factors'!$Q$5 -> 0 | AQ60: 0 | AR60: =CS60/'Weighting Factors'!$Q$5 -> 0 | AS60: 1043756 | AT60: =AS60/'Weighting Factors'!$Q$5 -> 235.3 | AU60: =IF(ISNA(VLOOKUP($CZ60,'Audit Values'!$A$2:$BU$393,2,FALSE)),'Preliminary SO66'!X59,VLOOKUP($CZ60,'Audit Values'!$A$2:$BU$393,47,FALSE)) -> 0 | AV60: 1776.8 | AW60: 1541.5 | AX60: =IF(ISNA(VLOOKUP($CZ60,'Audit Values'!$A$2:$BU$393,2,FALSE)),'Preliminary SO66'!AA59,VLOOKUP($CZ60,'Audit Values'!$A$2:$BU$393,41,FALSE)) -> 0 | AY60: =IF(ISNA(VLOOKUP($CZ60,'Audit Values'!$A$2:$BU$393,2,FALSE)),'Preliminary SO66'!AB59,VLOOKUP($CZ60,'Audit Values'!$A$2:$BU$393,42,FALSE)) -> 0.9 | AZ60: 0 | BA60: =SUM(AX60*'Weighting Factors'!$T$10)+('2020 Legal Max'!AY60*'Weighting Factors'!$T$11)+('2020 Legal Max'!AZ60*'Weighting Factors'!$T$12) -> 1530 | BB60: 0 | BC60: =IF(ISNA(VLOOKUP($CZ60,'Audit Values'!$A$2:$BU$274,2,FALSE)),"",IF(AND('Weighting Factors'!H60>0,VLOOKUP($CZ60,'Audit Values'!$A$2:$BU$274,51,FALSE)<'Weighting Factors'!H60),'Weighting Factors'!H60,VLOOKUP($CZ60,'Audit Values'!$A$2:$BU$274,50,FALSE))) -> 22 | BD60: =IF(ISNA(VLOOKUP($CZ60,'Audit Values'!$A$2:$BV$447,2,FALSE)),"",VLOOKUP($CZ60,'Audit Values'!$A$2:$BV$447,51,FALSE)) -> A | BE60: =IF('Weighting Factors'!H60="","",IF('Weighting Factors'!J60="Pending","PX","R")) ->  | BF60: =SUM((S60+T60+Y60+AA60+AE60+AH60+AJ60++AO60+AP60+AQ60+AU60+AR60)*'Weighting Factors'!$Q$5)+'2020 Legal Max'!BA60+'2020 Legal Max'!BB60 -> 6839624 | BG60: =SUM((AV60+AR60)*'Weighting Factors'!$Q$5)+BA60+'2020 Legal Max'!BB60 -> 7883415 | BH60: =IF('Weighting Factors'!H60>0,'Weighting Factors'!H60,'Preliminary SO66'!AV59) -> 8105912 | BI60: 7883415 | BJ60: ='Weighting Factors'!G60 -> 0 | BK60: ='Weighting Factors'!F60 -> 0 | BL60: ='Weighting Factors'!E60 -> 0 | BM60: 0 | BN60: 7883415 | BO60: =SUM((S60+T60+Y60+AA60+AE60+AH60+AJ60++AO60+AP60+AQ60+AR60)*'Weighting Factors'!Q$12)+(MAX(AS60,'Weighting Factors'!B60)) -> 8069913 | BP60: ='LOB%'!F58 -> 0.3 | BQ60: 2420974 | BR60: 2486694 | BS60: 2420974 | BT60: 0.3 | BU60: 0 | BV60: FALSE | BW60: 0 | BX60: 0 | BY60: 0 | BZ60: TRUE | CA60: 879.8625 | CB60: 0.242625 | CC60: 245.3 | CD60: 0 | CE60: 263 | CF60: 1.131 | CG60: =IF(CF60<0.06,1,IF(CF60>=18.29,52,MATCH(CF60-0.001,'Weighting Factors'!$Y$5:$Y$156)+1)) -> 33 | CH60: =VLOOKUP(CG60, 'Weighting Factors'!$W$5:$Z$56,4) -> 930 | CI60: =('Weighting Factors'!$Q$5/'Weighting Factors'!$Q$14) -> 1.0651 | CJ60: 276675 | CK60: =CJ60*'Weighting Factors'!$S$7 -> 276675 | CL60: 294687 | CM60: =AM60/'Weighting Factors'!$Q$5 -> 66.4 | CN60: 0 | CO60: 0 | CP60: 0 | CQ60: 0 | CR60: =SUM((AV60*'Weighting Factors'!$Q$5)+'2020 Legal Max'!BA60)*CQ60 -> 0 | CS60: 0 | CT60: 0.3499 | CU60: 0 | CV60: 0 | CW60: 1776.8 | CX60: ='LOB Transfers'!G59 -> 233624 | CY60: ='LOB Transfers'!J59 -> 4116 | CZ60: D0248
